Workbook

Sheet CHA VERSION ONLY--->
A1: 2020-02-26
B8: 2019-2021 Hospital Quality Assurance Fee (HQAF) Program VI Fee and Payment Model
B9: 30 Month Program – 7/1/2019 to 12/31/2021
B11: PROVIDER TAX WAIVER APPROVED BY CMS ON 2/14/2020
B12: STATE PLAN AMENDMENTS APPROVED BY CMS ON 2/25/2020

Sheet Gain.Contribute (CHA Only)FINAL
E1: =COUNTIF(E28:E261,"SYSTEM TOTAL") -> 31 | F1: 19-20 Results | G1: Gain | H1: Contrib. | I1: C-Systems | J1: 20-21 Results | K1: Gain | L1: Contrib. | M1: C-Systems | N1: 21-22 Results | O1: Gain | P1: Contrib. | Q1: C-Systems | R1: Total Results | S1: Gain | T1: Contrib. | U1: C-Systems
E2: System Gains | F2: =Y269 -> 4113637025 | G2: =G28+G36+G41+G70++G74+G77+G81+G84+G88+G91+G95+G101+G107+G112+G115+G119+G125+G128+G138+G145+G150+G168+G173+G178+G181+G204+G218+G223+G226+G229+G261+G269 -> 175 | H2: =H28+H36+H41+H70++H74+H77+H81+H84+H88+H91+H95+H101+H107+H112+H115+H119+H125+H128+H138+H145+H150+H168+H173+H178+H181+H204+H218+H223+H226+H229+H261+H269 -> 43 | I2: =COUNTIF(I28:I269,1) -> 1 | J2: =AA269 -> 4247324719 | K2: =K28+K36+K41+K70++K74+K77+K81+K84+K88+K91+K95+K101+K107+K112+K115+K119+K125+K128+K138+K145+K150+K168+K173+K178+K181+K204+K218+K223+K226+K229+K261+K269 -> 174 | L2: =L28+L36+L41+L70++L74+L77+L81+L84+L88+L91+L95+L101+L107+L112+L115+L119+L125+L128+L138+L145+L150+L168+L173+L178+L181+L204+L218+L223+L226+L229+L261+L269 -> 44 | M2: =COUNTIF(M28:M269,1) -> 1 | N2: =AC269 -> 2145881101 | O2: =O28+O36+O41+O70++O74+O77+O81+O84+O88+O91+O95+O101+O107+O112+O115+O119+O125+O128+O138+O145+O150+O168+O173+O178+O181+O204+O218+O223+O226+O229+O261+O269 -> 174 | P2: =P28+P36+P41+P70++P74+P77+P81+P84+P88+P91+P95+P101+P107+P112+P115+P119+P125+P128+P138+P145+P150+P168+P173+P178+P181+P204+P218+P223+P226+P229+P261+P269 -> 44 | Q2: =COUNTIF(Q28:Q269,1) -> 1 | R2: =AE269 -> 9254796450 | S2: =S28+S36+S41+S70++S74+S77+S81+S84+S88+S91+S95+S101+S107+S112+S115+S119+S125+S128+S138+S145+S150+S168+S173+S178+S181+S204+S218+S223+S226+S229+S261+S269 -> 174 | T2: =T28+T36+T41+T70++T74+T77+T81+T84+T88+T91+T95+T101+T107+T112+T115+T119+T125+T128+T138+T145+T150+T168+T173+T178+T181+T204+T218+T223+T226+T229+T261+T269 -> 44 | U2: =COUNTIF(U28:U269,1) -> 1
E3: System Contributors | F3: =Y270 -> -152844412 | J3: =AA270 -> -161279463.3 | N3: =AC270 -> -83491707.44 | R3: =AE270 -> -397540975.1 | AA3: Net Ben this page
E4: Individual Hospitals Gains | F4: =F330 -> 619096532 | G4: =G328+G269 -> 47 | H4: =H315+H269 -> 0 | J4: =J330 -> 640908628.6 | K4: =K328+K269 -> 47 | L4: =L315+L269 -> 0 | N4: =N330 -> 324968553.2 | O4: =O328+O269 -> 47 | P4: =P315+P269 -> 0 | R4: =R330 -> 1584973714 | S4: =S328+S269 -> 47 | T4: =T315+T269 -> 0 | AA4: Net Ben model
E5: Individual Hospital Contributors | F5: =F329 -> -15524749.19 | H5: =H328 -> 6 | J5: =J329 -> -15649256.04 | L5: =L328 -> 6 | N5: =N329 -> -7998980.455 | P5: =P328 -> 6 | Q5: =N5+J5+F5 -> -39172985.68 | R5: =R329 -> -39172985.68 | T5: =T328 -> 6 | AA5: Diff s/b zero
E6: Designated Publics and NDPH | F6: =F332 -> 0 | J6: =R332 -> 0 | N6: =N334 -> 0 | R6: =R334 -> 0
E7: Contributing System Totals | F7: =Z270 -> -13902835.76 | I7: =SUM(G2:H6) -> 271 | J7: =AB270 -> -13909526.46 | M7: =SUM(K2:L6) -> 271 | N7: =AD270 -> -7411150 | Q7: =SUM(O2:P6) -> 271 | R7: =AF270 -> -35223512.23 | U7: =SUM(S2:T6) -> 271
E8: Total Individual & System Contributors | F8: =+F5+F7 -> -29427584.95 | G8: G | H8: C | J8: =+J5+J7 -> -29558782.5 | K8: G | L8: C | N8: =+N5+N7 -> -15410130.46 | O8: G | P8: C | R8: =+R5+R7 -> -74396497.91 | S8: G | T8: C
A9: OSHPD | B9: Medicare | C9: Hospital Name | E9: System
F10: 2019-2020 | J10: 2020-2021 | N10: 2021-2022 | R10: Total | Y10: 2016 | AA10: 2017 | AC10: 2018 | AE10: Total
A11: 106100797 | B11: 50192 | C11: ADVENTIST HEALTH REEDLEY | D11: 3 | E11: ADVENTIST HEALTH SYSTEM | F11: =IFERROR(INDEX('4. FY 2019-20'!AZ:AZ,MATCH(A11,'4. FY 2019-20'!A:A,0)),0) -> 17836084.9 | G11: =IF(F11>0,1,0) -> 1 | H11: =IF(F11<0,1,0) -> 0 | J11: =IFERROR(INDEX('5. FY 2020-21'!AZ:AZ,MATCH(A11,'5. FY 2020-21'!A:A,0)),0) -> 18160906.63 | K11: =IF(J11>0,1,0) -> 1 | L11: =IF(J11<0,1,0) -> 0 | N11: =IFERROR(INDEX('6. FY 2021-22'!AZ:AZ,MATCH(A11,'6. FY 2021-22'!A:A,0)),0) -> 9195100.12 | O11: =IF(N11>0,1,0) -> 1 | P11: =IF(N11<0,1,0) -> 0 | R11: =F11+J11+N11 -> 45192091.65 | S11: =IF(R11>0,1,0) -> 1 | T11: =IF(R11<0,1,0) -> 0 | Y11: =F11 -> 17836084.9 | AA11: =J11 -> 18160906.63 | AC11: =N11 -> 9195100.12 | AE11: =R11 -> 45192091.65 | AH11: =(J11-F11)/F11 -> 0.01821149229
A12: 106160787 | B12: 50196 | C12: CENTRAL VALLEY GENERAL HOSPITAL | D12: 3 | E12: ADVENTIST HEALTH SYSTEM | F12: =IFERROR(INDEX('4. FY 2019-20'!AZ:AZ,MATCH(A12,'4. FY 2019-20'!A:A,0)),0) -> 0 | G12: =IF(F12>0,1,0) -> 0 | H12: =IF(F12<0,1,0) -> 0 | J12: =IFERROR(INDEX('5. FY 2020-21'!AZ:AZ,MATCH(A12,'5. FY 2020-21'!A:A,0)),0) -> 0 | K12: =IF(J12>0,1,0) -> 0 | L12: =IF(J12<0,1,0) -> 0 | N12: =IFERROR(INDEX('6. FY 2021-22'!AZ:AZ,MATCH(A12,'6. FY 2021-22'!A:A,0)),0) -> 0 | O12: =IF(N12>0,1,0) -> 0 | P12: =IF(N12<0,1,0) -> 0 | R12: =F12+J12+N12 -> 0 | S12: =IF(R12>0,1,0) -> 0 | T12: =IF(R12<0,1,0) -> 0 | Y12: 0 | AA12: 0 | AC12: 0 | AE12: 0
A13: 106040875 | B13: 50225 | C13: ADVENTIST HEALTH FEATHER RIVER | D13: 3 | E13: ADVENTIST HEALTH SYSTEM | F13: =IFERROR(INDEX('4. FY 2019-20'!AZ:AZ,MATCH(A13,'4. FY 2019-20'!A:A,0)),0) -> 0 | G13: 0 | H13: 0 | J13: =IFERROR(INDEX('5. FY 2020-21'!AZ:AZ,MATCH(A13,'5. FY 2020-21'!A:A,0)),0) -> 0 | K13: 0 | L13: 0 | N13: =IFERROR(INDEX('6. FY 2021-22'!AZ:AZ,MATCH(A13,'6. FY 2021-22'!A:A,0)),0) -> 0 | O13: 0 | P13: 0 | R13: 0 | S13: 0 | T13: 0 | Y13: 0 | AA13: 0 | AC13: 0 | AE13: 0
A14: 106234038 | B14: 51310 | C14: ADVENTIST HEALTH HOWARD MEMORIAL | D14: 3 | E14: ADVENTIST HEALTH SYSTEM | F14: =IFERROR(INDEX('4. FY 2019-20'!AZ:AZ,MATCH(A14,'4. FY 2019-20'!A:A,0)),0) -> 5769344.535 | G14: 1 | H14: 0 | J14: =IFERROR(INDEX('5. FY 2020-21'!AZ:AZ,MATCH(A14,'5. FY 2020-21'!A:A,0)),0) -> 5796306.529 | K14: 1 | L14: 0 | N14: =IFERROR(INDEX('6. FY 2021-22'!AZ:AZ,MATCH(A14,'6. FY 2021-22'!A:A,0)),0) -> 2937947.643 | O14: 1 | P14: 0 | R14: 14503598.71 | S14: 1 | T14: 0 | Y14: 5769344.535 | AA14: 5796306.529 | AC14: 2937947.643 | AE14: 14503598.71 | AH14: 0.004673320088
A15: 106190323 | B15: 50239 | C15: ADVENTIST HEALTH GLENDALE | D15: 3 | E15: ADVENTIST HEALTH SYSTEM | F15: =IFERROR(INDEX('4. FY 2019-20'!AZ:AZ,MATCH(A15,'4. FY 2019-20'!A:A,0)),0) -> 5821903.222 | G15: 1 | H15: 0 | J15: =IFERROR(INDEX('5. FY 2020-21'!AZ:AZ,MATCH(A15,'5. FY 2020-21'!A:A,0)),0) -> 5859853.041 | K15: 1 | L15: 0 | N15: =IFERROR(INDEX('6. FY 2021-22'!AZ:AZ,MATCH(A15,'6. FY 2021-22'!A:A,0)),0) -> 3361044.385 | O15: 1 | P15: 0 | R15: 15042800.65 | S15: 1 | T15: 0 | Y15: 5821903.222 | AA15: 5859853.041 | AC15: 3361044.385 | AE15: 15042800.65 | AH15: 0.006518455785
A16: 106164029 | B16: 50121 | C16: ADVENTIST HEALTH HANFORD | D16: 3 | E16: ADVENTIST HEALTH SYSTEM | F16: =IFERROR(INDEX('4. FY 2019-20'!AZ:AZ,MATCH(A16,'4. FY 2019-20'!A:A,0)),0) -> 56357402.64 | G16: 1 | H16: 0 | J16: =IFERROR(INDEX('5. FY 2020-21'!AZ:AZ,MATCH(A16,'5. FY 2020-21'!A:A,0)),0) -> 57367479.01 | K16: 1 | L16: 0 | N16: =IFERROR(INDEX('6. FY 2021-22'!AZ:AZ,MATCH(A16,'6. FY 2021-22'!A:A,0)),0) -> 28996495.76 | O16: 1 | P16: 0 | R16: 142721377.4 | S16: 1 | T16: 0 | Y16: 56357402.64 | AA16: 57367479.01 | AC16: 28996495.76 | AE16: 142721377.4 | AH16: 0.01792269188
A17: 106390923 | B17: 50336 | C17: ADVENTIST HEALTH LODI MEMORIAL | D17: 3 | E17: ADVENTIST HEALTH SYSTEM | F17: =IFERROR(INDEX('4. FY 2019-20'!AZ:AZ,MATCH(A17,'4. FY 2019-20'!A:A,0)),0) -> 16156169.11 | G17: 1 | H17: 0 | J17: =IFERROR(INDEX('5. FY 2020-21'!AZ:AZ,MATCH(A17,'5. FY 2020-21'!A:A,0)),0) -> 16535743.48 | K17: 1 | L17: 0 | N17: =IFERROR(INDEX('6. FY 2021-22'!AZ:AZ,MATCH(A17,'6. FY 2021-22'!A:A,0)),0) -> 8472975.858 | O17: 1 | P17: 0 | R17: 41164888.45 | S17: 1 | T17: 0 | Y17: 16156169.11 | AA17: 16535743.48 | AC17: 8472975.858 | AE17: 41164888.45 | AH17: 0.02349408263
A18: 106171049 | B18: 51317 | C18: ADVENTIST HEALTH CLEARLAKE | D18: 3 | E18: ADVENTIST HEALTH SYSTEM | F18: =IFERROR(INDEX('4. FY 2019-20'!AZ:AZ,MATCH(A18,'4. FY 2019-20'!A:A,0)),0) -> 9480132.925 | G18: 1 | H18: 0 | J18: =IFERROR(INDEX('5. FY 2020-21'!AZ:AZ,MATCH(A18,'5. FY 2020-21'!A:A,0)),0) -> 9628990.784 | K18: 1 | L18: 0 | N18: =IFERROR(INDEX('6. FY 2021-22'!AZ:AZ,MATCH(A18,'6. FY 2021-22'!A:A,0)),0) -> 4906451.876 | O18: 1 | P18: 0 | R18: 24015575.59 | S18: 1 | T18: 0 | Y18: 9480132.925 | AA18: 9628990.784 | AC18: 4906451.876 | AE18: 24015575.59 | AH18: 0.01570208563
A19: 106150788 | B19: 50455 | C19: ADVENTIST HEALTH BAKERSFIELD | D19: 3 | E19: ADVENTIST HEALTH SYSTEM | F19: =IFERROR(INDEX('4. FY 2019-20'!AZ:AZ,MATCH(A19,'4. FY 2019-20'!A:A,0)),0) -> 24038560.26 | G19: 1 | H19: 0 | J19: =IFERROR(INDEX('5. FY 2020-21'!AZ:AZ,MATCH(A19,'5. FY 2020-21'!A:A,0)),0) -> 24789453.77 | K19: 1 | L19: 0 | N19: =IFERROR(INDEX('6. FY 2021-22'!AZ:AZ,MATCH(A19,'6. FY 2021-22'!A:A,0)),0) -> 12561819.13 | O19: 1 | P19: 0 | R19: 61389833.16 | S19: 1 | T19: 0 | Y19: 24038560.26 | AA19: 24789453.77 | AC19: 12561819.13 | AE19: 61389833.16 | AH19: 0.03123704175
A20: 106560525 | B20: 50236 | C20: ADVENTIST HEALTH SIMI VALLEY | D20: 3 | E20: ADVENTIST HEALTH SYSTEM | F20: =IFERROR(INDEX('4. FY 2019-20'!AZ:AZ,MATCH(A20,'4. FY 2019-20'!A:A,0)),0) -> 763423.5527 | G20: 1 | H20: 0 | J20: =IFERROR(INDEX('5. FY 2020-21'!AZ:AZ,MATCH(A20,'5. FY 2020-21'!A:A,0)),0) -> 629412.0465 | K20: 1 | L20: 0 | N20: =IFERROR(INDEX('6. FY 2021-22'!AZ:AZ,MATCH(A20,'6. FY 2021-22'!A:A,0)),0) -> 408035.5173 | O20: 1 | P20: 0 | R20: 1800871.116 | S20: 1 | T20: 0 | Y20: 763423.5527 | AA20: 629412.0465 | AC20: 408035.5173 | AE20: 1800871.116 | AH20: -0.1755401778
A21: 106554011 | B21: 50335 | C21: ADVENTIST HEALTH SONORA - GREENLEY | D21: 3 | E21: ADVENTIST HEALTH SYSTEM | F21: =IFERROR(INDEX('4. FY 2019-20'!AZ:AZ,MATCH(A21,'4. FY 2019-20'!A:A,0)),0) -> 15873185.65 | G21: 1 | H21: 0 | J21: =IFERROR(INDEX('5. FY 2020-21'!AZ:AZ,MATCH(A21,'5. FY 2020-21'!A:A,0)),0) -> 16140676.71 | K21: 1 | L21: 0 | N21: =IFERROR(INDEX('6. FY 2021-22'!AZ:AZ,MATCH(A21,'6. FY 2021-22'!A:A,0)),0) -> 8199550.032 | O21: 1 | P21: 0 | R21: 40213412.39 | S21: 1 | T21: 0 | Y21: 15873185.65 | AA21: 16140676.71 | AC21: 8199550.032 | AE21: 40213412.39 | AH21: 0.01685175638
A22: 106281078 | B22: 50013 | C22: ADVENTIST HEALTH ST. HELENA | D22: 3 | E22: ADVENTIST HEALTH SYSTEM | F22: =IFERROR(INDEX('4. FY 2019-20'!AZ:AZ,MATCH(A22,'4. FY 2019-20'!A:A,0)),0) -> 1172580.28 | G22: 1 | H22: 0 | J22: =IFERROR(INDEX('5. FY 2020-21'!AZ:AZ,MATCH(A22,'5. FY 2020-21'!A:A,0)),0) -> 1052862.117 | K22: 1 | L22: 0 | N22: =IFERROR(INDEX('6. FY 2021-22'!AZ:AZ,MATCH(A22,'6. FY 2021-22'!A:A,0)),0) -> 677741.5808 | O22: 1 | P22: 0 | R22: 2903183.978 | S22: 1 | T22: 0 | Y22: 1172580.28 | AA22: 1052862.117 | AC22: 677741.5808 | AE22: 2903183.978 | AH22: -0.1020980522
A23: 106150808 | B23: 51301 | C23: ADVENTIST HEALTH TEHACHAPI VALLEY | D23: 3 | E23: ADVENTIST HEALTH SYSTEM | F23: =IFERROR(INDEX('4. FY 2019-20'!AZ:AZ,MATCH(A23,'4. FY 2019-20'!A:A,0)),0) -> 3433928.943 | G23: 1 | H23: 0 | J23: =IFERROR(INDEX('5. FY 2020-21'!AZ:AZ,MATCH(A23,'5. FY 2020-21'!A:A,0)),0) -> 3399172.443 | K23: 1 | L23: 0 | N23: =IFERROR(INDEX('6. FY 2021-22'!AZ:AZ,MATCH(A23,'6. FY 2021-22'!A:A,0)),0) -> 1717320.735 | O23: 1 | P23: 0 | R23: 8550422.121 | S23: 1 | T23: 0 | Y23: 3433928.943 | AA23: 3399172.443 | AC23: 1717320.735 | AE23: 8550422.121 | AH23: -0.01012149659
A24: 106231396 | B24: 50301 | C24: ADVENTIST HEALTH UKIAH VALLEY | D24: 3 | E24: ADVENTIST HEALTH SYSTEM | F24: =IFERROR(INDEX('4. FY 2019-20'!AZ:AZ,MATCH(A24,'4. FY 2019-20'!A:A,0)),0) -> 12982054.15 | G24: 1 | H24: 0 | J24: =IFERROR(INDEX('5. FY 2020-21'!AZ:AZ,MATCH(A24,'5. FY 2020-21'!A:A,0)),0) -> 13094121.25 | K24: 1 | L24: 0 | N24: =IFERROR(INDEX('6. FY 2021-22'!AZ:AZ,MATCH(A24,'6. FY 2021-22'!A:A,0)),0) -> 6604908.439 | O24: 1 | P24: 0 | R24: 32681083.84 | S24: 1 | T24: 0 | Y24: 12982054.15 | AA24: 13094121.25 | AC24: 6604908.439 | AE24: 32681083.84 | AH24: 0.008632462553
A25: 106190878 | B25: 50103 | C25: ADVENTIST HEALTH WHITE MEMORIAL | D25: 3 | E25: ADVENTIST HEALTH SYSTEM | F25: =IFERROR(INDEX('4. FY 2019-20'!AZ:AZ,MATCH(A25,'4. FY 2019-20'!A:A,0)),0) -> 50094264.28 | G25: 1 | H25: 0 | J25: =IFERROR(INDEX('5. FY 2020-21'!AZ:AZ,MATCH(A25,'5. FY 2020-21'!A:A,0)),0) -> 52960696.87 | K25: 1 | L25: 0 | N25: =IFERROR(INDEX('6. FY 2021-22'!AZ:AZ,MATCH(A25,'6. FY 2021-22'!A:A,0)),0) -> 26766150.49 | O25: 1 | P25: 0 | R25: 129821111.6 | S25: 1 | T25: 0 | Y25: 50094264.28 | AA25: 52960696.87 | AC25: 26766150.49 | AE25: 129821111.6 | AH25: 0.05722077418
A26: 106580996 | B26: 50133 | C26: RIDEOUT MEMORIAL HOSPITAL | D26: 3 | E26: ADVENTIST HEALTH SYSTEM | F26: =IFERROR(INDEX('4. FY 2019-20'!AZ:AZ,MATCH(A26,'4. FY 2019-20'!A:A,0)),0) -> 17841234.67 | G26: 1 | H26: 0 | J26: =IFERROR(INDEX('5. FY 2020-21'!AZ:AZ,MATCH(A26,'5. FY 2020-21'!A:A,0)),0) -> 18572617.22 | K26: 1 | L26: 0 | N26: =IFERROR(INDEX('6. FY 2021-22'!AZ:AZ,MATCH(A26,'6. FY 2021-22'!A:A,0)),0) -> 9638183.477 | O26: 1 | P26: 0 | R26: 46052035.37 | S26: 1 | T26: 0 | Y26: 17841234.67 | AA26: 18572617.22 | AC26: 9638183.477 | AE26: 46052035.37 | AH26: 0.04099394249
A27: 106540816 | B27: 50359 | C27: TULARE REGIONAL MEDICAL CENTER | D27: 3 | E27: ADVENTIST HEALTH SYSTEM | F27: =IFERROR(INDEX('4. FY 2019-20'!AZ:AZ,MATCH(A27,'4. FY 2019-20'!A:A,0)),0) -> 8488974.171 | G27: 1 | H27: 0 | J27: =IFERROR(INDEX('5. FY 2020-21'!AZ:AZ,MATCH(A27,'5. FY 2020-21'!A:A,0)),0) -> 8516470.386 | K27: 1 | L27: 0 | N27: =IFERROR(INDEX('6. FY 2021-22'!AZ:AZ,MATCH(A27,'6. FY 2021-22'!A:A,0)),0) -> 4337646.115 | O27: 1 | P27: 0 | R27: 21343090.67 | S27: 1 | T27: 0 | Y27: 8488974.171 | AA27: 8516470.386 | AC27: 4337646.115 | AE27: 21343090.67 | AH27: 0.00323905037
D28: 1 | E28: SYSTEM TOTAL | F28: =SUM(F11:F27) -> 246109243.3 | G28: =SUM(G11:G27) -> 15 | H28: =SUM(H11:H27) -> 0 | I28: =IF(F28<0,1,0) -> 0 | J28: =SUM(J11:J27) -> 252504762.3 | K28: =SUM(K11:K27) -> 15 | L28: =SUM(L11:L27) -> 0 | M28: =IF(J28<0,1,0) -> 0 | N28: =SUM(N11:N27) -> 128781371.2 | O28: =SUM(O11:O27) -> 15 | P28: =SUM(P11:P27) -> 0 | Q28: =IF(N28<0,1,0) -> 0 | R28: =SUM(R11:R27) -> 627395376.8 | S28: =SUM(S11:S27) -> 15 | T28: =SUM(T11:T27) -> 0 | U28: =IF(R28<0,1,0) -> 0 | Z28: =IF(I28=0,0,F28) -> 0 | AB28: =IF(M28=0,0,J28) -> 0 | AD28: =IF(Q28=0,0,N28) -> 0 | AF28: =IF(U28=0,0,R28) -> 0 | AH28: 0.02598650455
A29: 106190017 | B29: 50281 | C29: ALHAMBRA HOSPITAL - ALHAMBRA | D29: 3 | E29: AHMC HEALTHCARE INC. | F29: =IFERROR(INDEX('4. FY 2019-20'!AZ:AZ,MATCH(A29,'4. FY 2019-20'!A:A,0)),0) -> 6762264.295 | G29: =IF(F29>0,1,0) -> 1 | H29: =IF(F29<0,1,0) -> 0 | J29: =IFERROR(INDEX('5. FY 2020-21'!AZ:AZ,MATCH(A29,'5. FY 2020-21'!A:A,0)),0) -> 6770576.241 | K29: =IF(J29>0,1,0) -> 1 | L29: =IF(J29<0,1,0) -> 0 | N29: =IFERROR(INDEX('6. FY 2021-22'!AZ:AZ,MATCH(A29,'6. FY 2021-22'!A:A,0)),0) -> 3485111.987 | O29: =IF(N29>0,1,0) -> 1 | P29: =IF(N29<0,1,0) -> 0 | R29: =F29+J29+N29 -> 17017952.52 | S29: =IF(R29>0,1,0) -> 1 | T29: =IF(R29<0,1,0) -> 0 | Y29: =F29 -> 6762264.295 | AA29: =J29 -> 6770576.241 | AC29: =N29 -> 3485111.987 | AE29: =R29 -> 17017952.52 | AH29: 0.001229166041
A30: 106301098 | B30: 50226 | C30: ANAHEIM MEMORIAL MEDICAL CENTER | D30: 3 | E30: AHMC HEALTHCARE INC. | F30: =IFERROR(INDEX('4. FY 2019-20'!AZ:AZ,MATCH(A30,'4. FY 2019-20'!A:A,0)),0) -> 15231073.24 | G30: 1 | H30: 0 | J30: =IFERROR(INDEX('5. FY 2020-21'!AZ:AZ,MATCH(A30,'5. FY 2020-21'!A:A,0)),0) -> 15948474.59 | K30: 1 | L30: 0 | N30: =IFERROR(INDEX('6. FY 2021-22'!AZ:AZ,MATCH(A30,'6. FY 2021-22'!A:A,0)),0) -> 8108680.454 | O30: 1 | P30: 0 | R30: 39288228.28 | S30: 1 | T30: 0 | Y30: 15231073.24 | AA30: 15948474.59 | AC30: 8108680.454 | AE30: 39288228.28 | AH30: 0.04710116855
A31: 106190315 | B31: 50737 | C31: GARFIELD MEDICAL CENTER | D31: 3 | E31: AHMC HEALTHCARE INC. | F31: =IFERROR(INDEX('4. FY 2019-20'!AZ:AZ,MATCH(A31,'4. FY 2019-20'!A:A,0)),0) -> 12344782.77 | G31: 1 | H31: 0 | J31: =IFERROR(INDEX('5. FY 2020-21'!AZ:AZ,MATCH(A31,'5. FY 2020-21'!A:A,0)),0) -> 13294229.61 | K31: 1 | L31: 0 | N31: =IFERROR(INDEX('6. FY 2021-22'!AZ:AZ,MATCH(A31,'6. FY 2021-22'!A:A,0)),0) -> 6773206.819 | O31: 1 | P31: 0 | R31: 32412219.2 | S31: 1 | T31: 0 | Y31: 12344782.77 | AA31: 13294229.61 | AC31: 6773206.819 | AE31: 32412219.2 | AH31: 0.0769107774
A32: 106190352 | B32: 50738 | C32: GREATER EL MONTE COMMUNITY HOSPITAL | D32: 3 | E32: AHMC HEALTHCARE INC. | F32: =IFERROR(INDEX('4. FY 2019-20'!AZ:AZ,MATCH(A32,'4. FY 2019-20'!A:A,0)),0) -> 12615957.88 | G32: 1 | H32: 0 | J32: =IFERROR(INDEX('5. FY 2020-21'!AZ:AZ,MATCH(A32,'5. FY 2020-21'!A:A,0)),0) -> 13122545.34 | K32: 1 | L32: 0 | N32: =IFERROR(INDEX('6. FY 2021-22'!AZ:AZ,MATCH(A32,'6. FY 2021-22'!A:A,0)),0) -> 6571853.102 | O32: 1 | P32: 0 | R32: 32310356.32 | S32: 1 | T32: 0 | Y32: 12615957.88 | AA32: 13122545.34 | AC32: 6571853.102 | AE32: 32310356.32 | AH32: 0.04015449818
A33: 106190547 | B33: 50736 | C33: MONTEREY PARK HOSPITAL | D33: 3 | E33: AHMC HEALTHCARE INC. | F33: =IFERROR(INDEX('4. FY 2019-20'!AZ:AZ,MATCH(A33,'4. FY 2019-20'!A:A,0)),0) -> 11281152.69 | G33: 1 | H33: 0 | J33: =IFERROR(INDEX('5. FY 2020-21'!AZ:AZ,MATCH(A33,'5. FY 2020-21'!A:A,0)),0) -> 11864993.52 | K33: 1 | L33: 0 | N33: =IFERROR(INDEX('6. FY 2021-22'!AZ:AZ,MATCH(A33,'6. FY 2021-22'!A:A,0)),0) -> 5973934.544 | O33: 1 | P33: 0 | R33: 29120080.75 | S33: 1 | T33: 0 | Y33: 11281152.69 | AA33: 11864993.52 | AC33: 5973934.544 | AE33: 29120080.75 | AH33: 0.05175365016
A34: 106190200 | B34: 50132 | C34: SAN GABRIEL VALLEY MEDICAL CENTER | D34: 3 | E34: AHMC HEALTHCARE INC. | F34: =IFERROR(INDEX('4. FY 2019-20'!AZ:AZ,MATCH(A34,'4. FY 2019-20'!A:A,0)),0) -> 9497070.224 | G34: 1 | H34: 0 | J34: =IFERROR(INDEX('5. FY 2020-21'!AZ:AZ,MATCH(A34,'5. FY 2020-21'!A:A,0)),0) -> 9824505.923 | K34: 1 | L34: 0 | N34: =IFERROR(INDEX('6. FY 2021-22'!AZ:AZ,MATCH(A34,'6. FY 2021-22'!A:A,0)),0) -> 5034834.089 | O34: 1 | P34: 0 | R34: 24356410.24 | S34: 1 | T34: 0 | Y34: 9497070.224 | AA34: 9824505.923 | AC34: 5034834.089 | AE34: 24356410.24 | AH34: 0.0344775485
A35: 106190883 | B35: 50735 | C35: WHITTIER HOSPITAL MEDICAL CENTER | D35: 3 | E35: AHMC HEALTHCARE INC. | F35: =IFERROR(INDEX('4. FY 2019-20'!AZ:AZ,MATCH(A35,'4. FY 2019-20'!A:A,0)),0) -> 20282078.4 | G35: 1 | H35: 0 | J35: =IFERROR(INDEX('5. FY 2020-21'!AZ:AZ,MATCH(A35,'5. FY 2020-21'!A:A,0)),0) -> 20964372.44 | K35: 1 | L35: 0 | N35: =IFERROR(INDEX('6. FY 2021-22'!AZ:AZ,MATCH(A35,'6. FY 2021-22'!A:A,0)),0) -> 10500174.47 | O35: 1 | P35: 0 | R35: 51746625.31 | S35: 1 | T35: 0 | Y35: 20282078.4 | AA35: 20964372.44 | AC35: 10500174.47 | AE35: 51746625.31 | AH35: 0.03364024252
D36: 2 | E36: SYSTEM TOTAL | F36: =SUM(F29:F35) -> 88014379.5 | G36: =SUM(G29:G35) -> 7 | H36: =SUM(H29:H35) -> 0 | I36: =IF(F36<0,1,0) -> 0 | J36: =SUM(J29:J35) -> 91789697.66 | K36: =SUM(K29:K35) -> 7 | L36: =SUM(L29:L35) -> 0 | M36: =IF(J36<0,1,0) -> 0 | N36: =SUM(N29:N35) -> 46447795.46 | O36: =SUM(O29:O35) -> 7 | P36: =SUM(P29:P35) -> 0 | Q36: =IF(N36<0,1,0) -> 0 | R36: =SUM(R29:R35) -> 226251872.6 | S36: =SUM(S29:S35) -> 7 | T36: =SUM(T29:T35) -> 0 | U36: =IF(R36<0,1,0) -> 0 | Z36: =IF(I36=0,0,F36) -> 0 | AB36: =IF(M36=0,0,J36) -> 0 | AD36: =IF(Q36=0,0,N36) -> 0 | AF36: =IF(U36=0,0,R36) -> 0 | AH36: 0.0428943336
A37: 106190766 | B37: 50219 | C37: COAST PLAZA DOCTORS HOSPITAL | D37: 3 | E37: AVANTI HOSPITALS, LLC | F37: =IFERROR(INDEX('4. FY 2019-20'!AZ:AZ,MATCH(A37,'4. FY 2019-20'!A:A,0)),0) -> 3709520.603 | G37: =IF(F37>0,1,0) -> 1 | H37: =IF(F37<0,1,0) -> 0 | J37: =IFERROR(INDEX('5. FY 2020-21'!AZ:AZ,MATCH(A37,'5. FY 2020-21'!A:A,0)),0) -> 3851047.051 | K37: =IF(J37>0,1,0) -> 1 | L37: =IF(J37<0,1,0) -> 0 | N37: =IFERROR(INDEX('6. FY 2021-22'!AZ:AZ,MATCH(A37,'6. FY 2021-22'!A:A,0)),0) -> 1963470.428 | O37: =IF(N37>0,1,0) -> 1 | P37: =IF(N37<0,1,0) -> 0 | R37: =F37+J37+N37 -> 9524038.082 | S37: =IF(R37>0,1,0) -> 1 | T37: =IF(R37<0,1,0) -> 0 | Y37: =F37 -> 3709520.603 | AA37: =J37 -> 3851047.051 | AC37: =N37 -> 1963470.428 | AE37: =R37 -> 9524038.082 | AH37: 0.03815222053
A38: 106190197 | B38: 50091 | C38: COMMUNITY HOSPITAL OF HUNTINGTON PARK | D38: 3 | E38: AVANTI HOSPITALS, LLC | F38: =IFERROR(INDEX('4. FY 2019-20'!AZ:AZ,MATCH(A38,'4. FY 2019-20'!A:A,0)),0) -> 13663833.19 | G38: 1 | H38: 0 | J38: =IFERROR(INDEX('5. FY 2020-21'!AZ:AZ,MATCH(A38,'5. FY 2020-21'!A:A,0)),0) -> 14176202.95 | K38: 1 | L38: 0 | N38: =IFERROR(INDEX('6. FY 2021-22'!AZ:AZ,MATCH(A38,'6. FY 2021-22'!A:A,0)),0) -> 7076243.008 | O38: 1 | P38: 0 | R38: 34916279.15 | S38: 1 | T38: 0 | Y38: =F38 -> 13663833.19 | AA38: =J38 -> 14176202.95 | AC38: =N38 -> 7076243.008 | AE38: =R38 -> 34916279.15 | AH38: 0.03749824464
A39: 106190256 | B39: 50641 | C39: EAST LOS ANGELES DOCTOR'S HOSPITAL | D39: 3 | E39: AVANTI HOSPITALS, LLC | F39: =IFERROR(INDEX('4. FY 2019-20'!AZ:AZ,MATCH(A39,'4. FY 2019-20'!A:A,0)),0) -> 12849431.13 | G39: 1 | H39: 0 | J39: =IFERROR(INDEX('5. FY 2020-21'!AZ:AZ,MATCH(A39,'5. FY 2020-21'!A:A,0)),0) -> 13547408.3 | K39: 1 | L39: 0 | N39: =IFERROR(INDEX('6. FY 2021-22'!AZ:AZ,MATCH(A39,'6. FY 2021-22'!A:A,0)),0) -> 6795361.602 | O39: 1 | P39: 0 | R39: 33192201.03 | S39: 1 | T39: 0 | Y39: =F39 -> 12849431.13 | AA39: =J39 -> 13547408.3 | AC39: =N39 -> 6795361.602 | AE39: =R39 -> 33192201.03 | AH39: 0.0543196939
A40: 106190521 | B40: 50468 | C40: MEMORIAL HOSPITAL OF GARDENA | D40: 3 | E40: AVANTI HOSPITALS, LLC | F40: =IFERROR(INDEX('4. FY 2019-20'!AZ:AZ,MATCH(A40,'4. FY 2019-20'!A:A,0)),0) -> 25795211.62 | G40: 1 | H40: 0 | J40: =IFERROR(INDEX('5. FY 2020-21'!AZ:AZ,MATCH(A40,'5. FY 2020-21'!A:A,0)),0) -> 26576648.13 | K40: 1 | L40: 0 | N40: =IFERROR(INDEX('6. FY 2021-22'!AZ:AZ,MATCH(A40,'6. FY 2021-22'!A:A,0)),0) -> 13377257.5 | O40: 1 | P40: 0 | R40: 65749117.25 | S40: 1 | T40: 0 | Y40: =F40 -> 25795211.62 | AA40: =J40 -> 26576648.13 | AC40: =N40 -> 13377257.5 | AE40: =R40 -> 65749117.25 | AH40: 0.03029385947
D41: 3 | E41: SYSTEM TOTAL | F41: =SUM(F37:F40) -> 56017996.54 | G41: =SUM(G37:G40) -> 4 | H41: =SUM(H37:H40) -> 0 | I41: =IF(F41<0,1,0) -> 0 | J41: =SUM(J37:J40) -> 58151306.43 | K41: =SUM(K37:K40) -> 4 | L41: =SUM(L37:L40) -> 0 | M41: =IF(J41<0,1,0) -> 0 | N41: =SUM(N37:N40) -> 29212332.53 | O41: =SUM(O37:O40) -> 4 | P41: =SUM(P37:P40) -> 0 | Q41: =IF(N41<0,1,0) -> 0 | R41: =SUM(R37:R40) -> 143381635.5 | S41: =SUM(S37:S40) -> 4 | T41: =SUM(T37:T40) -> 0 | U41: =IF(R41<0,1,0) -> 0 | Z41: =IF(I41=0,0,F41) -> 0 | AB41: =IF(M41=0,0,J41) -> 0 | AD41: =IF(Q41=0,0,N41) -> 0 | AF41: =IF(U41=0,0,R41) -> 0 | AH41: 0.03808258097
A42: 106150722 | B42: 50036 | C42: BAKERSFIELD MEMORIAL HOSPITAL | D42: 3 | E42: DIGNITY HEALTH | F42: =IFERROR(INDEX('4. FY 2019-20'!AZ:AZ,MATCH(A42,'4. FY 2019-20'!A:A,0)),0) -> 38379473.67 | G42: =IF(F42>0,1,0) -> 1 | H42: =IF(F42<0,1,0) -> 0 | J42: =IFERROR(INDEX('5. FY 2020-21'!AZ:AZ,MATCH(A42,'5. FY 2020-21'!A:A,0)),0) -> 39540750.71 | K42: =IF(J42>0,1,0) -> 1 | L42: =IF(J42<0,1,0) -> 0 | N42: =IFERROR(INDEX('6. FY 2021-22'!AZ:AZ,MATCH(A42,'6. FY 2021-22'!A:A,0)),0) -> 20089043.26 | O42: =IF(N42>0,1,0) -> 1 | P42: =IF(N42<0,1,0) -> 0 | R42: =F42+J42+N42 -> 98009267.64 | S42: =IF(R42>0,1,0) -> 1 | T42: =IF(R42<0,1,0) -> 0 | Y42: =F42 -> 38379473.67 | AA42: =J42 -> 39540750.71 | AC42: =N42 -> 20089043.26 | AE42: =R42 -> 98009267.64 | AH42: 0.03025776334
A43: 106190125 | B43: 50149 | C43: CALIFORNIA HOSPITAL MEDICAL CENTER | D43: 3 | E43: DIGNITY HEALTH | F43: =IFERROR(INDEX('4. FY 2019-20'!AZ:AZ,MATCH(A43,'4. FY 2019-20'!A:A,0)),0) -> 56076333.98 | G43: 1 | H43: 0 | J43: =IFERROR(INDEX('5. FY 2020-21'!AZ:AZ,MATCH(A43,'5. FY 2020-21'!A:A,0)),0) -> 59678820.38 | K43: 1 | L43: 0 | N43: =IFERROR(INDEX('6. FY 2021-22'!AZ:AZ,MATCH(A43,'6. FY 2021-22'!A:A,0)),0) -> 29946360.3 | O43: 1 | P43: 0 | R43: 145701514.7 | S43: 1 | T43: 0 | Y43: 56076333.98 | AA43: 59678820.38 | AC43: 29946360.3 | AE43: 145701514.7 | AH43: =(J43-F43)/F43 -> 0.06424254489
A44: 106361323 | B44: 50089 | C44: COMMUNITY HOSPITAL OF SAN BERNARDINO | D44: 3 | E44: DIGNITY HEALTH | F44: =IFERROR(INDEX('4. FY 2019-20'!AZ:AZ,MATCH(A44,'4. FY 2019-20'!A:A,0)),0) -> 47325250.65 | G44: 1 | H44: 0 | J44: =IFERROR(INDEX('5. FY 2020-21'!AZ:AZ,MATCH(A44,'5. FY 2020-21'!A:A,0)),0) -> 48391360.93 | K44: 1 | L44: 0 | N44: =IFERROR(INDEX('6. FY 2021-22'!AZ:AZ,MATCH(A44,'6. FY 2021-22'!A:A,0)),0) -> 24490231.53 | O44: 1 | P44: 0 | R44: 120206843.1 | S44: 1 | T44: 0 | Y44: 47325250.65 | AA44: 48391360.93 | AC44: 24490231.53 | AE44: 120206843.1 | AH44: 0.02252730354
A45: 106440755 | B45: 50242 | C45: DOMINICAN SANTA CRUZ HOSPITAL - SOQUEL | D45: 3 | E45: DIGNITY HEALTH | F45: =IFERROR(INDEX('4. FY 2019-20'!AZ:AZ,MATCH(A45,'4. FY 2019-20'!A:A,0)),0) -> 6283742.843 | G45: 1 | H45: 0 | J45: =IFERROR(INDEX('5. FY 2020-21'!AZ:AZ,MATCH(A45,'5. FY 2020-21'!A:A,0)),0) -> 6400143.348 | K45: 1 | L45: 0 | N45: =IFERROR(INDEX('6. FY 2021-22'!AZ:AZ,MATCH(A45,'6. FY 2021-22'!A:A,0)),0) -> 3395525.902 | O45: 1 | P45: 0 | R45: 16079412.09 | S45: 1 | T45: 0 | Y45: 6283742.843 | AA45: 6400143.348 | AC45: 3395525.902 | AE45: 16079412.09 | AH45: 0.0185240721
A46: 106400480 | B46: 50232 | C46: FRENCH HOSPITAL MEDICAL CENTER - SLO | D46: 3 | E46: DIGNITY HEALTH | F46: =IFERROR(INDEX('4. FY 2019-20'!AZ:AZ,MATCH(A46,'4. FY 2019-20'!A:A,0)),0) -> 737412.2484 | G46: 1 | H46: 0 | J46: =IFERROR(INDEX('5. FY 2020-21'!AZ:AZ,MATCH(A46,'5. FY 2020-21'!A:A,0)),0) -> 632252.6005 | K46: 1 | L46: 0 | N46: =IFERROR(INDEX('6. FY 2021-22'!AZ:AZ,MATCH(A46,'6. FY 2021-22'!A:A,0)),0) -> 394673.7256 | O46: 1 | P46: 0 | R46: 1764338.575 | S46: 1 | T46: 0 | Y46: 737412.2484 | AA46: 632252.6005 | AC46: 394673.7256 | AE46: 1764338.575 | AH46: -0.1426063211
A47: 106190522 | B47: 50058 | C47: GLENDALE MEMORIAL HOSPITAL & HEALTH CTR | D47: 3 | E47: DIGNITY HEALTH | F47: =IFERROR(INDEX('4. FY 2019-20'!AZ:AZ,MATCH(A47,'4. FY 2019-20'!A:A,0)),0) -> 16733978.83 | G47: 1 | H47: 0 | J47: =IFERROR(INDEX('5. FY 2020-21'!AZ:AZ,MATCH(A47,'5. FY 2020-21'!A:A,0)),0) -> 17659236.25 | K47: 1 | L47: 0 | N47: =IFERROR(INDEX('6. FY 2021-22'!AZ:AZ,MATCH(A47,'6. FY 2021-22'!A:A,0)),0) -> 9122907.55 | O47: 1 | P47: 0 | R47: 43516122.63 | S47: 1 | T47: 0 | Y47: 16733978.83 | AA47: 17659236.25 | AC47: 9122907.55 | AE47: 43516122.63 | AH47: 0.05529213492
A48: 106420493 | B48: 50107 | C48: MARIAN MEDICAL CENTER | D48: 3 | E48: DIGNITY HEALTH | F48: =IFERROR(INDEX('4. FY 2019-20'!AZ:AZ,MATCH(A48,'4. FY 2019-20'!A:A,0)),0) -> 40044510.39 | G48: 1 | H48: 0 | J48: =IFERROR(INDEX('5. FY 2020-21'!AZ:AZ,MATCH(A48,'5. FY 2020-21'!A:A,0)),0) -> 41686450.28 | K48: 1 | L48: 0 | N48: =IFERROR(INDEX('6. FY 2021-22'!AZ:AZ,MATCH(A48,'6. FY 2021-22'!A:A,0)),0) -> 21257646.21 | O48: 1 | P48: 0 | R48: 102988606.9 | S48: 1 | T48: 0 | Y48: 40044510.39 | AA48: 41686450.28 | AC48: 21257646.21 | AE48: 102988606.9 | AH48: 0.041002871
A49: 106050932 | B49: 50366 | C49: MARK TWAIN ST. JOSEPH'S HOSPITAL | D49: 3 | E49: DIGNITY HEALTH | F49: =IFERROR(INDEX('4. FY 2019-20'!AZ:AZ,MATCH(A49,'4. FY 2019-20'!A:A,0)),0) -> 4335704.02 | G49: 1 | H49: 0 | J49: =IFERROR(INDEX('5. FY 2020-21'!AZ:AZ,MATCH(A49,'5. FY 2020-21'!A:A,0)),0) -> 4331077.524 | K49: 1 | L49: 0 | N49: =IFERROR(INDEX('6. FY 2021-22'!AZ:AZ,MATCH(A49,'6. FY 2021-22'!A:A,0)),0) -> 2189885.955 | O49: 1 | P49: 0 | R49: 10856667.5 | S49: 1 | T49: 0 | Y49: 4335704.02 | AA49: 4331077.524 | AC49: 2189885.955 | AE49: 10856667.5 | AH49: -0.001067069217
A50: 106340947 | B50: 50017 | C50: MERCY GENERAL HOSPITAL | D50: 3 | E50: DIGNITY HEALTH | F50: =IFERROR(INDEX('4. FY 2019-20'!AZ:AZ,MATCH(A50,'4. FY 2019-20'!A:A,0)),0) -> 11085824.89 | G50: 1 | H50: 0 | J50: =IFERROR(INDEX('5. FY 2020-21'!AZ:AZ,MATCH(A50,'5. FY 2020-21'!A:A,0)),0) -> 11406909.43 | K50: 1 | L50: 0 | N50: =IFERROR(INDEX('6. FY 2021-22'!AZ:AZ,MATCH(A50,'6. FY 2021-22'!A:A,0)),0) -> 5803400.666 | O50: 1 | P50: 0 | R50: 28296134.99 | S50: 1 | T50: 0 | Y50: 11085824.89 | AA50: 11406909.43 | AC50: 5803400.666 | AE50: 28296134.99 | AH50: 0.02896352293
A51: 106150761 | B51: 50295 | C51: MERCY HOSPITAL - BAKERSFIELD | D51: 3 | E51: DIGNITY HEALTH | F51: =IFERROR(INDEX('4. FY 2019-20'!AZ:AZ,MATCH(A51,'4. FY 2019-20'!A:A,0)),0) -> 20717980.57 | G51: 1 | H51: 0 | J51: =IFERROR(INDEX('5. FY 2020-21'!AZ:AZ,MATCH(A51,'5. FY 2020-21'!A:A,0)),0) -> 20999876.87 | K51: 1 | L51: 0 | N51: =IFERROR(INDEX('6. FY 2021-22'!AZ:AZ,MATCH(A51,'6. FY 2021-22'!A:A,0)),0) -> 10579561.5 | O51: 1 | P51: 0 | R51: 52297418.94 | S51: 1 | T51: 0 | Y51: 20717980.57 | AA51: 20999876.87 | AC51: 10579561.5 | AE51: 52297418.94 | AH51: 0.01360636016
A52: 106344029 | B52: 50414 | C52: MERCY HOSPITAL - FOLSOM | D52: 3 | E52: DIGNITY HEALTH | F52: =IFERROR(INDEX('4. FY 2019-20'!AZ:AZ,MATCH(A52,'4. FY 2019-20'!A:A,0)),0) -> 2521327.06 | G52: 1 | H52: 0 | J52: =IFERROR(INDEX('5. FY 2020-21'!AZ:AZ,MATCH(A52,'5. FY 2020-21'!A:A,0)),0) -> 2487596.262 | K52: 1 | L52: 0 | N52: =IFERROR(INDEX('6. FY 2021-22'!AZ:AZ,MATCH(A52,'6. FY 2021-22'!A:A,0)),0) -> 1246822.46 | O52: 1 | P52: 0 | R52: 6255745.783 | S52: 1 | T52: 0 | Y52: 2521327.06 | AA52: 2487596.262 | AC52: 1246822.46 | AE52: 6255745.783 | AH52: -0.01337819222
A53: 106470871 | B53: 51319 | C53: MERCY HOSPITAL OF MT. SHASTA | D53: 3 | E53: DIGNITY HEALTH | F53: =IFERROR(INDEX('4. FY 2019-20'!AZ:AZ,MATCH(A53,'4. FY 2019-20'!A:A,0)),0) -> 4301358.799 | G53: 1 | H53: 0 | J53: =IFERROR(INDEX('5. FY 2020-21'!AZ:AZ,MATCH(A53,'5. FY 2020-21'!A:A,0)),0) -> 4294034.987 | K53: 1 | L53: 0 | N53: =IFERROR(INDEX('6. FY 2021-22'!AZ:AZ,MATCH(A53,'6. FY 2021-22'!A:A,0)),0) -> 2176353.052 | O53: 1 | P53: 0 | R53: 10771746.84 | S53: 1 | T53: 0 | Y53: 4301358.799 | AA53: 4294034.987 | AC53: 2176353.052 | AE53: 10771746.84 | AH53: -0.001702673971
A54: 106240942 | B54: 50444 | C54: MERCY MED CTR MERCED-COMMUNITY CAMPUS | D54: 3 | E54: DIGNITY HEALTH | F54: =IFERROR(INDEX('4. FY 2019-20'!AZ:AZ,MATCH(A54,'4. FY 2019-20'!A:A,0)),0) -> 22297773.65 | G54: 1 | H54: 0 | J54: =IFERROR(INDEX('5. FY 2020-21'!AZ:AZ,MATCH(A54,'5. FY 2020-21'!A:A,0)),0) -> 22612964.41 | K54: 1 | L54: 0 | N54: =IFERROR(INDEX('6. FY 2021-22'!AZ:AZ,MATCH(A54,'6. FY 2021-22'!A:A,0)),0) -> 11656625.95 | O54: 1 | P54: 0 | R54: 56567364.01 | S54: 1 | T54: 0 | Y54: 22297773.65 | AA54: 22612964.41 | AC54: 11656625.95 | AE54: 56567364.01 | AH54: 0.01413552609
A55: 106450949 | B55: 50280 | C55: MERCY MEDICAL CENTER-REDDING | D55: 3 | E55: DIGNITY HEALTH | F55: =IFERROR(INDEX('4. FY 2019-20'!AZ:AZ,MATCH(A55,'4. FY 2019-20'!A:A,0)),0) -> 15971149.08 | G55: 1 | H55: 0 | J55: =IFERROR(INDEX('5. FY 2020-21'!AZ:AZ,MATCH(A55,'5. FY 2020-21'!A:A,0)),0) -> 16346161.41 | K55: 1 | L55: 0 | N55: =IFERROR(INDEX('6. FY 2021-22'!AZ:AZ,MATCH(A55,'6. FY 2021-22'!A:A,0)),0) -> 8587710.905 | O55: 1 | P55: 0 | R55: 40905021.39 | S55: 1 | T55: 0 | Y55: 15971149.08 | AA55: 16346161.41 | AC55: 8587710.905 | AE55: 40905021.39 | AH55: 0.02348061055
A56: 106340950 | B56: 50516 | C56: MERCY SAN JUAN HOSPITAL | D56: 3 | E56: DIGNITY HEALTH | F56: =IFERROR(INDEX('4. FY 2019-20'!AZ:AZ,MATCH(A56,'4. FY 2019-20'!A:A,0)),0) -> 34519192.08 | G56: 1 | H56: 0 | J56: =IFERROR(INDEX('5. FY 2020-21'!AZ:AZ,MATCH(A56,'5. FY 2020-21'!A:A,0)),0) -> 36325681.93 | K56: 1 | L56: 0 | N56: =IFERROR(INDEX('6. FY 2021-22'!AZ:AZ,MATCH(A56,'6. FY 2021-22'!A:A,0)),0) -> 18402061.11 | O56: 1 | P56: 0 | R56: 89246935.13 | S56: 1 | T56: 0 | Y56: 34519192.08 | AA56: 36325681.93 | AC56: 18402061.11 | AE56: 89246935.13 | AH56: 0.05233291232
A57: 106340951 | B57: 50590 | C57: METHODIST HOSPITAL OF SACRAMENTO | D57: 3 | E57: DIGNITY HEALTH | F57: =IFERROR(INDEX('4. FY 2019-20'!AZ:AZ,MATCH(A57,'4. FY 2019-20'!A:A,0)),0) -> 21660610.36 | G57: 1 | H57: 0 | J57: =IFERROR(INDEX('5. FY 2020-21'!AZ:AZ,MATCH(A57,'5. FY 2020-21'!A:A,0)),0) -> 22334628.82 | K57: 1 | L57: 0 | N57: =IFERROR(INDEX('6. FY 2021-22'!AZ:AZ,MATCH(A57,'6. FY 2021-22'!A:A,0)),0) -> 11317838.65 | O57: 1 | P57: 0 | R57: 55313077.83 | S57: 1 | T57: 0 | Y57: 21660610.36 | AA57: 22334628.82 | AC57: 11317838.65 | AE57: 55313077.83 | AH57: 0.03111724232
A58: 106190568 | B58: 50116 | C58: NORTHRIDGE HOSPITAL MEDICAL CENTER | D58: 3 | E58: DIGNITY HEALTH | F58: =IFERROR(INDEX('4. FY 2019-20'!AZ:AZ,MATCH(A58,'4. FY 2019-20'!A:A,0)),0) -> 8642284.205 | G58: 1 | H58: 0 | J58: =IFERROR(INDEX('5. FY 2020-21'!AZ:AZ,MATCH(A58,'5. FY 2020-21'!A:A,0)),0) -> 9040109.698 | K58: 1 | L58: 0 | N58: =IFERROR(INDEX('6. FY 2021-22'!AZ:AZ,MATCH(A58,'6. FY 2021-22'!A:A,0)),0) -> 4382273.146 | O58: 1 | P58: 0 | R58: 22064667.05 | S58: 1 | T58: 0 | Y58: 8642284.205 | AA58: 9040109.698 | AC58: 4382273.146 | AE58: 22064667.05 | AH58: 0.04603244738
A59: 106410891 | B59: 50197 | C59: SEQUOIA HOSPITAL | D59: 3 | E59: DIGNITY HEALTH | F59: =IFERROR(INDEX('4. FY 2019-20'!AZ:AZ,MATCH(A59,'4. FY 2019-20'!A:A,0)),0) -> -5245099.13 | G59: 0 | H59: 1 | J59: =IFERROR(INDEX('5. FY 2020-21'!AZ:AZ,MATCH(A59,'5. FY 2020-21'!A:A,0)),0) -> -5543430.179 | K59: 0 | L59: 1 | N59: =IFERROR(INDEX('6. FY 2021-22'!AZ:AZ,MATCH(A59,'6. FY 2021-22'!A:A,0)),0) -> -2800071.15 | O59: 0 | P59: 1 | R59: -13588600.46 | S59: 0 | T59: 1 | Y59: -5245099.13 | AA59: -5543430.179 | AC59: -2800071.15 | AE59: -13588600.46 | AH59: 0.05687805743
A60: 106291023 | B60: 50150 | C60: SIERRA NEVADA MEMORIAL HOSPITAL | D60: 3 | E60: DIGNITY HEALTH | F60: =IFERROR(INDEX('4. FY 2019-20'!AZ:AZ,MATCH(A60,'4. FY 2019-20'!A:A,0)),0) -> 11140800.51 | G60: 1 | H60: 0 | J60: =IFERROR(INDEX('5. FY 2020-21'!AZ:AZ,MATCH(A60,'5. FY 2020-21'!A:A,0)),0) -> 11378414.74 | K60: 1 | L60: 0 | N60: =IFERROR(INDEX('6. FY 2021-22'!AZ:AZ,MATCH(A60,'6. FY 2021-22'!A:A,0)),0) -> 5745546.803 | O60: 1 | P60: 0 | R60: 28264762.06 | S60: 1 | T60: 0 | Y60: 11140800.51 | AA60: 11378414.74 | AC60: 5745546.803 | AE60: 28264762.06 | AH60: 0.02132829074
A61: 106361339 | B61: 50129 | C61: ST. BERNARDINE MEDICAL CENTER | D61: 3 | E61: DIGNITY HEALTH | F61: =IFERROR(INDEX('4. FY 2019-20'!AZ:AZ,MATCH(A61,'4. FY 2019-20'!A:A,0)),0) -> 34430858.42 | G61: 1 | H61: 0 | J61: =IFERROR(INDEX('5. FY 2020-21'!AZ:AZ,MATCH(A61,'5. FY 2020-21'!A:A,0)),0) -> 35441796.78 | K61: 1 | L61: 0 | N61: =IFERROR(INDEX('6. FY 2021-22'!AZ:AZ,MATCH(A61,'6. FY 2021-22'!A:A,0)),0) -> 17979153.25 | O61: 1 | P61: 0 | R61: 87851808.44 | S61: 1 | T61: 0 | Y61: 34430858.42 | AA61: 35441796.78 | AC61: 17979153.25 | AE61: 87851808.44 | AH61: 0.02936140448
A62: 106521041 | B62: 50042 | C62: ST. ELIZABETH COMMUNITY HOSPITAL | D62: 3 | E62: DIGNITY HEALTH | F62: =IFERROR(INDEX('4. FY 2019-20'!AZ:AZ,MATCH(A62,'4. FY 2019-20'!A:A,0)),0) -> 10692065.28 | G62: 1 | H62: 0 | J62: =IFERROR(INDEX('5. FY 2020-21'!AZ:AZ,MATCH(A62,'5. FY 2020-21'!A:A,0)),0) -> 10905530.63 | K62: 1 | L62: 0 | N62: =IFERROR(INDEX('6. FY 2021-22'!AZ:AZ,MATCH(A62,'6. FY 2021-22'!A:A,0)),0) -> 5518519.667 | O62: 1 | P62: 0 | R62: 27116115.57 | S62: 1 | T62: 0 | Y62: 10692065.28 | AA62: 10905530.63 | AC62: 5518519.667 | AE62: 27116115.57 | AH62: 0.01996483749
A63: 106380960 | B63: 50152 | C63: ST. FRANCIS MEMORIAL HOSPITAL | D63: 3 | E63: DIGNITY HEALTH | F63: =IFERROR(INDEX('4. FY 2019-20'!AZ:AZ,MATCH(A63,'4. FY 2019-20'!A:A,0)),0) -> 1758033.505 | G63: 1 | H63: 0 | J63: =IFERROR(INDEX('5. FY 2020-21'!AZ:AZ,MATCH(A63,'5. FY 2020-21'!A:A,0)),0) -> 1810847.498 | K63: 1 | L63: 0 | N63: =IFERROR(INDEX('6. FY 2021-22'!AZ:AZ,MATCH(A63,'6. FY 2021-22'!A:A,0)),0) -> 945680.8523 | O63: 1 | P63: 0 | R63: 4514561.855 | S63: 1 | T63: 0 | Y63: 1758033.505 | AA63: 1810847.498 | AC63: 945680.8523 | AE63: 4514561.855 | AH63: 0.03004151653
A64: 106560508 | B64: 50616 | C64: ST. JOHN'S PLEASANT VALLEY HOSPITAL | D64: 3 | E64: DIGNITY HEALTH | F64: =IFERROR(INDEX('4. FY 2019-20'!AZ:AZ,MATCH(A64,'4. FY 2019-20'!A:A,0)),0) -> 2956518.424 | G64: 1 | H64: 0 | J64: =IFERROR(INDEX('5. FY 2020-21'!AZ:AZ,MATCH(A64,'5. FY 2020-21'!A:A,0)),0) -> 2814977.627 | K64: 1 | L64: 0 | N64: =IFERROR(INDEX('6. FY 2021-22'!AZ:AZ,MATCH(A64,'6. FY 2021-22'!A:A,0)),0) -> 1465121.231 | O64: 1 | P64: 0 | R64: 7236617.282 | S64: 1 | T64: 0 | Y64: 2956518.424 | AA64: 2814977.627 | AC64: 1465121.231 | AE64: 7236617.282 | AH64: -0.04787414662
A65: 106560529 | B65: 50082 | C65: ST. JOHN'S REGIONAL MEDICAL CENTER | D65: 3 | E65: DIGNITY HEALTH | F65: =IFERROR(INDEX('4. FY 2019-20'!AZ:AZ,MATCH(A65,'4. FY 2019-20'!A:A,0)),0) -> 14102297.47 | G65: 1 | H65: 0 | J65: =IFERROR(INDEX('5. FY 2020-21'!AZ:AZ,MATCH(A65,'5. FY 2020-21'!A:A,0)),0) -> 14970858.08 | K65: 1 | L65: 0 | N65: =IFERROR(INDEX('6. FY 2021-22'!AZ:AZ,MATCH(A65,'6. FY 2021-22'!A:A,0)),0) -> 7644004.207 | O65: 1 | P65: 0 | R65: 36717159.75 | S65: 1 | T65: 0 | Y65: 14102297.47 | AA65: 14970858.08 | AC65: 7644004.207 | AE65: 36717159.75 | AH65: 0.06159000755
A66: 106391042 | B66: 50084 | C66: ST. JOSEPH'S MEDICAL CENTER OF STOCKTON | D66: 3 | E66: DIGNITY HEALTH | F66: =IFERROR(INDEX('4. FY 2019-20'!AZ:AZ,MATCH(A66,'4. FY 2019-20'!A:A,0)),0) -> 29636645.11 | G66: 1 | H66: 0 | J66: =IFERROR(INDEX('5. FY 2020-21'!AZ:AZ,MATCH(A66,'5. FY 2020-21'!A:A,0)),0) -> 30745844.49 | K66: 1 | L66: 0 | N66: =IFERROR(INDEX('6. FY 2021-22'!AZ:AZ,MATCH(A66,'6. FY 2021-22'!A:A,0)),0) -> 15676756.8 | O66: 1 | P66: 0 | R66: 76059246.4 | S66: 1 | T66: 0 | Y66: 29636645.11 | AA66: 30745844.49 | AC66: 15676756.8 | AE66: 76059246.4 | AH66: 0.03742661742
A67: 106190053 | B67: 50191 | C67: ST. MARY MEDICAL CENTER | D67: 3 | E67: DIGNITY HEALTH | F67: =IFERROR(INDEX('4. FY 2019-20'!AZ:AZ,MATCH(A67,'4. FY 2019-20'!A:A,0)),0) -> 34556975.49 | G67: 1 | H67: 0 | J67: =IFERROR(INDEX('5. FY 2020-21'!AZ:AZ,MATCH(A67,'5. FY 2020-21'!A:A,0)),0) -> 36580558.44 | K67: 1 | L67: 0 | N67: =IFERROR(INDEX('6. FY 2021-22'!AZ:AZ,MATCH(A67,'6. FY 2021-22'!A:A,0)),0) -> 18421982.95 | O67: 1 | P67: 0 | R67: 89559516.87 | S67: 1 | T67: 0 | Y67: 34556975.49 | AA67: 36580558.44 | AC67: 18421982.95 | AE67: 89559516.87 | AH67: 0.05855787201
A68: 106380965 | B68: 50457 | C68: ST. MARY'S MEDICAL CENTER-SAN FRANCISCO | D68: 3 | E68: DIGNITY HEALTH | F68: =IFERROR(INDEX('4. FY 2019-20'!AZ:AZ,MATCH(A68,'4. FY 2019-20'!A:A,0)),0) -> -3489590.056 | G68: 0 | H68: 1 | J68: =IFERROR(INDEX('5. FY 2020-21'!AZ:AZ,MATCH(A68,'5. FY 2020-21'!A:A,0)),0) -> -3658636.344 | K68: 0 | L68: 1 | N68: =IFERROR(INDEX('6. FY 2021-22'!AZ:AZ,MATCH(A68,'6. FY 2021-22'!A:A,0)),0) -> -1800330.874 | O68: 0 | P68: 1 | R68: -8948557.274 | S68: 0 | T68: 1 | Y68: -3489590.056 | AA68: -3658636.344 | AC68: -1800330.874 | AE68: -8948557.274 | AH68: 0.04844302226
A69: 106571086 | B69: 50127 | C69: WOODLAND MEMORIAL HOSPITAL | D69: 3 | E69: DIGNITY HEALTH | F69: =IFERROR(INDEX('4. FY 2019-20'!AZ:AZ,MATCH(A69,'4. FY 2019-20'!A:A,0)),0) -> 6586456.986 | G69: 1 | H69: 0 | J69: =IFERROR(INDEX('5. FY 2020-21'!AZ:AZ,MATCH(A69,'5. FY 2020-21'!A:A,0)),0) -> 6442003.915 | K69: 1 | L69: 0 | N69: =IFERROR(INDEX('6. FY 2021-22'!AZ:AZ,MATCH(A69,'6. FY 2021-22'!A:A,0)),0) -> 3319811.913 | O69: 1 | P69: 0 | R69: 16348272.81 | S69: 1 | T69: 0 | Y69: 6586456.986 | AA69: 6442003.915 | AC69: 3319811.913 | AE69: 16348272.81 | AH69: -0.02193183235
D70: 4 | E70: SYSTEM TOTAL | F70: =SUM(F42:F69) -> 488759869.3 | G70: =SUM(G42:G69) -> 26 | H70: =SUM(H42:H69) -> 2 | I70: =IF(F70<0,1,0) -> 0 | J70: =SUM(J42:J69) -> 506056821.5 | K70: =SUM(K42:K69) -> 26 | L70: =SUM(L42:L69) -> 2 | M70: =IF(J70<0,1,0) -> 0 | N70: =SUM(N42:N69) -> 257155097.5 | O70: =SUM(O42:O69) -> 26 | P70: =SUM(P42:P69) -> 2 | Q70: =IF(N70<0,1,0) -> 0 | R70: =SUM(R42:R69) -> 1251971788 | S70: =SUM(S42:S69) -> 26 | T70: =SUM(T42:T69) -> 2 | U70: =IF(R70<0,1,0) -> 0 | Y70: =SUM(Y42:Y69) -> 488759869.3 | Z70: =IF(I70=0,0,F70) -> 0 | AA70: =SUM(AA42:AA69) -> 506056821.5 | AB70: =IF(M70=0,0,J70) -> 0 | AC70: =SUM(AC42:AC69) -> 257155097.5 | AD70: =IF(Q70=0,0,N70) -> 0 | AF70: =IF(U70=0,0,R70) -> 0 | AH70: 0.03538946889
A71: 106190555 | B71: 50625 | C71: CEDARS-SINAI MEDICAL CENTER | D71: 3 | E71: CEDARS-SINAI | F71: =IFERROR(INDEX('4. FY 2019-20'!AZ:AZ,MATCH(A71,'4. FY 2019-20'!A:A,0)),0) -> -1586455.939 | G71: =IF(F71>0,1,0) -> 0 | H71: =IF(F71<0,1,0) -> 1 | J71: =IFERROR(INDEX('5. FY 2020-21'!AZ:AZ,MATCH(A71,'5. FY 2020-21'!A:A,0)),0) -> -1463146.812 | K71: =IF(J71>0,1,0) -> 0 | L71: =IF(J71<0,1,0) -> 1 | N71: =IFERROR(INDEX('6. FY 2021-22'!AZ:AZ,MATCH(A71,'6. FY 2021-22'!A:A,0)),0) -> -879460.9653 | O71: =IF(N71>0,1,0) -> 0 | P71: =IF(N71<0,1,0) -> 1 | R71: =F71+J71+N71 -> -3929063.717 | S71: =IF(R71>0,1,0) -> 0 | T71: =IF(R71<0,1,0) -> 1 | Y71: =F71 -> -1586455.939 | AA71: =J71 -> -1463146.812 | AC71: =N71 -> -879460.9653 | AE71: =R71 -> -3929063.717 | AH71: -0.0777261593
A72: 106190422 | B72: 50351 | C72: TORRANCE MEMORIAL MEDICAL CENTER | D72: 3 | E72: TORRANCE HOSPITAL ASSOCIATION | F72: =IFERROR(INDEX('4. FY 2019-20'!AZ:AZ,MATCH(A72,'4. FY 2019-20'!A:A,0)),0) -> -10582437.43 | G72: =IF(F72>0,1,0) -> 0 | H72: =IF(F72<0,1,0) -> 1 | J72: =IFERROR(INDEX('5. FY 2020-21'!AZ:AZ,MATCH(A72,'5. FY 2020-21'!A:A,0)),0) -> -10625051.24 | K72: =IF(J72>0,1,0) -> 0 | L72: =IF(J72<0,1,0) -> 1 | N72: =IFERROR(INDEX('6. FY 2021-22'!AZ:AZ,MATCH(A72,'6. FY 2021-22'!A:A,0)),0) -> -5612878.482 | O72: =IF(N72>0,1,0) -> 0 | P72: =IF(N72<0,1,0) -> 1 | R72: =F72+J72+N72 -> -26820367.16 | S72: =IF(R72>0,1,0) -> 0 | T72: =IF(R72<0,1,0) -> 1 | Y72: =F72 -> -10582437.43 | AA72: =J72 -> -10625051.24 | AC72: =N72 -> -5612878.482 | AE72: =R72 -> -26820367.16 | AH72: 0.004026842808
A73: 106190500 | B73: 50740 | C73: MARINA DEL REY HOSPITAL | D73: 3 | E73: CEDARS-SINAI | F73: =IFERROR(INDEX('4. FY 2019-20'!AZ:AZ,MATCH(A73,'4. FY 2019-20'!A:A,0)),0) -> -1733942.391 | G73: 0 | H73: 1 | J73: =IFERROR(INDEX('5. FY 2020-21'!AZ:AZ,MATCH(A73,'5. FY 2020-21'!A:A,0)),0) -> -1821328.408 | K73: =IF(J73>0,1,0) -> 0 | L73: =IF(J73<0,1,0) -> 1 | N73: =IFERROR(INDEX('6. FY 2021-22'!AZ:AZ,MATCH(A73,'6. FY 2021-22'!A:A,0)),0) -> -918810.553 | O73: =IF(N73>0,1,0) -> 0 | P73: =IF(N73<0,1,0) -> 1 | R73: -4474081.352 | S73: 0 | T73: 1 | Y73: =F73 -> -1733942.391 | AA73: =J73 -> -1821328.408 | AC73: =N73 -> -918810.553 | AE73: =R73 -> -4474081.352 | AH73: 0.05039730138
D74: 32 | E74: SYSTEM TOTAL | F74: =SUM(F71:F73) -> -13902835.76 | G74: =SUM(G71:G73) -> 0 | H74: =SUM(H71:H73) -> 3 | I74: =IF(F74<0,1,0) -> 1 | J74: =SUM(J71:J73) -> -13909526.46 | K74: =SUM(K71:K73) -> 0 | L74: =SUM(L71:L73) -> 3 | M74: =IF(J74<0,1,0) -> 1 | N74: =SUM(N71:N73) -> -7411150 | O74: =SUM(O71:O73) -> 0 | P74: =SUM(P71:P73) -> 3 | Q74: =IF(N74<0,1,0) -> 1 | R74: =SUM(R71:R73) -> -35223512.23 | S74: =SUM(S71:S73) -> 0 | T74: =SUM(T71:T73) -> 3 | U74: =IF(R74<0,1,0) -> 1 | Z74: =IF(I74=0,0,F74) -> -13902835.76 | AB74: =IF(M74=0,0,J74) -> -13909526.46 | AD74: =IF(Q74=0,0,N74) -> -7411150 | AF74: =IF(U74=0,0,R74) -> -35223512.23 | AH74: 0.0004812473064
A75: 106190636 | B75: 50382 | C75: CITRUS VALLEY MEDICAL CENTER-QV CAMPUS | D75: 3 | E75: EMANATE HEALTH | F75: =IFERROR(INDEX('4. FY 2019-20'!AZ:AZ,MATCH(A75,'4. FY 2019-20'!A:A,0)),0) -> 49042068.23 | G75: =IF(F75>0,1,0) -> 1 | H75: =IF(F75<0,1,0) -> 0 | J75: =IFERROR(INDEX('5. FY 2020-21'!AZ:AZ,MATCH(A75,'5. FY 2020-21'!A:A,0)),0) -> 51500991.03 | K75: =IF(J75>0,1,0) -> 1 | L75: =IF(J75<0,1,0) -> 0 | N75: =IFERROR(INDEX('6. FY 2021-22'!AZ:AZ,MATCH(A75,'6. FY 2021-22'!A:A,0)),0) -> 26000966.25 | O75: =IF(N75>0,1,0) -> 1 | P75: =IF(N75<0,1,0) -> 0 | R75: =F75+J75+N75 -> 126544025.5 | S75: =IF(R75>0,1,0) -> 1 | T75: =IF(R75<0,1,0) -> 0 | Y75: =F75 -> 49042068.23 | AA75: =J75 -> 51500991.03 | AC75: =N75 -> 26000966.25 | AE75: =R75 -> 126544025.5 | AH75: =(J75-F75)/F75 -> 0.05013905183
A76: 106190298 | B76: 50597 | C76: FOOTHILL PRESBYTERIAN HOSPITAL | D76: 3 | E76: EMANATE HEALTH | F76: =IFERROR(INDEX('4. FY 2019-20'!AZ:AZ,MATCH(A76,'4. FY 2019-20'!A:A,0)),0) -> 6438033.539 | G76: 1 | H76: 0 | J76: =IFERROR(INDEX('5. FY 2020-21'!AZ:AZ,MATCH(A76,'5. FY 2020-21'!A:A,0)),0) -> 6603438.457 | K76: 1 | L76: 0 | N76: =IFERROR(INDEX('6. FY 2021-22'!AZ:AZ,MATCH(A76,'6. FY 2021-22'!A:A,0)),0) -> 3334559.264 | O76: 1 | P76: 0 | R76: 16376031.26 | S76: 1 | T76: 0 | Y76: =F76 -> 6438033.539 | AA76: =J76 -> 6603438.457 | AC76: =N76 -> 3334559.264 | AE76: =R76 -> 16376031.26 | AH76: 0.02569183862
D77: 5 | E77: SYSTEM TOTAL | F77: =SUM(F75:F76) -> 55480101.76 | G77: 2 | H77: 0 | I77: =IF(F77<0,1,0) -> 0 | J77: 58104429.48 | K77: 2 | L77: 0 | M77: =IF(J77<0,1,0) -> 0 | N77: 29335525.52 | O77: 2 | P77: 0 | Q77: =IF(N77<0,1,0) -> 0 | R77: 142920056.8 | S77: 2 | T77: 0 | U77: =IF(R77<0,1,0) -> 0 | Z77: =IF(I77=0,0,F77) -> 0 | AB77: =IF(M77=0,0,J77) -> 0 | AD77: =IF(Q77=0,0,N77) -> 0 | AF77: =IF(U77=0,0,R77) -> 0 | AH77: 0.04730214322
A78: 106301155 | B78: 50543 | C78: COLLEGE HOSPITAL COSTA MESA | D78: 3 | E78: COLLEGE HEALTH ENTERPRISES | F78: =IFERROR(INDEX('4. FY 2019-20'!AZ:AZ,MATCH(A78,'4. FY 2019-20'!A:A,0)),0) -> 32991195.97 | G78: =IF(F78>0,1,0) -> 1 | H78: =IF(F78<0,1,0) -> 0 | J78: =IFERROR(INDEX('5. FY 2020-21'!AZ:AZ,MATCH(A78,'5. FY 2020-21'!A:A,0)),0) -> 34182788.19 | K78: =IF(J78>0,1,0) -> 1 | L78: =IF(J78<0,1,0) -> 0 | N78: =IFERROR(INDEX('6. FY 2021-22'!AZ:AZ,MATCH(A78,'6. FY 2021-22'!A:A,0)),0) -> 17418316.42 | O78: =IF(N78>0,1,0) -> 1 | P78: =IF(N78<0,1,0) -> 0 | R78: =F78+J78+N78 -> 84592300.58 | S78: =IF(R78>0,1,0) -> 1 | T78: =IF(R78<0,1,0) -> 0 | Y78: =F78 -> 32991195.97 | AA78: =J78 -> 34182788.19 | AC78: =N78 -> 17418316.42 | AE78: =R78 -> 84592300.58 | AH78: 0.03611849121
A79: 106190854 | B79: 50644 | C79: COLLEGE MEDICAL CENTER - HAWTHORNE CAMPUS | D79: 3 | E79: COLLEGE HEALTH ENTERPRISES | F79: =IFERROR(INDEX('4. FY 2019-20'!AZ:AZ,MATCH(A79,'4. FY 2019-20'!A:A,0)),0) -> 0 | G79: 0 | H79: 0 | J79: =IFERROR(INDEX('5. FY 2020-21'!AZ:AZ,MATCH(A79,'5. FY 2020-21'!A:A,0)),0) -> 0 | K79: 0 | L79: 0 | N79: =IFERROR(INDEX('6. FY 2021-22'!AZ:AZ,MATCH(A79,'6. FY 2021-22'!A:A,0)),0) -> 0 | O79: 0 | P79: 0 | R79: 0 | S79: 0 | T79: 0 | Y79: =F79 -> 0 | AA79: =J79 -> 0 | AC79: =N79 -> 0 | AE79: =R79 -> 0
A80: 106190587 | B80: 50277 | C80: COLLEGE MEDICAL CENTER LONG BEACH | D80: 3 | E80: COLLEGE HEALTH ENTERPRISES | F80: =IFERROR(INDEX('4. FY 2019-20'!AZ:AZ,MATCH(A80,'4. FY 2019-20'!A:A,0)),0) -> 42663244.61 | G80: 1 | H80: 0 | J80: =IFERROR(INDEX('5. FY 2020-21'!AZ:AZ,MATCH(A80,'5. FY 2020-21'!A:A,0)),0) -> 43537692.29 | K80: 1 | L80: 0 | N80: =IFERROR(INDEX('6. FY 2021-22'!AZ:AZ,MATCH(A80,'6. FY 2021-22'!A:A,0)),0) -> 22313813.12 | O80: 1 | P80: 0 | R80: 108514750 | S80: 1 | T80: 0 | Y80: =F80 -> 42663244.61 | AA80: =J80 -> 43537692.29 | AC80: =N80 -> 22313813.12 | AE80: =R80 -> 108514750 | AH80: 0.02049651152
D81: 6 | E81: SYSTEM TOTAL | F81: =SUM(F78:F80) -> 75654440.58 | G81: 2 | H81: 0 | I81: =IF(F81<0,1,0) -> 0 | J81: 77720480.49 | K81: 2 | L81: 0 | M81: =IF(J81<0,1,0) -> 0 | N81: 39732129.54 | O81: 2 | P81: 0 | Q81: =IF(N81<0,1,0) -> 0 | R81: 193107050.6 | S81: 2 | T81: 0 | U81: =IF(R81<0,1,0) -> 0 | Z81: =IF(I81=0,0,F81) -> 0 | AB81: =IF(M81=0,0,J81) -> 0 | AD81: =IF(Q81=0,0,N81) -> 0 | AF81: =IF(U81=0,0,R81) -> 0 | AH81: 0.02730890468
A82: 106364430 | B82: 50298 | C82: BARSTOW COMMUNITY HOSPITAL | D82: 3 | E82: COMMUNITY HEALTH SYSTEMS INC. | F82: =IFERROR(INDEX('4. FY 2019-20'!AZ:AZ,MATCH(A82,'4. FY 2019-20'!A:A,0)),0) -> 10928165.77 | G82: =IF(F82>0,1,0) -> 1 | H82: =IF(F82<0,1,0) -> 0 | J82: =IFERROR(INDEX('5. FY 2020-21'!AZ:AZ,MATCH(A82,'5. FY 2020-21'!A:A,0)),0) -> 11177420.43 | K82: =IF(J82>0,1,0) -> 1 | L82: =IF(J82<0,1,0) -> 0 | N82: =IFERROR(INDEX('6. FY 2021-22'!AZ:AZ,MATCH(A82,'6. FY 2021-22'!A:A,0)),0) -> 5600836.793 | O82: =IF(N82>0,1,0) -> 1 | P82: =IF(N82<0,1,0) -> 0 | R82: =F82+J82+N82 -> 27706422.99 | S82: =IF(R82>0,1,0) -> 1 | T82: =IF(R82<0,1,0) -> 0 | Y82: =F82 -> 10928165.77 | AA82: =J82 -> 11177420.43 | AC82: =N82 -> 5600836.793 | AE82: =R82 -> 27706422.99 | AH82: 0.02280846223
A83: 106444013 | B83: 50194 | C83: WATSONVILLE COMMUNITY HOSPITAL | D83: 3 | E83: COMMUNITY HEALTH SYSTEMS INC. | F83: =IFERROR(INDEX('4. FY 2019-20'!AZ:AZ,MATCH(A83,'4. FY 2019-20'!A:A,0)),0) -> 15019470.47 | G83: 1 | H83: 0 | J83: =IFERROR(INDEX('5. FY 2020-21'!AZ:AZ,MATCH(A83,'5. FY 2020-21'!A:A,0)),0) -> 15632525.78 | K83: 1 | L83: 0 | N83: =IFERROR(INDEX('6. FY 2021-22'!AZ:AZ,MATCH(A83,'6. FY 2021-22'!A:A,0)),0) -> 7930138.26 | O83: 1 | P83: 0 | R83: 38582134.51 | S83: 1 | T83: 0 | Y83: =F83 -> 15019470.47 | AA83: =J83 -> 15632525.78 | AC83: =N83 -> 7930138.26 | AE83: =R83 -> 38582134.51 | AH83: 0.04081737197
D84: 7 | E84: SYSTEM TOTAL | F84: =SUM(F82:F83) -> 25947636.24 | G84: 2 | H84: 0 | I84: =IF(F84<0,1,0) -> 0 | J84: 26809946.21 | K84: 2 | L84: 0 | M84: =IF(J84<0,1,0) -> 0 | N84: 13530975.05 | O84: 2 | P84: 0 | Q84: =IF(N84<0,1,0) -> 0 | R84: 66288557.5 | S84: 2 | T84: 0 | U84: =IF(R84<0,1,0) -> 0 | Z84: =IF(I84=0,0,F84) -> 0 | AB84: =IF(M84=0,0,J84) -> 0 | AD84: =IF(Q84=0,0,N84) -> 0 | AF84: =IF(U84=0,0,R84) -> 0 | AH84: 0.03323269839
A85: 106100005 | B85: 50492 | C85: COMMUNITY MEDICAL CENTER - CLOVIS | D85: 3 | E85: COMMUNITY MEDICAL CENTERS | F85: =IFERROR(INDEX('4. FY 2019-20'!AZ:AZ,MATCH(A85,'4. FY 2019-20'!A:A,0)),0) -> 20072756.85 | G85: =IF(F85>0,1,0) -> 1 | H85: =IF(F85<0,1,0) -> 0 | J85: =IFERROR(INDEX('5. FY 2020-21'!AZ:AZ,MATCH(A85,'5. FY 2020-21'!A:A,0)),0) -> 20685902.16 | K85: =IF(J85>0,1,0) -> 1 | L85: =IF(J85<0,1,0) -> 0 | N85: =IFERROR(INDEX('6. FY 2021-22'!AZ:AZ,MATCH(A85,'6. FY 2021-22'!A:A,0)),0) -> 10544365.84 | O85: =IF(N85>0,1,0) -> 1 | P85: =IF(N85<0,1,0) -> 0 | R85: =F85+J85+N85 -> 51303024.85 | S85: =IF(R85>0,1,0) -> 1 | T85: =IF(R85<0,1,0) -> 0 | Y85: =F85 -> 20072756.85 | AA85: =J85 -> 20685902.16 | AC85: =N85 -> 10544365.84 | AE85: =R85 -> 51303024.85 | AH85: 0.030546143
A86: 106100717 | B86: 50060 | C86: COMMUNITY REGIONAL MED CTR-FRESNO | D86: 3 | E86: COMMUNITY MEDICAL CENTERS | F86: =IFERROR(INDEX('4. FY 2019-20'!AZ:AZ,MATCH(A86,'4. FY 2019-20'!A:A,0)),0) -> 130117543.8 | G86: 1 | H86: 0 | J86: =IFERROR(INDEX('5. FY 2020-21'!AZ:AZ,MATCH(A86,'5. FY 2020-21'!A:A,0)),0) -> 136673007.8 | K86: 1 | L86: 0 | N86: =IFERROR(INDEX('6. FY 2021-22'!AZ:AZ,MATCH(A86,'6. FY 2021-22'!A:A,0)),0) -> 69633143.58 | O86: 1 | P86: 0 | R86: 336423695.2 | S86: 1 | T86: 0 | Y86: 130117543.8 | AA86: 136673007.8 | AC86: 69633143.58 | AE86: 336423695.2 | AH86: 0.05038109307
A87: 106105029 | B87: 50732 | C87: FRESNO HEART HOSPITAL | D87: 3 | E87: COMMUNITY MEDICAL CENTER | F87: =IFERROR(INDEX('4. FY 2019-20'!AZ:AZ,MATCH(A87,'4. FY 2019-20'!A:A,0)),0) -> 0 | G87: 0 | H87: 0 | J87: =IFERROR(INDEX('5. FY 2020-21'!AZ:AZ,MATCH(A87,'5. FY 2020-21'!A:A,0)),0) -> 0 | K87: 0 | L87: 0 | N87: =IFERROR(INDEX('6. FY 2021-22'!AZ:AZ,MATCH(A87,'6. FY 2021-22'!A:A,0)),0) -> 0 | O87: 0 | P87: 0 | R87: 0 | S87: 0 | T87: 0 | Y87: 0 | AA87: 0 | AC87: 0 | AE87: 0
D88: 8 | E88: SYSTEM TOTAL | F88: =SUM(F85:F87) -> 150190300.6 | G88: =SUM(G85:G87) -> 2 | H88: =SUM(H85:H87) -> 0 | I88: =IF(F88<0,1,0) -> 0 | J88: =SUM(J85:J87) -> 157358910 | K88: =SUM(K85:K87) -> 2 | L88: =SUM(L85:L87) -> 0 | M88: =IF(J88<0,1,0) -> 0 | N88: =SUM(N85:N87) -> 80177509.42 | O88: =SUM(O85:O87) -> 2 | P88: =SUM(P85:P87) -> 0 | Q88: =IF(N88<0,1,0) -> 0 | R88: =SUM(R85:R87) -> 387726720 | S88: =SUM(S85:S87) -> 2 | T88: =SUM(T85:T87) -> 0 | U88: =IF(R88<0,1,0) -> 0 | Z88: =IF(I88=0,0,F88) -> 0 | AB88: =IF(M88=0,0,J88) -> 0 | AD88: =IF(Q88=0,0,N88) -> 0 | AF88: =IF(U88=0,0,R88) -> 0 | AH88: 0.04773017535
A89: 106560473 | B89: 50394 | C89: COMMUNITY MEM HOSP - SAN BUENAVENTURA | D89: 3 | E89: COMMUNITY MEMORIAL HEALTH SYSTEM | F89: =IFERROR(INDEX('4. FY 2019-20'!AZ:AZ,MATCH(A89,'4. FY 2019-20'!A:A,0)),0) -> 6350518.81 | G89: =IF(F89>0,1,0) -> 1 | H89: =IF(F89<0,1,0) -> 0 | J89: =IFERROR(INDEX('5. FY 2020-21'!AZ:AZ,MATCH(A89,'5. FY 2020-21'!A:A,0)),0) -> 6309128.668 | K89: =IF(J89>0,1,0) -> 1 | L89: =IF(J89<0,1,0) -> 0 | N89: =IFERROR(INDEX('6. FY 2021-22'!AZ:AZ,MATCH(A89,'6. FY 2021-22'!A:A,0)),0) -> 3094357.608 | O89: =IF(N89>0,1,0) -> 1 | P89: =IF(N89<0,1,0) -> 0 | R89: =F89+J89+N89 -> 15754005.09 | S89: =IF(R89>0,1,0) -> 1 | T89: =IF(R89<0,1,0) -> 0 | Y89: =F89 -> 6350518.81 | AA89: =J89 -> 6309128.668 | AC89: =N89 -> 3094357.608 | AE89: =R89 -> 15754005.09 | AH89: -0.006517600087
A90: 106560501 | B90: 50046 | C90: OJAI VALLEY COMMUNITY HOSPITAL | D90: 3 | E90: COMMUNITY MEMORIAL HEALTH SYSTEM | F90: =IFERROR(INDEX('4. FY 2019-20'!AZ:AZ,MATCH(A90,'4. FY 2019-20'!A:A,0)),0) -> 1691789.165 | G90: 1 | H90: 0 | J90: =IFERROR(INDEX('5. FY 2020-21'!AZ:AZ,MATCH(A90,'5. FY 2020-21'!A:A,0)),0) -> 1701341.816 | K90: 1 | L90: 0 | N90: =IFERROR(INDEX('6. FY 2021-22'!AZ:AZ,MATCH(A90,'6. FY 2021-22'!A:A,0)),0) -> 861015.5021 | O90: 1 | P90: 0 | R90: 4254146.483 | S90: 1 | T90: 0 | Y90: 1691789.165 | AA90: 1701341.816 | AC90: 861015.5021 | AE90: 4254146.483 | AH90: 0.005646478905
D91: 9 | E91: SYSTEM TOTAL | F91: =SUM(F89:F90) -> 8042307.975 | G91: =SUM(G89:G90) -> 2 | H91: =SUM(H89:H90) -> 0 | I91: =IF(F91<0,1,0) -> 0 | J91: =SUM(J89:J90) -> 8010470.484 | K91: =SUM(K89:K90) -> 2 | L91: =SUM(L89:L90) -> 0 | M91: =IF(J91<0,1,0) -> 0 | N91: =SUM(N89:N90) -> 3955373.11 | O91: =SUM(O89:O90) -> 2 | P91: =SUM(P89:P90) -> 0 | Q91: =IF(N91<0,1,0) -> 0 | R91: =SUM(R89:R90) -> 20008151.57 | S91: =SUM(S89:S90) -> 2 | T91: =SUM(T89:T90) -> 0 | U91: =IF(R91<0,1,0) -> 0 | Z91: =IF(I91=0,0,F91) -> 0 | AB91: =IF(M91=0,0,J91) -> 0 | AD91: =IF(Q91=0,0,N91) -> 0 | AF91: =IF(U91=0,0,R91) -> 0 | AH91: -0.003958750426
A92: 106420483 | B92: 50357 | C92: GOLETA VALLEY COTTAGE HOSPITAL | D92: 3 | E92: COTTAGE HEALTH SYSTEM | F92: =IFERROR(INDEX('4. FY 2019-20'!AZ:AZ,MATCH(A92,'4. FY 2019-20'!A:A,0)),0) -> 3412007.474 | G92: =IF(F92>0,1,0) -> 1 | H92: =IF(F92<0,1,0) -> 0 | J92: =IFERROR(INDEX('5. FY 2020-21'!AZ:AZ,MATCH(A92,'5. FY 2020-21'!A:A,0)),0) -> 3423249.541 | K92: =IF(J92>0,1,0) -> 1 | L92: =IF(J92<0,1,0) -> 0 | N92: =IFERROR(INDEX('6. FY 2021-22'!AZ:AZ,MATCH(A92,'6. FY 2021-22'!A:A,0)),0) -> 1766303.325 | O92: =IF(N92>0,1,0) -> 1 | P92: =IF(N92<0,1,0) -> 0 | R92: =F92+J92+N92 -> 8601560.339 | S92: =IF(R92>0,1,0) -> 1 | T92: =IF(R92<0,1,0) -> 0 | Y92: =F92 -> 3412007.474 | AA92: =J92 -> 3423249.541 | AC92: =N92 -> 1766303.325 | AE92: =R92 -> 8601560.339 | AH92: 0.003294854017
A93: 106420514 | B93: 50396 | C93: SANTA BARBARA COTTAGE HOSPITAL | D93: 3 | E93: COTTAGE HEALTH SYSTEM | F93: =IFERROR(INDEX('4. FY 2019-20'!AZ:AZ,MATCH(A93,'4. FY 2019-20'!A:A,0)),0) -> 18857294.26 | G93: 1 | H93: 0 | J93: =IFERROR(INDEX('5. FY 2020-21'!AZ:AZ,MATCH(A93,'5. FY 2020-21'!A:A,0)),0) -> 19514925.35 | K93: 1 | L93: 0 | N93: =IFERROR(INDEX('6. FY 2021-22'!AZ:AZ,MATCH(A93,'6. FY 2021-22'!A:A,0)),0) -> 10002089.5 | O93: 1 | P93: 0 | R93: 48374309.12 | S93: 1 | T93: 0 | Y93: 18857294.26 | AA93: 19514925.35 | AC93: 10002089.5 | AE93: 48374309.12 | AH93: 0.0348740959
A94: 106420522 | B94: 50478 | C94: SANTA YNEZ VALLEY COTTAGE HOSPITAL | D94: 3 | E94: COTTAGE HEALTH SYSTEM | F94: =IFERROR(INDEX('4. FY 2019-20'!AZ:AZ,MATCH(A94,'4. FY 2019-20'!A:A,0)),0) -> 947589.2458 | G94: 1 | H94: 0 | J94: =IFERROR(INDEX('5. FY 2020-21'!AZ:AZ,MATCH(A94,'5. FY 2020-21'!A:A,0)),0) -> 945481.0866 | K94: 1 | L94: 0 | N94: =IFERROR(INDEX('6. FY 2021-22'!AZ:AZ,MATCH(A94,'6. FY 2021-22'!A:A,0)),0) -> 479885.296 | O94: 1 | P94: 0 | R94: 2372955.628 | S94: 1 | T94: 0 | Y94: 947589.2458 | AA94: 945481.0866 | AC94: 479885.296 | AE94: 2372955.628 | AH94: -0.002224760612
D95: 10 | E95: SYSTEM TOTAL | F95: =SUM(F92:F94) -> 23216890.98 | G95: =SUM(G92:G94) -> 3 | H95: =SUM(H92:H94) -> 0 | I95: =IF(F95<0,1,0) -> 0 | J95: =SUM(J92:J94) -> 23883655.98 | K95: =SUM(K92:K94) -> 3 | L95: =SUM(L92:L94) -> 0 | M95: =IF(J95<0,1,0) -> 0 | N95: =SUM(N92:N94) -> 12248278.12 | O95: =SUM(O92:O94) -> 3 | P95: =SUM(P92:P94) -> 0 | Q95: =IF(N95<0,1,0) -> 0 | R95: =SUM(R92:R94) -> 59348825.08 | S95: =SUM(S92:S94) -> 3 | T95: =SUM(T92:T94) -> 0 | U95: =IF(R95<0,1,0) -> 0 | Z95: =IF(I95=0,0,F95) -> 0 | AB95: =IF(M95=0,0,J95) -> 0 | AD95: =IF(Q95=0,0,N95) -> 0 | AF95: =IF(U95=0,0,R95) -> 0 | AH95: 0.0287189614
A96: 106430837 | B96: 50153 | C96: O'CONNOR HOSPITAL | D96: 3 | E96: DOCHS/VERITY | F96: =IFERROR(INDEX('4. FY 2019-20'!AZ:AZ,MATCH(A96,'4. FY 2019-20'!A:A,0)),0) -> 0 | G96: =IF(F96>0,1,0) -> 0 | H96: =IF(F96<0,1,0) -> 0 | J96: =IFERROR(INDEX('5. FY 2020-21'!AZ:AZ,MATCH(A96,'5. FY 2020-21'!A:A,0)),0) -> 0 | K96: =IF(J96>0,1,0) -> 0 | L96: =IF(J96<0,1,0) -> 0 | N96: =IFERROR(INDEX('6. FY 2021-22'!AZ:AZ,MATCH(A96,'6. FY 2021-22'!A:A,0)),0) -> 0 | O96: =IF(N96>0,1,0) -> 0 | P96: =IF(N96<0,1,0) -> 0 | R96: =F96+J96+N96 -> 0 | S96: =IF(R96>0,1,0) -> 0 | T96: =IF(R96<0,1,0) -> 0 | Y96: =F96 -> 0 | AA96: =J96 -> 0 | AC96: =N96 -> 0 | AE96: =R96 -> 0
A97: 106410817 | B97: 50289 | C97: SETON MEDICAL CENTER | D97: 3 | E97: DOCHS/VERITY | F97: =IFERROR(INDEX('4. FY 2019-20'!AZ:AZ,MATCH(A97,'4. FY 2019-20'!A:A,0)),0) -> 8981776.714 | G97: 1 | H97: 0 | J97: =IFERROR(INDEX('5. FY 2020-21'!AZ:AZ,MATCH(A97,'5. FY 2020-21'!A:A,0)),0) -> 8698969.29 | K97: 1 | L97: 0 | N97: =IFERROR(INDEX('6. FY 2021-22'!AZ:AZ,MATCH(A97,'6. FY 2021-22'!A:A,0)),0) -> 4388359.608 | O97: 1 | P97: 0 | R97: 22069105.61 | S97: 1 | T97: 0 | Y97: 8981776.714 | AA97: 8698969.29 | AC97: 4388359.608 | AE97: 22069105.61 | AH97: -0.03148680194
A98: 106190754 | B98: 50104 | C98: ST. FRANCIS MEDICAL CENTER | D98: 3 | E98: DOCHS/VERITY | F98: =IFERROR(INDEX('4. FY 2019-20'!AZ:AZ,MATCH(A98,'4. FY 2019-20'!A:A,0)),0) -> 79611835.46 | G98: 1 | H98: 0 | J98: =IFERROR(INDEX('5. FY 2020-21'!AZ:AZ,MATCH(A98,'5. FY 2020-21'!A:A,0)),0) -> 84398017.51 | K98: 1 | L98: 0 | N98: =IFERROR(INDEX('6. FY 2021-22'!AZ:AZ,MATCH(A98,'6. FY 2021-22'!A:A,0)),0) -> 42724287.4 | O98: 1 | P98: 0 | R98: 206734140.4 | S98: 1 | T98: 0 | Y98: 79611835.46 | AA98: 84398017.51 | AC98: 42724287.4 | AE98: 206734140.4 | AH98: 0.06011897633
A99: 106434138 | B99: 50688 | C99: ST. LOUISE REGIONAL HOSPITAL | D99: 3 | E99: DOCHS/VERITY | F99: =IFERROR(INDEX('4. FY 2019-20'!AZ:AZ,MATCH(A99,'4. FY 2019-20'!A:A,0)),0) -> 0 | G99: 0 | H99: 0 | J99: =IFERROR(INDEX('5. FY 2020-21'!AZ:AZ,MATCH(A99,'5. FY 2020-21'!A:A,0)),0) -> 0 | K99: 0 | L99: 0 | N99: =IFERROR(INDEX('6. FY 2021-22'!AZ:AZ,MATCH(A99,'6. FY 2021-22'!A:A,0)),0) -> 0 | O99: 0 | P99: 0 | R99: 0 | S99: 0 | T99: 0 | Y99: 0 | AA99: 0 | AC99: 0 | AE99: 0
A100: 106190762 | B100: 50502 | C100: ST. VINCENT MEDICAL CENTER | D100: 3 | E100: DOCHS/VERITY | F100: =IFERROR(INDEX('4. FY 2019-20'!AZ:AZ,MATCH(A100,'4. FY 2019-20'!A:A,0)),0) -> 651527.125 | G100: 1 | H100: 0 | J100: =IFERROR(INDEX('5. FY 2020-21'!AZ:AZ,MATCH(A100,'5. FY 2020-21'!A:A,0)),0) -> 643703.025 | K100: 1 | L100: 0 | N100: =IFERROR(INDEX('6. FY 2021-22'!AZ:AZ,MATCH(A100,'6. FY 2021-22'!A:A,0)),0) -> 468436.0448 | O100: 1 | P100: 0 | R100: 1763666.195 | S100: 1 | T100: 0 | Y100: 651527.125 | AA100: 643703.025 | AC100: 468436.0448 | AE100: 1763666.195 | AH100: -0.01200886305
D101: 11 | E101: SYSTEM TOTAL | F101: =SUM(F96:F100) -> 89245139.3 | G101: =SUM(G96:G100) -> 3 | H101: =SUM(H96:H100) -> 0 | I101: =IF(F101<0,1,0) -> 0 | J101: =SUM(J96:J100) -> 93740689.82 | K101: =SUM(K96:K100) -> 3 | L101: =SUM(L96:L100) -> 0 | M101: =IF(J101<0,1,0) -> 0 | N101: =SUM(N96:N100) -> 47581083.05 | O101: =SUM(O96:O100) -> 3 | P101: =SUM(P96:P100) -> 0 | Q101: =IF(N101<0,1,0) -> 0 | R101: =SUM(R96:R100) -> 230566912.2 | S101: =SUM(S96:S100) -> 3 | T101: =SUM(T96:T100) -> 0 | U101: =IF(R101<0,1,0) -> 0 | Z101: =IF(I101=0,0,F101) -> 0 | AB101: =IF(M101=0,0,J101) -> 0 | AD101: =IF(Q101=0,0,N101) -> 0 | AF101: =IF(U101=0,0,R101) -> 0 | AH101: 0.05037305742
A102: 106430779 | B102: 50380 | C102: GOOD SAMARITAN HOSPITAL - SAN JOSE | D102: 3 | E102: HCA-THE HEALTHCARE COMPANY | F102: =IFERROR(INDEX('4. FY 2019-20'!AZ:AZ,MATCH(A102,'4. FY 2019-20'!A:A,0)),0) -> -8255820.15 | G102: =IF(F102>0,1,0) -> 0 | H102: =IF(F102<0,1,0) -> 1 | J102: =IFERROR(INDEX('5. FY 2020-21'!AZ:AZ,MATCH(A102,'5. FY 2020-21'!A:A,0)),0) -> -8485156.885 | K102: =IF(J102>0,1,0) -> 0 | L102: =IF(J102<0,1,0) -> 1 | N102: =IFERROR(INDEX('6. FY 2021-22'!AZ:AZ,MATCH(A102,'6. FY 2021-22'!A:A,0)),0) -> -4313473.718 | O102: =IF(N102>0,1,0) -> 0 | P102: =IF(N102<0,1,0) -> 1 | R102: =F102+J102+N102 -> -21054450.75 | S102: =IF(R102>0,1,0) -> 0 | T102: =IF(R102<0,1,0) -> 1 | Y102: =F102 -> -8255820.15 | AA102: =J102 -> -8485156.885 | AC102: =N102 -> -4313473.718 | AE102: =R102 -> -21054450.75 | AH102: 0.02777879498
A103: 106560492 | B103: 50549 | C103: LOS ROBLES HOSPITAL & MEDICAL CENTER | D103: 3 | E103: HCA-THE HEALTHCARE COMPANY | F103: =IFERROR(INDEX('4. FY 2019-20'!AZ:AZ,MATCH(A103,'4. FY 2019-20'!A:A,0)),0) -> -9428005.461 | G103: 0 | H103: 1 | J103: =IFERROR(INDEX('5. FY 2020-21'!AZ:AZ,MATCH(A103,'5. FY 2020-21'!A:A,0)),0) -> -9733860.125 | K103: 0 | L103: 1 | N103: =IFERROR(INDEX('6. FY 2021-22'!AZ:AZ,MATCH(A103,'6. FY 2021-22'!A:A,0)),0) -> -4689568.761 | O103: 0 | P103: 1 | R103: -23851434.35 | S103: 0 | T103: 1 | Y103: -9428005.461 | AA103: -9733860.125 | AC103: -4689568.761 | AE103: -23851434.35 | AH103: 0.03244107843
A104: 106430705 | B104: 50125 | C104: REGIONAL MEDICAL CENTER OF SAN JOSE | D104: 3 | E104: HCA-THE HEALTHCARE COMPANY | F104: =IFERROR(INDEX('4. FY 2019-20'!AZ:AZ,MATCH(A104,'4. FY 2019-20'!A:A,0)),0) -> 8352692.812 | G104: 1 | H104: 0 | J104: =IFERROR(INDEX('5. FY 2020-21'!AZ:AZ,MATCH(A104,'5. FY 2020-21'!A:A,0)),0) -> 8598091.883 | K104: 1 | L104: 0 | N104: =IFERROR(INDEX('6. FY 2021-22'!AZ:AZ,MATCH(A104,'6. FY 2021-22'!A:A,0)),0) -> 4225742.698 | O104: 1 | P104: 0 | R104: 21176527.39 | S104: 1 | T104: 0 | Y104: 8352692.812 | AA104: 8598091.883 | AC104: 4225742.698 | AE104: 21176527.39 | AH104: 0.0293796355
A105: 106331312 | B105: 50022 | C105: RIVERSIDE COMMUNITY HOSPITAL | D105: 3 | E105: HCA-THE HEALTHCARE COMPANY | F105: =IFERROR(INDEX('4. FY 2019-20'!AZ:AZ,MATCH(A105,'4. FY 2019-20'!A:A,0)),0) -> 45738234.21 | G105: 1 | H105: 0 | J105: =IFERROR(INDEX('5. FY 2020-21'!AZ:AZ,MATCH(A105,'5. FY 2020-21'!A:A,0)),0) -> 47911052.21 | K105: 1 | L105: 0 | N105: =IFERROR(INDEX('6. FY 2021-22'!AZ:AZ,MATCH(A105,'6. FY 2021-22'!A:A,0)),0) -> 24147251.69 | O105: 1 | P105: 0 | R105: 117796538.1 | S105: 1 | T105: 0 | Y105: 45738234.21 | AA105: 47911052.21 | AC105: 24147251.69 | AE105: 117796538.1 | AH105: 0.0475055068
A106: 106190859 | B106: 50481 | C106: WEST HILLS HOSPITAL & MEDICAL CENTER | D106: 3 | E106: HCA-THE HEALTHCARE COMPANY | F106: =IFERROR(INDEX('4. FY 2019-20'!AZ:AZ,MATCH(A106,'4. FY 2019-20'!A:A,0)),0) -> -4974625.902 | G106: 0 | H106: 1 | J106: =IFERROR(INDEX('5. FY 2020-21'!AZ:AZ,MATCH(A106,'5. FY 2020-21'!A:A,0)),0) -> -5183338.29 | K106: 0 | L106: 1 | N106: =IFERROR(INDEX('6. FY 2021-22'!AZ:AZ,MATCH(A106,'6. FY 2021-22'!A:A,0)),0) -> -2595976.254 | O106: 0 | P106: 1 | R106: -12753940.45 | S106: 0 | T106: 1 | Y106: -4974625.902 | AA106: -5183338.29 | AC106: -2595976.254 | AE106: -12753940.45 | AH106: 0.04195539373
D107: 12 | E107: SYSTEM TOTAL | F107: =SUM(F102:F106) -> 31432475.51 | G107: =SUM(G102:G106) -> 2 | H107: =SUM(H102:H106) -> 3 | I107: =IF(F107<0,1,0) -> 0 | J107: =SUM(J102:J106) -> 33106788.79 | K107: =SUM(K102:K106) -> 2 | L107: =SUM(L102:L106) -> 3 | M107: =IF(J107<0,1,0) -> 0 | N107: =SUM(N102:N106) -> 16773975.66 | O107: =SUM(O102:O106) -> 2 | P107: =SUM(P102:P106) -> 3 | Q107: =IF(N107<0,1,0) -> 0 | R107: =SUM(R102:R106) -> 81313239.96 | S107: =SUM(S102:S106) -> 2 | T107: =SUM(T102:T106) -> 3 | U107: =IF(R107<0,1,0) -> 0 | Z107: =IF(I107=0,0,F107) -> 0 | AB107: =IF(M107=0,0,J107) -> 0 | AD107: =IF(Q107=0,0,N107) -> 0 | AF107: =IF(U107=0,0,R107) -> 0 | AH107: =(J107-F107)/F107 -> 0.05326698744
A108: 106301140 | B108: 50745 | C108: CHAPMAN MEDICAL CENTER | D108: 3 | E108: KPC HEALTHCARE, INC. | F108: =IFERROR(INDEX('4. FY 2019-20'!AZ:AZ,MATCH(A108,'4. FY 2019-20'!A:A,0)),0) -> 2546055.278 | G108: =IF(F108>0,1,0) -> 1 | H108: =IF(F108<0,1,0) -> 0 | J108: =IFERROR(INDEX('5. FY 2020-21'!AZ:AZ,MATCH(A108,'5. FY 2020-21'!A:A,0)),0) -> 2479146.701 | K108: =IF(J108>0,1,0) -> 1 | L108: =IF(J108<0,1,0) -> 0 | N108: =IFERROR(INDEX('6. FY 2021-22'!AZ:AZ,MATCH(A108,'6. FY 2021-22'!A:A,0)),0) -> 1257483.673 | O108: =IF(N108>0,1,0) -> 1 | P108: =IF(N108<0,1,0) -> 0 | R108: =F108+J108+N108 -> 6282685.652 | S108: =IF(R108>0,1,0) -> 1 | T108: =IF(R108<0,1,0) -> 0 | Y108: =F108 -> 2546055.278 | AA108: =J108 -> 2479146.701 | AC108: =N108 -> 1257483.673 | AE108: =R108 -> 6282685.652 | AH108: -0.02627931034
A109: 106301258 | B109: 50747 | C109: COASTAL COMMUNITIES HOSPITAL | D109: 3 | E109: KPC HEALTHCARE, INC. | F109: =IFERROR(INDEX('4. FY 2019-20'!AZ:AZ,MATCH(A109,'4. FY 2019-20'!A:A,0)),0) -> 15757192.41 | G109: 1 | H109: 0 | J109: =IFERROR(INDEX('5. FY 2020-21'!AZ:AZ,MATCH(A109,'5. FY 2020-21'!A:A,0)),0) -> 16442368.83 | K109: 1 | L109: 0 | N109: =IFERROR(INDEX('6. FY 2021-22'!AZ:AZ,MATCH(A109,'6. FY 2021-22'!A:A,0)),0) -> 8290427.078 | O109: 1 | P109: 0 | R109: 40489988.33 | S109: 1 | T109: 0 | Y109: 15757192.41 | AA109: 16442368.83 | AC109: 8290427.078 | AE109: 40489988.33 | AH109: 0.04348340758
A110: 106301188 | B110: 50744 | C110: WESTERN MEDICAL CENTER-ANAHEIM | D110: 3 | E110: KPC HEALTHCARE, INC. | F110: =IFERROR(INDEX('4. FY 2019-20'!AZ:AZ,MATCH(A110,'4. FY 2019-20'!A:A,0)),0) -> 18128215.5 | G110: 1 | H110: 0 | J110: =IFERROR(INDEX('5. FY 2020-21'!AZ:AZ,MATCH(A110,'5. FY 2020-21'!A:A,0)),0) -> 18656152.62 | K110: 1 | L110: 0 | N110: =IFERROR(INDEX('6. FY 2021-22'!AZ:AZ,MATCH(A110,'6. FY 2021-22'!A:A,0)),0) -> 9570911.763 | O110: 1 | P110: 0 | R110: 46355279.88 | S110: 1 | T110: 0 | Y110: 18128215.5 | AA110: 18656152.62 | AC110: 9570911.763 | AE110: 46355279.88 | AH110: 0.02912239861
A111: 106301566 | B111: 50746 | C111: WESTERN MEDICAL CENTER-SANTA ANA | D111: 3 | E111: KPC HEALTHCARE, INC. | F111: =IFERROR(INDEX('4. FY 2019-20'!AZ:AZ,MATCH(A111,'4. FY 2019-20'!A:A,0)),0) -> 18310860.18 | G111: 1 | H111: 0 | J111: =IFERROR(INDEX('5. FY 2020-21'!AZ:AZ,MATCH(A111,'5. FY 2020-21'!A:A,0)),0) -> 19763366.68 | K111: 1 | L111: 0 | N111: =IFERROR(INDEX('6. FY 2021-22'!AZ:AZ,MATCH(A111,'6. FY 2021-22'!A:A,0)),0) -> 9882679.073 | O111: 1 | P111: 0 | R111: 47956905.93 | S111: 1 | T111: 0 | Y111: 18310860.18 | AA111: 19763366.68 | AC111: 9882679.073 | AE111: 47956905.93 | AH111: 0.07932486434
D112: 13 | E112: SYSTEM TOTAL | F112: =SUM(F108:F111) -> 54742323.37 | G112: =SUM(G108:G111) -> 4 | H112: =SUM(H108:H111) -> 0 | I112: =IF(F112<0,1,0) -> 0 | J112: =SUM(J108:J111) -> 57341034.83 | K112: =SUM(K108:K111) -> 4 | L112: =SUM(L108:L111) -> 0 | M112: =IF(J112<0,1,0) -> 0 | N112: =SUM(N108:N111) -> 29001501.59 | O112: =SUM(O108:O111) -> 4 | P112: =SUM(P108:P111) -> 0 | Q112: =IF(N112<0,1,0) -> 0 | R112: =SUM(R108:R111) -> 141084859.8 | S112: =SUM(S108:S111) -> 4 | T112: =SUM(T108:T111) -> 0 | U112: =IF(R112<0,1,0) -> 0 | Z112: =IF(I112=0,0,F112) -> 0 | AB112: =IF(M112=0,0,J112) -> 0 | AD112: =IF(Q112=0,0,N112) -> 0 | AF112: =IF(U112=0,0,R112) -> 0 | AH112: 0.04747170564
A113: 106071018 | B113: 50496 | C113: JOHN MUIR MEDICAL CTR-CONCORD CAMPUS | D113: 3 | E113: JOHN MUIR / MT. DIABLO HEALTH SYSTEM | F113: =IFERROR(INDEX('4. FY 2019-20'!AZ:AZ,MATCH(A113,'4. FY 2019-20'!A:A,0)),0) -> 5213413.586 | G113: =IF(F113>0,1,0) -> 1 | H113: =IF(F113<0,1,0) -> 0 | J113: =IFERROR(INDEX('5. FY 2020-21'!AZ:AZ,MATCH(A113,'5. FY 2020-21'!A:A,0)),0) -> 5251230.926 | K113: =IF(J113>0,1,0) -> 1 | L113: =IF(J113<0,1,0) -> 0 | N113: =IFERROR(INDEX('6. FY 2021-22'!AZ:AZ,MATCH(A113,'6. FY 2021-22'!A:A,0)),0) -> 2765768.983 | O113: =IF(N113>0,1,0) -> 1 | P113: =IF(N113<0,1,0) -> 0 | R113: =F113+J113+N113 -> 13230413.49 | S113: =IF(R113>0,1,0) -> 1 | T113: =IF(R113<0,1,0) -> 0 | Y113: =F113 -> 5213413.586 | AA113: =J113 -> 5251230.926 | AC113: =N113 -> 2765768.983 | AE113: =R113 -> 13230413.49 | AH113: 0.007253853788
A114: 106070988 | B114: 50180 | C114: JOHN MUIR MEDICAL CTR-WALNUT CREEK | D114: 3 | E114: JOHN MUIR / MT. DIABLO HEALTH SYSTEM | F114: =IFERROR(INDEX('4. FY 2019-20'!AZ:AZ,MATCH(A114,'4. FY 2019-20'!A:A,0)),0) -> -2650044.761 | G114: 0 | H114: 1 | J114: =IFERROR(INDEX('5. FY 2020-21'!AZ:AZ,MATCH(A114,'5. FY 2020-21'!A:A,0)),0) -> -2784912.145 | K114: 0 | L114: 1 | N114: =IFERROR(INDEX('6. FY 2021-22'!AZ:AZ,MATCH(A114,'6. FY 2021-22'!A:A,0)),0) -> -1343099.805 | O114: 0 | P114: 1 | R114: -6778056.711 | S114: 0 | T114: 1 | Y114: -2650044.761 | AA114: -2784912.145 | AC114: -1343099.805 | AE114: -6778056.711 | AH114: 0.05089249276
D115: 14 | E115: SYSTEM TOTAL | F115: =SUM(F113:F114) -> 2563368.825 | G115: =SUM(G113:G114) -> 1 | H115: =SUM(H113:H114) -> 1 | I115: =IF(F115<0,1,0) -> 0 | J115: =SUM(J113:J114) -> 2466318.781 | K115: =SUM(K113:K114) -> 1 | L115: =SUM(L113:L114) -> 1 | M115: =IF(J115<0,1,0) -> 0 | N115: =SUM(N113:N114) -> 1422669.178 | O115: =SUM(O113:O114) -> 1 | P115: =SUM(P113:P114) -> 1 | Q115: =IF(N115<0,1,0) -> 0 | R115: =SUM(R113:R114) -> 6452356.784 | S115: =SUM(S113:S114) -> 1 | T115: =SUM(T113:T114) -> 1 | U115: =IF(R115<0,1,0) -> 0 | Z115: =IF(I115=0,0,F115) -> 0 | AB115: =IF(M115=0,0,J115) -> 0 | AD115: =IF(Q115=0,0,N115) -> 0 | AF115: =IF(U115=0,0,R115) -> 0 | AH115: -0.03786035119
A116: 106361246 | B116: 50327 | C116: LOMA LINDA UNIVERSITY MEDICAL CENTER | D116: 3 | E116: LOMA LINDA UNIVERSITY MEDICAL CENTER | F116: =IFERROR(INDEX('4. FY 2019-20'!AZ:AZ,MATCH(A116,'4. FY 2019-20'!A:A,0)),0) -> 64141059.33 | G116: =IF(F116>0,1,0) -> 1 | H116: =IF(F116<0,1,0) -> 0 | J116: =IFERROR(INDEX('5. FY 2020-21'!AZ:AZ,MATCH(A116,'5. FY 2020-21'!A:A,0)),0) -> 64953920.2 | K116: =IF(J116>0,1,0) -> 1 | L116: =IF(J116<0,1,0) -> 0 | N116: =IFERROR(INDEX('6. FY 2021-22'!AZ:AZ,MATCH(A116,'6. FY 2021-22'!A:A,0)),0) -> 32457986.02 | O116: =IF(N116>0,1,0) -> 1 | P116: =IF(N116<0,1,0) -> 0 | R116: =F116+J116+N116 -> 161552965.5 | S116: =IF(R116>0,1,0) -> 1 | T116: =IF(R116<0,1,0) -> 0 | Y116: =F116 -> 64141059.33 | AA116: =J116 -> 64953920.2 | AC116: =N116 -> 32457986.02 | AE116: =R116 -> 161552965.5 | AH116: 0.01267301923
A117: 106364502 | B117: 50778 | C117: LOMA LINDA UNIVERSITY CHILDREN'S HOSPITAL | D117: 3 | E117: LOMA LINDA UNIVERSITY MEDICAL CENTER | F117: =IFERROR(INDEX('4. FY 2019-20'!AZ:AZ,MATCH(A117,'4. FY 2019-20'!A:A,0)),0) -> 81382266.71 | G117: 1 | H117: 0 | J117: =IFERROR(INDEX('5. FY 2020-21'!AZ:AZ,MATCH(A117,'5. FY 2020-21'!A:A,0)),0) -> 86422964.05 | K117: 1 | L117: 0 | N117: =IFERROR(INDEX('6. FY 2021-22'!AZ:AZ,MATCH(A117,'6. FY 2021-22'!A:A,0)),0) -> 43078683.26 | O117: 1 | P117: 0 | R117: 210883914 | S117: 1 | T117: 0 | Y117: 81382266.71 | AA117: 86422964.05 | AC117: 43078683.26 | AE117: 210883914 | AH117: 0.06193852224
A118: 106334589 | B118: 50770 | C118: LOMA LINDA UNIVERSITY MEDICAL CENTER - MURRIETA | D118: 3 | E118: LOMA LINDA UNIVERSITY MEDICAL CENTER | F118: =IFERROR(INDEX('4. FY 2019-20'!AZ:AZ,MATCH(A118,'4. FY 2019-20'!A:A,0)),0) -> 3731044.788 | G118: 1 | H118: 0 | J118: =IFERROR(INDEX('5. FY 2020-21'!AZ:AZ,MATCH(A118,'5. FY 2020-21'!A:A,0)),0) -> 3751104.031 | K118: 1 | L118: 0 | N118: =IFERROR(INDEX('6. FY 2021-22'!AZ:AZ,MATCH(A118,'6. FY 2021-22'!A:A,0)),0) -> 1906421.884 | O118: 1 | P118: 0 | R118: 9388570.703 | S118: 1 | T118: 0 | Y118: 3731044.788 | AA118: 3751104.031 | AC118: 1906421.884 | AE118: 9388570.703 | AH118: 0.005376307193
D119: 33 | E119: SYSTEM TOTAL | F119: =SUM(F116:F118) -> 149254370.8 | G119: =SUM(G116:G118) -> 3 | H119: =SUM(H116:H118) -> 0 | I119: =IF(F119<0,1,0) -> 0 | J119: =SUM(J116:J118) -> 155127988.3 | K119: =SUM(K116:K118) -> 3 | L119: =SUM(L116:L118) -> 0 | M119: =IF(J119<0,1,0) -> 0 | N119: =SUM(N116:N118) -> 77443091.17 | O119: =SUM(O116:O118) -> 3 | P119: =SUM(P116:P118) -> 0 | Q119: =IF(N119<0,1,0) -> 0 | R119: =SUM(R116:R118) -> 381825450.3 | S119: =SUM(S116:S118) -> 3 | T119: =SUM(T116:T118) -> 0 | U119: =IF(R119<0,1,0) -> 0 | Z119: =IF(I119=0,0,F119) -> 0 | AB119: =IF(M119=0,0,J119) -> 0 | AD119: =IF(Q119=0,0,N119) -> 0 | AF119: =IF(U119=0,0,R119) -> 0 | AH119: 0.03935306836
A120: 106190475 | B120: 50727 | C120: COMMUNITY HOSPITAL OF LONG BEACH | D120: 3 | E120: MEMORIAL HEALTH SERVICES | F120: =IFERROR(INDEX('4. FY 2019-20'!AZ:AZ,MATCH(A120,'4. FY 2019-20'!A:A,0)),0) -> 725995.6684 | G120: =IF(F120>0,1,0) -> 1 | H120: =IF(F120<0,1,0) -> 0 | J120: =IFERROR(INDEX('5. FY 2020-21'!AZ:AZ,MATCH(A120,'5. FY 2020-21'!A:A,0)),0) -> 595064.697 | K120: =IF(J120>0,1,0) -> 1 | L120: =IF(J120<0,1,0) -> 0 | N120: =IFERROR(INDEX('6. FY 2021-22'!AZ:AZ,MATCH(A120,'6. FY 2021-22'!A:A,0)),0) -> 323909.9161 | O120: =IF(N120>0,1,0) -> 1 | P120: =IF(N120<0,1,0) -> 0 | R120: =F120+J120+N120 -> 1644970.282 | S120: =IF(R120>0,1,0) -> 1 | T120: =IF(R120<0,1,0) -> 0 | Y120: =F120 -> 725995.6684 | AA120: =J120 -> 595064.697 | AC120: =N120 -> 323909.9161 | AE120: =R120 -> 1644970.282 | AH120: -0.1803467666
A121: 106196168 | B121: 53309 | C121: EARL & LORRAINE MILLER CHILDRENS HOSP | D121: 3 | E121: MEMORIAL HEALTH SERVICES | F121: =IFERROR(INDEX('4. FY 2019-20'!AZ:AZ,MATCH(A121,'4. FY 2019-20'!A:A,0)),0) -> 75014108.02 | G121: 1 | H121: 0 | J121: =IFERROR(INDEX('5. FY 2020-21'!AZ:AZ,MATCH(A121,'5. FY 2020-21'!A:A,0)),0) -> 78740143.19 | K121: 1 | L121: 0 | N121: =IFERROR(INDEX('6. FY 2021-22'!AZ:AZ,MATCH(A121,'6. FY 2021-22'!A:A,0)),0) -> 39337408.17 | O121: 1 | P121: 0 | R121: 193091659.4 | S121: 1 | T121: 0 | Y121: 75014108.02 | AA121: 78740143.19 | AC121: 39337408.17 | AE121: 193091659.4 | AH121: 0.04967112542
A122: 106190525 | B122: 50485 | C122: LONG BEACH MEMORIAL MEDICAL CENTER | D122: 3 | E122: MEMORIAL HEALTH SERVICES | F122: =IFERROR(INDEX('4. FY 2019-20'!AZ:AZ,MATCH(A122,'4. FY 2019-20'!A:A,0)),0) -> 33908809.96 | G122: 1 | H122: 0 | J122: =IFERROR(INDEX('5. FY 2020-21'!AZ:AZ,MATCH(A122,'5. FY 2020-21'!A:A,0)),0) -> 34874925.12 | K122: 1 | L122: 0 | N122: =IFERROR(INDEX('6. FY 2021-22'!AZ:AZ,MATCH(A122,'6. FY 2021-22'!A:A,0)),0) -> 17539810.86 | O122: 1 | P122: 0 | R122: 86323545.93 | S122: 1 | T122: 0 | Y122: 33908809.96 | AA122: 34874925.12 | AC122: 17539810.86 | AE122: 86323545.93 | AH122: 0.02849156805
A123: 106300225 | B123: 50678 | C123: ORANGE COAST MEMORIAL MEDICAL CENTER | D123: 3 | E123: MEMORIAL HEALTH SERVICES | F123: =IFERROR(INDEX('4. FY 2019-20'!AZ:AZ,MATCH(A123,'4. FY 2019-20'!A:A,0)),0) -> -3322015.967 | G123: 0 | H123: 1 | J123: =IFERROR(INDEX('5. FY 2020-21'!AZ:AZ,MATCH(A123,'5. FY 2020-21'!A:A,0)),0) -> -3579047.297 | K123: 0 | L123: 1 | N123: =IFERROR(INDEX('6. FY 2021-22'!AZ:AZ,MATCH(A123,'6. FY 2021-22'!A:A,0)),0) -> -1869559.848 | O123: 0 | P123: 1 | R123: -8770623.112 | S123: 0 | T123: 1 | Y123: -3322015.967 | AA123: -3579047.297 | AC123: -1869559.848 | AE123: -8770623.112 | AH123: 0.07737209348
A124: 106301317 | B124: 50603 | C124: SADDLEBACK MEMORIAL MEDICAL CENTER | D124: 3 | E124: MEMORIAL HEALTH SERVICES | F124: =IFERROR(INDEX('4. FY 2019-20'!AZ:AZ,MATCH(A124,'4. FY 2019-20'!A:A,0)),0) -> -9961273.19 | G124: 0 | H124: 1 | J124: =IFERROR(INDEX('5. FY 2020-21'!AZ:AZ,MATCH(A124,'5. FY 2020-21'!A:A,0)),0) -> -10480389.83 | K124: 0 | L124: 1 | N124: =IFERROR(INDEX('6. FY 2021-22'!AZ:AZ,MATCH(A124,'6. FY 2021-22'!A:A,0)),0) -> -5425137.436 | O124: 0 | P124: 1 | R124: -25866800.45 | S124: 0 | T124: 1 | Y124: -9961273.19 | AA124: -10480389.83 | AC124: -5425137.436 | AE124: -25866800.45 | AH124: 0.05211348257
D125: 15 | E125: SYSTEM TOTAL | F125: =SUM(F120:F124) -> 96365624.49 | G125: =SUM(G120:G124) -> 3 | H125: =SUM(H120:H124) -> 2 | I125: =IF(F125<0,1,0) -> 0 | J125: =SUM(J120:J124) -> 100150695.9 | K125: =SUM(K120:K124) -> 3 | L125: =SUM(L120:L124) -> 2 | M125: =IF(J125<0,1,0) -> 0 | N125: =SUM(N120:N124) -> 49906431.66 | O125: =SUM(O120:O124) -> 3 | P125: =SUM(P120:P124) -> 2 | Q125: =IF(N125<0,1,0) -> 0 | R125: =SUM(R120:R124) -> 246422752 | S125: =SUM(S120:S124) -> 3 | T125: =SUM(T120:T124) -> 2 | U125: =IF(R125<0,1,0) -> 0 | Z125: =IF(I125=0,0,F125) -> 0 | AB125: =IF(M125=0,0,J125) -> 0 | AD125: =IF(Q125=0,0,N125) -> 0 | AF125: =IF(U125=0,0,R125) -> 0 | AH125: 0.03927823242
A126: 106190631 | B126: 50169 | C126: PRESBYTERIAN INTERCOMMUNITY HOSPITAL | D126: 3 | E126: PIH HEALTH | F126: =IFERROR(INDEX('4. FY 2019-20'!AZ:AZ,MATCH(A126,'4. FY 2019-20'!A:A,0)),0) -> 9309451.174 | G126: =IF(F126>0,1,0) -> 1 | H126: =IF(F126<0,1,0) -> 0 | J126: =IFERROR(INDEX('5. FY 2020-21'!AZ:AZ,MATCH(A126,'5. FY 2020-21'!A:A,0)),0) -> 10000017.07 | K126: =IF(J126>0,1,0) -> 1 | L126: =IF(J126<0,1,0) -> 0 | N126: =IFERROR(INDEX('6. FY 2021-22'!AZ:AZ,MATCH(A126,'6. FY 2021-22'!A:A,0)),0) -> 4898944.774 | O126: =IF(N126>0,1,0) -> 1 | P126: =IF(N126<0,1,0) -> 0 | R126: =F126+J126+N126 -> 24208413.02 | S126: =IF(R126>0,1,0) -> 1 | T126: =IF(R126<0,1,0) -> 0 | Y126: =F126 -> 9309451.174 | AA126: =J126 -> 10000017.07 | AC126: =N126 -> 4898944.774 | AE126: =R126 -> 24208413.02 | AH126: 0.0741790129
A127: 106190243 | B127: 50393 | C127: DOWNEY REGIONAL MEDICAL CENTER | D127: 3 | E127: PIH HEALTH | F127: =IFERROR(INDEX('4. FY 2019-20'!AZ:AZ,MATCH(A127,'4. FY 2019-20'!A:A,0)),0) -> 9867732.335 | G127: 1 | H127: 0 | J127: =IFERROR(INDEX('5. FY 2020-21'!AZ:AZ,MATCH(A127,'5. FY 2020-21'!A:A,0)),0) -> 10252174.53 | K127: 1 | L127: 0 | N127: =IFERROR(INDEX('6. FY 2021-22'!AZ:AZ,MATCH(A127,'6. FY 2021-22'!A:A,0)),0) -> 5137827.927 | O127: 1 | P127: 0 | R127: 25257734.8 | S127: 1 | T127: 0 | Y127: 9867732.335 | AA127: 10252174.53 | AC127: 5137827.927 | AE127: 25257734.8 | AH127: 0.03895952854
D128: 17 | E128: SYSTEM TOTAL | F128: =SUM(F126:F127) -> 19177183.51 | G128: =SUM(G126:G127) -> 2 | H128: =SUM(H126:H127) -> 0 | I128: =IF(F128<0,1,0) -> 0 | J128: =SUM(J126:J127) -> 20252191.61 | K128: =SUM(K126:K127) -> 2 | L128: =SUM(L126:L127) -> 0 | M128: =IF(J128<0,1,0) -> 0 | N128: =SUM(N126:N127) -> 10036772.7 | O128: =SUM(O126:O127) -> 2 | P128: =SUM(P126:P127) -> 0 | Q128: =IF(N128<0,1,0) -> 0 | R128: =SUM(R126:R127) -> 49466147.82 | S128: =SUM(S126:S127) -> 2 | T128: =SUM(T126:T127) -> 0 | U128: =IF(R128<0,1,0) -> 0 | Z128: =IF(I128=0,0,F128) -> 0 | AB128: =IF(M128=0,0,J128) -> 0 | AD128: =IF(Q128=0,0,N128) -> 0 | AF128: =IF(U128=0,0,R128) -> 0 | AH128: 0.0560566205
A129: 106370652 | B129: 50757 | C129: ALVARADO HOSPITAL | D129: 3 | E129: PRIME HEALTHCARE | F129: =IFERROR(INDEX('4. FY 2019-20'!AZ:AZ,MATCH(A129,'4. FY 2019-20'!A:A,0)),0) -> 3701553.351 | G129: =IF(F129>0,1,0) -> 1 | H129: =IF(F129<0,1,0) -> 0 | J129: =IFERROR(INDEX('5. FY 2020-21'!AZ:AZ,MATCH(A129,'5. FY 2020-21'!A:A,0)),0) -> 3931150.781 | K129: =IF(J129>0,1,0) -> 1 | L129: =IF(J129<0,1,0) -> 0 | N129: =IFERROR(INDEX('6. FY 2021-22'!AZ:AZ,MATCH(A129,'6. FY 2021-22'!A:A,0)),0) -> 2021044.278 | O129: =IF(N129>0,1,0) -> 1 | P129: =IF(N129<0,1,0) -> 0 | R129: =F129+J129+N129 -> 9653748.41 | S129: =IF(R129>0,1,0) -> 1 | T129: =IF(R129<0,1,0) -> 0 | Y129: =F129 -> 3701553.351 | AA129: =J129 -> 3931150.781 | AC129: =N129 -> 2021044.278 | AE129: =R129 -> 9653748.41 | AH129: 0.06202731899
A130: 106190148 | B130: 50739 | C130: CENTINELA FREEMAN REG MED CTR-CENTINELA | D130: 3 | E130: PRIME HEALTHCARE | F130: =IFERROR(INDEX('4. FY 2019-20'!AZ:AZ,MATCH(A130,'4. FY 2019-20'!A:A,0)),0) -> 12636727.05 | G130: 1 | H130: 0 | J130: =IFERROR(INDEX('5. FY 2020-21'!AZ:AZ,MATCH(A130,'5. FY 2020-21'!A:A,0)),0) -> 13230067.99 | K130: 1 | L130: 0 | N130: =IFERROR(INDEX('6. FY 2021-22'!AZ:AZ,MATCH(A130,'6. FY 2021-22'!A:A,0)),0) -> 6863626.783 | O130: 1 | P130: 0 | R130: 32730421.82 | S130: 1 | T130: 0 | Y130: 12636727.05 | AA130: 13230067.99 | AC130: 6863626.783 | AE130: 32730421.82 | AH130: 0.04695368811
A131: 106361144 | B131: 50586 | C131: CHINO VALLEY MEDICAL CENTER | D131: 3 | E131: PRIME HEALTHCARE | F131: =IFERROR(INDEX('4. FY 2019-20'!AZ:AZ,MATCH(A131,'4. FY 2019-20'!A:A,0)),0) -> 5246245.762 | G131: 1 | H131: 0 | J131: =IFERROR(INDEX('5. FY 2020-21'!AZ:AZ,MATCH(A131,'5. FY 2020-21'!A:A,0)),0) -> 5473993.543 | K131: 1 | L131: 0 | N131: =IFERROR(INDEX('6. FY 2021-22'!AZ:AZ,MATCH(A131,'6. FY 2021-22'!A:A,0)),0) -> 2728302.969 | O131: 1 | P131: 0 | R131: 13448542.27 | S131: 1 | T131: 0 | Y131: 5246245.762 | AA131: 5473993.543 | AC131: 2728302.969 | AE131: 13448542.27 | AH131: 0.04341157292
A132: 106364144 | B132: 50709 | C132: DESERT VALLEY HOSPITAL | D132: 3 | E132: PRIME HEALTHCARE | F132: =IFERROR(INDEX('4. FY 2019-20'!AZ:AZ,MATCH(A132,'4. FY 2019-20'!A:A,0)),0) -> 11819747.55 | G132: 1 | H132: 0 | J132: =IFERROR(INDEX('5. FY 2020-21'!AZ:AZ,MATCH(A132,'5. FY 2020-21'!A:A,0)),0) -> 12213678.07 | K132: 1 | L132: 0 | N132: =IFERROR(INDEX('6. FY 2021-22'!AZ:AZ,MATCH(A132,'6. FY 2021-22'!A:A,0)),0) -> 6287380.32 | O132: 1 | P132: 0 | R132: 30320805.94 | S132: 1 | T132: 0 | Y132: 11819747.55 | AA132: 12213678.07 | AC132: 6287380.32 | AE132: 30320805.94 | AH132: 0.03332816672
A133: 106301283 | B133: 50230 | C133: GARDEN GROVE HOSP & MEDICAL CENTER | D133: 3 | E133: PRIME HEALTHCARE | F133: =IFERROR(INDEX('4. FY 2019-20'!AZ:AZ,MATCH(A133,'4. FY 2019-20'!A:A,0)),0) -> 8236220.277 | G133: 1 | H133: 0 | J133: =IFERROR(INDEX('5. FY 2020-21'!AZ:AZ,MATCH(A133,'5. FY 2020-21'!A:A,0)),0) -> 8662965.516 | K133: 1 | L133: 0 | N133: =IFERROR(INDEX('6. FY 2021-22'!AZ:AZ,MATCH(A133,'6. FY 2021-22'!A:A,0)),0) -> 4362843.912 | O133: 1 | P133: 0 | R133: 21262029.7 | S133: 1 | T133: 0 | Y133: 8236220.277 | AA133: 8662965.516 | AC133: 4362843.912 | AE133: 21262029.7 | AH133: 0.05181323774
A134: 106370759 | B134: 50024 | C134: PARADISE VALLEY HOSPITAL | D134: 3 | E134: PRIME HEALTHCARE | F134: =IFERROR(INDEX('4. FY 2019-20'!AZ:AZ,MATCH(A134,'4. FY 2019-20'!A:A,0)),0) -> 16242843.57 | G134: 1 | H134: 0 | J134: =IFERROR(INDEX('5. FY 2020-21'!AZ:AZ,MATCH(A134,'5. FY 2020-21'!A:A,0)),0) -> 16471793.13 | K134: 1 | L134: 0 | N134: =IFERROR(INDEX('6. FY 2021-22'!AZ:AZ,MATCH(A134,'6. FY 2021-22'!A:A,0)),0) -> 8594872.021 | O134: 1 | P134: 0 | R134: 41309508.72 | S134: 1 | T134: 0 | Y134: 16242843.57 | AA134: 16471793.13 | AC134: 8594872.021 | AE134: 41309508.72 | AH134: 0.0140954111
A135: 106190673 | B135: 50588 | C135: SAN DIMAS COMMUNITY HOSPITAL | D135: 3 | E135: PRIME HEALTHCARE | F135: =IFERROR(INDEX('4. FY 2019-20'!AZ:AZ,MATCH(A135,'4. FY 2019-20'!A:A,0)),0) -> -531577.7174 | G135: 0 | H135: 1 | J135: =IFERROR(INDEX('5. FY 2020-21'!AZ:AZ,MATCH(A135,'5. FY 2020-21'!A:A,0)),0) -> -563530.6048 | K135: 0 | L135: 1 | N135: =IFERROR(INDEX('6. FY 2021-22'!AZ:AZ,MATCH(A135,'6. FY 2021-22'!A:A,0)),0) -> -280872.2603 | O135: 0 | P135: 1 | R135: -1375980.582 | S135: 0 | T135: 1 | Y135: -531577.7174 | AA135: -563530.6048 | AC135: -280872.2603 | AE135: -1375980.582 | AH135: 0.06010953119
A136: 106450940 | B136: 50764 | C136: SHASTA REGIONAL MEDICAL CENTER | D136: 3 | E136: PRIME HEALTHCARE | F136: =IFERROR(INDEX('4. FY 2019-20'!AZ:AZ,MATCH(A136,'4. FY 2019-20'!A:A,0)),0) -> 2086708.949 | G136: 1 | H136: 0 | J136: =IFERROR(INDEX('5. FY 2020-21'!AZ:AZ,MATCH(A136,'5. FY 2020-21'!A:A,0)),0) -> 1886201.283 | K136: 1 | L136: 0 | N136: =IFERROR(INDEX('6. FY 2021-22'!AZ:AZ,MATCH(A136,'6. FY 2021-22'!A:A,0)),0) -> 1174181.198 | O136: 1 | P136: 0 | R136: 5147091.43 | S136: 1 | T136: 0 | Y136: 2086708.949 | AA136: 1886201.283 | AC136: 1174181.198 | AE136: 5147091.43 | AH136: -0.0960879889
A137: 106301379 | B137: 50426 | C137: WEST ANAHEIM MEDICAL CENTER | D137: 3 | E137: PRIME HEALTHCARE | F137: =IFERROR(INDEX('4. FY 2019-20'!AZ:AZ,MATCH(A137,'4. FY 2019-20'!A:A,0)),0) -> 782049.9747 | G137: 1 | H137: 0 | J137: =IFERROR(INDEX('5. FY 2020-21'!AZ:AZ,MATCH(A137,'5. FY 2020-21'!A:A,0)),0) -> 676492.2455 | K137: 1 | L137: 0 | N137: =IFERROR(INDEX('6. FY 2021-22'!AZ:AZ,MATCH(A137,'6. FY 2021-22'!A:A,0)),0) -> 470893.2286 | O137: 1 | P137: 0 | R137: 1929435.449 | S137: 1 | T137: 0 | Y137: 782049.9747 | AA137: 676492.2455 | AC137: 470893.2286 | AE137: 1929435.449 | AH137: -0.1349756826
D138: 18 | E138: SYSTEM TOTAL | F138: =SUM(F129:F137) -> 60220518.77 | G138: =SUM(G129:G137) -> 8 | H138: =SUM(H129:H137) -> 1 | I138: =IF(F138<0,1,0) -> 0 | J138: =SUM(J129:J137) -> 61982811.95 | K138: =SUM(K129:K137) -> 8 | L138: =SUM(L129:L137) -> 1 | M138: =IF(J138<0,1,0) -> 0 | N138: =SUM(N129:N137) -> 32222272.45 | O138: =SUM(O129:O137) -> 8 | P138: =SUM(P129:P137) -> 1 | Q138: =IF(N138<0,1,0) -> 0 | R138: =SUM(R129:R137) -> 154425603.2 | S138: =SUM(S129:S137) -> 8 | T138: =SUM(T129:T137) -> 1 | U138: =IF(R138<0,1,0) -> 0 | Z138: =IF(I138=0,0,F138) -> 0 | AB138: =IF(M138=0,0,J138) -> 0 | AD138: =IF(Q138=0,0,N138) -> 0 | AF138: =IF(U138=0,0,R138) -> 0 | AH138: 0.02926399869
A139: 106190280 | B139: 50158 | C139: ENCINO TARZANA RGNL MC - ENCINO | D139: 3 | E139: PRIME HEALTHCARE FOUNDATION | F139: =IFERROR(INDEX('4. FY 2019-20'!AZ:AZ,MATCH(A139,'4. FY 2019-20'!A:A,0)),0) -> 1660714.866 | G139: =IF(F139>0,1,0) -> 1 | H139: =IF(F139<0,1,0) -> 0 | J139: =IFERROR(INDEX('5. FY 2020-21'!AZ:AZ,MATCH(A139,'5. FY 2020-21'!A:A,0)),0) -> 1587230.619 | K139: =IF(J139>0,1,0) -> 1 | L139: =IF(J139<0,1,0) -> 0 | N139: =IFERROR(INDEX('6. FY 2021-22'!AZ:AZ,MATCH(A139,'6. FY 2021-22'!A:A,0)),0) -> 835036.8824 | O139: =IF(N139>0,1,0) -> 1 | P139: =IF(N139<0,1,0) -> 0 | R139: =F139+J139+N139 -> 4082982.367 | S139: =IF(R139>0,1,0) -> 1 | T139: =IF(R139<0,1,0) -> 0 | Y139: =F139 -> 1660714.866 | AA139: =J139 -> 1587230.619 | AC139: =N139 -> 835036.8824 | AE139: =R139 -> 4082982.367 | AH139: -0.04424856349
A140: 106361166 | B140: 50758 | C140: MONTCLAIR HOSPITAL MEDICAL CENTER | D140: 3 | E140: PRIME HEALTHCARE FOUNDATION | F140: =IFERROR(INDEX('4. FY 2019-20'!AZ:AZ,MATCH(A140,'4. FY 2019-20'!A:A,0)),0) -> 7564684.217 | G140: 1 | H140: 0 | J140: =IFERROR(INDEX('5. FY 2020-21'!AZ:AZ,MATCH(A140,'5. FY 2020-21'!A:A,0)),0) -> 7728376.069 | K140: 1 | L140: 0 | N140: =IFERROR(INDEX('6. FY 2021-22'!AZ:AZ,MATCH(A140,'6. FY 2021-22'!A:A,0)),0) -> 3903245.323 | O140: 1 | P140: 0 | R140: 19196305.61 | S140: 1 | T140: 0 | Y140: 7564684.217 | AA140: 7728376.069 | AC140: 3903245.323 | AE140: 19196305.61 | AH140: 0.02163895365
A141: 106190328 | B141: 50205 | C141: GLENDORA COMMUNITY HOSPITAL | D141: 3 | E141: PRIME HEALTHCARE FOUNDATION | F141: =IFERROR(INDEX('4. FY 2019-20'!AZ:AZ,MATCH(A141,'4. FY 2019-20'!A:A,0)),0) -> -1958907.827 | G141: 0 | H141: 1 | J141: =IFERROR(INDEX('5. FY 2020-21'!AZ:AZ,MATCH(A141,'5. FY 2020-21'!A:A,0)),0) -> -2045953.283 | K141: 0 | L141: 1 | N141: =IFERROR(INDEX('6. FY 2021-22'!AZ:AZ,MATCH(A141,'6. FY 2021-22'!A:A,0)),0) -> -961180.1029 | O141: 0 | P141: 1 | R141: -4966041.212 | S141: 0 | T141: 1 | Y141: -1958907.827 | AA141: -2045953.283 | AC141: -961180.1029 | AE141: -4966041.212 | AH141: =(J141-F141)/F141 -> 0.04443570783
A142: 106301209 | B142: 50526 | C142: HUNTINGTON BEACH HOSPITAL | D142: 3 | E142: PRIME HEALTHCARE FOUNDATION | F142: =IFERROR(INDEX('4. FY 2019-20'!AZ:AZ,MATCH(A142,'4. FY 2019-20'!A:A,0)),0) -> -1091279.673 | G142: 0 | H142: 1 | J142: =IFERROR(INDEX('5. FY 2020-21'!AZ:AZ,MATCH(A142,'5. FY 2020-21'!A:A,0)),0) -> -1198016.877 | K142: 0 | L142: 1 | N142: =IFERROR(INDEX('6. FY 2021-22'!AZ:AZ,MATCH(A142,'6. FY 2021-22'!A:A,0)),0) -> -538162.3978 | O142: 0 | P142: 1 | R142: -2827458.948 | S142: 0 | T142: 1 | Y142: -1091279.673 | AA142: -1198016.877 | AC142: -538162.3978 | AE142: -2827458.948 | AH142: 0.09780921151
A143: 106301234 | B143: 50580 | C143: LA PALMA INTERCOMMUNITY HOSPITAL | D143: 3 | E143: PRIME HEALTHCARE FOUNDATION | F143: =IFERROR(INDEX('4. FY 2019-20'!AZ:AZ,MATCH(A143,'4. FY 2019-20'!A:A,0)),0) -> -1247859.906 | G143: 0 | H143: 1 | J143: =IFERROR(INDEX('5. FY 2020-21'!AZ:AZ,MATCH(A143,'5. FY 2020-21'!A:A,0)),0) -> -1220196.562 | K143: 0 | L143: 1 | N143: =IFERROR(INDEX('6. FY 2021-22'!AZ:AZ,MATCH(A143,'6. FY 2021-22'!A:A,0)),0) -> -566298.303 | O143: 0 | P143: 1 | R143: -3034354.77 | S143: 0 | T143: 1 | Y143: -1247859.906 | AA143: -1220196.562 | AC143: -566298.303 | AE143: -3034354.77 | AH143: -0.02216862952
A144: 106190708 | B144: 50755 | C144: SHERMAN OAKS HOSPITAL & HEALTH CENTER | D144: 3 | E144: PRIME HEALTHCARE FOUNDATION | F144: =IFERROR(INDEX('4. FY 2019-20'!AZ:AZ,MATCH(A144,'4. FY 2019-20'!A:A,0)),0) -> 313716.8547 | G144: 1 | H144: 0 | J144: =IFERROR(INDEX('5. FY 2020-21'!AZ:AZ,MATCH(A144,'5. FY 2020-21'!A:A,0)),0) -> 299482.15 | K144: 1 | L144: 0 | N144: =IFERROR(INDEX('6. FY 2021-22'!AZ:AZ,MATCH(A144,'6. FY 2021-22'!A:A,0)),0) -> 250042.239 | O144: 1 | P144: 0 | R144: 863241.2437 | S144: 1 | T144: 0 | Y144: 313716.8547 | AA144: 299482.15 | AC144: 250042.239 | AE144: 863241.2437 | AH144: -0.04537437029
D145: 19 | E145: SYSTEM TOTAL | F145: =SUM(F139:F144) -> 5241068.533 | G145: =SUM(G139:G144) -> 3 | H145: =SUM(H139:H144) -> 3 | I145: =IF(F145<0,1,0) -> 0 | J145: =SUM(J139:J144) -> 5150922.116 | K145: =SUM(K139:K144) -> 3 | L145: =SUM(L139:L144) -> 3 | M145: =IF(J145<0,1,0) -> 0 | N145: =SUM(N139:N144) -> 2922683.64 | O145: =SUM(O139:O144) -> 3 | P145: =SUM(P139:P144) -> 3 | Q145: =IF(N145<0,1,0) -> 0 | R145: =SUM(R139:R144) -> 13314674.29 | S145: =SUM(S139:S144) -> 3 | T145: =SUM(T139:T144) -> 3 | U145: =IF(R145<0,1,0) -> 0 | Z145: =IF(I145=0,0,F145) -> 0 | AB145: =IF(M145=0,0,J145) -> 0 | AD145: =IF(Q145=0,0,N145) -> 0 | AF145: =IF(U145=0,0,R145) -> 0 | AH145: -0.0172000073
A146: 106190066 | B146: 50531 | C146: BELLFLOWER MEDICAL CENTER | D146: 3 | E146: PROSPECT MEDICAL HOLDINGS | F146: =IFERROR(INDEX('4. FY 2019-20'!AZ:AZ,MATCH(A146,'4. FY 2019-20'!A:A,0)),0) -> 0 | G146: =IF(F146>0,1,0) -> 0 | H146: =IF(F146<0,1,0) -> 0 | J146: =IFERROR(INDEX('5. FY 2020-21'!AZ:AZ,MATCH(A146,'5. FY 2020-21'!A:A,0)),0) -> 0 | K146: =IF(J146>0,1,0) -> 0 | L146: =IF(J146<0,1,0) -> 0 | N146: =IFERROR(INDEX('6. FY 2021-22'!AZ:AZ,MATCH(A146,'6. FY 2021-22'!A:A,0)),0) -> 0 | O146: =IF(N146>0,1,0) -> 0 | P146: =IF(N146<0,1,0) -> 0 | R146: =F146+J146+N146 -> 0 | S146: =IF(R146>0,1,0) -> 0 | T146: =IF(R146<0,1,0) -> 0 | Y146: =F146 -> 0 | AA146: =J146 -> 0 | AC146: =N146 -> 0 | AE146: =R146 -> 0
A147: 106301357 | B147: 50780 | C147: FOOTHILL REGIONAL MEDICAL CENTER | D147: 3 | E147: PROSPECT MEDICAL HOLDINGS | F147: =IFERROR(INDEX('4. FY 2019-20'!AZ:AZ,MATCH(A147,'4. FY 2019-20'!A:A,0)),0) -> 7364309.08 | G147: 1 | H147: 0 | J147: =IFERROR(INDEX('5. FY 2020-21'!AZ:AZ,MATCH(A147,'5. FY 2020-21'!A:A,0)),0) -> 7420669.326 | K147: 1 | L147: 0 | N147: =IFERROR(INDEX('6. FY 2021-22'!AZ:AZ,MATCH(A147,'6. FY 2021-22'!A:A,0)),0) -> 3772880.349 | O147: 1 | P147: 0 | R147: 18557858.75 | S147: 1 | T147: 0 | Y147: 7364309.08 | AA147: 7420669.326 | AC147: 3772880.349 | AE147: 18557858.75 | AH147: 0.007653161451
A148: 106190380 | B148: 50135 | C148: SOUTHERN CALIFORNIA HOSP AT HOLLYWOOD | D148: 3 | E148: PROSPECT MEDICAL HOLDINGS | F148: =IFERROR(INDEX('4. FY 2019-20'!AZ:AZ,MATCH(A148,'4. FY 2019-20'!A:A,0)),0) -> 24369340.06 | G148: 1 | H148: 0 | J148: =IFERROR(INDEX('5. FY 2020-21'!AZ:AZ,MATCH(A148,'5. FY 2020-21'!A:A,0)),0) -> 25028410.87 | K148: 1 | L148: 0 | N148: =IFERROR(INDEX('6. FY 2021-22'!AZ:AZ,MATCH(A148,'6. FY 2021-22'!A:A,0)),0) -> 13124693.28 | O148: 1 | P148: 0 | R148: 62522444.21 | S148: 1 | T148: 0 | Y148: 24369340.06 | AA148: 25028410.87 | AC148: 13124693.28 | AE148: 62522444.21 | AH148: 0.02704508232
A149: 106190198 | B149: 50663 | C149: LOS ANGELES COMMUNITY HOSPITAL | D149: 3 | E149: PROSPECT MEDICAL HOLDINGS | F149: =IFERROR(INDEX('4. FY 2019-20'!AZ:AZ,MATCH(A149,'4. FY 2019-20'!A:A,0)),0) -> 28774330.01 | G149: 1 | H149: 0 | J149: =IFERROR(INDEX('5. FY 2020-21'!AZ:AZ,MATCH(A149,'5. FY 2020-21'!A:A,0)),0) -> 29935903.57 | K149: 1 | L149: 0 | N149: =IFERROR(INDEX('6. FY 2021-22'!AZ:AZ,MATCH(A149,'6. FY 2021-22'!A:A,0)),0) -> 15325954.12 | O149: 1 | P149: 0 | R149: 74036187.7 | S149: 1 | T149: 0 | Y149: 28774330.01 | AA149: 29935903.57 | AC149: 15325954.12 | AE149: 74036187.7 | AH149: 0.04036839645
D150: 20 | E150: SYSTEM TOTAL | F150: =SUM(F146:F149) -> 60507979.15 | G150: =SUM(G146:G149) -> 3 | H150: =SUM(H146:H149) -> 0 | I150: =IF(F150<0,1,0) -> 0 | J150: =SUM(J146:J149) -> 62384983.76 | K150: =SUM(K146:K149) -> 3 | L150: =SUM(L146:L149) -> 0 | M150: =IF(J150<0,1,0) -> 0 | N150: =SUM(N146:N149) -> 32223527.75 | O150: =SUM(O146:O149) -> 3 | P150: =SUM(P146:P149) -> 0 | Q150: =IF(N150<0,1,0) -> 0 | R150: =SUM(R146:R149) -> 155116490.7 | S150: =SUM(S146:S149) -> 3 | T150: =SUM(T146:T149) -> 0 | U150: =IF(R150<0,1,0) -> 0 | Z150: =IF(I150=0,0,F150) -> 0 | AB150: =IF(M150=0,0,J150) -> 0 | AD150: =IF(Q150=0,0,N150) -> 0 | AF150: =IF(U150=0,0,R150) -> 0 | AH150: 0.03102077845
A151: 106190680 | B151: 50078 | C151: LITTLE CO OF MARY-SAN PEDRO HOSPITAL | D151: 3 | E151: PROVIDENCE ST JOSEPH HEALTH SYSTEM | F151: =IFERROR(INDEX('4. FY 2019-20'!AZ:AZ,MATCH(A151,'4. FY 2019-20'!A:A,0)),0) -> 16878384.34 | G151: =IF(F151>0,1,0) -> 1 | H151: =IF(F151<0,1,0) -> 0 | J151: =IFERROR(INDEX('5. FY 2020-21'!AZ:AZ,MATCH(A151,'5. FY 2020-21'!A:A,0)),0) -> 17021468.42 | K151: =IF(J151>0,1,0) -> 1 | L151: =IF(J151<0,1,0) -> 0 | N151: =IFERROR(INDEX('6. FY 2021-22'!AZ:AZ,MATCH(A151,'6. FY 2021-22'!A:A,0)),0) -> 8529444.223 | O151: =IF(N151>0,1,0) -> 1 | P151: =IF(N151<0,1,0) -> 0 | R151: =F151+J151+N151 -> 42429296.98 | S151: =IF(R151>0,1,0) -> 1 | T151: =IF(R151<0,1,0) -> 0 | Y151: =F151 -> 16878384.34 | AA151: =J151 -> 17021468.42 | AC151: =N151 -> 8529444.223 | AE151: =R151 -> 42429296.98 | AH151: 0.008477356233
A152: 106190470 | B152: 50353 | C152: LITTLE COMPANY OF MARY HOSPITAL | D152: 3 | E152: PROVIDENCE ST JOSEPH HEALTH SYSTEM | F152: =IFERROR(INDEX('4. FY 2019-20'!AZ:AZ,MATCH(A152,'4. FY 2019-20'!A:A,0)),0) -> 9401285.021 | G152: 1 | H152: 0 | J152: =IFERROR(INDEX('5. FY 2020-21'!AZ:AZ,MATCH(A152,'5. FY 2020-21'!A:A,0)),0) -> 10054764.34 | K152: 1 | L152: 0 | N152: =IFERROR(INDEX('6. FY 2021-22'!AZ:AZ,MATCH(A152,'6. FY 2021-22'!A:A,0)),0) -> 4917296.4 | O152: 1 | P152: 0 | R152: 24373345.76 | S152: 1 | T152: 0 | Y152: 9401285.021 | AA152: 10054764.34 | AC152: 4917296.4 | AE152: 24373345.76 | AH152: 0.06950957398
A153: 106190385 | B153: 50278 | C153: PROVIDENCE HOLY CROSS MEDICAL CENTER | D153: 3 | E153: PROVIDENCE ST JOSEPH HEALTH SYSTEM | F153: =IFERROR(INDEX('4. FY 2019-20'!AZ:AZ,MATCH(A153,'4. FY 2019-20'!A:A,0)),0) -> 42591975.14 | G153: 1 | H153: 0 | J153: =IFERROR(INDEX('5. FY 2020-21'!AZ:AZ,MATCH(A153,'5. FY 2020-21'!A:A,0)),0) -> 44260077.01 | K153: 1 | L153: 0 | N153: =IFERROR(INDEX('6. FY 2021-22'!AZ:AZ,MATCH(A153,'6. FY 2021-22'!A:A,0)),0) -> 22247442.31 | O153: 1 | P153: 0 | R153: 109099494.5 | S153: 1 | T153: 0 | Y153: 42591975.14 | AA153: 44260077.01 | AC153: 22247442.31 | AE153: 109099494.5 | AH153: 0.03916469874
A154: 106190758 | B154: 50235 | C154: PROVIDENCE SAINT JOSEPH MEDICAL CENTER | D154: 3 | E154: PROVIDENCE ST JOSEPH HEALTH SYSTEM | F154: =IFERROR(INDEX('4. FY 2019-20'!AZ:AZ,MATCH(A154,'4. FY 2019-20'!A:A,0)),0) -> 10379048.95 | G154: 1 | H154: 0 | J154: =IFERROR(INDEX('5. FY 2020-21'!AZ:AZ,MATCH(A154,'5. FY 2020-21'!A:A,0)),0) -> 11038354.45 | K154: 1 | L154: 0 | N154: =IFERROR(INDEX('6. FY 2021-22'!AZ:AZ,MATCH(A154,'6. FY 2021-22'!A:A,0)),0) -> 5634064.143 | O154: 1 | P154: 0 | R154: 27051467.54 | S154: 1 | T154: 0 | Y154: 10379048.95 | AA154: 11038354.45 | AC154: 5634064.143 | AE154: 27051467.54 | AH154: 0.06352272781
A155: 106190517 | B155: 50761 | C155: PROVIDENCE TARZANA MEDICAL CENTER | D155: 3 | E155: PROVIDENCE ST JOSEPH HEALTH SYSTEM | F155: =IFERROR(INDEX('4. FY 2019-20'!AZ:AZ,MATCH(A155,'4. FY 2019-20'!A:A,0)),0) -> 5441354.629 | G155: 1 | H155: 0 | J155: =IFERROR(INDEX('5. FY 2020-21'!AZ:AZ,MATCH(A155,'5. FY 2020-21'!A:A,0)),0) -> 5812778.844 | K155: 1 | L155: 0 | N155: =IFERROR(INDEX('6. FY 2021-22'!AZ:AZ,MATCH(A155,'6. FY 2021-22'!A:A,0)),0) -> 2988170.295 | O155: 1 | P155: 0 | R155: 14242303.77 | S155: 1 | T155: 0 | Y155: 5441354.629 | AA155: 5812778.844 | AC155: 2988170.295 | AE155: 14242303.77 | AH155: 0.06825951269
A156: 106190756 | B156: 50290 | C156: ST. JOHN'S HOSPITAL AND HEALTH CENTER | D156: 3 | E156: PROVIDENCE ST JOSEPH HEALTH SYSTEM | F156: =IFERROR(INDEX('4. FY 2019-20'!AZ:AZ,MATCH(A156,'4. FY 2019-20'!A:A,0)),0) -> -12401895.3 | G156: 0 | H156: 1 | J156: =IFERROR(INDEX('5. FY 2020-21'!AZ:AZ,MATCH(A156,'5. FY 2020-21'!A:A,0)),0) -> -12904223.01 | K156: 0 | L156: 1 | N156: =IFERROR(INDEX('6. FY 2021-22'!AZ:AZ,MATCH(A156,'6. FY 2021-22'!A:A,0)),0) -> -6425990.4 | O156: 0 | P156: 1 | R156: -31732108.71 | S156: 0 | T156: 1 | Y156: -12401895.3 | AA156: -12904223.01 | AC156: -6425990.4 | AE156: -31732108.71 | AH156: 0.04050410791
A157: 106301205 | B157: 50224 | C157: HOAG MEMORIAL HOSPITAL PRESBYTERIAN | D157: 3 | E157: PROVIDENCE ST JOSEPH HEALTH SYSTEM | F157: =IFERROR(INDEX('4. FY 2019-20'!AZ:AZ,MATCH(A157,'4. FY 2019-20'!A:A,0)),0) -> -6590035.339 | G157: 0 | H157: 1 | J157: =IFERROR(INDEX('5. FY 2020-21'!AZ:AZ,MATCH(A157,'5. FY 2020-21'!A:A,0)),0) -> -7011242.501 | K157: 0 | L157: 1 | N157: =IFERROR(INDEX('6. FY 2021-22'!AZ:AZ,MATCH(A157,'6. FY 2021-22'!A:A,0)),0) -> -3528761.458 | O157: 0 | P157: 1 | R157: -17130039.3 | S157: 0 | T157: 1 | Y157: -6590035.339 | AA157: -7011242.501 | AC157: -3528761.458 | AE157: -17130039.3 | AH157: 0.0639157669
A158: 106301262 | B158: 50567 | C158: MISSION HOSPITAL REGIONAL MEDICAL CENTER | D158: 3 | E158: PROVIDENCE ST JOSEPH HEALTH SYSTEM | F158: =IFERROR(INDEX('4. FY 2019-20'!AZ:AZ,MATCH(A158,'4. FY 2019-20'!A:A,0)),0) -> 4892692.29 | G158: 1 | H158: 0 | J158: =IFERROR(INDEX('5. FY 2020-21'!AZ:AZ,MATCH(A158,'5. FY 2020-21'!A:A,0)),0) -> 5001317.585 | K158: 1 | L158: 0 | N158: =IFERROR(INDEX('6. FY 2021-22'!AZ:AZ,MATCH(A158,'6. FY 2021-22'!A:A,0)),0) -> 2498735.012 | O158: 1 | P158: 0 | R158: 12392744.89 | S158: 1 | T158: 0 | Y158: 4892692.29 | AA158: 5001317.585 | AC158: 2498735.012 | AE158: 12392744.89 | AH158: 0.0222015382
A159: 106491001 | B159: 50136 | C159: PETALUMA VALLEY HOSPITAL | D159: 3 | E159: PROVIDENCE ST JOSEPH HEALTH SYSTEM | F159: =IFERROR(INDEX('4. FY 2019-20'!AZ:AZ,MATCH(A159,'4. FY 2019-20'!A:A,0)),0) -> 4987899.586 | G159: 1 | H159: 0 | J159: =IFERROR(INDEX('5. FY 2020-21'!AZ:AZ,MATCH(A159,'5. FY 2020-21'!A:A,0)),0) -> 5063292.13 | K159: 1 | L159: 0 | N159: =IFERROR(INDEX('6. FY 2021-22'!AZ:AZ,MATCH(A159,'6. FY 2021-22'!A:A,0)),0) -> 2602536.561 | O159: 1 | P159: 0 | R159: 12653728.28 | S159: 1 | T159: 0 | Y159: 4987899.586 | AA159: 5063292.13 | AC159: 2602536.561 | AE159: 12653728.28 | AH159: 0.0151150887
A160: 106281047 | B160: 50009 | C160: QUEEN OF THE VALLEY HOSP | D160: 3 | E160: PROVIDENCE ST JOSEPH HEALTH SYSTEM | F160: =IFERROR(INDEX('4. FY 2019-20'!AZ:AZ,MATCH(A160,'4. FY 2019-20'!A:A,0)),0) -> 3203485.772 | G160: 1 | H160: 0 | J160: =IFERROR(INDEX('5. FY 2020-21'!AZ:AZ,MATCH(A160,'5. FY 2020-21'!A:A,0)),0) -> 3275751.479 | K160: 1 | L160: 0 | N160: =IFERROR(INDEX('6. FY 2021-22'!AZ:AZ,MATCH(A160,'6. FY 2021-22'!A:A,0)),0) -> 1747006.571 | O160: 1 | P160: 0 | R160: 8226243.823 | S160: 1 | T160: 0 | Y160: 3203485.772 | AA160: 3275751.479 | AC160: 1747006.571 | AE160: 8226243.823 | AH160: 0.02255846028
A161: 106121051 | B161: 51318 | C161: REDWOOD MEMORIAL HOSPITAL | D161: 3 | E161: PROVIDENCE ST JOSEPH HEALTH SYSTEM | F161: =IFERROR(INDEX('4. FY 2019-20'!AZ:AZ,MATCH(A161,'4. FY 2019-20'!A:A,0)),0) -> 5693744.124 | G161: 1 | H161: 0 | J161: =IFERROR(INDEX('5. FY 2020-21'!AZ:AZ,MATCH(A161,'5. FY 2020-21'!A:A,0)),0) -> 5764513.764 | K161: 1 | L161: 0 | N161: =IFERROR(INDEX('6. FY 2021-22'!AZ:AZ,MATCH(A161,'6. FY 2021-22'!A:A,0)),0) -> 2924182.985 | O161: 1 | P161: 0 | R161: 14382440.87 | S161: 1 | T161: 0 | Y161: 5693744.124 | AA161: 5764513.764 | AC161: 2924182.985 | AE161: 14382440.87 | AH161: 0.01242936782
A162: 106491064 | B162: 50174 | C162: SANTA ROSA MEMORIAL HOSPITAL | D162: 3 | E162: PROVIDENCE ST JOSEPH HEALTH SYSTEM | F162: =IFERROR(INDEX('4. FY 2019-20'!AZ:AZ,MATCH(A162,'4. FY 2019-20'!A:A,0)),0) -> 18715811.14 | G162: 1 | H162: 0 | J162: =IFERROR(INDEX('5. FY 2020-21'!AZ:AZ,MATCH(A162,'5. FY 2020-21'!A:A,0)),0) -> 19328178.29 | K162: 1 | L162: 0 | N162: =IFERROR(INDEX('6. FY 2021-22'!AZ:AZ,MATCH(A162,'6. FY 2021-22'!A:A,0)),0) -> 10071467.86 | O162: 1 | P162: 0 | R162: 48115457.28 | S162: 1 | T162: 0 | Y162: 18715811.14 | AA162: 19328178.29 | AC162: 10071467.86 | AE162: 48115457.28 | AH162: 0.03271924192
A163: 106121080 | B163: 50006 | C163: ST. JOSEPH HOSPITAL - EUREKA | D163: 3 | E163: PROVIDENCE ST JOSEPH HEALTH SYSTEM | F163: =IFERROR(INDEX('4. FY 2019-20'!AZ:AZ,MATCH(A163,'4. FY 2019-20'!A:A,0)),0) -> 13504788.29 | G163: 1 | H163: 0 | J163: =IFERROR(INDEX('5. FY 2020-21'!AZ:AZ,MATCH(A163,'5. FY 2020-21'!A:A,0)),0) -> 13596907.38 | K163: 1 | L163: 0 | N163: =IFERROR(INDEX('6. FY 2021-22'!AZ:AZ,MATCH(A163,'6. FY 2021-22'!A:A,0)),0) -> 7085887.129 | O163: 1 | P163: 0 | R163: 34187582.8 | S163: 1 | T163: 0 | Y163: 13504788.29 | AA163: 13596907.38 | AC163: 7085887.129 | AE163: 34187582.8 | AH163: 0.006821217205
A164: 106301340 | B164: 50069 | C164: ST. JOSEPH HOSPITAL - ORANGE | D164: 3 | E164: PROVIDENCE ST JOSEPH HEALTH SYSTEM | F164: =IFERROR(INDEX('4. FY 2019-20'!AZ:AZ,MATCH(A164,'4. FY 2019-20'!A:A,0)),0) -> 22651844.53 | G164: 1 | H164: 0 | J164: =IFERROR(INDEX('5. FY 2020-21'!AZ:AZ,MATCH(A164,'5. FY 2020-21'!A:A,0)),0) -> 23275570.76 | K164: 1 | L164: 0 | N164: =IFERROR(INDEX('6. FY 2021-22'!AZ:AZ,MATCH(A164,'6. FY 2021-22'!A:A,0)),0) -> 11635331.88 | O164: 1 | P164: 0 | R164: 57562747.18 | S164: 1 | T164: 0 | Y164: 22651844.53 | AA164: 23275570.76 | AC164: 11635331.88 | AE164: 57562747.18 | AH164: 0.0275353394
A165: 106301342 | B165: 50168 | C165: ST. JUDE MEDICAL CENTER | D165: 3 | E165: PROVIDENCE ST JOSEPH HEALTH SYSTEM | F165: =IFERROR(INDEX('4. FY 2019-20'!AZ:AZ,MATCH(A165,'4. FY 2019-20'!A:A,0)),0) -> -1225908.679 | G165: 0 | H165: 1 | J165: =IFERROR(INDEX('5. FY 2020-21'!AZ:AZ,MATCH(A165,'5. FY 2020-21'!A:A,0)),0) -> -1514766.582 | K165: 0 | L165: 1 | N165: =IFERROR(INDEX('6. FY 2021-22'!AZ:AZ,MATCH(A165,'6. FY 2021-22'!A:A,0)),0) -> -839078.8702 | O165: 0 | P165: 1 | R165: -3579754.131 | S165: 0 | T165: 1 | Y165: -1225908.679 | AA165: -1514766.582 | AC165: -839078.8702 | AE165: -3579754.131 | AH165: 0.2356275866
A166: 106361343 | B166: 50300 | C166: ST. MARY MEDICAL CENTER | D166: 3 | E166: PROVIDENCE ST JOSEPH HEALTH SYSTEM | F166: =IFERROR(INDEX('4. FY 2019-20'!AZ:AZ,MATCH(A166,'4. FY 2019-20'!A:A,0)),0) -> 49243819.93 | G166: 1 | H166: 0 | J166: =IFERROR(INDEX('5. FY 2020-21'!AZ:AZ,MATCH(A166,'5. FY 2020-21'!A:A,0)),0) -> 51010586.67 | K166: 1 | L166: 0 | N166: =IFERROR(INDEX('6. FY 2021-22'!AZ:AZ,MATCH(A166,'6. FY 2021-22'!A:A,0)),0) -> 25809948.07 | O166: 1 | P166: 0 | R166: 126064354.7 | S166: 1 | T166: 0 | Y166: 49243819.93 | AA166: 51010586.67 | AC166: 25809948.07 | AE166: 126064354.7 | AH166: 0.0358779386
A167: 106304460 | B167: 50769 | C167: HOAG ORTHOPEDIC INSTITUTE, LLC | D167: 3 | E167: PROVIDENCE ST JOSEPH HEALTH SYSTEM | F167: =IFERROR(INDEX('4. FY 2019-20'!AZ:AZ,MATCH(A167,'4. FY 2019-20'!A:A,0)),0) -> 0 | G167: 0 | H167: 0 | J167: =IFERROR(INDEX('5. FY 2020-21'!AZ:AZ,MATCH(A167,'5. FY 2020-21'!A:A,0)),0) -> 0 | K167: 0 | L167: 0 | N167: =IFERROR(INDEX('6. FY 2021-22'!AZ:AZ,MATCH(A167,'6. FY 2021-22'!A:A,0)),0) -> 0 | O167: 0 | P167: 0 | R167: 0 | S167: 0 | T167: 0 | Y167: 0 | AA167: 0 | AC167: 0 | AE167: 0
D168: 21 | E168: SYSTEM TOTAL | F168: =SUM(F151:F167) -> 187368294.4 | G168: =SUM(G151:G167) -> 13 | H168: =SUM(H151:H167) -> 3 | I168: =IF(F168<0,1,0) -> 0 | J168: =SUM(J151:J167) -> 193073329 | K168: =SUM(K151:K167) -> 13 | L168: =SUM(L151:L167) -> 3 | M168: =IF(J168<0,1,0) -> 0 | N168: =SUM(N151:N167) -> 97897682.71 | O168: =SUM(O151:O167) -> 13 | P168: =SUM(P151:P167) -> 3 | Q168: =IF(N168<0,1,0) -> 0 | R168: =SUM(R151:R167) -> 478339306.2 | S168: =SUM(S151:S167) -> 13 | T168: =SUM(T151:T167) -> 3 | U168: =IF(R168<0,1,0) -> 0 | Z168: =IF(I168=0,0,F168) -> 0 | AB168: =IF(M168=0,0,J168) -> 0 | AD168: =IF(Q168=0,0,N168) -> 0 | AF168: =IF(U168=0,0,R168) -> 0 | AH168: 0.03044823906
A169: 106371256 | B169: 50424 | C169: SCRIPPS GREEN HOSPITAL | D169: 3 | E169: SCRIPPS HEALTH | F169: =IFERROR(INDEX('4. FY 2019-20'!AZ:AZ,MATCH(A169,'4. FY 2019-20'!A:A,0)),0) -> 0 | G169: =IF(F169>0,1,0) -> 0 | H169: =IF(F169<0,1,0) -> 0 | J169: =IFERROR(INDEX('5. FY 2020-21'!AZ:AZ,MATCH(A169,'5. FY 2020-21'!A:A,0)),0) -> 0 | K169: =IF(J169>0,1,0) -> 0 | L169: =IF(J169<0,1,0) -> 0 | N169: =IFERROR(INDEX('6. FY 2021-22'!AZ:AZ,MATCH(A169,'6. FY 2021-22'!A:A,0)),0) -> 0 | O169: =IF(N169>0,1,0) -> 0 | P169: =IF(N169<0,1,0) -> 0 | R169: =F169+J169+N169 -> 0 | S169: =IF(R169>0,1,0) -> 0 | T169: =IF(R169<0,1,0) -> 0 | Y169: =F169 -> 0 | AA169: =J169 -> 0 | AC169: =N169 -> 0 | AE169: =R169 -> 0
A170: 106371394 | B170: 50503 | C170: SCRIPPS MEMORIAL HOSPITAL - ENCINITAS | D170: 3 | E170: SCRIPPS HEALTH | F170: =IFERROR(INDEX('4. FY 2019-20'!AZ:AZ,MATCH(A170,'4. FY 2019-20'!A:A,0)),0) -> -3509221.781 | G170: 0 | H170: 1 | J170: =IFERROR(INDEX('5. FY 2020-21'!AZ:AZ,MATCH(A170,'5. FY 2020-21'!A:A,0)),0) -> -3623613.006 | K170: 0 | L170: 1 | N170: =IFERROR(INDEX('6. FY 2021-22'!AZ:AZ,MATCH(A170,'6. FY 2021-22'!A:A,0)),0) -> -1826675.276 | O170: 0 | P170: 1 | R170: -8959510.063 | S170: 0 | T170: 1 | Y170: -3509221.781 | AA170: -3623613.006 | AC170: -1826675.276 | AE170: -8959510.063 | AH170: 0.03259731971
A171: 106370771 | B171: 50324 | C171: SCRIPPS MEMORIAL HOSPITAL - LA JOLLA | D171: 3 | E171: SCRIPPS HEALTH | F171: =IFERROR(INDEX('4. FY 2019-20'!AZ:AZ,MATCH(A171,'4. FY 2019-20'!A:A,0)),0) -> -5590126.248 | G171: 0 | H171: 1 | J171: =IFERROR(INDEX('5. FY 2020-21'!AZ:AZ,MATCH(A171,'5. FY 2020-21'!A:A,0)),0) -> -5803584.679 | K171: 0 | L171: 1 | N171: =IFERROR(INDEX('6. FY 2021-22'!AZ:AZ,MATCH(A171,'6. FY 2021-22'!A:A,0)),0) -> -3023960.17 | O171: 0 | P171: 1 | R171: -14417671.1 | S171: 0 | T171: 1 | Y171: -5590126.248 | AA171: -5803584.679 | AC171: -3023960.17 | AE171: -14417671.1 | AH171: 0.03818490346
A172: 106370744 | B172: 50077 | C172: SCRIPPS MERCY HOSPITAL | D172: 3 | E172: SCRIPPS HEALTH | F172: =IFERROR(INDEX('4. FY 2019-20'!AZ:AZ,MATCH(A172,'4. FY 2019-20'!A:A,0)),0) -> 51617815.08 | G172: 1 | H172: 0 | J172: =IFERROR(INDEX('5. FY 2020-21'!AZ:AZ,MATCH(A172,'5. FY 2020-21'!A:A,0)),0) -> 54984409.37 | K172: 1 | L172: 0 | N172: =IFERROR(INDEX('6. FY 2021-22'!AZ:AZ,MATCH(A172,'6. FY 2021-22'!A:A,0)),0) -> 27704248.49 | O172: 1 | P172: 0 | R172: 134306472.9 | S172: 1 | T172: 0 | Y172: 51617815.08 | AA172: 54984409.37 | AC172: 27704248.49 | AE172: 134306472.9 | AH172: 0.06522155737
D173: 22 | E173: SYSTEM TOTAL | F173: =SUM(F169:F172) -> 42518467.05 | G173: =SUM(G169:G172) -> 1 | H173: =SUM(H169:H172) -> 2 | I173: =IF(F173<0,1,0) -> 0 | J173: =SUM(J169:J172) -> 45557211.69 | K173: =SUM(K169:K172) -> 1 | L173: =SUM(L169:L172) -> 2 | M173: =IF(J173<0,1,0) -> 0 | N173: =SUM(N169:N172) -> 22853613.05 | O173: =SUM(O169:O172) -> 1 | P173: =SUM(P169:P172) -> 2 | Q173: =IF(N173<0,1,0) -> 0 | R173: =SUM(R169:R172) -> 110929291.8 | S173: =SUM(S169:S172) -> 1 | T173: =SUM(T169:T172) -> 2 | U173: =IF(R173<0,1,0) -> 0 | Z173: =IF(I173=0,0,F173) -> 0 | AB173: =IF(M173=0,0,J173) -> 0 | AD173: =IF(Q173=0,0,N173) -> 0 | AF173: =IF(U173=0,0,R173) -> 0 | AH173: 0.07146881915
A174: 106370875 | B174: 50222 | C174: SHARP CHULA VISTA MEDICAL CENTER | D174: 3 | E174: SHARP HEALTHCARE | F174: =IFERROR(INDEX('4. FY 2019-20'!AZ:AZ,MATCH(A174,'4. FY 2019-20'!A:A,0)),0) -> 26732128.67 | G174: =IF(F174>0,1,0) -> 1 | H174: =IF(F174<0,1,0) -> 0 | J174: =IFERROR(INDEX('5. FY 2020-21'!AZ:AZ,MATCH(A174,'5. FY 2020-21'!A:A,0)),0) -> 28013345.72 | K174: =IF(J174>0,1,0) -> 1 | L174: =IF(J174<0,1,0) -> 0 | N174: =IFERROR(INDEX('6. FY 2021-22'!AZ:AZ,MATCH(A174,'6. FY 2021-22'!A:A,0)),0) -> 14166078 | O174: =IF(N174>0,1,0) -> 1 | P174: =IF(N174<0,1,0) -> 0 | R174: =F174+J174+N174 -> 68911552.4 | S174: =IF(R174>0,1,0) -> 1 | T174: =IF(R174<0,1,0) -> 0 | Y174: =F174 -> 26732128.67 | AA174: =J174 -> 28013345.72 | AC174: =N174 -> 14166078 | AE174: =R174 -> 68911552.4 | AH174: 0.04792798471
A175: 106370689 | B175: 50234 | C175: SHARP CORONADO HOSPITAL & HEALTHCARE CTR | D175: 3 | E175: SHARP HEALTHCARE | F175: =IFERROR(INDEX('4. FY 2019-20'!AZ:AZ,MATCH(A175,'4. FY 2019-20'!A:A,0)),0) -> 11379664.14 | G175: 1 | H175: 0 | J175: =IFERROR(INDEX('5. FY 2020-21'!AZ:AZ,MATCH(A175,'5. FY 2020-21'!A:A,0)),0) -> 11471050.68 | K175: 1 | L175: 0 | N175: =IFERROR(INDEX('6. FY 2021-22'!AZ:AZ,MATCH(A175,'6. FY 2021-22'!A:A,0)),0) -> 5757250.68 | O175: 1 | P175: 0 | R175: 28607965.5 | S175: 1 | T175: 0 | Y175: 11379664.14 | AA175: 11471050.68 | AC175: 5757250.68 | AE175: 28607965.5 | AH175: 0.008030689058
A176: 106370714 | B176: 50026 | C176: SHARP GROSSMONT HOSPITAL | D176: 3 | E176: SHARP HEALTHCARE | F176: =IFERROR(INDEX('4. FY 2019-20'!AZ:AZ,MATCH(A176,'4. FY 2019-20'!A:A,0)),0) -> 44275840.52 | G176: 1 | H176: 0 | J176: =IFERROR(INDEX('5. FY 2020-21'!AZ:AZ,MATCH(A176,'5. FY 2020-21'!A:A,0)),0) -> 46149407.18 | K176: 1 | L176: 0 | N176: =IFERROR(INDEX('6. FY 2021-22'!AZ:AZ,MATCH(A176,'6. FY 2021-22'!A:A,0)),0) -> 23541469.51 | O176: 1 | P176: 0 | R176: 113966717.2 | S176: 1 | T176: 0 | Y176: 44275840.52 | AA176: 46149407.18 | AC176: 23541469.51 | AE176: 113966717.2 | AH176: 0.04231577842
A177: 106370694 | B177: 50100 | C177: SHARP MEMORIAL HOSPITAL | D177: 3 | E177: SHARP HEALTHCARE | F177: =IFERROR(INDEX('4. FY 2019-20'!AZ:AZ,MATCH(A177,'4. FY 2019-20'!A:A,0)),0) -> 37356815.56 | G177: 1 | H177: 0 | J177: =IFERROR(INDEX('5. FY 2020-21'!AZ:AZ,MATCH(A177,'5. FY 2020-21'!A:A,0)),0) -> 39803616.71 | K177: 1 | L177: 0 | N177: =IFERROR(INDEX('6. FY 2021-22'!AZ:AZ,MATCH(A177,'6. FY 2021-22'!A:A,0)),0) -> 19538257.61 | O177: 1 | P177: 0 | R177: 96698689.88 | S177: 1 | T177: 0 | Y177: 37356815.56 | AA177: 39803616.71 | AC177: 19538257.61 | AE177: 96698689.88 | AH177: 0.06549811897
D178: 23 | E178: SYSTEM TOTAL | F178: =SUM(F174:F177) -> 119744448.9 | G178: =SUM(G174:G177) -> 4 | H178: =SUM(H174:H177) -> 0 | I178: =IF(F178<0,1,0) -> 0 | J178: =SUM(J174:J177) -> 125437420.3 | K178: =SUM(K174:K177) -> 4 | L178: =SUM(L174:L177) -> 0 | M178: =IF(J178<0,1,0) -> 0 | N178: =SUM(N174:N177) -> 63003055.79 | O178: =SUM(O174:O177) -> 4 | P178: =SUM(P174:P177) -> 0 | Q178: =IF(N178<0,1,0) -> 0 | R178: =SUM(R174:R177) -> 308184925 | S178: =SUM(S174:S177) -> 4 | T178: =SUM(T174:T177) -> 0 | U178: =IF(R178<0,1,0) -> 0 | Z178: =IF(I178=0,0,F178) -> 0 | AB178: =IF(M178=0,0,J178) -> 0 | AD178: =IF(Q178=0,0,N178) -> 0 | AF178: =IF(U178=0,0,R178) -> 0 | AH178: 0.0475426749
A179: 106430905 | B179: 50441 | C179: STANFORD UNIVERSITY HOSPITAL | D179: 3 | E179: STANFORD HEALTHCARE | F179: =IFERROR(INDEX('4. FY 2019-20'!AZ:AZ,MATCH(A179,'4. FY 2019-20'!A:A,0)),0) -> 30835643.81 | G179: =IF(F179>0,1,0) -> 1 | H179: =IF(F179<0,1,0) -> 0 | J179: =IFERROR(INDEX('5. FY 2020-21'!AZ:AZ,MATCH(A179,'5. FY 2020-21'!A:A,0)),0) -> 30643258.73 | K179: =IF(J179>0,1,0) -> 1 | L179: =IF(J179<0,1,0) -> 0 | N179: =IFERROR(INDEX('6. FY 2021-22'!AZ:AZ,MATCH(A179,'6. FY 2021-22'!A:A,0)),0) -> 15528767.75 | O179: =IF(N179>0,1,0) -> 1 | P179: =IF(N179<0,1,0) -> 0 | R179: =F179+J179+N179 -> 77007670.3 | S179: =IF(R179>0,1,0) -> 1 | T179: =IF(R179<0,1,0) -> 0 | Y179: =F179 -> 30835643.81 | AA179: =J179 -> 30643258.73 | AC179: =N179 -> 15528767.75 | AE179: =R179 -> 77007670.3 | AH179: -0.006239048576
A180: 106014050 | B180: 50283 | C180: STANFORD HEALTHCARE - VALLEYCARE | D180: 3 | E180: STANFORD HEALTHCARE | F180: =IFERROR(INDEX('4. FY 2019-20'!AZ:AZ,MATCH(A180,'4. FY 2019-20'!A:A,0)),0) -> -4167622.116 | G180: 0 | H180: 1 | J180: =IFERROR(INDEX('5. FY 2020-21'!AZ:AZ,MATCH(A180,'5. FY 2020-21'!A:A,0)),0) -> -4389864.806 | K180: 0 | L180: 1 | N180: =IFERROR(INDEX('6. FY 2021-22'!AZ:AZ,MATCH(A180,'6. FY 2021-22'!A:A,0)),0) -> -2242590.312 | O180: 0 | P180: 1 | R180: -10800077.23 | S180: 0 | T180: 1 | Y180: -4167622.116 | AA180: -4389864.806 | AC180: -2242590.312 | AE180: -10800077.23 | AH180: 0.05332601743
D181: 34 | E181: SYSTEM TOTAL | F181: =SUM(F179:F180) -> 26668021.69 | G181: =SUM(G179:G180) -> 1 | H181: =SUM(H179:H180) -> 1 | I181: =IF(F181<0,1,0) -> 0 | J181: =SUM(J179:J180) -> 26253393.93 | K181: =SUM(K179:K180) -> 1 | L181: =SUM(L179:L180) -> 1 | M181: =IF(J181<0,1,0) -> 0 | N181: =SUM(N179:N180) -> 13286177.44 | O181: =SUM(O179:O180) -> 1 | P181: =SUM(P179:P180) -> 1 | Q181: =IF(N181<0,1,0) -> 0 | R181: =SUM(R179:R180) -> 66207593.06 | S181: =SUM(S179:S180) -> 1 | T181: =SUM(T179:T180) -> 1 | U181: =IF(R181<0,1,0) -> 0 | Z181: =IF(I181=0,0,F181) -> 0 | AB181: =IF(M181=0,0,J181) -> 0 | AD181: =IF(Q181=0,0,N181) -> 0 | AF181: =IF(U181=0,0,R181) -> 0 | AH181: -0.01554775131
A182: 106010739 | B182: 50305 | C182: ALTA BATES SUMMIT MED CTR-ALTA BATES CAM | D182: 3 | E182: SUTTER HEALTH | F182: =IFERROR(INDEX('4. FY 2019-20'!AZ:AZ,MATCH(A182,'4. FY 2019-20'!A:A,0)),0) -> 27141231.74 | G182: =IF(F182>0,1,0) -> 1 | H182: =IF(F182<0,1,0) -> 0 | J182: =IFERROR(INDEX('5. FY 2020-21'!AZ:AZ,MATCH(A182,'5. FY 2020-21'!A:A,0)),0) -> 29290449.74 | K182: =IF(J182>0,1,0) -> 1 | L182: =IF(J182<0,1,0) -> 0 | N182: =IFERROR(INDEX('6. FY 2021-22'!AZ:AZ,MATCH(A182,'6. FY 2021-22'!A:A,0)),0) -> 14759097.2 | O182: =IF(N182>0,1,0) -> 1 | P182: =IF(N182<0,1,0) -> 0 | R182: =F182+J182+N182 -> 71190778.68 | S182: =IF(R182>0,1,0) -> 1 | T182: =IF(R182<0,1,0) -> 0 | Y182: =F182 -> 27141231.74 | AA182: =J182 -> 29290449.74 | AC182: =N182 -> 14759097.2 | AE182: =R182 -> 71190778.68 | AH182: 0.07918645752
A183: 106010937 | B183: 50043 | C183: ALTA BATES SUMMIT MED CTR-SUMMIT-HAWTHOR | D183: 3 | E183: SUTTER HEALTH | F183: =IFERROR(INDEX('4. FY 2019-20'!AZ:AZ,MATCH(A183,'4. FY 2019-20'!A:A,0)),0) -> 5040859.676 | G183: 1 | H183: 0 | J183: =IFERROR(INDEX('5. FY 2020-21'!AZ:AZ,MATCH(A183,'5. FY 2020-21'!A:A,0)),0) -> 5295280.85 | K183: 1 | L183: 0 | N183: =IFERROR(INDEX('6. FY 2021-22'!AZ:AZ,MATCH(A183,'6. FY 2021-22'!A:A,0)),0) -> 2920443.493 | O183: 1 | P183: 0 | R183: 13256584.02 | S183: 1 | T183: 0 | Y183: 5040859.676 | AA183: 5295280.85 | AC183: 2920443.493 | AE183: 13256584.02 | AH183: 0.05047178256
A184: 106380929 | B184: 50047 | C184: CALIFORNIA PACIFIC MEDICAL CENTER | D184: 3 | E184: SUTTER HEALTH | F184: =IFERROR(INDEX('4. FY 2019-20'!AZ:AZ,MATCH(A184,'4. FY 2019-20'!A:A,0)),0) -> -3730286.429 | G184: 0 | H184: 1 | J184: =IFERROR(INDEX('5. FY 2020-21'!AZ:AZ,MATCH(A184,'5. FY 2020-21'!A:A,0)),0) -> -3635568.586 | K184: 0 | L184: 1 | N184: =IFERROR(INDEX('6. FY 2021-22'!AZ:AZ,MATCH(A184,'6. FY 2021-22'!A:A,0)),0) -> -1836690.011 | O184: 0 | P184: 1 | R184: -9202545.026 | S184: 0 | T184: 1 | Y184: -3730286.429 | AA184: -3635568.586 | AC184: -1836690.011 | AE184: -9202545.026 | AH184: -0.02539157371
A185: 106014233 | B185: 50488 | C185: EDEN MEDICAL CENTER | D185: 3 | E185: SUTTER HEALTH | F185: =IFERROR(INDEX('4. FY 2019-20'!AZ:AZ,MATCH(A185,'4. FY 2019-20'!A:A,0)),0) -> 11873586.46 | G185: 1 | H185: 0 | J185: =IFERROR(INDEX('5. FY 2020-21'!AZ:AZ,MATCH(A185,'5. FY 2020-21'!A:A,0)),0) -> 12296053.41 | K185: 1 | L185: 0 | N185: =IFERROR(INDEX('6. FY 2021-22'!AZ:AZ,MATCH(A185,'6. FY 2021-22'!A:A,0)),0) -> 6250772.869 | O185: 1 | P185: 0 | R185: 30420412.74 | S185: 1 | T185: 0 | Y185: 11873586.46 | AA185: 12296053.41 | AC185: 6250772.869 | AE185: 30420412.74 | AH185: 0.03558039994
A186: 106240924 | B186: 50528 | C186: MEMORIAL HOSPITAL LOS BANOS | D186: 3 | E186: SUTTER HEALTH | F186: =IFERROR(INDEX('4. FY 2019-20'!AZ:AZ,MATCH(A186,'4. FY 2019-20'!A:A,0)),0) -> 11587059.02 | G186: 1 | H186: 0 | J186: =IFERROR(INDEX('5. FY 2020-21'!AZ:AZ,MATCH(A186,'5. FY 2020-21'!A:A,0)),0) -> 11810086.65 | K186: 1 | L186: 0 | N186: =IFERROR(INDEX('6. FY 2021-22'!AZ:AZ,MATCH(A186,'6. FY 2021-22'!A:A,0)),0) -> 5990717.818 | O186: 1 | P186: 0 | R186: 29387863.49 | S186: 1 | T186: 0 | Y186: 11587059.02 | AA186: 11810086.65 | AC186: 5990717.818 | AE186: 29387863.49 | AH186: 0.01924799219
A187: 106500939 | B187: 50557 | C187: MEMORIAL HOSPITAL MODESTO | D187: 3 | E187: SUTTER HEALTH | F187: =IFERROR(INDEX('4. FY 2019-20'!AZ:AZ,MATCH(A187,'4. FY 2019-20'!A:A,0)),0) -> 12927339.65 | G187: 1 | H187: 0 | J187: =IFERROR(INDEX('5. FY 2020-21'!AZ:AZ,MATCH(A187,'5. FY 2020-21'!A:A,0)),0) -> 13366719.23 | K187: 1 | L187: 0 | N187: =IFERROR(INDEX('6. FY 2021-22'!AZ:AZ,MATCH(A187,'6. FY 2021-22'!A:A,0)),0) -> 6887482.726 | O187: 1 | P187: 0 | R187: 33181541.61 | S187: 1 | T187: 0 | Y187: 12927339.65 | AA187: 13366719.23 | AC187: 6887482.726 | AE187: 33181541.61 | AH187: 0.03398839927
A188: 106414018 | B188: 50754 | C188: MENLO PARK SURGICAL HOSPITAL | D188: 3 | E188: SUTTER HEALTH | F188: =IFERROR(INDEX('4. FY 2019-20'!AZ:AZ,MATCH(A188,'4. FY 2019-20'!A:A,0)),0) -> -78721.98813 | G188: 0 | H188: 1 | J188: =IFERROR(INDEX('5. FY 2020-21'!AZ:AZ,MATCH(A188,'5. FY 2020-21'!A:A,0)),0) -> -82810.59332 | K188: 0 | L188: 1 | N188: =IFERROR(INDEX('6. FY 2021-22'!AZ:AZ,MATCH(A188,'6. FY 2021-22'!A:A,0)),0) -> -42804.70336 | O188: 0 | P188: 1 | R188: -204337.2848 | S188: 0 | T188: 1 | Y188: -78721.98813 | AA188: -82810.59332 | AC188: -42804.70336 | AE188: -204337.2848 | AH188: 0.05193727058
A189: 106214034 | B189: 50131 | C189: NOVATO COMMUNITY HOSPITAL | D189: 3 | E189: SUTTER HEALTH | F189: =IFERROR(INDEX('4. FY 2019-20'!AZ:AZ,MATCH(A189,'4. FY 2019-20'!A:A,0)),0) -> 1322179.384 | G189: 1 | H189: 0 | J189: =IFERROR(INDEX('5. FY 2020-21'!AZ:AZ,MATCH(A189,'5. FY 2020-21'!A:A,0)),0) -> 1309627.334 | K189: 1 | L189: 0 | N189: =IFERROR(INDEX('6. FY 2021-22'!AZ:AZ,MATCH(A189,'6. FY 2021-22'!A:A,0)),0) -> 699572.0119 | O189: 1 | P189: 0 | R189: 3331378.73 | S189: 1 | T189: 0 | Y189: 1322179.384 | AA189: 1309627.334 | AC189: 699572.0119 | AE189: 3331378.73 | AH189: -0.009493454866
A190: 106410852 | B190: 50007 | C190: PENINSULA MEDICAL CENTER | D190: 3 | E190: SUTTER HEALTH | F190: =IFERROR(INDEX('4. FY 2019-20'!AZ:AZ,MATCH(A190,'4. FY 2019-20'!A:A,0)),0) -> -3577867.923 | G190: 0 | H190: 1 | J190: =IFERROR(INDEX('5. FY 2020-21'!AZ:AZ,MATCH(A190,'5. FY 2020-21'!A:A,0)),0) -> -3899292.575 | K190: 0 | L190: 1 | N190: =IFERROR(INDEX('6. FY 2021-22'!AZ:AZ,MATCH(A190,'6. FY 2021-22'!A:A,0)),0) -> -1935446.839 | O190: 0 | P190: 1 | R190: -9412607.338 | S190: 0 | T190: 1 | Y190: -3577867.923 | AA190: -3899292.575 | AC190: -1935446.839 | AE190: -9412607.338 | AH190: 0.08983692495
A191: 106380964 | B191: 50055 | C191: ST. LUKE'S HOSPITAL | D191: 3 | E191: SUTTER HEALTH | F191: =IFERROR(INDEX('4. FY 2019-20'!AZ:AZ,MATCH(A191,'4. FY 2019-20'!A:A,0)),0) -> 4143372.695 | G191: 1 | H191: 0 | J191: =IFERROR(INDEX('5. FY 2020-21'!AZ:AZ,MATCH(A191,'5. FY 2020-21'!A:A,0)),0) -> 4461934.505 | K191: 1 | L191: 0 | N191: =IFERROR(INDEX('6. FY 2021-22'!AZ:AZ,MATCH(A191,'6. FY 2021-22'!A:A,0)),0) -> 2205696.994 | O191: 1 | P191: 0 | R191: 10811004.19 | S191: 1 | T191: 0 | Y191: 4143372.695 | AA191: 4461934.505 | AC191: 2205696.994 | AE191: 10811004.19 | AH191: 0.07688466221
A192: 106034002 | B192: 50014 | C192: SUTTER AMADOR HOSPITAL | D192: 3 | E192: SUTTER HEALTH | F192: =IFERROR(INDEX('4. FY 2019-20'!AZ:AZ,MATCH(A192,'4. FY 2019-20'!A:A,0)),0) -> 5827531.486 | G192: 1 | H192: 0 | J192: =IFERROR(INDEX('5. FY 2020-21'!AZ:AZ,MATCH(A192,'5. FY 2020-21'!A:A,0)),0) -> 5959076.555 | K192: 1 | L192: 0 | N192: =IFERROR(INDEX('6. FY 2021-22'!AZ:AZ,MATCH(A192,'6. FY 2021-22'!A:A,0)),0) -> 3021894.887 | O192: 1 | P192: 0 | R192: 14808502.93 | S192: 1 | T192: 0 | Y192: 5827531.486 | AA192: 5959076.555 | AC192: 3021894.887 | AE192: 14808502.93 | AH192: 0.02257303448
A193: 106310791 | B193: 50498 | C193: SUTTER AUBURN FAITH HOSPITAL | D193: 3 | E193: SUTTER HEALTH | F193: =IFERROR(INDEX('4. FY 2019-20'!AZ:AZ,MATCH(A193,'4. FY 2019-20'!A:A,0)),0) -> 1650761.914 | G193: 1 | H193: 0 | J193: =IFERROR(INDEX('5. FY 2020-21'!AZ:AZ,MATCH(A193,'5. FY 2020-21'!A:A,0)),0) -> 1613005.332 | K193: 1 | L193: 0 | N193: =IFERROR(INDEX('6. FY 2021-22'!AZ:AZ,MATCH(A193,'6. FY 2021-22'!A:A,0)),0) -> 848126.2377 | O193: 1 | P193: 0 | R193: 4111893.483 | S193: 1 | T193: 0 | Y193: 1650761.914 | AA193: 1613005.332 | AC193: 848126.2377 | AE193: 4111893.483 | AH193: -0.02287221526
A194: 106084001 | B194: 50417 | C194: SUTTER COAST HOSPITAL | D194: 3 | E194: SUTTER HEALTH | F194: =IFERROR(INDEX('4. FY 2019-20'!AZ:AZ,MATCH(A194,'4. FY 2019-20'!A:A,0)),0) -> 7550848.182 | G194: 1 | H194: 0 | J194: =IFERROR(INDEX('5. FY 2020-21'!AZ:AZ,MATCH(A194,'5. FY 2020-21'!A:A,0)),0) -> 7709740.913 | K194: 1 | L194: 0 | N194: =IFERROR(INDEX('6. FY 2021-22'!AZ:AZ,MATCH(A194,'6. FY 2021-22'!A:A,0)),0) -> 3934812.308 | O194: 1 | P194: 0 | R194: 19195401.4 | S194: 1 | T194: 0 | Y194: 7550848.182 | AA194: 7709740.913 | AC194: 3934812.308 | AE194: 19195401.4 | AH194: 0.02104303074
A195: 106574010 | B195: 50537 | C195: SUTTER DAVIS HOSPITAL | D195: 3 | E195: SUTTER HEALTH | F195: =IFERROR(INDEX('4. FY 2019-20'!AZ:AZ,MATCH(A195,'4. FY 2019-20'!A:A,0)),0) -> 5344012.598 | G195: 1 | H195: 0 | J195: =IFERROR(INDEX('5. FY 2020-21'!AZ:AZ,MATCH(A195,'5. FY 2020-21'!A:A,0)),0) -> 5580961.188 | K195: 1 | L195: 0 | N195: =IFERROR(INDEX('6. FY 2021-22'!AZ:AZ,MATCH(A195,'6. FY 2021-22'!A:A,0)),0) -> 2824382.721 | O195: 1 | P195: 0 | R195: 13749356.51 | S195: 1 | T195: 0 | Y195: 5344012.598 | AA195: 5580961.188 | AC195: 2824382.721 | AE195: 13749356.51 | AH195: 0.04433907778
A196: 106070934 | B196: 50523 | C196: SUTTER DELTA MEDICAL CENTER | D196: 3 | E196: SUTTER HEALTH | F196: =IFERROR(INDEX('4. FY 2019-20'!AZ:AZ,MATCH(A196,'4. FY 2019-20'!A:A,0)),0) -> 12855345.61 | G196: 1 | H196: 0 | J196: =IFERROR(INDEX('5. FY 2020-21'!AZ:AZ,MATCH(A196,'5. FY 2020-21'!A:A,0)),0) -> 13196675.84 | K196: 1 | L196: 0 | N196: =IFERROR(INDEX('6. FY 2021-22'!AZ:AZ,MATCH(A196,'6. FY 2021-22'!A:A,0)),0) -> 6732290.123 | O196: 1 | P196: 0 | R196: 32784311.58 | S196: 1 | T196: 0 | Y196: 12855345.61 | AA196: 13196675.84 | AC196: 6732290.123 | AE196: 32784311.58 | AH196: 0.02655161807
A197: 106171395 | B197: 51329 | C197: SUTTER LAKESIDE HOSPITAL | D197: 3 | E197: SUTTER HEALTH | F197: =IFERROR(INDEX('4. FY 2019-20'!AZ:AZ,MATCH(A197,'4. FY 2019-20'!A:A,0)),0) -> 7360772.151 | G197: 1 | H197: 0 | J197: =IFERROR(INDEX('5. FY 2020-21'!AZ:AZ,MATCH(A197,'5. FY 2020-21'!A:A,0)),0) -> 7526969.503 | K197: 1 | L197: 0 | N197: =IFERROR(INDEX('6. FY 2021-22'!AZ:AZ,MATCH(A197,'6. FY 2021-22'!A:A,0)),0) -> 3835674.44 | O197: 1 | P197: 0 | R197: 18723416.09 | S197: 1 | T197: 0 | Y197: 7360772.151 | AA197: 7526969.503 | AC197: 3835674.44 | AE197: 18723416.09 | AH197: 0.0225787932
A198: 106444012 | B198: 50714 | C198: SUTTER MATERNITY & SURGERY CENTER | D198: 3 | E198: SUTTER HEALTH | F198: =IFERROR(INDEX('4. FY 2019-20'!AZ:AZ,MATCH(A198,'4. FY 2019-20'!A:A,0)),0) -> 435577.4213 | G198: 1 | H198: 0 | J198: =IFERROR(INDEX('5. FY 2020-21'!AZ:AZ,MATCH(A198,'5. FY 2020-21'!A:A,0)),0) -> 474994.3358 | K198: 1 | L198: 0 | N198: =IFERROR(INDEX('6. FY 2021-22'!AZ:AZ,MATCH(A198,'6. FY 2021-22'!A:A,0)),0) -> 222820.759 | O198: 1 | P198: 0 | R198: 1133392.516 | S198: 1 | T198: 0 | Y198: 435577.4213 | AA198: 474994.3358 | AC198: 222820.759 | AE198: 1133392.516 | AH198: 0.09049347522
A199: 106341051 | B199: 50108 | C199: SUTTER MEDICAL CENTER - SACRAMENTO | D199: 3 | E199: SUTTER HEALTH | F199: =IFERROR(INDEX('4. FY 2019-20'!AZ:AZ,MATCH(A199,'4. FY 2019-20'!A:A,0)),0) -> 66803542.2 | G199: 1 | H199: 0 | J199: =IFERROR(INDEX('5. FY 2020-21'!AZ:AZ,MATCH(A199,'5. FY 2020-21'!A:A,0)),0) -> 70313504.35 | K199: 1 | L199: 0 | N199: =IFERROR(INDEX('6. FY 2021-22'!AZ:AZ,MATCH(A199,'6. FY 2021-22'!A:A,0)),0) -> 35602103.93 | O199: 1 | P199: 0 | R199: 172719150.5 | S199: 1 | T199: 0 | Y199: 66803542.2 | AA199: 70313504.35 | AC199: 35602103.93 | AE199: 172719150.5 | AH199: 0.05254155742
A200: 106494106 | B200: 50291 | C200: SUTTER MEDICAL CENTER OF SANTA ROSA | D200: 3 | E200: SUTTER HEALTH | F200: =IFERROR(INDEX('4. FY 2019-20'!AZ:AZ,MATCH(A200,'4. FY 2019-20'!A:A,0)),0) -> 15163291.86 | G200: 1 | H200: 0 | J200: =IFERROR(INDEX('5. FY 2020-21'!AZ:AZ,MATCH(A200,'5. FY 2020-21'!A:A,0)),0) -> 15989112.61 | K200: 1 | L200: 0 | N200: =IFERROR(INDEX('6. FY 2021-22'!AZ:AZ,MATCH(A200,'6. FY 2021-22'!A:A,0)),0) -> 8159699.732 | O200: 1 | P200: 0 | R200: 39312104.2 | S200: 1 | T200: 0 | Y200: 15163291.86 | AA200: 15989112.61 | AC200: 8159699.732 | AE200: 39312104.2 | AH200: 0.0544618384
... 131 more rows

Sheet Managed Care MASTER (CHA Only)
A2: 2019-2021 Hospital Fee Program (VI)
A3: Managed Care Supplemental Payments
A4: ='CHA VERSION ONLY--->'!B11 -> PROVIDER TAX WAIVER APPROVED BY CMS ON 2/14/2020
A5: ='CHA VERSION ONLY--->'!B12 -> STATE PLAN AMENDMENTS APPROVED BY CMS ON 2/25/2020
A7: **Please note--Managed care directed payments are estimated amounts. These revenue estimates are based off the actual experience of the Phase 1 (SFY 2017-18) directed payment results that were calculated by DHCS. Pursuant to federal requirements, managed care directed payment can only be paid to network providers, and as proposed to CMS currently, the directed payments structure for SFY 2019-20, SFY 2020-21, and SFY 2021-22, will reflect the same IP and OP/ER utilization based pooled structure that existed in SFY 2017-18 and SFY 2018-19.
F12: 4. SFY 2019-20 | O12: 5. SFY 2020-21 | X12: 6. SFY 2021-22
A13: OSHPD ID | B13: OSHPD ID - SHORT | C13: MEDICARE ID | D13: HOSPITAL TYPE | E13: HOSPITAL NAME | F13: PASS THROUGH IP MANAGED CARE PAYMENTS | G13: PASS THROUGH OP MANAGED CARE PAYMENTS | H13: PASS THROUGH CARVE-OUT SERVICES MANAGED CARE PAYMENTS | I13: PASS THROUGH SUBACUTE MANAGED CARE PAYMENTS | J13: TOTAL PASSTHROUGH PAYMENTS | K13: DIRECTED PAYMENTS Inpatient Pool 70% | L13: DIRECTED PAYMENTS Outpatient/ER Pool 30% | M13: TOTAL DIRECTED PAYMENTS** | N13: TOTAL MANAGED CARE PAYMENTS | O13: PASS THROUGH IP MANAGED CARE PAYMENTS | P13: PASS THROUGH OP MANAGED CARE PAYMENTS | Q13: PASS THROUGH CARVE-OUT SERVICES MANAGED CARE PAYMENTS | R13: PASS THROUGH SUBACUTE MANAGED CARE PAYMENTS | S13: TOTAL PASSTHROUGH PAYMENTS | T13: DIRECTED PAYMENTS Inpatient Pool 70% | U13: DIRECTED PAYMENTS Outpatient/ER Pool 30% | V13: TOTAL DIRECTED PAYMENTS** | W13: TOTAL MANAGED CARE PAYMENTS | X13: PASS THROUGH IP MANAGED CARE PAYMENTS | Y13: PASS THROUGH OP MANAGED CARE PAYMENTS | Z13: PASS THROUGH CARVE-OUT SERVICES MANAGED CARE PAYMENTS | AA13: PASS THROUGH SUBACUTE MANAGED CARE PAYMENTS | AB13: TOTAL PASSTHROUGH PAYMENTS | AC13: DIRECTED PAYMENTS Inpatient Pool 70% | AD13: DIRECTED PAYMENTS Outpatient/ER Pool 30% | AE13: TOTAL DIRECTED PAYMENTS** | AF13: TOTAL MANAGED CARE PAYMENTS
F14: ='4. FY 2019-20'!AQ16 -> 548253431 | G14: ='4. FY 2019-20'!AR16 -> 520927920.6 | H14: ='4. FY 2019-20'!AS16 -> 664950044 | I14: ='4. FY 2019-20'!AT16 -> 65868604.38 | J14: =SUM(F14:I14) -> 1800000000 | K14: ='4. FY 2019-20'!AU16 -> 2271258842 | L14: ='4. FY 2019-20'!AV16 -> 973396646.4 | M14: =SUM(K14:L14) -> 3244655488 | N14: ='4. FY 2019-20'!AW15 -> TOTAL MANAGED CARE PAYMENTS | O14: ='5. FY 2020-21'!AQ16 -> 567706317.8 | P14: ='5. FY 2020-21'!AR16 -> 480467874.9 | Q14: ='5. FY 2020-21'!AS16 -> 685957202.9 | R14: ='5. FY 2020-21'!AT16 -> 65868604.38 | S14: =SUM(O14:R14) -> 1800000000 | T14: ='5. FY 2020-21'!AU16 -> 2343012646 | U14: ='5. FY 2020-21'!AV16 -> 1004148277 | V14: =SUM(T14:U14) -> 3347160923 | W14: ='5. FY 2020-21'!AW15 -> TOTAL MANAGED CARE PAYMENTS | X14: ='6. FY 2021-22'!AQ16 -> 275225252.5 | Y14: ='6. FY 2021-22'!AR16 -> 237914257.5 | Z14: ='6. FY 2021-22'!AS16 -> 353926187.8 | AA14: ='6. FY 2021-22'!AT16 -> 32934302.19 | AB14: =SUM(X14:AA14) -> 900000000 | AC14: ='6. FY 2021-22'!AU16 -> 1208899812 | AD14: ='6. FY 2021-22'!AV16 -> 518099919.6 | AE14: =SUM(AC14:AD14) -> 1726999732 | AF14: ='6. FY 2021-22'!AW15 -> TOTAL MANAGED CARE PAYMENTS
E15: ="HOSPITAL COUNT: "&COUNTA(E16:E416) -> HOSPITAL COUNT: 401 | F15: =SUM(F16:F416) -> 548253431 | G15: =SUM(G16:G416) -> 520927920.6 | H15: 664950080.8 | I15: 65868604.38 | J15: =SUM(F15:I15) -> 1800000037 | K15: 2271258842 | L15: 973396646.4 | M15: =SUM(K15:L15) -> 3244655488 | N15: =SUM(N16:N416) -> 5044655525 | O15: =SUM(O16:O416) -> 567706317.8 | P15: =SUM(P16:P416) -> 480467874.9 | Q15: 685957240.9 | R15: 65868604.38 | S15: =SUM(O15:R15) -> 1800000038 | T15: =SUM(T16:T416) -> 2343012646 | U15: 1004148277 | V15: =SUM(T15:U15) -> 3347160923 | W15: =SUM(W16:W416) -> 5147160961 | X15: =SUM(X16:X416) -> 275225252.5 | Y15: =SUM(Y16:Y416) -> 237914257.5 | Z15: 353926207.4 | AA15: 32934302.19 | AB15: =SUM(X15:AA15) -> 900000019.6 | AC15: =SUM(AC16:AC416) -> 1208899812 | AD15: 518099919.6 | AE15: =SUM(AC15:AD15) -> 1726999732 | AF15: =SUM(AF16:AF416) -> 2626999752
A16: 106154044 | B16: 154044 | C16: 54155 | D16: 3 | E16: BAKERSFIELD BEHAVIORAL HEALTHCARE HOSPITAL | F16: =IFERROR('3. VARIABLE INPUT'!$C$46*INDEX('14. SFY 18-19 MIUR'!J:J,MATCH(A16,'14. SFY 18-19 MIUR'!A:A,0))*('4. FY 2019-20'!$BB18/'4. FY 2019-20'!$BE18),0) -> 0 | G16: =IFERROR('3. VARIABLE INPUT'!$C$47*INDEX('13. 2016 OSHPD MEDI-CAL MC OP'!L:L,MATCH(A16,'13. 2016 OSHPD MEDI-CAL MC OP'!A:A,0))*('4. FY 2019-20'!$BB18/'4. FY 2019-20'!$BE18),0) -> 0 | H16: =IFERROR('3. VARIABLE INPUT'!$C$48*INDEX('13. CY2016 MEDI-CAL FFS DAYS'!Y:Y,MATCH(A16,'13. CY2016 MEDI-CAL FFS DAYS'!A:A,0))*('4. FY 2019-20'!$BB18/'4. FY 2019-20'!$BE18),0) -> 0 | I16: =IFERROR(INDEX('MC PT SA (CHA Only)'!K:K,MATCH(A16,'MC PT SA (CHA Only)'!A:A,0))*('4. FY 2019-20'!$BB18/'4. FY 2019-20'!$BE18),0) -> 0 | J16: =SUM(F16:I16) -> 0 | K16: 0 | L16: 0 | M16: =SUM(K16:L16) -> 0 | N16: =SUM(J16,M16) -> 0 | O16: =IFERROR('3. VARIABLE INPUT'!$G$46*INDEX('14. SFY 18-19 MIUR'!J:J,MATCH(A16,'14. SFY 18-19 MIUR'!A:A,0))*('5. FY 2020-21'!$BB18/'5. FY 2020-21'!$BE18),0) -> 0 | P16: =IFERROR('3. VARIABLE INPUT'!$G$47*INDEX('13. 2016 OSHPD MEDI-CAL MC OP'!L:L,MATCH(A16,'13. 2016 OSHPD MEDI-CAL MC OP'!A:A,0))*('5. FY 2020-21'!$BB18/'5. FY 2020-21'!$BE18),0) -> 0 | Q16: =IFERROR('3. VARIABLE INPUT'!$G$48*INDEX('13. CY2016 MEDI-CAL FFS DAYS'!Y:Y,MATCH(A16,'13. CY2016 MEDI-CAL FFS DAYS'!A:A,0))*('5. FY 2020-21'!$BB18/'5. FY 2020-21'!$BE18),0) -> 0 | R16: =IFERROR(INDEX('MC PT SA (CHA Only)'!K:K,MATCH(A16,'MC PT SA (CHA Only)'!A:A,0))*('5. FY 2020-21'!$BB18/'5. FY 2020-21'!$BE18),0) -> 0 | S16: =SUM(O16:R16) -> 0 | T16: 0 | U16: 0 | V16: =SUM(T16:U16) -> 0 | W16: =SUM(S16,V16) -> 0 | X16: =IFERROR('3. VARIABLE INPUT'!$K$46*INDEX('14. SFY 18-19 MIUR'!J:J,MATCH(A16,'14. SFY 18-19 MIUR'!A:A,0))*('6. FY 2021-22'!$BB18/'6. FY 2021-22'!$BE18),0)/2 -> 0 | Y16: =IFERROR('3. VARIABLE INPUT'!$K$47*INDEX('13. 2016 OSHPD MEDI-CAL MC OP'!L:L,MATCH(A16,'13. 2016 OSHPD MEDI-CAL MC OP'!A:A,0))*('6. FY 2021-22'!$BB18/'6. FY 2021-22'!$BE18),0)/2 -> 0 | Z16: =IFERROR('3. VARIABLE INPUT'!$K$48*INDEX('13. CY2016 MEDI-CAL FFS DAYS'!Y:Y,MATCH(A16,'13. CY2016 MEDI-CAL FFS DAYS'!A:A,0))*('6. FY 2021-22'!$BB18/'6. FY 2021-22'!$BE18),0)/2 -> 0 | AA16: =IFERROR(INDEX('MC PT SA (CHA Only)'!K:K,MATCH(A16,'MC PT SA (CHA Only)'!A:A,0))*('6. FY 2021-22'!$BB18/'6. FY 2021-22'!$BE18),0)/2 -> 0 | AB16: =SUM(X16:AA16) -> 0 | AC16: 0 | AD16: 0 | AE16: =SUM(AC16:AD16) -> 0 | AF16: =SUM(AB16,AE16) -> 0
A17: 106504079 | B17: 504079 | C17: 53040 | D17: 3 | E17: HEALTHSOUTH REHABILITATION HOSPITAL OF MODESTO | F17: =IFERROR('3. VARIABLE INPUT'!$C$46*INDEX('14. SFY 18-19 MIUR'!J:J,MATCH(A17,'14. SFY 18-19 MIUR'!A:A,0))*('4. FY 2019-20'!$BB19/'4. FY 2019-20'!$BE19),0) -> 0 | G17: =IFERROR('3. VARIABLE INPUT'!$C$47*INDEX('13. 2016 OSHPD MEDI-CAL MC OP'!L:L,MATCH(A17,'13. 2016 OSHPD MEDI-CAL MC OP'!A:A,0))*('4. FY 2019-20'!$BB19/'4. FY 2019-20'!$BE19),0) -> 0 | H17: =IFERROR('3. VARIABLE INPUT'!$C$48*INDEX('13. CY2016 MEDI-CAL FFS DAYS'!Y:Y,MATCH(A17,'13. CY2016 MEDI-CAL FFS DAYS'!A:A,0))*('4. FY 2019-20'!$BB19/'4. FY 2019-20'!$BE19),0) -> 0 | I17: =IFERROR(INDEX('MC PT SA (CHA Only)'!K:K,MATCH(A17,'MC PT SA (CHA Only)'!A:A,0))*('4. FY 2019-20'!$BB19/'4. FY 2019-20'!$BE19),0) -> 0 | J17: =SUM(F17:I17) -> 0 | K17: 0 | L17: 0 | M17: =SUM(K17:L17) -> 0 | N17: =SUM(J17,M17) -> 0 | O17: =IFERROR('3. VARIABLE INPUT'!$G$46*INDEX('14. SFY 18-19 MIUR'!J:J,MATCH(A17,'14. SFY 18-19 MIUR'!A:A,0))*('5. FY 2020-21'!$BB19/'5. FY 2020-21'!$BE19),0) -> 0 | P17: =IFERROR('3. VARIABLE INPUT'!$G$47*INDEX('13. 2016 OSHPD MEDI-CAL MC OP'!L:L,MATCH(A17,'13. 2016 OSHPD MEDI-CAL MC OP'!A:A,0))*('5. FY 2020-21'!$BB19/'5. FY 2020-21'!$BE19),0) -> 0 | Q17: =IFERROR('3. VARIABLE INPUT'!$G$48*INDEX('13. CY2016 MEDI-CAL FFS DAYS'!Y:Y,MATCH(A17,'13. CY2016 MEDI-CAL FFS DAYS'!A:A,0))*('5. FY 2020-21'!$BB19/'5. FY 2020-21'!$BE19),0) -> 0 | R17: =IFERROR(INDEX('MC PT SA (CHA Only)'!K:K,MATCH(A17,'MC PT SA (CHA Only)'!A:A,0))*('5. FY 2020-21'!$BB19/'5. FY 2020-21'!$BE19),0) -> 0 | S17: =SUM(O17:R17) -> 0 | T17: 0 | U17: 0 | V17: =SUM(T17:U17) -> 0 | W17: 0 | X17: =IFERROR('3. VARIABLE INPUT'!$K$46*INDEX('14. SFY 18-19 MIUR'!J:J,MATCH(A17,'14. SFY 18-19 MIUR'!A:A,0))*('6. FY 2021-22'!$BB19/'6. FY 2021-22'!$BE19),0)/2 -> 0 | Y17: =IFERROR('3. VARIABLE INPUT'!$K$47*INDEX('13. 2016 OSHPD MEDI-CAL MC OP'!L:L,MATCH(A17,'13. 2016 OSHPD MEDI-CAL MC OP'!A:A,0))*('6. FY 2021-22'!$BB19/'6. FY 2021-22'!$BE19),0)/2 -> 0 | Z17: =IFERROR('3. VARIABLE INPUT'!$K$48*INDEX('13. CY2016 MEDI-CAL FFS DAYS'!Y:Y,MATCH(A17,'13. CY2016 MEDI-CAL FFS DAYS'!A:A,0))*('6. FY 2021-22'!$BB19/'6. FY 2021-22'!$BE19),0)/2 -> 0 | AA17: =IFERROR(INDEX('MC PT SA (CHA Only)'!K:K,MATCH(A17,'MC PT SA (CHA Only)'!A:A,0))*('6. FY 2021-22'!$BB19/'6. FY 2021-22'!$BE19),0)/2 -> 0 | AB17: =SUM(X17:AA17) -> 0 | AC17: 0 | AD17: 0 | AE17: =SUM(AC17:AD17) -> 0 | AF17: 0
A18: 106190552 | B18: 190552 | C18: 50552 | D18: 3 | E18: MOTION PICTURE AND TELEVISION HOSPITAL | F18: =IFERROR('3. VARIABLE INPUT'!$C$46*INDEX('14. SFY 18-19 MIUR'!J:J,MATCH(A18,'14. SFY 18-19 MIUR'!A:A,0))*('4. FY 2019-20'!$BB20/'4. FY 2019-20'!$BE20),0) -> 0 | G18: =IFERROR('3. VARIABLE INPUT'!$C$47*INDEX('13. 2016 OSHPD MEDI-CAL MC OP'!L:L,MATCH(A18,'13. 2016 OSHPD MEDI-CAL MC OP'!A:A,0))*('4. FY 2019-20'!$BB20/'4. FY 2019-20'!$BE20),0) -> 0 | H18: =IFERROR('3. VARIABLE INPUT'!$C$48*INDEX('13. CY2016 MEDI-CAL FFS DAYS'!Y:Y,MATCH(A18,'13. CY2016 MEDI-CAL FFS DAYS'!A:A,0))*('4. FY 2019-20'!$BB20/'4. FY 2019-20'!$BE20),0) -> 0 | I18: =IFERROR(INDEX('MC PT SA (CHA Only)'!K:K,MATCH(A18,'MC PT SA (CHA Only)'!A:A,0))*('4. FY 2019-20'!$BB20/'4. FY 2019-20'!$BE20),0) -> 0 | J18: 0 | K18: 0 | L18: 0 | M18: 0 | N18: 0 | O18: =IFERROR('3. VARIABLE INPUT'!$G$46*INDEX('14. SFY 18-19 MIUR'!J:J,MATCH(A18,'14. SFY 18-19 MIUR'!A:A,0))*('5. FY 2020-21'!$BB20/'5. FY 2020-21'!$BE20),0) -> 0 | P18: =IFERROR('3. VARIABLE INPUT'!$G$47*INDEX('13. 2016 OSHPD MEDI-CAL MC OP'!L:L,MATCH(A18,'13. 2016 OSHPD MEDI-CAL MC OP'!A:A,0))*('5. FY 2020-21'!$BB20/'5. FY 2020-21'!$BE20),0) -> 0 | Q18: =IFERROR('3. VARIABLE INPUT'!$G$48*INDEX('13. CY2016 MEDI-CAL FFS DAYS'!Y:Y,MATCH(A18,'13. CY2016 MEDI-CAL FFS DAYS'!A:A,0))*('5. FY 2020-21'!$BB20/'5. FY 2020-21'!$BE20),0) -> 0 | R18: =IFERROR(INDEX('MC PT SA (CHA Only)'!K:K,MATCH(A18,'MC PT SA (CHA Only)'!A:A,0))*('5. FY 2020-21'!$BB20/'5. FY 2020-21'!$BE20),0) -> 0 | S18: 0 | T18: 0 | U18: 0 | V18: 0 | W18: 0 | X18: =IFERROR('3. VARIABLE INPUT'!$K$46*INDEX('14. SFY 18-19 MIUR'!J:J,MATCH(A18,'14. SFY 18-19 MIUR'!A:A,0))*('6. FY 2021-22'!$BB20/'6. FY 2021-22'!$BE20),0)/2 -> 0 | Y18: =IFERROR('3. VARIABLE INPUT'!$K$47*INDEX('13. 2016 OSHPD MEDI-CAL MC OP'!L:L,MATCH(A18,'13. 2016 OSHPD MEDI-CAL MC OP'!A:A,0))*('6. FY 2021-22'!$BB20/'6. FY 2021-22'!$BE20),0)/2 -> 0 | Z18: =IFERROR('3. VARIABLE INPUT'!$K$48*INDEX('13. CY2016 MEDI-CAL FFS DAYS'!Y:Y,MATCH(A18,'13. CY2016 MEDI-CAL FFS DAYS'!A:A,0))*('6. FY 2021-22'!$BB20/'6. FY 2021-22'!$BE20),0)/2 -> 0 | AA18: =IFERROR(INDEX('MC PT SA (CHA Only)'!K:K,MATCH(A18,'MC PT SA (CHA Only)'!A:A,0))*('6. FY 2021-22'!$BB20/'6. FY 2021-22'!$BE20),0)/2 -> 0 | AB18: 0 | AC18: 0 | AD18: 0 | AE18: 0 | AF18: 0
A19: 106434032 | B19: 434032 | C19: 54154 | D19: 3 | E19: SAN JOSE BEHAVIORAL HEALTH | F19: =IFERROR('3. VARIABLE INPUT'!$C$46*INDEX('14. SFY 18-19 MIUR'!J:J,MATCH(A19,'14. SFY 18-19 MIUR'!A:A,0))*('4. FY 2019-20'!$BB21/'4. FY 2019-20'!$BE21),0) -> 0 | G19: =IFERROR('3. VARIABLE INPUT'!$C$47*INDEX('13. 2016 OSHPD MEDI-CAL MC OP'!L:L,MATCH(A19,'13. 2016 OSHPD MEDI-CAL MC OP'!A:A,0))*('4. FY 2019-20'!$BB21/'4. FY 2019-20'!$BE21),0) -> 0 | H19: =IFERROR('3. VARIABLE INPUT'!$C$48*INDEX('13. CY2016 MEDI-CAL FFS DAYS'!Y:Y,MATCH(A19,'13. CY2016 MEDI-CAL FFS DAYS'!A:A,0))*('4. FY 2019-20'!$BB21/'4. FY 2019-20'!$BE21),0) -> 0 | I19: =IFERROR(INDEX('MC PT SA (CHA Only)'!K:K,MATCH(A19,'MC PT SA (CHA Only)'!A:A,0))*('4. FY 2019-20'!$BB21/'4. FY 2019-20'!$BE21),0) -> 0 | J19: 0 | K19: 0 | L19: 0 | M19: 0 | N19: 0 | O19: =IFERROR('3. VARIABLE INPUT'!$G$46*INDEX('14. SFY 18-19 MIUR'!J:J,MATCH(A19,'14. SFY 18-19 MIUR'!A:A,0))*('5. FY 2020-21'!$BB21/'5. FY 2020-21'!$BE21),0) -> 0 | P19: =IFERROR('3. VARIABLE INPUT'!$G$47*INDEX('13. 2016 OSHPD MEDI-CAL MC OP'!L:L,MATCH(A19,'13. 2016 OSHPD MEDI-CAL MC OP'!A:A,0))*('5. FY 2020-21'!$BB21/'5. FY 2020-21'!$BE21),0) -> 0 | Q19: =IFERROR('3. VARIABLE INPUT'!$G$48*INDEX('13. CY2016 MEDI-CAL FFS DAYS'!Y:Y,MATCH(A19,'13. CY2016 MEDI-CAL FFS DAYS'!A:A,0))*('5. FY 2020-21'!$BB21/'5. FY 2020-21'!$BE21),0) -> 0 | R19: =IFERROR(INDEX('MC PT SA (CHA Only)'!K:K,MATCH(A19,'MC PT SA (CHA Only)'!A:A,0))*('5. FY 2020-21'!$BB21/'5. FY 2020-21'!$BE21),0) -> 0 | S19: 0 | T19: 0 | U19: 0 | V19: 0 | W19: 0 | X19: =IFERROR('3. VARIABLE INPUT'!$K$46*INDEX('14. SFY 18-19 MIUR'!J:J,MATCH(A19,'14. SFY 18-19 MIUR'!A:A,0))*('6. FY 2021-22'!$BB21/'6. FY 2021-22'!$BE21),0)/2 -> 0 | Y19: =IFERROR('3. VARIABLE INPUT'!$K$47*INDEX('13. 2016 OSHPD MEDI-CAL MC OP'!L:L,MATCH(A19,'13. 2016 OSHPD MEDI-CAL MC OP'!A:A,0))*('6. FY 2021-22'!$BB21/'6. FY 2021-22'!$BE21),0)/2 -> 0 | Z19: =IFERROR('3. VARIABLE INPUT'!$K$48*INDEX('13. CY2016 MEDI-CAL FFS DAYS'!Y:Y,MATCH(A19,'13. CY2016 MEDI-CAL FFS DAYS'!A:A,0))*('6. FY 2021-22'!$BB21/'6. FY 2021-22'!$BE21),0)/2 -> 0 | AA19: =IFERROR(INDEX('MC PT SA (CHA Only)'!K:K,MATCH(A19,'MC PT SA (CHA Only)'!A:A,0))*('6. FY 2021-22'!$BB21/'6. FY 2021-22'!$BE21),0)/2 -> 0 | AB19: 0 | AC19: 0 | AD19: 0 | AE19: 0 | AF19: 0
A20: 106494106 | B20: 494106 | C20: 50291 | D20: 3 | E20: SUTTER SANTA ROSA REGIONAL HOSPITAL | F20: =IFERROR('3. VARIABLE INPUT'!$C$46*INDEX('14. SFY 18-19 MIUR'!J:J,MATCH(A20,'14. SFY 18-19 MIUR'!A:A,0))*('4. FY 2019-20'!$BB22/'4. FY 2019-20'!$BE22),0) -> 1541032.598 | G20: =IFERROR('3. VARIABLE INPUT'!$C$47*INDEX('13. 2016 OSHPD MEDI-CAL MC OP'!L:L,MATCH(A20,'13. 2016 OSHPD MEDI-CAL MC OP'!A:A,0))*('4. FY 2019-20'!$BB22/'4. FY 2019-20'!$BE22),0) -> 1248915.956 | H20: =IFERROR('3. VARIABLE INPUT'!$C$48*INDEX('13. CY2016 MEDI-CAL FFS DAYS'!Y:Y,MATCH(A20,'13. CY2016 MEDI-CAL FFS DAYS'!A:A,0))*('4. FY 2019-20'!$BB22/'4. FY 2019-20'!$BE22),0) -> 4202875.991 | I20: =IFERROR(INDEX('MC PT SA (CHA Only)'!K:K,MATCH(A20,'MC PT SA (CHA Only)'!A:A,0))*('4. FY 2019-20'!$BB22/'4. FY 2019-20'!$BE22),0) -> 0 | J20: =SUM(F20:I20) -> 6992824.545 | K20: 6911283.871 | L20: 2709908.237 | M20: 9621192.108 | N20: 16614016.65 | O20: =IFERROR('3. VARIABLE INPUT'!$G$46*INDEX('14. SFY 18-19 MIUR'!J:J,MATCH(A20,'14. SFY 18-19 MIUR'!A:A,0))*('5. FY 2020-21'!$BB22/'5. FY 2020-21'!$BE22),0) -> 1595710.838 | P20: =IFERROR('3. VARIABLE INPUT'!$G$47*INDEX('13. 2016 OSHPD MEDI-CAL MC OP'!L:L,MATCH(A20,'13. 2016 OSHPD MEDI-CAL MC OP'!A:A,0))*('5. FY 2020-21'!$BB22/'5. FY 2020-21'!$BE22),0) -> 1151913.675 | Q20: =IFERROR('3. VARIABLE INPUT'!$G$48*INDEX('13. CY2016 MEDI-CAL FFS DAYS'!Y:Y,MATCH(A20,'13. CY2016 MEDI-CAL FFS DAYS'!A:A,0))*('5. FY 2020-21'!$BB22/'5. FY 2020-21'!$BE22),0) -> 4335653.61 | R20: =IFERROR(INDEX('MC PT SA (CHA Only)'!K:K,MATCH(A20,'MC PT SA (CHA Only)'!A:A,0))*('5. FY 2020-21'!$BB22/'5. FY 2020-21'!$BE22),0) -> 0 | S20: 7083278.123 | T20: 7129625.745 | U20: 2795519.891 | V20: 9925145.636 | W20: 17008423.76 | X20: =IFERROR('3. VARIABLE INPUT'!$K$46*INDEX('14. SFY 18-19 MIUR'!J:J,MATCH(A20,'14. SFY 18-19 MIUR'!A:A,0))*('6. FY 2021-22'!$BB22/'6. FY 2021-22'!$BE22),0)/2 -> 773604.0705 | Y20: =IFERROR('3. VARIABLE INPUT'!$K$47*INDEX('13. 2016 OSHPD MEDI-CAL MC OP'!L:L,MATCH(A20,'13. 2016 OSHPD MEDI-CAL MC OP'!A:A,0))*('6. FY 2021-22'!$BB22/'6. FY 2021-22'!$BE22),0)/2 -> 570395.4435 | Z20: =IFERROR('3. VARIABLE INPUT'!$K$48*INDEX('13. CY2016 MEDI-CAL FFS DAYS'!Y:Y,MATCH(A20,'13. CY2016 MEDI-CAL FFS DAYS'!A:A,0))*('6. FY 2021-22'!$BB22/'6. FY 2021-22'!$BE22),0)/2 -> 2237022 | AA20: =IFERROR(INDEX('MC PT SA (CHA Only)'!K:K,MATCH(A20,'MC PT SA (CHA Only)'!A:A,0))*('6. FY 2021-22'!$BB22/'6. FY 2021-22'!$BE22),0)/2 -> 0 | AB20: 3581021.514 | AC20: 3678598.68 | AD20: 1442375.259 | AE20: 5120973.938 | AF20: 8701995.452
A21: 106334457 | B21: 334457 | D21: 3 | E21: TELECARE RIVERSIDE COUNTY PSYCHIATRIC HEALTH FACILITY | F21: =IFERROR('3. VARIABLE INPUT'!$C$46*INDEX('14. SFY 18-19 MIUR'!J:J,MATCH(A21,'14. SFY 18-19 MIUR'!A:A,0))*('4. FY 2019-20'!$BB23/'4. FY 2019-20'!$BE23),0) -> 0 | G21: =IFERROR('3. VARIABLE INPUT'!$C$47*INDEX('13. 2016 OSHPD MEDI-CAL MC OP'!L:L,MATCH(A21,'13. 2016 OSHPD MEDI-CAL MC OP'!A:A,0))*('4. FY 2019-20'!$BB23/'4. FY 2019-20'!$BE23),0) -> 0 | H21: =IFERROR('3. VARIABLE INPUT'!$C$48*INDEX('13. CY2016 MEDI-CAL FFS DAYS'!Y:Y,MATCH(A21,'13. CY2016 MEDI-CAL FFS DAYS'!A:A,0))*('4. FY 2019-20'!$BB23/'4. FY 2019-20'!$BE23),0) -> 0 | I21: =IFERROR(INDEX('MC PT SA (CHA Only)'!K:K,MATCH(A21,'MC PT SA (CHA Only)'!A:A,0))*('4. FY 2019-20'!$BB23/'4. FY 2019-20'!$BE23),0) -> 0 | J21: 0 | K21: 0 | L21: 0 | M21: 0 | N21: 0 | O21: =IFERROR('3. VARIABLE INPUT'!$G$46*INDEX('14. SFY 18-19 MIUR'!J:J,MATCH(A21,'14. SFY 18-19 MIUR'!A:A,0))*('5. FY 2020-21'!$BB23/'5. FY 2020-21'!$BE23),0) -> 0 | P21: =IFERROR('3. VARIABLE INPUT'!$G$47*INDEX('13. 2016 OSHPD MEDI-CAL MC OP'!L:L,MATCH(A21,'13. 2016 OSHPD MEDI-CAL MC OP'!A:A,0))*('5. FY 2020-21'!$BB23/'5. FY 2020-21'!$BE23),0) -> 0 | Q21: =IFERROR('3. VARIABLE INPUT'!$G$48*INDEX('13. CY2016 MEDI-CAL FFS DAYS'!Y:Y,MATCH(A21,'13. CY2016 MEDI-CAL FFS DAYS'!A:A,0))*('5. FY 2020-21'!$BB23/'5. FY 2020-21'!$BE23),0) -> 0 | R21: =IFERROR(INDEX('MC PT SA (CHA Only)'!K:K,MATCH(A21,'MC PT SA (CHA Only)'!A:A,0))*('5. FY 2020-21'!$BB23/'5. FY 2020-21'!$BE23),0) -> 0 | S21: 0 | T21: 0 | U21: 0 | V21: 0 | W21: 0 | X21: =IFERROR('3. VARIABLE INPUT'!$K$46*INDEX('14. SFY 18-19 MIUR'!J:J,MATCH(A21,'14. SFY 18-19 MIUR'!A:A,0))*('6. FY 2021-22'!$BB23/'6. FY 2021-22'!$BE23),0)/2 -> 0 | Y21: =IFERROR('3. VARIABLE INPUT'!$K$47*INDEX('13. 2016 OSHPD MEDI-CAL MC OP'!L:L,MATCH(A21,'13. 2016 OSHPD MEDI-CAL MC OP'!A:A,0))*('6. FY 2021-22'!$BB23/'6. FY 2021-22'!$BE23),0)/2 -> 0 | Z21: =IFERROR('3. VARIABLE INPUT'!$K$48*INDEX('13. CY2016 MEDI-CAL FFS DAYS'!Y:Y,MATCH(A21,'13. CY2016 MEDI-CAL FFS DAYS'!A:A,0))*('6. FY 2021-22'!$BB23/'6. FY 2021-22'!$BE23),0)/2 -> 0 | AA21: =IFERROR(INDEX('MC PT SA (CHA Only)'!K:K,MATCH(A21,'MC PT SA (CHA Only)'!A:A,0))*('6. FY 2021-22'!$BB23/'6. FY 2021-22'!$BE23),0)/2 -> 0 | AB21: 0 | AC21: 0 | AD21: 0 | AE21: 0 | AF21: 0
A22: 106444029 | B22: 444029 | C22: 54152 | D22: 3 | E22: TELECARE SANTA CRUZ - PHF | F22: =IFERROR('3. VARIABLE INPUT'!$C$46*INDEX('14. SFY 18-19 MIUR'!J:J,MATCH(A22,'14. SFY 18-19 MIUR'!A:A,0))*('4. FY 2019-20'!$BB24/'4. FY 2019-20'!$BE24),0) -> 0 | G22: =IFERROR('3. VARIABLE INPUT'!$C$47*INDEX('13. 2016 OSHPD MEDI-CAL MC OP'!L:L,MATCH(A22,'13. 2016 OSHPD MEDI-CAL MC OP'!A:A,0))*('4. FY 2019-20'!$BB24/'4. FY 2019-20'!$BE24),0) -> 0 | H22: =IFERROR('3. VARIABLE INPUT'!$C$48*INDEX('13. CY2016 MEDI-CAL FFS DAYS'!Y:Y,MATCH(A22,'13. CY2016 MEDI-CAL FFS DAYS'!A:A,0))*('4. FY 2019-20'!$BB24/'4. FY 2019-20'!$BE24),0) -> 0 | I22: =IFERROR(INDEX('MC PT SA (CHA Only)'!K:K,MATCH(A22,'MC PT SA (CHA Only)'!A:A,0))*('4. FY 2019-20'!$BB24/'4. FY 2019-20'!$BE24),0) -> 0 | J22: 0 | K22: 0 | L22: 0 | M22: 0 | N22: 0 | O22: =IFERROR('3. VARIABLE INPUT'!$G$46*INDEX('14. SFY 18-19 MIUR'!J:J,MATCH(A22,'14. SFY 18-19 MIUR'!A:A,0))*('5. FY 2020-21'!$BB24/'5. FY 2020-21'!$BE24),0) -> 0 | P22: =IFERROR('3. VARIABLE INPUT'!$G$47*INDEX('13. 2016 OSHPD MEDI-CAL MC OP'!L:L,MATCH(A22,'13. 2016 OSHPD MEDI-CAL MC OP'!A:A,0))*('5. FY 2020-21'!$BB24/'5. FY 2020-21'!$BE24),0) -> 0 | Q22: =IFERROR('3. VARIABLE INPUT'!$G$48*INDEX('13. CY2016 MEDI-CAL FFS DAYS'!Y:Y,MATCH(A22,'13. CY2016 MEDI-CAL FFS DAYS'!A:A,0))*('5. FY 2020-21'!$BB24/'5. FY 2020-21'!$BE24),0) -> 0 | R22: =IFERROR(INDEX('MC PT SA (CHA Only)'!K:K,MATCH(A22,'MC PT SA (CHA Only)'!A:A,0))*('5. FY 2020-21'!$BB24/'5. FY 2020-21'!$BE24),0) -> 0 | S22: 0 | T22: 0 | U22: 0 | V22: 0 | W22: 0 | X22: =IFERROR('3. VARIABLE INPUT'!$K$46*INDEX('14. SFY 18-19 MIUR'!J:J,MATCH(A22,'14. SFY 18-19 MIUR'!A:A,0))*('6. FY 2021-22'!$BB24/'6. FY 2021-22'!$BE24),0)/2 -> 0 | Y22: =IFERROR('3. VARIABLE INPUT'!$K$47*INDEX('13. 2016 OSHPD MEDI-CAL MC OP'!L:L,MATCH(A22,'13. 2016 OSHPD MEDI-CAL MC OP'!A:A,0))*('6. FY 2021-22'!$BB24/'6. FY 2021-22'!$BE24),0)/2 -> 0 | Z22: =IFERROR('3. VARIABLE INPUT'!$K$48*INDEX('13. CY2016 MEDI-CAL FFS DAYS'!Y:Y,MATCH(A22,'13. CY2016 MEDI-CAL FFS DAYS'!A:A,0))*('6. FY 2021-22'!$BB24/'6. FY 2021-22'!$BE24),0)/2 -> 0 | AA22: =IFERROR(INDEX('MC PT SA (CHA Only)'!K:K,MATCH(A22,'MC PT SA (CHA Only)'!A:A,0))*('6. FY 2021-22'!$BB24/'6. FY 2021-22'!$BE24),0)/2 -> 0 | AB22: 0 | AC22: 0 | AD22: 0 | AE22: 0 | AF22: 0
A23: 106364451 | B23: 364451 | C23: 53038 | D23: 3 | E23: TOTALLY KIDS REHABILITATION HOSPITAL | F23: =IFERROR('3. VARIABLE INPUT'!$C$46*INDEX('14. SFY 18-19 MIUR'!J:J,MATCH(A23,'14. SFY 18-19 MIUR'!A:A,0))*('4. FY 2019-20'!$BB25/'4. FY 2019-20'!$BE25),0) -> 0 | G23: =IFERROR('3. VARIABLE INPUT'!$C$47*INDEX('13. 2016 OSHPD MEDI-CAL MC OP'!L:L,MATCH(A23,'13. 2016 OSHPD MEDI-CAL MC OP'!A:A,0))*('4. FY 2019-20'!$BB25/'4. FY 2019-20'!$BE25),0) -> 0 | H23: =IFERROR('3. VARIABLE INPUT'!$C$48*INDEX('13. CY2016 MEDI-CAL FFS DAYS'!Y:Y,MATCH(A23,'13. CY2016 MEDI-CAL FFS DAYS'!A:A,0))*('4. FY 2019-20'!$BB25/'4. FY 2019-20'!$BE25),0) -> 0 | I23: =IFERROR(INDEX('MC PT SA (CHA Only)'!K:K,MATCH(A23,'MC PT SA (CHA Only)'!A:A,0))*('4. FY 2019-20'!$BB25/'4. FY 2019-20'!$BE25),0) -> 0 | J23: 0 | K23: 0 | L23: 0 | M23: 0 | N23: 0 | O23: =IFERROR('3. VARIABLE INPUT'!$G$46*INDEX('14. SFY 18-19 MIUR'!J:J,MATCH(A23,'14. SFY 18-19 MIUR'!A:A,0))*('5. FY 2020-21'!$BB25/'5. FY 2020-21'!$BE25),0) -> 0 | P23: =IFERROR('3. VARIABLE INPUT'!$G$47*INDEX('13. 2016 OSHPD MEDI-CAL MC OP'!L:L,MATCH(A23,'13. 2016 OSHPD MEDI-CAL MC OP'!A:A,0))*('5. FY 2020-21'!$BB25/'5. FY 2020-21'!$BE25),0) -> 0 | Q23: =IFERROR('3. VARIABLE INPUT'!$G$48*INDEX('13. CY2016 MEDI-CAL FFS DAYS'!Y:Y,MATCH(A23,'13. CY2016 MEDI-CAL FFS DAYS'!A:A,0))*('5. FY 2020-21'!$BB25/'5. FY 2020-21'!$BE25),0) -> 0 | R23: =IFERROR(INDEX('MC PT SA (CHA Only)'!K:K,MATCH(A23,'MC PT SA (CHA Only)'!A:A,0))*('5. FY 2020-21'!$BB25/'5. FY 2020-21'!$BE25),0) -> 0 | S23: 0 | T23: 0 | U23: 0 | V23: 0 | W23: 0 | X23: =IFERROR('3. VARIABLE INPUT'!$K$46*INDEX('14. SFY 18-19 MIUR'!J:J,MATCH(A23,'14. SFY 18-19 MIUR'!A:A,0))*('6. FY 2021-22'!$BB25/'6. FY 2021-22'!$BE25),0)/2 -> 0 | Y23: =IFERROR('3. VARIABLE INPUT'!$K$47*INDEX('13. 2016 OSHPD MEDI-CAL MC OP'!L:L,MATCH(A23,'13. 2016 OSHPD MEDI-CAL MC OP'!A:A,0))*('6. FY 2021-22'!$BB25/'6. FY 2021-22'!$BE25),0)/2 -> 0 | Z23: =IFERROR('3. VARIABLE INPUT'!$K$48*INDEX('13. CY2016 MEDI-CAL FFS DAYS'!Y:Y,MATCH(A23,'13. CY2016 MEDI-CAL FFS DAYS'!A:A,0))*('6. FY 2021-22'!$BB25/'6. FY 2021-22'!$BE25),0)/2 -> 0 | AA23: =IFERROR(INDEX('MC PT SA (CHA Only)'!K:K,MATCH(A23,'MC PT SA (CHA Only)'!A:A,0))*('6. FY 2021-22'!$BB25/'6. FY 2021-22'!$BE25),0)/2 -> 0 | AB23: 0 | AC23: 0 | AD23: 0 | AE23: 0 | AF23: 0
A24: 106150788 | B24: 150788 | C24: 50455 | D24: 3 | E24: ADVENTIST HEALTH BAKERSFIELD | F24: =IFERROR('3. VARIABLE INPUT'!$C$46*INDEX('14. SFY 18-19 MIUR'!J:J,MATCH(A24,'14. SFY 18-19 MIUR'!A:A,0))*('4. FY 2019-20'!$BB26/'4. FY 2019-20'!$BE26),0) -> 4317433.004 | G24: =IFERROR('3. VARIABLE INPUT'!$C$47*INDEX('13. 2016 OSHPD MEDI-CAL MC OP'!L:L,MATCH(A24,'13. 2016 OSHPD MEDI-CAL MC OP'!A:A,0))*('4. FY 2019-20'!$BB26/'4. FY 2019-20'!$BE26),0) -> 2804622.95 | H24: =IFERROR('3. VARIABLE INPUT'!$C$48*INDEX('13. CY2016 MEDI-CAL FFS DAYS'!Y:Y,MATCH(A24,'13. CY2016 MEDI-CAL FFS DAYS'!A:A,0))*('4. FY 2019-20'!$BB26/'4. FY 2019-20'!$BE26),0) -> 475512.4587 | I24: =IFERROR(INDEX('MC PT SA (CHA Only)'!K:K,MATCH(A24,'MC PT SA (CHA Only)'!A:A,0))*('4. FY 2019-20'!$BB26/'4. FY 2019-20'!$BE26),0) -> 0 | J24: 7597568.412 | K24: 21669780.85 | L24: 7447703.085 | M24: 29117483.93 | N24: 36715052.34 | O24: =IFERROR('3. VARIABLE INPUT'!$G$46*INDEX('14. SFY 18-19 MIUR'!J:J,MATCH(A24,'14. SFY 18-19 MIUR'!A:A,0))*('5. FY 2020-21'!$BB26/'5. FY 2020-21'!$BE26),0) -> 4470622.26 | P24: =IFERROR('3. VARIABLE INPUT'!$G$47*INDEX('13. 2016 OSHPD MEDI-CAL MC OP'!L:L,MATCH(A24,'13. 2016 OSHPD MEDI-CAL MC OP'!A:A,0))*('5. FY 2020-21'!$BB26/'5. FY 2020-21'!$BE26),0) -> 2586790.179 | Q24: =IFERROR('3. VARIABLE INPUT'!$G$48*INDEX('13. CY2016 MEDI-CAL FFS DAYS'!Y:Y,MATCH(A24,'13. CY2016 MEDI-CAL FFS DAYS'!A:A,0))*('5. FY 2020-21'!$BB26/'5. FY 2020-21'!$BE26),0) -> 490534.8892 | R24: =IFERROR(INDEX('MC PT SA (CHA Only)'!K:K,MATCH(A24,'MC PT SA (CHA Only)'!A:A,0))*('5. FY 2020-21'!$BB26/'5. FY 2020-21'!$BE26),0) -> 0 | S24: 7547947.328 | T24: 22354374.42 | U24: 7682991.561 | V24: 30037365.99 | W24: 37585313.31 | X24: =IFERROR('3. VARIABLE INPUT'!$K$46*INDEX('14. SFY 18-19 MIUR'!J:J,MATCH(A24,'14. SFY 18-19 MIUR'!A:A,0))*('6. FY 2021-22'!$BB26/'6. FY 2021-22'!$BE26),0)/2 -> 2167367.355 | Y24: =IFERROR('3. VARIABLE INPUT'!$K$47*INDEX('13. 2016 OSHPD MEDI-CAL MC OP'!L:L,MATCH(A24,'13. 2016 OSHPD MEDI-CAL MC OP'!A:A,0))*('6. FY 2021-22'!$BB26/'6. FY 2021-22'!$BE26),0)/2 -> 1280906.168 | Z24: =IFERROR('3. VARIABLE INPUT'!$K$48*INDEX('13. CY2016 MEDI-CAL FFS DAYS'!Y:Y,MATCH(A24,'13. CY2016 MEDI-CAL FFS DAYS'!A:A,0))*('6. FY 2021-22'!$BB26/'6. FY 2021-22'!$BE26),0)/2 -> 253096.1736 | AA24: =IFERROR(INDEX('MC PT SA (CHA Only)'!K:K,MATCH(A24,'MC PT SA (CHA Only)'!A:A,0))*('6. FY 2021-22'!$BB26/'6. FY 2021-22'!$BE26),0)/2 -> 0 | AB24: 3701369.696 | AC24: 11533953.56 | AD24: 3964113.071 | AE24: 15498066.63 | AF24: 19199436.33
A25: 106171049 | B25: 171049 | C25: 51317 | D25: 3 | E25: ADVENTIST HEALTH CLEARLAKE | F25: =IFERROR('3. VARIABLE INPUT'!$C$46*INDEX('14. SFY 18-19 MIUR'!J:J,MATCH(A25,'14. SFY 18-19 MIUR'!A:A,0))*('4. FY 2019-20'!$BB27/'4. FY 2019-20'!$BE27),0) -> 434723.2582 | G25: =IFERROR('3. VARIABLE INPUT'!$C$47*INDEX('13. 2016 OSHPD MEDI-CAL MC OP'!L:L,MATCH(A25,'13. 2016 OSHPD MEDI-CAL MC OP'!A:A,0))*('4. FY 2019-20'!$BB27/'4. FY 2019-20'!$BE27),0) -> 1503140.14 | H25: =IFERROR('3. VARIABLE INPUT'!$C$48*INDEX('13. CY2016 MEDI-CAL FFS DAYS'!Y:Y,MATCH(A25,'13. CY2016 MEDI-CAL FFS DAYS'!A:A,0))*('4. FY 2019-20'!$BB27/'4. FY 2019-20'!$BE27),0) -> 2515.938935 | I25: =IFERROR(INDEX('MC PT SA (CHA Only)'!K:K,MATCH(A25,'MC PT SA (CHA Only)'!A:A,0))*('4. FY 2019-20'!$BB27/'4. FY 2019-20'!$BE27),0) -> 0 | J25: 1940379.337 | K25: 1899533.791 | L25: 4807141.568 | M25: 6706675.359 | N25: 8647054.696 | O25: =IFERROR('3. VARIABLE INPUT'!$G$46*INDEX('14. SFY 18-19 MIUR'!J:J,MATCH(A25,'14. SFY 18-19 MIUR'!A:A,0))*('5. FY 2020-21'!$BB27/'5. FY 2020-21'!$BE27),0) -> 450147.9174 | P25: =IFERROR('3. VARIABLE INPUT'!$G$47*INDEX('13. 2016 OSHPD MEDI-CAL MC OP'!L:L,MATCH(A25,'13. 2016 OSHPD MEDI-CAL MC OP'!A:A,0))*('5. FY 2020-21'!$BB27/'5. FY 2020-21'!$BE27),0) -> 1386392.474 | Q25: =IFERROR('3. VARIABLE INPUT'!$G$48*INDEX('13. CY2016 MEDI-CAL FFS DAYS'!Y:Y,MATCH(A25,'13. CY2016 MEDI-CAL FFS DAYS'!A:A,0))*('5. FY 2020-21'!$BB27/'5. FY 2020-21'!$BE27),0) -> 2595.422694 | R25: =IFERROR(INDEX('MC PT SA (CHA Only)'!K:K,MATCH(A25,'MC PT SA (CHA Only)'!A:A,0))*('5. FY 2020-21'!$BB27/'5. FY 2020-21'!$BE27),0) -> 0 | S25: 1839135.814 | T25: 1959544.025 | U25: 4959009.198 | V25: 6918553.223 | W25: 8757689.037 | X25: =IFERROR('3. VARIABLE INPUT'!$K$46*INDEX('14. SFY 18-19 MIUR'!J:J,MATCH(A25,'14. SFY 18-19 MIUR'!A:A,0))*('6. FY 2021-22'!$BB27/'6. FY 2021-22'!$BE27),0)/2 -> 218232.6853 | Y25: =IFERROR('3. VARIABLE INPUT'!$K$47*INDEX('13. 2016 OSHPD MEDI-CAL MC OP'!L:L,MATCH(A25,'13. 2016 OSHPD MEDI-CAL MC OP'!A:A,0))*('6. FY 2021-22'!$BB27/'6. FY 2021-22'!$BE27),0)/2 -> 686502.7888 | Z25: =IFERROR('3. VARIABLE INPUT'!$K$48*INDEX('13. CY2016 MEDI-CAL FFS DAYS'!Y:Y,MATCH(A25,'13. CY2016 MEDI-CAL FFS DAYS'!A:A,0))*('6. FY 2021-22'!$BB27/'6. FY 2021-22'!$BE27),0)/2 -> 1339.133194 | AA25: =IFERROR(INDEX('MC PT SA (CHA Only)'!K:K,MATCH(A25,'MC PT SA (CHA Only)'!A:A,0))*('6. FY 2021-22'!$BB27/'6. FY 2021-22'!$BE27),0)/2 -> 0 | AB25: 906074.6074 | AC25: 1011045.505 | AD25: 2558648.285 | AE25: 3569693.79 | AF25: 4475768.398
A26: 106040875 | B26: 40875 | C26: 50225 | D26: 3 | E26: ADVENTIST HEALTH FEATHER RIVER | F26: =IFERROR('3. VARIABLE INPUT'!$C$46*INDEX('14. SFY 18-19 MIUR'!J:J,MATCH(A26,'14. SFY 18-19 MIUR'!A:A,0))*('4. FY 2019-20'!$BB28/'4. FY 2019-20'!$BE28),0) -> 0 | G26: =IFERROR('3. VARIABLE INPUT'!$C$47*INDEX('13. 2016 OSHPD MEDI-CAL MC OP'!L:L,MATCH(A26,'13. 2016 OSHPD MEDI-CAL MC OP'!A:A,0))*('4. FY 2019-20'!$BB28/'4. FY 2019-20'!$BE28),0) -> 0 | H26: =IFERROR('3. VARIABLE INPUT'!$C$48*INDEX('13. CY2016 MEDI-CAL FFS DAYS'!Y:Y,MATCH(A26,'13. CY2016 MEDI-CAL FFS DAYS'!A:A,0))*('4. FY 2019-20'!$BB28/'4. FY 2019-20'!$BE28),0) -> 0 | I26: =IFERROR(INDEX('MC PT SA (CHA Only)'!K:K,MATCH(A26,'MC PT SA (CHA Only)'!A:A,0))*('4. FY 2019-20'!$BB28/'4. FY 2019-20'!$BE28),0) -> 0 | J26: 0 | K26: 0 | L26: 0 | M26: 0 | N26: 0 | O26: =IFERROR('3. VARIABLE INPUT'!$G$46*INDEX('14. SFY 18-19 MIUR'!J:J,MATCH(A26,'14. SFY 18-19 MIUR'!A:A,0))*('5. FY 2020-21'!$BB28/'5. FY 2020-21'!$BE28),0) -> 0 | P26: =IFERROR('3. VARIABLE INPUT'!$G$47*INDEX('13. 2016 OSHPD MEDI-CAL MC OP'!L:L,MATCH(A26,'13. 2016 OSHPD MEDI-CAL MC OP'!A:A,0))*('5. FY 2020-21'!$BB28/'5. FY 2020-21'!$BE28),0) -> 0 | Q26: =IFERROR('3. VARIABLE INPUT'!$G$48*INDEX('13. CY2016 MEDI-CAL FFS DAYS'!Y:Y,MATCH(A26,'13. CY2016 MEDI-CAL FFS DAYS'!A:A,0))*('5. FY 2020-21'!$BB28/'5. FY 2020-21'!$BE28),0) -> 0 | R26: =IFERROR(INDEX('MC PT SA (CHA Only)'!K:K,MATCH(A26,'MC PT SA (CHA Only)'!A:A,0))*('5. FY 2020-21'!$BB28/'5. FY 2020-21'!$BE28),0) -> 0 | S26: 0 | T26: 0 | U26: 0 | V26: 0 | W26: 0 | X26: =IFERROR('3. VARIABLE INPUT'!$K$46*INDEX('14. SFY 18-19 MIUR'!J:J,MATCH(A26,'14. SFY 18-19 MIUR'!A:A,0))*('6. FY 2021-22'!$BB28/'6. FY 2021-22'!$BE28),0)/2 -> 0 | Y26: =IFERROR('3. VARIABLE INPUT'!$K$47*INDEX('13. 2016 OSHPD MEDI-CAL MC OP'!L:L,MATCH(A26,'13. 2016 OSHPD MEDI-CAL MC OP'!A:A,0))*('6. FY 2021-22'!$BB28/'6. FY 2021-22'!$BE28),0)/2 -> 0 | Z26: =IFERROR('3. VARIABLE INPUT'!$K$48*INDEX('13. CY2016 MEDI-CAL FFS DAYS'!Y:Y,MATCH(A26,'13. CY2016 MEDI-CAL FFS DAYS'!A:A,0))*('6. FY 2021-22'!$BB28/'6. FY 2021-22'!$BE28),0)/2 -> 0 | AA26: =IFERROR(INDEX('MC PT SA (CHA Only)'!K:K,MATCH(A26,'MC PT SA (CHA Only)'!A:A,0))*('6. FY 2021-22'!$BB28/'6. FY 2021-22'!$BE28),0)/2 -> 0 | AB26: 0 | AC26: 0 | AD26: 0 | AE26: 0 | AF26: 0
A27: 106190323 | B27: 190323 | C27: 50239 | D27: 3 | E27: ADVENTIST HEALTH GLENDALE | F27: =IFERROR('3. VARIABLE INPUT'!$C$46*INDEX('14. SFY 18-19 MIUR'!J:J,MATCH(A27,'14. SFY 18-19 MIUR'!A:A,0))*('4. FY 2019-20'!$BB29/'4. FY 2019-20'!$BE29),0) -> 3909441.72 | G27: =IFERROR('3. VARIABLE INPUT'!$C$47*INDEX('13. 2016 OSHPD MEDI-CAL MC OP'!L:L,MATCH(A27,'13. 2016 OSHPD MEDI-CAL MC OP'!A:A,0))*('4. FY 2019-20'!$BB29/'4. FY 2019-20'!$BE29),0) -> 3722458.356 | H27: =IFERROR('3. VARIABLE INPUT'!$C$48*INDEX('13. CY2016 MEDI-CAL FFS DAYS'!Y:Y,MATCH(A27,'13. CY2016 MEDI-CAL FFS DAYS'!A:A,0))*('4. FY 2019-20'!$BB29/'4. FY 2019-20'!$BE29),0) -> 5920004.314 | I27: =IFERROR(INDEX('MC PT SA (CHA Only)'!K:K,MATCH(A27,'MC PT SA (CHA Only)'!A:A,0))*('4. FY 2019-20'!$BB29/'4. FY 2019-20'!$BE29),0) -> 0 | J27: 13551904.39 | K27: 14977383.65 | L27: 4148684.362 | M27: 19126068.01 | N27: 32677972.4 | O27: =IFERROR('3. VARIABLE INPUT'!$G$46*INDEX('14. SFY 18-19 MIUR'!J:J,MATCH(A27,'14. SFY 18-19 MIUR'!A:A,0))*('5. FY 2020-21'!$BB29/'5. FY 2020-21'!$BE29),0) -> 4048154.809 | P27: =IFERROR('3. VARIABLE INPUT'!$G$47*INDEX('13. 2016 OSHPD MEDI-CAL MC OP'!L:L,MATCH(A27,'13. 2016 OSHPD MEDI-CAL MC OP'!A:A,0))*('5. FY 2020-21'!$BB29/'5. FY 2020-21'!$BE29),0) -> 3433338.058 | Q27: =IFERROR('3. VARIABLE INPUT'!$G$48*INDEX('13. CY2016 MEDI-CAL FFS DAYS'!Y:Y,MATCH(A27,'13. CY2016 MEDI-CAL FFS DAYS'!A:A,0))*('5. FY 2020-21'!$BB29/'5. FY 2020-21'!$BE29),0) -> 6107029.599 | R27: =IFERROR(INDEX('MC PT SA (CHA Only)'!K:K,MATCH(A27,'MC PT SA (CHA Only)'!A:A,0))*('5. FY 2020-21'!$BB29/'5. FY 2020-21'!$BE29),0) -> 0 | S27: 13588522.47 | T27: 15450550.44 | U27: 4279749.955 | V27: 19730300.4 | W27: 33318822.86 | X27: =IFERROR('3. VARIABLE INPUT'!$K$46*INDEX('14. SFY 18-19 MIUR'!J:J,MATCH(A27,'14. SFY 18-19 MIUR'!A:A,0))*('6. FY 2021-22'!$BB29/'6. FY 2021-22'!$BE29),0)/2 -> 1962554.219 | Y27: =IFERROR('3. VARIABLE INPUT'!$K$47*INDEX('13. 2016 OSHPD MEDI-CAL MC OP'!L:L,MATCH(A27,'13. 2016 OSHPD MEDI-CAL MC OP'!A:A,0))*('6. FY 2021-22'!$BB29/'6. FY 2021-22'!$BE29),0)/2 -> 1700093.008 | Z27: =IFERROR('3. VARIABLE INPUT'!$K$48*INDEX('13. CY2016 MEDI-CAL FFS DAYS'!Y:Y,MATCH(A27,'13. CY2016 MEDI-CAL FFS DAYS'!A:A,0))*('6. FY 2021-22'!$BB29/'6. FY 2021-22'!$BE29),0)/2 -> 3150980.405 | AA27: =IFERROR(INDEX('MC PT SA (CHA Only)'!K:K,MATCH(A27,'MC PT SA (CHA Only)'!A:A,0))*('6. FY 2021-22'!$BB29/'6. FY 2021-22'!$BE29),0)/2 -> 0 | AB27: 6813627.633 | AC27: 7971859.461 | AD27: 2208177.974 | AE27: 10180037.43 | AF27: 16993665.07
A28: 106164029 | B28: 164029 | C28: 50121 | D28: 3 | E28: ADVENTIST HEALTH HANFORD | F28: =IFERROR('3. VARIABLE INPUT'!$C$46*INDEX('14. SFY 18-19 MIUR'!J:J,MATCH(A28,'14. SFY 18-19 MIUR'!A:A,0))*('4. FY 2019-20'!$BB30/'4. FY 2019-20'!$BE30),0) -> 2841039.196 | G28: =IFERROR('3. VARIABLE INPUT'!$C$47*INDEX('13. 2016 OSHPD MEDI-CAL MC OP'!L:L,MATCH(A28,'13. 2016 OSHPD MEDI-CAL MC OP'!A:A,0))*('4. FY 2019-20'!$BB30/'4. FY 2019-20'!$BE30),0) -> 12054939.21 | H28: =IFERROR('3. VARIABLE INPUT'!$C$48*INDEX('13. CY2016 MEDI-CAL FFS DAYS'!Y:Y,MATCH(A28,'13. CY2016 MEDI-CAL FFS DAYS'!A:A,0))*('4. FY 2019-20'!$BB30/'4. FY 2019-20'!$BE30),0) -> 15095.63361 | I28: =IFERROR(INDEX('MC PT SA (CHA Only)'!K:K,MATCH(A28,'MC PT SA (CHA Only)'!A:A,0))*('4. FY 2019-20'!$BB30/'4. FY 2019-20'!$BE30),0) -> 0 | J28: 14911074.04 | K28: 14074161.62 | L28: 14877227.9 | M28: 28951389.53 | N28: 43862463.57 | O28: =IFERROR('3. VARIABLE INPUT'!$G$46*INDEX('14. SFY 18-19 MIUR'!J:J,MATCH(A28,'14. SFY 18-19 MIUR'!A:A,0))*('5. FY 2020-21'!$BB30/'5. FY 2020-21'!$BE30),0) -> 2941843.698 | P28: =IFERROR('3. VARIABLE INPUT'!$G$47*INDEX('13. 2016 OSHPD MEDI-CAL MC OP'!L:L,MATCH(A28,'13. 2016 OSHPD MEDI-CAL MC OP'!A:A,0))*('5. FY 2020-21'!$BB30/'5. FY 2020-21'!$BE30),0) -> 11118641.94 | Q28: =IFERROR('3. VARIABLE INPUT'!$G$48*INDEX('13. CY2016 MEDI-CAL FFS DAYS'!Y:Y,MATCH(A28,'13. CY2016 MEDI-CAL FFS DAYS'!A:A,0))*('5. FY 2020-21'!$BB30/'5. FY 2020-21'!$BE30),0) -> 15572.53616 | R28: =IFERROR(INDEX('MC PT SA (CHA Only)'!K:K,MATCH(A28,'MC PT SA (CHA Only)'!A:A,0))*('5. FY 2020-21'!$BB30/'5. FY 2020-21'!$BE30),0) -> 0 | S28: 14076058.17 | T28: 14518793.75 | U28: 15347230.57 | V28: 29866024.31 | W28: 43942082.49 | X28: =IFERROR('3. VARIABLE INPUT'!$K$46*INDEX('14. SFY 18-19 MIUR'!J:J,MATCH(A28,'14. SFY 18-19 MIUR'!A:A,0))*('6. FY 2021-22'!$BB30/'6. FY 2021-22'!$BE30),0)/2 -> 1426212.196 | Y28: =IFERROR('3. VARIABLE INPUT'!$K$47*INDEX('13. 2016 OSHPD MEDI-CAL MC OP'!L:L,MATCH(A28,'13. 2016 OSHPD MEDI-CAL MC OP'!A:A,0))*('6. FY 2021-22'!$BB30/'6. FY 2021-22'!$BE30),0)/2 -> 5505640.605 | Z28: =IFERROR('3. VARIABLE INPUT'!$K$48*INDEX('13. CY2016 MEDI-CAL FFS DAYS'!Y:Y,MATCH(A28,'13. CY2016 MEDI-CAL FFS DAYS'!A:A,0))*('6. FY 2021-22'!$BB30/'6. FY 2021-22'!$BE30),0)/2 -> 8034.799163 | AA28: =IFERROR(INDEX('MC PT SA (CHA Only)'!K:K,MATCH(A28,'MC PT SA (CHA Only)'!A:A,0))*('6. FY 2021-22'!$BB30/'6. FY 2021-22'!$BE30),0)/2 -> 0 | AB28: 6939887.601 | AC28: 7491110.671 | AD28: 7918550.582 | AE28: 15409661.25 | AF28: 22349548.85
A29: 106234038 | B29: 234038 | C29: 51310 | D29: 3 | E29: ADVENTIST HEALTH HOWARD MEMORIAL | F29: =IFERROR('3. VARIABLE INPUT'!$C$46*INDEX('14. SFY 18-19 MIUR'!J:J,MATCH(A29,'14. SFY 18-19 MIUR'!A:A,0))*('4. FY 2019-20'!$BB31/'4. FY 2019-20'!$BE31),0) -> 260088.9654 | G29: =IFERROR('3. VARIABLE INPUT'!$C$47*INDEX('13. 2016 OSHPD MEDI-CAL MC OP'!L:L,MATCH(A29,'13. 2016 OSHPD MEDI-CAL MC OP'!A:A,0))*('4. FY 2019-20'!$BB31/'4. FY 2019-20'!$BE31),0) -> 1448307.473 | H29: =IFERROR('3. VARIABLE INPUT'!$C$48*INDEX('13. CY2016 MEDI-CAL FFS DAYS'!Y:Y,MATCH(A29,'13. CY2016 MEDI-CAL FFS DAYS'!A:A,0))*('4. FY 2019-20'!$BB31/'4. FY 2019-20'!$BE31),0) -> 11321.72521 | I29: =IFERROR(INDEX('MC PT SA (CHA Only)'!K:K,MATCH(A29,'MC PT SA (CHA Only)'!A:A,0))*('4. FY 2019-20'!$BB31/'4. FY 2019-20'!$BE31),0) -> 0 | J29: 1719718.163 | K29: 1195070.928 | L29: 2134599.768 | M29: 3329670.696 | N29: 5049388.859 | O29: =IFERROR('3. VARIABLE INPUT'!$G$46*INDEX('14. SFY 18-19 MIUR'!J:J,MATCH(A29,'14. SFY 18-19 MIUR'!A:A,0))*('5. FY 2020-21'!$BB31/'5. FY 2020-21'!$BE31),0) -> 269317.3276 | P29: =IFERROR('3. VARIABLE INPUT'!$G$47*INDEX('13. 2016 OSHPD MEDI-CAL MC OP'!L:L,MATCH(A29,'13. 2016 OSHPD MEDI-CAL MC OP'!A:A,0))*('5. FY 2020-21'!$BB31/'5. FY 2020-21'!$BE31),0) -> 1335818.615 | Q29: =IFERROR('3. VARIABLE INPUT'!$G$48*INDEX('13. CY2016 MEDI-CAL FFS DAYS'!Y:Y,MATCH(A29,'13. CY2016 MEDI-CAL FFS DAYS'!A:A,0))*('5. FY 2020-21'!$BB31/'5. FY 2020-21'!$BE31),0) -> 11679.40212 | R29: =IFERROR(INDEX('MC PT SA (CHA Only)'!K:K,MATCH(A29,'MC PT SA (CHA Only)'!A:A,0))*('5. FY 2020-21'!$BB31/'5. FY 2020-21'!$BE31),0) -> 0 | S29: 1616815.345 | T29: 1232825.711 | U29: 2202036.227 | V29: 3434861.938 | W29: 5051677.284 | X29: =IFERROR('3. VARIABLE INPUT'!$K$46*INDEX('14. SFY 18-19 MIUR'!J:J,MATCH(A29,'14. SFY 18-19 MIUR'!A:A,0))*('6. FY 2021-22'!$BB31/'6. FY 2021-22'!$BE31),0)/2 -> 130565.6237 | Y29: =IFERROR('3. VARIABLE INPUT'!$K$47*INDEX('13. 2016 OSHPD MEDI-CAL MC OP'!L:L,MATCH(A29,'13. 2016 OSHPD MEDI-CAL MC OP'!A:A,0))*('6. FY 2021-22'!$BB31/'6. FY 2021-22'!$BE31),0)/2 -> 661460.0281 | Z29: =IFERROR('3. VARIABLE INPUT'!$K$48*INDEX('13. CY2016 MEDI-CAL FFS DAYS'!Y:Y,MATCH(A29,'13. CY2016 MEDI-CAL FFS DAYS'!A:A,0))*('6. FY 2021-22'!$BB31/'6. FY 2021-22'!$BE31),0)/2 -> 6026.099372 | AA29: =IFERROR(INDEX('MC PT SA (CHA Only)'!K:K,MATCH(A29,'MC PT SA (CHA Only)'!A:A,0))*('6. FY 2021-22'!$BB31/'6. FY 2021-22'!$BE31),0)/2 -> 0 | AB29: 798051.7512 | AC29: 636088.2318 | AD29: 1136161.679 | AE29: 1772249.911 | AF29: 2570301.662
A30: 106390923 | B30: 390923 | C30: 50336 | D30: 3 | E30: ADVENTIST HEALTH LODI MEMORIAL | F30: =IFERROR('3. VARIABLE INPUT'!$C$46*INDEX('14. SFY 18-19 MIUR'!J:J,MATCH(A30,'14. SFY 18-19 MIUR'!A:A,0))*('4. FY 2019-20'!$BB32/'4. FY 2019-20'!$BE32),0) -> 1689373.145 | G30: =IFERROR('3. VARIABLE INPUT'!$C$47*INDEX('13. 2016 OSHPD MEDI-CAL MC OP'!L:L,MATCH(A30,'13. 2016 OSHPD MEDI-CAL MC OP'!A:A,0))*('4. FY 2019-20'!$BB32/'4. FY 2019-20'!$BE32),0) -> 3039542.41 | H30: =IFERROR('3. VARIABLE INPUT'!$C$48*INDEX('13. CY2016 MEDI-CAL FFS DAYS'!Y:Y,MATCH(A30,'13. CY2016 MEDI-CAL FFS DAYS'!A:A,0))*('4. FY 2019-20'!$BB32/'4. FY 2019-20'!$BE32),0) -> 499413.8786 | I30: =IFERROR(INDEX('MC PT SA (CHA Only)'!K:K,MATCH(A30,'MC PT SA (CHA Only)'!A:A,0))*('4. FY 2019-20'!$BB32/'4. FY 2019-20'!$BE32),0) -> 0 | J30: 5228329.434 | K30: 9004544.949 | L30: 6728315.023 | M30: 15732859.97 | N30: 20961189.41 | O30: =IFERROR('3. VARIABLE INPUT'!$G$46*INDEX('14. SFY 18-19 MIUR'!J:J,MATCH(A30,'14. SFY 18-19 MIUR'!A:A,0))*('5. FY 2020-21'!$BB32/'5. FY 2020-21'!$BE32),0) -> 1749314.739 | P30: =IFERROR('3. VARIABLE INPUT'!$G$47*INDEX('13. 2016 OSHPD MEDI-CAL MC OP'!L:L,MATCH(A30,'13. 2016 OSHPD MEDI-CAL MC OP'!A:A,0))*('5. FY 2020-21'!$BB32/'5. FY 2020-21'!$BE32),0) -> 2803463.636 | Q30: =IFERROR('3. VARIABLE INPUT'!$G$48*INDEX('13. CY2016 MEDI-CAL FFS DAYS'!Y:Y,MATCH(A30,'13. CY2016 MEDI-CAL FFS DAYS'!A:A,0))*('5. FY 2020-21'!$BB32/'5. FY 2020-21'!$BE32),0) -> 515191.4047 | R30: =IFERROR(INDEX('MC PT SA (CHA Only)'!K:K,MATCH(A30,'MC PT SA (CHA Only)'!A:A,0))*('5. FY 2020-21'!$BB32/'5. FY 2020-21'!$BE32),0) -> 0 | S30: 5067969.78 | T30: 9289017.307 | U30: 6940876.529 | V30: 16229893.84 | W30: 21297863.62 | X30: =IFERROR('3. VARIABLE INPUT'!$K$46*INDEX('14. SFY 18-19 MIUR'!J:J,MATCH(A30,'14. SFY 18-19 MIUR'!A:A,0))*('6. FY 2021-22'!$BB32/'6. FY 2021-22'!$BE32),0)/2 -> 848071.5745 | Y30: =IFERROR('3. VARIABLE INPUT'!$K$47*INDEX('13. 2016 OSHPD MEDI-CAL MC OP'!L:L,MATCH(A30,'13. 2016 OSHPD MEDI-CAL MC OP'!A:A,0))*('6. FY 2021-22'!$BB32/'6. FY 2021-22'!$BE32),0)/2 -> 1388196.806 | Z30: =IFERROR('3. VARIABLE INPUT'!$K$48*INDEX('13. CY2016 MEDI-CAL FFS DAYS'!Y:Y,MATCH(A30,'13. CY2016 MEDI-CAL FFS DAYS'!A:A,0))*('6. FY 2021-22'!$BB32/'6. FY 2021-22'!$BE32),0)/2 -> 265817.939 | AA30: =IFERROR(INDEX('MC PT SA (CHA Only)'!K:K,MATCH(A30,'MC PT SA (CHA Only)'!A:A,0))*('6. FY 2021-22'!$BB32/'6. FY 2021-22'!$BE32),0)/2 -> 0 | AB30: 2502086.32 | AC30: 4792757.435 | AD30: 3581211.714 | AE30: 8373969.149 | AF30: 10876055.47
A31: 106100797 | B31: 100797 | C31: 50192 | D31: 3 | E31: ADVENTIST HEALTH REEDLEY | F31: =IFERROR('3. VARIABLE INPUT'!$C$46*INDEX('14. SFY 18-19 MIUR'!J:J,MATCH(A31,'14. SFY 18-19 MIUR'!A:A,0))*('4. FY 2019-20'!$BB33/'4. FY 2019-20'!$BE33),0) -> 810285.5891 | G31: =IFERROR('3. VARIABLE INPUT'!$C$47*INDEX('13. 2016 OSHPD MEDI-CAL MC OP'!L:L,MATCH(A31,'13. 2016 OSHPD MEDI-CAL MC OP'!A:A,0))*('4. FY 2019-20'!$BB33/'4. FY 2019-20'!$BE33),0) -> 3473672.122 | H31: =IFERROR('3. VARIABLE INPUT'!$C$48*INDEX('13. CY2016 MEDI-CAL FFS DAYS'!Y:Y,MATCH(A31,'13. CY2016 MEDI-CAL FFS DAYS'!A:A,0))*('4. FY 2019-20'!$BB33/'4. FY 2019-20'!$BE33),0) -> 3773.908402 | I31: =IFERROR(INDEX('MC PT SA (CHA Only)'!K:K,MATCH(A31,'MC PT SA (CHA Only)'!A:A,0))*('4. FY 2019-20'!$BB33/'4. FY 2019-20'!$BE33),0) -> 0 | J31: 4287731.619 | K31: 3502186.803 | L31: 6442512.278 | M31: 9944699.082 | N31: 14232430.7 | O31: =IFERROR('3. VARIABLE INPUT'!$G$46*INDEX('14. SFY 18-19 MIUR'!J:J,MATCH(A31,'14. SFY 18-19 MIUR'!A:A,0))*('5. FY 2020-21'!$BB33/'5. FY 2020-21'!$BE33),0) -> 839035.7855 | P31: =IFERROR('3. VARIABLE INPUT'!$G$47*INDEX('13. 2016 OSHPD MEDI-CAL MC OP'!L:L,MATCH(A31,'13. 2016 OSHPD MEDI-CAL MC OP'!A:A,0))*('5. FY 2020-21'!$BB33/'5. FY 2020-21'!$BE33),0) -> 3203874.848 | Q31: =IFERROR('3. VARIABLE INPUT'!$G$48*INDEX('13. CY2016 MEDI-CAL FFS DAYS'!Y:Y,MATCH(A31,'13. CY2016 MEDI-CAL FFS DAYS'!A:A,0))*('5. FY 2020-21'!$BB33/'5. FY 2020-21'!$BE33),0) -> 3893.134041 | R31: =IFERROR(INDEX('MC PT SA (CHA Only)'!K:K,MATCH(A31,'MC PT SA (CHA Only)'!A:A,0))*('5. FY 2020-21'!$BB33/'5. FY 2020-21'!$BE33),0) -> 0 | S31: 4046803.768 | T31: 3612828.19 | U31: 6646044.68 | V31: 10258872.87 | W31: 14305676.64 | X31: =IFERROR('3. VARIABLE INPUT'!$K$46*INDEX('14. SFY 18-19 MIUR'!J:J,MATCH(A31,'14. SFY 18-19 MIUR'!A:A,0))*('6. FY 2021-22'!$BB33/'6. FY 2021-22'!$BE33),0)/2 -> 406766.3661 | Y31: =IFERROR('3. VARIABLE INPUT'!$K$47*INDEX('13. 2016 OSHPD MEDI-CAL MC OP'!L:L,MATCH(A31,'13. 2016 OSHPD MEDI-CAL MC OP'!A:A,0))*('6. FY 2021-22'!$BB33/'6. FY 2021-22'!$BE33),0)/2 -> 1586469.243 | Z31: =IFERROR('3. VARIABLE INPUT'!$K$48*INDEX('13. CY2016 MEDI-CAL FFS DAYS'!Y:Y,MATCH(A31,'13. CY2016 MEDI-CAL FFS DAYS'!A:A,0))*('6. FY 2021-22'!$BB33/'6. FY 2021-22'!$BE33),0)/2 -> 2008.699791 | AA31: =IFERROR(INDEX('MC PT SA (CHA Only)'!K:K,MATCH(A31,'MC PT SA (CHA Only)'!A:A,0))*('6. FY 2021-22'!$BB33/'6. FY 2021-22'!$BE33),0)/2 -> 0 | AB31: 1995244.308 | AC31: 1864073.302 | AD31: 3429090.398 | AE31: 5293163.7 | AF31: 7288408.009
A32: 106560525 | B32: 560525 | C32: 50236 | D32: 3 | E32: ADVENTIST HEALTH SIMI VALLEY | F32: =IFERROR('3. VARIABLE INPUT'!$C$46*INDEX('14. SFY 18-19 MIUR'!J:J,MATCH(A32,'14. SFY 18-19 MIUR'!A:A,0))*('4. FY 2019-20'!$BB34/'4. FY 2019-20'!$BE34),0) -> 831758.8145 | G32: =IFERROR('3. VARIABLE INPUT'!$C$47*INDEX('13. 2016 OSHPD MEDI-CAL MC OP'!L:L,MATCH(A32,'13. 2016 OSHPD MEDI-CAL MC OP'!A:A,0))*('4. FY 2019-20'!$BB34/'4. FY 2019-20'!$BE34),0) -> 1392205.951 | H32: =IFERROR('3. VARIABLE INPUT'!$C$48*INDEX('13. CY2016 MEDI-CAL FFS DAYS'!Y:Y,MATCH(A32,'13. CY2016 MEDI-CAL FFS DAYS'!A:A,0))*('4. FY 2019-20'!$BB34/'4. FY 2019-20'!$BE34),0) -> 1257.969467 | I32: =IFERROR(INDEX('MC PT SA (CHA Only)'!K:K,MATCH(A32,'MC PT SA (CHA Only)'!A:A,0))*('4. FY 2019-20'!$BB34/'4. FY 2019-20'!$BE34),0) -> 0 | J32: 2225222.735 | K32: 4073304.91 | L32: 2412323.283 | M32: 6485628.193 | N32: 8710850.927 | O32: =IFERROR('3. VARIABLE INPUT'!$G$46*INDEX('14. SFY 18-19 MIUR'!J:J,MATCH(A32,'14. SFY 18-19 MIUR'!A:A,0))*('5. FY 2020-21'!$BB34/'5. FY 2020-21'!$BE34),0) -> 861270.9145 | P32: =IFERROR('3. VARIABLE INPUT'!$G$47*INDEX('13. 2016 OSHPD MEDI-CAL MC OP'!L:L,MATCH(A32,'13. 2016 OSHPD MEDI-CAL MC OP'!A:A,0))*('5. FY 2020-21'!$BB34/'5. FY 2020-21'!$BE34),0) -> 1284074.453 | Q32: =IFERROR('3. VARIABLE INPUT'!$G$48*INDEX('13. CY2016 MEDI-CAL FFS DAYS'!Y:Y,MATCH(A32,'13. CY2016 MEDI-CAL FFS DAYS'!A:A,0))*('5. FY 2020-21'!$BB34/'5. FY 2020-21'!$BE34),0) -> 1297.711347 | R32: =IFERROR(INDEX('MC PT SA (CHA Only)'!K:K,MATCH(A32,'MC PT SA (CHA Only)'!A:A,0))*('5. FY 2020-21'!$BB34/'5. FY 2020-21'!$BE34),0) -> 0 | S32: 2146643.078 | T32: 4201989.109 | U32: 2488533.607 | V32: 6690522.716 | W32: 8837165.794 | X32: =IFERROR('3. VARIABLE INPUT'!$K$46*INDEX('14. SFY 18-19 MIUR'!J:J,MATCH(A32,'14. SFY 18-19 MIUR'!A:A,0))*('6. FY 2021-22'!$BB34/'6. FY 2021-22'!$BE34),0)/2 -> 417546.0048 | Y32: =IFERROR('3. VARIABLE INPUT'!$K$47*INDEX('13. 2016 OSHPD MEDI-CAL MC OP'!L:L,MATCH(A32,'13. 2016 OSHPD MEDI-CAL MC OP'!A:A,0))*('6. FY 2021-22'!$BB34/'6. FY 2021-22'!$BE34),0)/2 -> 635837.7654 | Z32: =IFERROR('3. VARIABLE INPUT'!$K$48*INDEX('13. CY2016 MEDI-CAL FFS DAYS'!Y:Y,MATCH(A32,'13. CY2016 MEDI-CAL FFS DAYS'!A:A,0))*('6. FY 2021-22'!$BB34/'6. FY 2021-22'!$BE34),0)/2 -> 669.5665969 | AA32: =IFERROR(INDEX('MC PT SA (CHA Only)'!K:K,MATCH(A32,'MC PT SA (CHA Only)'!A:A,0))*('6. FY 2021-22'!$BB34/'6. FY 2021-22'!$BE34),0)/2 -> 0 | AB32: 1054053.337 | AC32: 2168056.521 | AD32: 1283982.746 | AE32: 3452039.266 | AF32: 4506092.603
A33: 106554011 | B33: 554011 | C33: 50335 | D33: 3 | E33: ADVENTIST HEALTH SONORA - GREENLEY | F33: =IFERROR('3. VARIABLE INPUT'!$C$46*INDEX('14. SFY 18-19 MIUR'!J:J,MATCH(A33,'14. SFY 18-19 MIUR'!A:A,0))*('4. FY 2019-20'!$BB35/'4. FY 2019-20'!$BE35),0) -> 675311.0291 | G33: =IFERROR('3. VARIABLE INPUT'!$C$47*INDEX('13. 2016 OSHPD MEDI-CAL MC OP'!L:L,MATCH(A33,'13. 2016 OSHPD MEDI-CAL MC OP'!A:A,0))*('4. FY 2019-20'!$BB35/'4. FY 2019-20'!$BE35),0) -> 2372305.889 | H33: =IFERROR('3. VARIABLE INPUT'!$C$48*INDEX('13. CY2016 MEDI-CAL FFS DAYS'!Y:Y,MATCH(A33,'13. CY2016 MEDI-CAL FFS DAYS'!A:A,0))*('4. FY 2019-20'!$BB35/'4. FY 2019-20'!$BE35),0) -> 20127.51148 | I33: =IFERROR(INDEX('MC PT SA (CHA Only)'!K:K,MATCH(A33,'MC PT SA (CHA Only)'!A:A,0))*('4. FY 2019-20'!$BB35/'4. FY 2019-20'!$BE35),0) -> 0 | J33: 3067744.429 | K33: 3612888.11 | L33: 6544175.916 | M33: 10157064.03 | N33: 13224808.46 | O33: =IFERROR('3. VARIABLE INPUT'!$G$46*INDEX('14. SFY 18-19 MIUR'!J:J,MATCH(A33,'14. SFY 18-19 MIUR'!A:A,0))*('5. FY 2020-21'!$BB35/'5. FY 2020-21'!$BE35),0) -> 699272.1176 | P33: =IFERROR('3. VARIABLE INPUT'!$G$47*INDEX('13. 2016 OSHPD MEDI-CAL MC OP'!L:L,MATCH(A33,'13. 2016 OSHPD MEDI-CAL MC OP'!A:A,0))*('5. FY 2020-21'!$BB35/'5. FY 2020-21'!$BE35),0) -> 2188050.83 | Q33: =IFERROR('3. VARIABLE INPUT'!$G$48*INDEX('13. CY2016 MEDI-CAL FFS DAYS'!Y:Y,MATCH(A33,'13. CY2016 MEDI-CAL FFS DAYS'!A:A,0))*('5. FY 2020-21'!$BB35/'5. FY 2020-21'!$BE35),0) -> 20763.38155 | R33: =IFERROR(INDEX('MC PT SA (CHA Only)'!K:K,MATCH(A33,'MC PT SA (CHA Only)'!A:A,0))*('5. FY 2020-21'!$BB35/'5. FY 2020-21'!$BE35),0) -> 0 | S33: 2908086.329 | T33: 3727026.782 | U33: 6750920.084 | V33: 10477946.87 | W33: 13386033.2 | X33: =IFERROR('3. VARIABLE INPUT'!$K$46*INDEX('14. SFY 18-19 MIUR'!J:J,MATCH(A33,'14. SFY 18-19 MIUR'!A:A,0))*('6. FY 2021-22'!$BB35/'6. FY 2021-22'!$BE35),0)/2 -> 339008.6372 | Y33: =IFERROR('3. VARIABLE INPUT'!$K$47*INDEX('13. 2016 OSHPD MEDI-CAL MC OP'!L:L,MATCH(A33,'13. 2016 OSHPD MEDI-CAL MC OP'!A:A,0))*('6. FY 2021-22'!$BB35/'6. FY 2021-22'!$BE35),0)/2 -> 1083461.592 | Z33: =IFERROR('3. VARIABLE INPUT'!$K$48*INDEX('13. CY2016 MEDI-CAL FFS DAYS'!Y:Y,MATCH(A33,'13. CY2016 MEDI-CAL FFS DAYS'!A:A,0))*('6. FY 2021-22'!$BB35/'6. FY 2021-22'!$BE35),0)/2 -> 10713.06555 | AA33: =IFERROR(INDEX('MC PT SA (CHA Only)'!K:K,MATCH(A33,'MC PT SA (CHA Only)'!A:A,0))*('6. FY 2021-22'!$BB35/'6. FY 2021-22'!$BE35),0)/2 -> 0 | AB33: 1433183.294 | AC33: 1922995.16 | AD33: 3483201.867 | AE33: 5406197.027 | AF33: 6839380.321
A34: 106281078 | B34: 281078 | C34: 50013 | D34: 3 | E34: ADVENTIST HEALTH ST. HELENA | F34: =IFERROR('3. VARIABLE INPUT'!$C$46*INDEX('14. SFY 18-19 MIUR'!J:J,MATCH(A34,'14. SFY 18-19 MIUR'!A:A,0))*('4. FY 2019-20'!$BB36/'4. FY 2019-20'!$BE36),0) -> 1261223.324 | G34: =IFERROR('3. VARIABLE INPUT'!$C$47*INDEX('13. 2016 OSHPD MEDI-CAL MC OP'!L:L,MATCH(A34,'13. 2016 OSHPD MEDI-CAL MC OP'!A:A,0))*('4. FY 2019-20'!$BB36/'4. FY 2019-20'!$BE36),0) -> 992154.0616 | H34: =IFERROR('3. VARIABLE INPUT'!$C$48*INDEX('13. CY2016 MEDI-CAL FFS DAYS'!Y:Y,MATCH(A34,'13. CY2016 MEDI-CAL FFS DAYS'!A:A,0))*('4. FY 2019-20'!$BB36/'4. FY 2019-20'!$BE36),0) -> 3899705.349 | I34: =IFERROR(INDEX('MC PT SA (CHA Only)'!K:K,MATCH(A34,'MC PT SA (CHA Only)'!A:A,0))*('4. FY 2019-20'!$BB36/'4. FY 2019-20'!$BE36),0) -> 0 | J34: 6153082.734 | K34: 3160019.127 | L34: 906893.5143 | M34: 4066912.642 | N34: 10219995.38 | O34: =IFERROR('3. VARIABLE INPUT'!$G$46*INDEX('14. SFY 18-19 MIUR'!J:J,MATCH(A34,'14. SFY 18-19 MIUR'!A:A,0))*('5. FY 2020-21'!$BB36/'5. FY 2020-21'!$BE36),0) -> 1305973.494 | P34: =IFERROR('3. VARIABLE INPUT'!$G$47*INDEX('13. 2016 OSHPD MEDI-CAL MC OP'!L:L,MATCH(A34,'13. 2016 OSHPD MEDI-CAL MC OP'!A:A,0))*('5. FY 2020-21'!$BB36/'5. FY 2020-21'!$BE36),0) -> 915094.2668 | Q34: =IFERROR('3. VARIABLE INPUT'!$G$48*INDEX('13. CY2016 MEDI-CAL FFS DAYS'!Y:Y,MATCH(A34,'13. CY2016 MEDI-CAL FFS DAYS'!A:A,0))*('5. FY 2020-21'!$BB36/'5. FY 2020-21'!$BE36),0) -> 4022905.176 | R34: =IFERROR(INDEX('MC PT SA (CHA Only)'!K:K,MATCH(A34,'MC PT SA (CHA Only)'!A:A,0))*('5. FY 2020-21'!$BB36/'5. FY 2020-21'!$BE36),0) -> 0 | S34: 6243972.936 | T34: 3259850.723 | U34: 935544.1722 | V34: 4195394.895 | W34: 10439367.83 | X34: =IFERROR('3. VARIABLE INPUT'!$K$46*INDEX('14. SFY 18-19 MIUR'!J:J,MATCH(A34,'14. SFY 18-19 MIUR'!A:A,0))*('6. FY 2021-22'!$BB36/'6. FY 2021-22'!$BE36),0)/2 -> 633138.7786 | Y34: =IFERROR('3. VARIABLE INPUT'!$K$47*INDEX('13. 2016 OSHPD MEDI-CAL MC OP'!L:L,MATCH(A34,'13. 2016 OSHPD MEDI-CAL MC OP'!A:A,0))*('6. FY 2021-22'!$BB36/'6. FY 2021-22'!$BE36),0)/2 -> 453129.0943 | Z34: =IFERROR('3. VARIABLE INPUT'!$K$48*INDEX('13. CY2016 MEDI-CAL FFS DAYS'!Y:Y,MATCH(A34,'13. CY2016 MEDI-CAL FFS DAYS'!A:A,0))*('6. FY 2021-22'!$BB36/'6. FY 2021-22'!$BE36),0)/2 -> 2075656.45 | AA34: =IFERROR(INDEX('MC PT SA (CHA Only)'!K:K,MATCH(A34,'MC PT SA (CHA Only)'!A:A,0))*('6. FY 2021-22'!$BB36/'6. FY 2021-22'!$BE36),0)/2 -> 0 | AB34: 3161924.323 | AC34: 1681951.198 | AD34: 482702.9748 | AE34: 2164654.173 | AF34: 5326578.496
A35: 106150808 | B35: 150808 | C35: 51301 | D35: 3 | E35: ADVENTIST HEALTH TEHACHAPI VALLEY | F35: =IFERROR('3. VARIABLE INPUT'!$C$46*INDEX('14. SFY 18-19 MIUR'!J:J,MATCH(A35,'14. SFY 18-19 MIUR'!A:A,0))*('4. FY 2019-20'!$BB37/'4. FY 2019-20'!$BE37),0) -> 9421.925454 | G35: =IFERROR('3. VARIABLE INPUT'!$C$47*INDEX('13. 2016 OSHPD MEDI-CAL MC OP'!L:L,MATCH(A35,'13. 2016 OSHPD MEDI-CAL MC OP'!A:A,0))*('4. FY 2019-20'!$BB37/'4. FY 2019-20'!$BE37),0) -> 999948.4573 | H35: =IFERROR('3. VARIABLE INPUT'!$C$48*INDEX('13. CY2016 MEDI-CAL FFS DAYS'!Y:Y,MATCH(A35,'13. CY2016 MEDI-CAL FFS DAYS'!A:A,0))*('4. FY 2019-20'!$BB37/'4. FY 2019-20'!$BE37),0) -> 0 | I35: =IFERROR(INDEX('MC PT SA (CHA Only)'!K:K,MATCH(A35,'MC PT SA (CHA Only)'!A:A,0))*('4. FY 2019-20'!$BB37/'4. FY 2019-20'!$BE37),0) -> 0 | J35: 1009370.383 | K35: 35223.14314 | L35: 1693271.855 | M35: 1728494.998 | N35: 2737865.381 | O35: =IFERROR('3. VARIABLE INPUT'!$G$46*INDEX('14. SFY 18-19 MIUR'!J:J,MATCH(A35,'14. SFY 18-19 MIUR'!A:A,0))*('5. FY 2020-21'!$BB37/'5. FY 2020-21'!$BE37),0) -> 9756.230064 | P35: =IFERROR('3. VARIABLE INPUT'!$G$47*INDEX('13. 2016 OSHPD MEDI-CAL MC OP'!L:L,MATCH(A35,'13. 2016 OSHPD MEDI-CAL MC OP'!A:A,0))*('5. FY 2020-21'!$BB37/'5. FY 2020-21'!$BE37),0) -> 922283.2781 | Q35: =IFERROR('3. VARIABLE INPUT'!$G$48*INDEX('13. CY2016 MEDI-CAL FFS DAYS'!Y:Y,MATCH(A35,'13. CY2016 MEDI-CAL FFS DAYS'!A:A,0))*('5. FY 2020-21'!$BB37/'5. FY 2020-21'!$BE37),0) -> 0 | R35: =IFERROR(INDEX('MC PT SA (CHA Only)'!K:K,MATCH(A35,'MC PT SA (CHA Only)'!A:A,0))*('5. FY 2020-21'!$BB37/'5. FY 2020-21'!$BE37),0) -> 0 | S35: 932039.5081 | T35: 36335.9157 | U35: 1746765.845 | V35: 1783101.761 | W35: 2715141.269 | X35: =IFERROR('3. VARIABLE INPUT'!$K$46*INDEX('14. SFY 18-19 MIUR'!J:J,MATCH(A35,'14. SFY 18-19 MIUR'!A:A,0))*('6. FY 2021-22'!$BB37/'6. FY 2021-22'!$BE37),0)/2 -> 4729.841466 | Y35: =IFERROR('3. VARIABLE INPUT'!$K$47*INDEX('13. 2016 OSHPD MEDI-CAL MC OP'!L:L,MATCH(A35,'13. 2016 OSHPD MEDI-CAL MC OP'!A:A,0))*('6. FY 2021-22'!$BB37/'6. FY 2021-22'!$BE37),0)/2 -> 456688.8917 | Z35: =IFERROR('3. VARIABLE INPUT'!$K$48*INDEX('13. CY2016 MEDI-CAL FFS DAYS'!Y:Y,MATCH(A35,'13. CY2016 MEDI-CAL FFS DAYS'!A:A,0))*('6. FY 2021-22'!$BB37/'6. FY 2021-22'!$BE37),0)/2 -> 0 | AA35: =IFERROR(INDEX('MC PT SA (CHA Only)'!K:K,MATCH(A35,'MC PT SA (CHA Only)'!A:A,0))*('6. FY 2021-22'!$BB37/'6. FY 2021-22'!$BE37),0)/2 -> 0 | AB35: 461418.7332 | AC35: 18747.86367 | AD35: 901260.5654 | AE35: 920008.4291 | AF35: 1381427.162
A36: 106231396 | B36: 231396 | C36: 50301 | D36: 3 | E36: ADVENTIST HEALTH UKIAH VALLEY | F36: =IFERROR('3. VARIABLE INPUT'!$C$46*INDEX('14. SFY 18-19 MIUR'!J:J,MATCH(A36,'14. SFY 18-19 MIUR'!A:A,0))*('4. FY 2019-20'!$BB38/'4. FY 2019-20'!$BE38),0) -> 823870.6909 | G36: =IFERROR('3. VARIABLE INPUT'!$C$47*INDEX('13. 2016 OSHPD MEDI-CAL MC OP'!L:L,MATCH(A36,'13. 2016 OSHPD MEDI-CAL MC OP'!A:A,0))*('4. FY 2019-20'!$BB38/'4. FY 2019-20'!$BE38),0) -> 3532311.354 | H36: =IFERROR('3. VARIABLE INPUT'!$C$48*INDEX('13. CY2016 MEDI-CAL FFS DAYS'!Y:Y,MATCH(A36,'13. CY2016 MEDI-CAL FFS DAYS'!A:A,0))*('4. FY 2019-20'!$BB38/'4. FY 2019-20'!$BE38),0) -> 28933.29775 | I36: =IFERROR(INDEX('MC PT SA (CHA Only)'!K:K,MATCH(A36,'MC PT SA (CHA Only)'!A:A,0))*('4. FY 2019-20'!$BB38/'4. FY 2019-20'!$BE38),0) -> 0 | J36: 4385115.343 | K36: 3786487.887 | L36: 2257471.383 | M36: 6043959.271 | N36: 10429074.61 | O36: =IFERROR('3. VARIABLE INPUT'!$G$46*INDEX('14. SFY 18-19 MIUR'!J:J,MATCH(A36,'14. SFY 18-19 MIUR'!A:A,0))*('5. FY 2020-21'!$BB38/'5. FY 2020-21'!$BE38),0) -> 853102.9079 | P36: =IFERROR('3. VARIABLE INPUT'!$G$47*INDEX('13. 2016 OSHPD MEDI-CAL MC OP'!L:L,MATCH(A36,'13. 2016 OSHPD MEDI-CAL MC OP'!A:A,0))*('5. FY 2020-21'!$BB38/'5. FY 2020-21'!$BE38),0) -> 3257959.619 | Q36: =IFERROR('3. VARIABLE INPUT'!$G$48*INDEX('13. CY2016 MEDI-CAL FFS DAYS'!Y:Y,MATCH(A36,'13. CY2016 MEDI-CAL FFS DAYS'!A:A,0))*('5. FY 2020-21'!$BB38/'5. FY 2020-21'!$BE38),0) -> 29847.36098 | R36: =IFERROR(INDEX('MC PT SA (CHA Only)'!K:K,MATCH(A36,'MC PT SA (CHA Only)'!A:A,0))*('5. FY 2020-21'!$BB38/'5. FY 2020-21'!$BE38),0) -> 0 | S36: 4140909.888 | T36: 3906110.938 | U36: 2328789.613 | V36: 6234900.551 | W36: 10375810.44 | X36: =IFERROR('3. VARIABLE INPUT'!$K$46*INDEX('14. SFY 18-19 MIUR'!J:J,MATCH(A36,'14. SFY 18-19 MIUR'!A:A,0))*('6. FY 2021-22'!$BB38/'6. FY 2021-22'!$BE38),0)/2 -> 413586.1375 | Y36: =IFERROR('3. VARIABLE INPUT'!$K$47*INDEX('13. 2016 OSHPD MEDI-CAL MC OP'!L:L,MATCH(A36,'13. 2016 OSHPD MEDI-CAL MC OP'!A:A,0))*('6. FY 2021-22'!$BB38/'6. FY 2021-22'!$BE38),0)/2 -> 1613250.509 | Z36: =IFERROR('3. VARIABLE INPUT'!$K$48*INDEX('13. CY2016 MEDI-CAL FFS DAYS'!Y:Y,MATCH(A36,'13. CY2016 MEDI-CAL FFS DAYS'!A:A,0))*('6. FY 2021-22'!$BB38/'6. FY 2021-22'!$BE38),0)/2 -> 15400.03173 | AA36: =IFERROR(INDEX('MC PT SA (CHA Only)'!K:K,MATCH(A36,'MC PT SA (CHA Only)'!A:A,0))*('6. FY 2021-22'!$BB38/'6. FY 2021-22'!$BE38),0)/2 -> 0 | AB36: 2042236.678 | AC36: 2015395.345 | AD36: 1201561.302 | AE36: 3216956.647 | AF36: 5259193.326
A37: 106481015 | B37: 481015 | C37: 54074 | D37: 3 | E37: ADVENTIST HEALTH VALLEJO | F37: =IFERROR('3. VARIABLE INPUT'!$C$46*INDEX('14. SFY 18-19 MIUR'!J:J,MATCH(A37,'14. SFY 18-19 MIUR'!A:A,0))*('4. FY 2019-20'!$BB39/'4. FY 2019-20'!$BE39),0) -> 0 | G37: =IFERROR('3. VARIABLE INPUT'!$C$47*INDEX('13. 2016 OSHPD MEDI-CAL MC OP'!L:L,MATCH(A37,'13. 2016 OSHPD MEDI-CAL MC OP'!A:A,0))*('4. FY 2019-20'!$BB39/'4. FY 2019-20'!$BE39),0) -> 0 | H37: =IFERROR('3. VARIABLE INPUT'!$C$48*INDEX('13. CY2016 MEDI-CAL FFS DAYS'!Y:Y,MATCH(A37,'13. CY2016 MEDI-CAL FFS DAYS'!A:A,0))*('4. FY 2019-20'!$BB39/'4. FY 2019-20'!$BE39),0) -> 0 | I37: =IFERROR(INDEX('MC PT SA (CHA Only)'!K:K,MATCH(A37,'MC PT SA (CHA Only)'!A:A,0))*('4. FY 2019-20'!$BB39/'4. FY 2019-20'!$BE39),0) -> 0 | J37: 0 | K37: 0 | L37: 0 | M37: 0 | N37: 0 | O37: =IFERROR('3. VARIABLE INPUT'!$G$46*INDEX('14. SFY 18-19 MIUR'!J:J,MATCH(A37,'14. SFY 18-19 MIUR'!A:A,0))*('5. FY 2020-21'!$BB39/'5. FY 2020-21'!$BE39),0) -> 0 | P37: =IFERROR('3. VARIABLE INPUT'!$G$47*INDEX('13. 2016 OSHPD MEDI-CAL MC OP'!L:L,MATCH(A37,'13. 2016 OSHPD MEDI-CAL MC OP'!A:A,0))*('5. FY 2020-21'!$BB39/'5. FY 2020-21'!$BE39),0) -> 0 | Q37: =IFERROR('3. VARIABLE INPUT'!$G$48*INDEX('13. CY2016 MEDI-CAL FFS DAYS'!Y:Y,MATCH(A37,'13. CY2016 MEDI-CAL FFS DAYS'!A:A,0))*('5. FY 2020-21'!$BB39/'5. FY 2020-21'!$BE39),0) -> 0 | R37: =IFERROR(INDEX('MC PT SA (CHA Only)'!K:K,MATCH(A37,'MC PT SA (CHA Only)'!A:A,0))*('5. FY 2020-21'!$BB39/'5. FY 2020-21'!$BE39),0) -> 0 | S37: 0 | T37: 0 | U37: 0 | V37: 0 | W37: 0 | X37: =IFERROR('3. VARIABLE INPUT'!$K$46*INDEX('14. SFY 18-19 MIUR'!J:J,MATCH(A37,'14. SFY 18-19 MIUR'!A:A,0))*('6. FY 2021-22'!$BB39/'6. FY 2021-22'!$BE39),0)/2 -> 0 | Y37: =IFERROR('3. VARIABLE INPUT'!$K$47*INDEX('13. 2016 OSHPD MEDI-CAL MC OP'!L:L,MATCH(A37,'13. 2016 OSHPD MEDI-CAL MC OP'!A:A,0))*('6. FY 2021-22'!$BB39/'6. FY 2021-22'!$BE39),0)/2 -> 0 | Z37: =IFERROR('3. VARIABLE INPUT'!$K$48*INDEX('13. CY2016 MEDI-CAL FFS DAYS'!Y:Y,MATCH(A37,'13. CY2016 MEDI-CAL FFS DAYS'!A:A,0))*('6. FY 2021-22'!$BB39/'6. FY 2021-22'!$BE39),0)/2 -> 0 | AA37: =IFERROR(INDEX('MC PT SA (CHA Only)'!K:K,MATCH(A37,'MC PT SA (CHA Only)'!A:A,0))*('6. FY 2021-22'!$BB39/'6. FY 2021-22'!$BE39),0)/2 -> 0 | AB37: 0 | AC37: 0 | AD37: 0 | AE37: 0 | AF37: 0
A38: 106190878 | B38: 190878 | C38: 50103 | D38: 3 | E38: ADVENTIST HEALTH WHITE MEMORIAL | F38: =IFERROR('3. VARIABLE INPUT'!$C$46*INDEX('14. SFY 18-19 MIUR'!J:J,MATCH(A38,'14. SFY 18-19 MIUR'!A:A,0))*('4. FY 2019-20'!$BB40/'4. FY 2019-20'!$BE40),0) -> 6744126.594 | G38: =IFERROR('3. VARIABLE INPUT'!$C$47*INDEX('13. 2016 OSHPD MEDI-CAL MC OP'!L:L,MATCH(A38,'13. 2016 OSHPD MEDI-CAL MC OP'!A:A,0))*('4. FY 2019-20'!$BB40/'4. FY 2019-20'!$BE40),0) -> 4386613.372 | H38: =IFERROR('3. VARIABLE INPUT'!$C$48*INDEX('13. CY2016 MEDI-CAL FFS DAYS'!Y:Y,MATCH(A38,'13. CY2016 MEDI-CAL FFS DAYS'!A:A,0))*('4. FY 2019-20'!$BB40/'4. FY 2019-20'!$BE40),0) -> 8142836.363 | I38: =IFERROR(INDEX('MC PT SA (CHA Only)'!K:K,MATCH(A38,'MC PT SA (CHA Only)'!A:A,0))*('4. FY 2019-20'!$BB40/'4. FY 2019-20'!$BE40),0) -> 0 | J38: 19273576.33 | K38: 27396057.54 | L38: 7696476.028 | M38: 35092533.57 | N38: 54366109.9 | O38: =IFERROR('3. VARIABLE INPUT'!$G$46*INDEX('14. SFY 18-19 MIUR'!J:J,MATCH(A38,'14. SFY 18-19 MIUR'!A:A,0))*('5. FY 2020-21'!$BB40/'5. FY 2020-21'!$BE40),0) -> 6983418.724 | P38: =IFERROR('3. VARIABLE INPUT'!$G$47*INDEX('13. 2016 OSHPD MEDI-CAL MC OP'!L:L,MATCH(A38,'13. 2016 OSHPD MEDI-CAL MC OP'!A:A,0))*('5. FY 2020-21'!$BB40/'5. FY 2020-21'!$BE40),0) -> 4045908.697 | Q38: =IFERROR('3. VARIABLE INPUT'!$G$48*INDEX('13. CY2016 MEDI-CAL FFS DAYS'!Y:Y,MATCH(A38,'13. CY2016 MEDI-CAL FFS DAYS'!A:A,0))*('5. FY 2020-21'!$BB40/'5. FY 2020-21'!$BE40),0) -> 8400085.549 | R38: =IFERROR(INDEX('MC PT SA (CHA Only)'!K:K,MATCH(A38,'MC PT SA (CHA Only)'!A:A,0))*('5. FY 2020-21'!$BB40/'5. FY 2020-21'!$BE40),0) -> 0 | S38: 19429412.97 | T38: 28261556.15 | U38: 7939623.76 | V38: 36201179.91 | W38: 55630592.88 | X38: =IFERROR('3. VARIABLE INPUT'!$K$46*INDEX('14. SFY 18-19 MIUR'!J:J,MATCH(A38,'14. SFY 18-19 MIUR'!A:A,0))*('6. FY 2021-22'!$BB40/'6. FY 2021-22'!$BE40),0)/2 -> 3385576.523 | Y38: =IFERROR('3. VARIABLE INPUT'!$K$47*INDEX('13. 2016 OSHPD MEDI-CAL MC OP'!L:L,MATCH(A38,'13. 2016 OSHPD MEDI-CAL MC OP'!A:A,0))*('6. FY 2021-22'!$BB40/'6. FY 2021-22'!$BE40),0)/2 -> 2003420.861 | Z38: =IFERROR('3. VARIABLE INPUT'!$K$48*INDEX('13. CY2016 MEDI-CAL FFS DAYS'!Y:Y,MATCH(A38,'13. CY2016 MEDI-CAL FFS DAYS'!A:A,0))*('6. FY 2021-22'!$BB40/'6. FY 2021-22'!$BE40),0)/2 -> 4334104.582 | AA38: =IFERROR(INDEX('MC PT SA (CHA Only)'!K:K,MATCH(A38,'MC PT SA (CHA Only)'!A:A,0))*('6. FY 2021-22'!$BB40/'6. FY 2021-22'!$BE40),0)/2 -> 0 | AB38: 9723101.965 | AC38: 14581820.54 | AD38: 4096524.912 | AE38: 18678345.45 | AF38: 28401447.42
A39: 106301098 | B39: 301098 | C39: 50226 | D39: 3 | E39: AHMC ANAHEIM REGIONAL MEDICAL CENTER | F39: =IFERROR('3. VARIABLE INPUT'!$C$46*INDEX('14. SFY 18-19 MIUR'!J:J,MATCH(A39,'14. SFY 18-19 MIUR'!A:A,0))*('4. FY 2019-20'!$BB41/'4. FY 2019-20'!$BE41),0) -> 2505793.942 | G39: =IFERROR('3. VARIABLE INPUT'!$C$47*INDEX('13. 2016 OSHPD MEDI-CAL MC OP'!L:L,MATCH(A39,'13. 2016 OSHPD MEDI-CAL MC OP'!A:A,0))*('4. FY 2019-20'!$BB41/'4. FY 2019-20'!$BE41),0) -> 1581809.157 | H39: =IFERROR('3. VARIABLE INPUT'!$C$48*INDEX('13. CY2016 MEDI-CAL FFS DAYS'!Y:Y,MATCH(A39,'13. CY2016 MEDI-CAL FFS DAYS'!A:A,0))*('4. FY 2019-20'!$BB41/'4. FY 2019-20'!$BE41),0) -> 1065500.139 | I39: =IFERROR(INDEX('MC PT SA (CHA Only)'!K:K,MATCH(A39,'MC PT SA (CHA Only)'!A:A,0))*('4. FY 2019-20'!$BB41/'4. FY 2019-20'!$BE41),0) -> 0 | J39: 5153103.237 | K39: 14738369.46 | L39: 3386207.075 | M39: 18124576.54 | N39: 23277679.78 | O39: =IFERROR('3. VARIABLE INPUT'!$G$46*INDEX('14. SFY 18-19 MIUR'!J:J,MATCH(A39,'14. SFY 18-19 MIUR'!A:A,0))*('5. FY 2020-21'!$BB41/'5. FY 2020-21'!$BE41),0) -> 2594703.419 | P39: =IFERROR('3. VARIABLE INPUT'!$G$47*INDEX('13. 2016 OSHPD MEDI-CAL MC OP'!L:L,MATCH(A39,'13. 2016 OSHPD MEDI-CAL MC OP'!A:A,0))*('5. FY 2020-21'!$BB41/'5. FY 2020-21'!$BE41),0) -> 1458951.333 | Q39: =IFERROR('3. VARIABLE INPUT'!$G$48*INDEX('13. CY2016 MEDI-CAL FFS DAYS'!Y:Y,MATCH(A39,'13. CY2016 MEDI-CAL FFS DAYS'!A:A,0))*('5. FY 2020-21'!$BB41/'5. FY 2020-21'!$BE41),0) -> 1099161.511 | R39: =IFERROR(INDEX('MC PT SA (CHA Only)'!K:K,MATCH(A39,'MC PT SA (CHA Only)'!A:A,0))*('5. FY 2020-21'!$BB41/'5. FY 2020-21'!$BE41),0) -> 0 | S39: 5152816.262 | T39: 15203985.3 | U39: 3493184.42 | V39: 18697169.72 | W39: 23849985.98 | X39: =IFERROR('3. VARIABLE INPUT'!$K$46*INDEX('14. SFY 18-19 MIUR'!J:J,MATCH(A39,'14. SFY 18-19 MIUR'!A:A,0))*('6. FY 2021-22'!$BB41/'6. FY 2021-22'!$BE41),0)/2 -> 1257917.837 | Y39: =IFERROR('3. VARIABLE INPUT'!$K$47*INDEX('13. 2016 OSHPD MEDI-CAL MC OP'!L:L,MATCH(A39,'13. 2016 OSHPD MEDI-CAL MC OP'!A:A,0))*('6. FY 2021-22'!$BB41/'6. FY 2021-22'!$BE41),0)/2 -> 722431.9068 | Z39: =IFERROR('3. VARIABLE INPUT'!$K$48*INDEX('13. CY2016 MEDI-CAL FFS DAYS'!Y:Y,MATCH(A39,'13. CY2016 MEDI-CAL FFS DAYS'!A:A,0))*('6. FY 2021-22'!$BB41/'6. FY 2021-22'!$BE41),0)/2 -> 567122.9076 | AA39: =IFERROR(INDEX('MC PT SA (CHA Only)'!K:K,MATCH(A39,'MC PT SA (CHA Only)'!A:A,0))*('6. FY 2021-22'!$BB41/'6. FY 2021-22'!$BE41),0)/2 -> 0 | AB39: 2547472.652 | AC39: 7844641.815 | AD39: 1802341.954 | AE39: 9646983.768 | AF39: 12194456.42
A40: 106190017 | B40: 190017 | C40: 50281 | D40: 3 | E40: ALHAMBRA HOSPITAL MEDICAL CENTER | F40: =IFERROR('3. VARIABLE INPUT'!$C$46*INDEX('14. SFY 18-19 MIUR'!J:J,MATCH(A40,'14. SFY 18-19 MIUR'!A:A,0))*('4. FY 2019-20'!$BB42/'4. FY 2019-20'!$BE42),0) -> 1368589.451 | G40: =IFERROR('3. VARIABLE INPUT'!$C$47*INDEX('13. 2016 OSHPD MEDI-CAL MC OP'!L:L,MATCH(A40,'13. 2016 OSHPD MEDI-CAL MC OP'!A:A,0))*('4. FY 2019-20'!$BB42/'4. FY 2019-20'!$BE42),0) -> 780708.4212 | H40: =IFERROR('3. VARIABLE INPUT'!$C$48*INDEX('13. CY2016 MEDI-CAL FFS DAYS'!Y:Y,MATCH(A40,'13. CY2016 MEDI-CAL FFS DAYS'!A:A,0))*('4. FY 2019-20'!$BB42/'4. FY 2019-20'!$BE42),0) -> 0 | I40: =IFERROR(INDEX('MC PT SA (CHA Only)'!K:K,MATCH(A40,'MC PT SA (CHA Only)'!A:A,0))*('4. FY 2019-20'!$BB42/'4. FY 2019-20'!$BE42),0) -> 2232816 | J40: 4382113.872 | K40: 7170425.567 | L40: 1272142.016 | M40: 8442567.583 | N40: 12824681.46 | O40: =IFERROR('3. VARIABLE INPUT'!$G$46*INDEX('14. SFY 18-19 MIUR'!J:J,MATCH(A40,'14. SFY 18-19 MIUR'!A:A,0))*('5. FY 2020-21'!$BB42/'5. FY 2020-21'!$BE42),0) -> 1417149.139 | P40: =IFERROR('3. VARIABLE INPUT'!$G$47*INDEX('13. 2016 OSHPD MEDI-CAL MC OP'!L:L,MATCH(A40,'13. 2016 OSHPD MEDI-CAL MC OP'!A:A,0))*('5. FY 2020-21'!$BB42/'5. FY 2020-21'!$BE42),0) -> 720071.4364 | Q40: =IFERROR('3. VARIABLE INPUT'!$G$48*INDEX('13. CY2016 MEDI-CAL FFS DAYS'!Y:Y,MATCH(A40,'13. CY2016 MEDI-CAL FFS DAYS'!A:A,0))*('5. FY 2020-21'!$BB42/'5. FY 2020-21'!$BE42),0) -> 0 | R40: =IFERROR(INDEX('MC PT SA (CHA Only)'!K:K,MATCH(A40,'MC PT SA (CHA Only)'!A:A,0))*('5. FY 2020-21'!$BB42/'5. FY 2020-21'!$BE42),0) -> 2232816 | S40: 4370036.575 | T40: 7396954.268 | U40: 1312331.636 | V40: 8709285.904 | W40: 13079322.48 | X40: =IFERROR('3. VARIABLE INPUT'!$K$46*INDEX('14. SFY 18-19 MIUR'!J:J,MATCH(A40,'14. SFY 18-19 MIUR'!A:A,0))*('6. FY 2021-22'!$BB42/'6. FY 2021-22'!$BE42),0)/2 -> 687036.972 | Y40: =IFERROR('3. VARIABLE INPUT'!$K$47*INDEX('13. 2016 OSHPD MEDI-CAL MC OP'!L:L,MATCH(A40,'13. 2016 OSHPD MEDI-CAL MC OP'!A:A,0))*('6. FY 2021-22'!$BB42/'6. FY 2021-22'!$BE42),0)/2 -> 356559.2417 | Z40: =IFERROR('3. VARIABLE INPUT'!$K$48*INDEX('13. CY2016 MEDI-CAL FFS DAYS'!Y:Y,MATCH(A40,'13. CY2016 MEDI-CAL FFS DAYS'!A:A,0))*('6. FY 2021-22'!$BB42/'6. FY 2021-22'!$BE42),0)/2 -> 0 | AA40: =IFERROR(INDEX('MC PT SA (CHA Only)'!K:K,MATCH(A40,'MC PT SA (CHA Only)'!A:A,0))*('6. FY 2021-22'!$BB42/'6. FY 2021-22'!$BE42),0)/2 -> 1116408 | AB40: 2160004.214 | AC40: 3816529.391 | AD40: 677110.0749 | AE40: 4493639.466 | AF40: 6653643.679
A41: 106010739 | B41: 10739 | C41: 50305 | D41: 3 | E41: ALTA BATES SUMMIT MEDICAL CENTER - ALTA BATES CAMPUS | F41: =IFERROR('3. VARIABLE INPUT'!$C$46*INDEX('14. SFY 18-19 MIUR'!J:J,MATCH(A41,'14. SFY 18-19 MIUR'!A:A,0))*('4. FY 2019-20'!$BB43/'4. FY 2019-20'!$BE43),0) -> 4192537.713 | G41: =IFERROR('3. VARIABLE INPUT'!$C$47*INDEX('13. 2016 OSHPD MEDI-CAL MC OP'!L:L,MATCH(A41,'13. 2016 OSHPD MEDI-CAL MC OP'!A:A,0))*('4. FY 2019-20'!$BB43/'4. FY 2019-20'!$BE43),0) -> 1230155.027 | H41: =IFERROR('3. VARIABLE INPUT'!$C$48*INDEX('13. CY2016 MEDI-CAL FFS DAYS'!Y:Y,MATCH(A41,'13. CY2016 MEDI-CAL FFS DAYS'!A:A,0))*('4. FY 2019-20'!$BB43/'4. FY 2019-20'!$BE43),0) -> 3933670.525 | I41: =IFERROR(INDEX('MC PT SA (CHA Only)'!K:K,MATCH(A41,'MC PT SA (CHA Only)'!A:A,0))*('4. FY 2019-20'!$BB43/'4. FY 2019-20'!$BE43),0) -> 0 | J41: 9356363.264 | K41: 16607711.99 | L41: 4541200.263 | M41: 21148912.25 | N41: 30505275.52 | O41: =IFERROR('3. VARIABLE INPUT'!$G$46*INDEX('14. SFY 18-19 MIUR'!J:J,MATCH(A41,'14. SFY 18-19 MIUR'!A:A,0))*('5. FY 2020-21'!$BB43/'5. FY 2020-21'!$BE43),0) -> 4341295.489 | P41: =IFERROR('3. VARIABLE INPUT'!$G$47*INDEX('13. 2016 OSHPD MEDI-CAL MC OP'!L:L,MATCH(A41,'13. 2016 OSHPD MEDI-CAL MC OP'!A:A,0))*('5. FY 2020-21'!$BB43/'5. FY 2020-21'!$BE43),0) -> 1134609.892 | Q41: =IFERROR('3. VARIABLE INPUT'!$G$48*INDEX('13. CY2016 MEDI-CAL FFS DAYS'!Y:Y,MATCH(A41,'13. CY2016 MEDI-CAL FFS DAYS'!A:A,0))*('5. FY 2020-21'!$BB43/'5. FY 2020-21'!$BE43),0) -> 4057943.382 | R41: =IFERROR(INDEX('MC PT SA (CHA Only)'!K:K,MATCH(A41,'MC PT SA (CHA Only)'!A:A,0))*('5. FY 2020-21'!$BB43/'5. FY 2020-21'!$BE43),0) -> 0 | S41: 9533848.763 | T41: 17132384.25 | U41: 4684666.252 | V41: 21817050.51 | W41: 31350899.27 | X41: =IFERROR('3. VARIABLE INPUT'!$K$46*INDEX('14. SFY 18-19 MIUR'!J:J,MATCH(A41,'14. SFY 18-19 MIUR'!A:A,0))*('6. FY 2021-22'!$BB43/'6. FY 2021-22'!$BE43),0)/2 -> 2104669.456 | Y41: =IFERROR('3. VARIABLE INPUT'!$K$47*INDEX('13. 2016 OSHPD MEDI-CAL MC OP'!L:L,MATCH(A41,'13. 2016 OSHPD MEDI-CAL MC OP'!A:A,0))*('6. FY 2021-22'!$BB43/'6. FY 2021-22'!$BE43),0)/2 -> 561827.0939 | Z41: =IFERROR('3. VARIABLE INPUT'!$K$48*INDEX('13. CY2016 MEDI-CAL FFS DAYS'!Y:Y,MATCH(A41,'13. CY2016 MEDI-CAL FFS DAYS'!A:A,0))*('6. FY 2021-22'!$BB43/'6. FY 2021-22'!$BE43),0)/2 -> 2093734.748 | AA41: =IFERROR(INDEX('MC PT SA (CHA Only)'!K:K,MATCH(A41,'MC PT SA (CHA Only)'!A:A,0))*('6. FY 2021-22'!$BB43/'6. FY 2021-22'!$BE43),0)/2 -> 0 | AB41: 4760231.298 | AC41: 8839617.722 | AD41: 2417098.415 | AE41: 11256716.14 | AF41: 16016947.44
A42: 106010937 | B42: 10937 | C42: 50043 | D42: 3 | E42: ALTA BATES SUMMIT MEDICAL CENTER - SUMMIT HAWTHORNE | F42: =IFERROR('3. VARIABLE INPUT'!$C$46*INDEX('14. SFY 18-19 MIUR'!J:J,MATCH(A42,'14. SFY 18-19 MIUR'!A:A,0))*('4. FY 2019-20'!$BB44/'4. FY 2019-20'!$BE44),0) -> 3175188.878 | G42: =IFERROR('3. VARIABLE INPUT'!$C$47*INDEX('13. 2016 OSHPD MEDI-CAL MC OP'!L:L,MATCH(A42,'13. 2016 OSHPD MEDI-CAL MC OP'!A:A,0))*('4. FY 2019-20'!$BB44/'4. FY 2019-20'!$BE44),0) -> 1580359.036 | H42: =IFERROR('3. VARIABLE INPUT'!$C$48*INDEX('13. CY2016 MEDI-CAL FFS DAYS'!Y:Y,MATCH(A42,'13. CY2016 MEDI-CAL FFS DAYS'!A:A,0))*('4. FY 2019-20'!$BB44/'4. FY 2019-20'!$BE44),0) -> 0 | I42: =IFERROR(INDEX('MC PT SA (CHA Only)'!K:K,MATCH(A42,'MC PT SA (CHA Only)'!A:A,0))*('4. FY 2019-20'!$BB44/'4. FY 2019-20'!$BE44),0) -> 0 | J42: 4755547.915 | K42: 15883121.62 | L42: 4686626.394 | M42: 20569748.01 | N42: 25325295.93 | O42: =IFERROR('3. VARIABLE INPUT'!$G$46*INDEX('14. SFY 18-19 MIUR'!J:J,MATCH(A42,'14. SFY 18-19 MIUR'!A:A,0))*('5. FY 2020-21'!$BB44/'5. FY 2020-21'!$BE44),0) -> 3287849.531 | P42: =IFERROR('3. VARIABLE INPUT'!$G$47*INDEX('13. 2016 OSHPD MEDI-CAL MC OP'!L:L,MATCH(A42,'13. 2016 OSHPD MEDI-CAL MC OP'!A:A,0))*('5. FY 2020-21'!$BB44/'5. FY 2020-21'!$BE44),0) -> 1457613.842 | Q42: =IFERROR('3. VARIABLE INPUT'!$G$48*INDEX('13. CY2016 MEDI-CAL FFS DAYS'!Y:Y,MATCH(A42,'13. CY2016 MEDI-CAL FFS DAYS'!A:A,0))*('5. FY 2020-21'!$BB44/'5. FY 2020-21'!$BE44),0) -> 0 | R42: =IFERROR(INDEX('MC PT SA (CHA Only)'!K:K,MATCH(A42,'MC PT SA (CHA Only)'!A:A,0))*('5. FY 2020-21'!$BB44/'5. FY 2020-21'!$BE44),0) -> 0 | S42: 4745463.374 | T42: 16384902.56 | U42: 4834686.698 | V42: 21219589.26 | W42: 25965052.63 | X42: =IFERROR('3. VARIABLE INPUT'!$K$46*INDEX('14. SFY 18-19 MIUR'!J:J,MATCH(A42,'14. SFY 18-19 MIUR'!A:A,0))*('6. FY 2021-22'!$BB44/'6. FY 2021-22'!$BE44),0)/2 -> 1593956.574 | Y42: =IFERROR('3. VARIABLE INPUT'!$K$47*INDEX('13. 2016 OSHPD MEDI-CAL MC OP'!L:L,MATCH(A42,'13. 2016 OSHPD MEDI-CAL MC OP'!A:A,0))*('6. FY 2021-22'!$BB44/'6. FY 2021-22'!$BE44),0)/2 -> 721769.6189 | Z42: =IFERROR('3. VARIABLE INPUT'!$K$48*INDEX('13. CY2016 MEDI-CAL FFS DAYS'!Y:Y,MATCH(A42,'13. CY2016 MEDI-CAL FFS DAYS'!A:A,0))*('6. FY 2021-22'!$BB44/'6. FY 2021-22'!$BE44),0)/2 -> 0 | AA42: =IFERROR(INDEX('MC PT SA (CHA Only)'!K:K,MATCH(A42,'MC PT SA (CHA Only)'!A:A,0))*('6. FY 2021-22'!$BB44/'6. FY 2021-22'!$BE44),0)/2 -> 0 | AB42: 2315726.193 | AC42: 8453947.384 | AD42: 2494502.901 | AE42: 10948450.28 | AF42: 13264176.48
A43: 106370652 | B43: 370652 | C43: 50757 | D43: 3 | E43: ALVARADO HOSPITAL | F43: =IFERROR('3. VARIABLE INPUT'!$C$46*INDEX('14. SFY 18-19 MIUR'!J:J,MATCH(A43,'14. SFY 18-19 MIUR'!A:A,0))*('4. FY 2019-20'!$BB45/'4. FY 2019-20'!$BE45),0) -> 1165032.038 | G43: =IFERROR('3. VARIABLE INPUT'!$C$47*INDEX('13. 2016 OSHPD MEDI-CAL MC OP'!L:L,MATCH(A43,'13. 2016 OSHPD MEDI-CAL MC OP'!A:A,0))*('4. FY 2019-20'!$BB45/'4. FY 2019-20'!$BE45),0) -> 996957.5845 | H43: =IFERROR('3. VARIABLE INPUT'!$C$48*INDEX('13. CY2016 MEDI-CAL FFS DAYS'!Y:Y,MATCH(A43,'13. CY2016 MEDI-CAL FFS DAYS'!A:A,0))*('4. FY 2019-20'!$BB45/'4. FY 2019-20'!$BE45),0) -> 0 | I43: =IFERROR(INDEX('MC PT SA (CHA Only)'!K:K,MATCH(A43,'MC PT SA (CHA Only)'!A:A,0))*('4. FY 2019-20'!$BB45/'4. FY 2019-20'!$BE45),0) -> 0 | J43: 2161989.623 | K43: 5374045.267 | L43: 1343171.909 | M43: 6717217.176 | N43: 8879206.799 | O43: =IFERROR('3. VARIABLE INPUT'!$G$46*INDEX('14. SFY 18-19 MIUR'!J:J,MATCH(A43,'14. SFY 18-19 MIUR'!A:A,0))*('5. FY 2020-21'!$BB45/'5. FY 2020-21'!$BE45),0) -> 1206369.192 | P43: =IFERROR('3. VARIABLE INPUT'!$G$47*INDEX('13. 2016 OSHPD MEDI-CAL MC OP'!L:L,MATCH(A43,'13. 2016 OSHPD MEDI-CAL MC OP'!A:A,0))*('5. FY 2020-21'!$BB45/'5. FY 2020-21'!$BE45),0) -> 919524.704 | Q43: =IFERROR('3. VARIABLE INPUT'!$G$48*INDEX('13. CY2016 MEDI-CAL FFS DAYS'!Y:Y,MATCH(A43,'13. CY2016 MEDI-CAL FFS DAYS'!A:A,0))*('5. FY 2020-21'!$BB45/'5. FY 2020-21'!$BE45),0) -> 0 | R43: =IFERROR(INDEX('MC PT SA (CHA Only)'!K:K,MATCH(A43,'MC PT SA (CHA Only)'!A:A,0))*('5. FY 2020-21'!$BB45/'5. FY 2020-21'!$BE45),0) -> 0 | S43: 2125893.896 | T43: 5543822.567 | U43: 1385605.511 | V43: 6929428.078 | W43: 9055321.974 | X43: =IFERROR('3. VARIABLE INPUT'!$K$46*INDEX('14. SFY 18-19 MIUR'!J:J,MATCH(A43,'14. SFY 18-19 MIUR'!A:A,0))*('6. FY 2021-22'!$BB45/'6. FY 2021-22'!$BE45),0)/2 -> 584850.3971 | Y43: =IFERROR('3. VARIABLE INPUT'!$K$47*INDEX('13. 2016 OSHPD MEDI-CAL MC OP'!L:L,MATCH(A43,'13. 2016 OSHPD MEDI-CAL MC OP'!A:A,0))*('6. FY 2021-22'!$BB45/'6. FY 2021-22'!$BE45),0)/2 -> 455322.923 | Z43: =IFERROR('3. VARIABLE INPUT'!$K$48*INDEX('13. CY2016 MEDI-CAL FFS DAYS'!Y:Y,MATCH(A43,'13. CY2016 MEDI-CAL FFS DAYS'!A:A,0))*('6. FY 2021-22'!$BB45/'6. FY 2021-22'!$BE45),0)/2 -> 0 | AA43: =IFERROR(INDEX('MC PT SA (CHA Only)'!K:K,MATCH(A43,'MC PT SA (CHA Only)'!A:A,0))*('6. FY 2021-22'!$BB45/'6. FY 2021-22'!$BE45),0)/2 -> 0 | AB43: 1040173.32 | AC43: 2860388.343 | AD43: 714916.4326 | AE43: 3575304.776 | AF43: 4615478.096
A44: 106370749 | B44: 370749 | C44: 54075 | D44: 3 | E44: ALVARADO PARKWAY INSTITUTE BHS | F44: =IFERROR('3. VARIABLE INPUT'!$C$46*INDEX('14. SFY 18-19 MIUR'!J:J,MATCH(A44,'14. SFY 18-19 MIUR'!A:A,0))*('4. FY 2019-20'!$BB46/'4. FY 2019-20'!$BE46),0) -> 0 | G44: =IFERROR('3. VARIABLE INPUT'!$C$47*INDEX('13. 2016 OSHPD MEDI-CAL MC OP'!L:L,MATCH(A44,'13. 2016 OSHPD MEDI-CAL MC OP'!A:A,0))*('4. FY 2019-20'!$BB46/'4. FY 2019-20'!$BE46),0) -> 0 | H44: =IFERROR('3. VARIABLE INPUT'!$C$48*INDEX('13. CY2016 MEDI-CAL FFS DAYS'!Y:Y,MATCH(A44,'13. CY2016 MEDI-CAL FFS DAYS'!A:A,0))*('4. FY 2019-20'!$BB46/'4. FY 2019-20'!$BE46),0) -> 0 | I44: =IFERROR(INDEX('MC PT SA (CHA Only)'!K:K,MATCH(A44,'MC PT SA (CHA Only)'!A:A,0))*('4. FY 2019-20'!$BB46/'4. FY 2019-20'!$BE46),0) -> 0 | J44: 0 | K44: 0 | L44: 0 | M44: 0 | N44: 0 | O44: =IFERROR('3. VARIABLE INPUT'!$G$46*INDEX('14. SFY 18-19 MIUR'!J:J,MATCH(A44,'14. SFY 18-19 MIUR'!A:A,0))*('5. FY 2020-21'!$BB46/'5. FY 2020-21'!$BE46),0) -> 0 | P44: =IFERROR('3. VARIABLE INPUT'!$G$47*INDEX('13. 2016 OSHPD MEDI-CAL MC OP'!L:L,MATCH(A44,'13. 2016 OSHPD MEDI-CAL MC OP'!A:A,0))*('5. FY 2020-21'!$BB46/'5. FY 2020-21'!$BE46),0) -> 0 | Q44: =IFERROR('3. VARIABLE INPUT'!$G$48*INDEX('13. CY2016 MEDI-CAL FFS DAYS'!Y:Y,MATCH(A44,'13. CY2016 MEDI-CAL FFS DAYS'!A:A,0))*('5. FY 2020-21'!$BB46/'5. FY 2020-21'!$BE46),0) -> 0 | R44: =IFERROR(INDEX('MC PT SA (CHA Only)'!K:K,MATCH(A44,'MC PT SA (CHA Only)'!A:A,0))*('5. FY 2020-21'!$BB46/'5. FY 2020-21'!$BE46),0) -> 0 | S44: 0 | T44: 0 | U44: 0 | V44: 0 | W44: 0 | X44: =IFERROR('3. VARIABLE INPUT'!$K$46*INDEX('14. SFY 18-19 MIUR'!J:J,MATCH(A44,'14. SFY 18-19 MIUR'!A:A,0))*('6. FY 2021-22'!$BB46/'6. FY 2021-22'!$BE46),0)/2 -> 0 | Y44: =IFERROR('3. VARIABLE INPUT'!$K$47*INDEX('13. 2016 OSHPD MEDI-CAL MC OP'!L:L,MATCH(A44,'13. 2016 OSHPD MEDI-CAL MC OP'!A:A,0))*('6. FY 2021-22'!$BB46/'6. FY 2021-22'!$BE46),0)/2 -> 0 | Z44: =IFERROR('3. VARIABLE INPUT'!$K$48*INDEX('13. CY2016 MEDI-CAL FFS DAYS'!Y:Y,MATCH(A44,'13. CY2016 MEDI-CAL FFS DAYS'!A:A,0))*('6. FY 2021-22'!$BB46/'6. FY 2021-22'!$BE46),0)/2 -> 0 | AA44: =IFERROR(INDEX('MC PT SA (CHA Only)'!K:K,MATCH(A44,'MC PT SA (CHA Only)'!A:A,0))*('6. FY 2021-22'!$BB46/'6. FY 2021-22'!$BE46),0)/2 -> 0 | AB44: 0 | AC44: 0 | AD44: 0 | AE44: 0 | AF44: 0
A45: 106301188 | B45: 301188 | C45: 50744 | D45: 3 | E45: ANAHEIM GLOBAL MEDICAL CENTER | F45: =IFERROR('3. VARIABLE INPUT'!$C$46*INDEX('14. SFY 18-19 MIUR'!J:J,MATCH(A45,'14. SFY 18-19 MIUR'!A:A,0))*('4. FY 2019-20'!$BB47/'4. FY 2019-20'!$BE47),0) -> 3505832.727 | G45: =IFERROR('3. VARIABLE INPUT'!$C$47*INDEX('13. 2016 OSHPD MEDI-CAL MC OP'!L:L,MATCH(A45,'13. 2016 OSHPD MEDI-CAL MC OP'!A:A,0))*('4. FY 2019-20'!$BB47/'4. FY 2019-20'!$BE47),0) -> 1460724.126 | H45: =IFERROR('3. VARIABLE INPUT'!$C$48*INDEX('13. CY2016 MEDI-CAL FFS DAYS'!Y:Y,MATCH(A45,'13. CY2016 MEDI-CAL FFS DAYS'!A:A,0))*('4. FY 2019-20'!$BB47/'4. FY 2019-20'!$BE47),0) -> 19770248.15 | I45: =IFERROR(INDEX('MC PT SA (CHA Only)'!K:K,MATCH(A45,'MC PT SA (CHA Only)'!A:A,0))*('4. FY 2019-20'!$BB47/'4. FY 2019-20'!$BE47),0) -> 0 | J45: 24736805 | K45: 3655659.07 | L45: 1195725.97 | M45: 4851385.04 | N45: 29588190.04 | O45: =IFERROR('3. VARIABLE INPUT'!$G$46*INDEX('14. SFY 18-19 MIUR'!J:J,MATCH(A45,'14. SFY 18-19 MIUR'!A:A,0))*('5. FY 2020-21'!$BB47/'5. FY 2020-21'!$BE47),0) -> 3630225.14 | P45: =IFERROR('3. VARIABLE INPUT'!$G$47*INDEX('13. 2016 OSHPD MEDI-CAL MC OP'!L:L,MATCH(A45,'13. 2016 OSHPD MEDI-CAL MC OP'!A:A,0))*('5. FY 2020-21'!$BB47/'5. FY 2020-21'!$BE47),0) -> 1347270.878 | Q45: =IFERROR('3. VARIABLE INPUT'!$G$48*INDEX('13. CY2016 MEDI-CAL FFS DAYS'!Y:Y,MATCH(A45,'13. CY2016 MEDI-CAL FFS DAYS'!A:A,0))*('5. FY 2020-21'!$BB47/'5. FY 2020-21'!$BE47),0) -> 20394831.53 | R45: =IFERROR(INDEX('MC PT SA (CHA Only)'!K:K,MATCH(A45,'MC PT SA (CHA Only)'!A:A,0))*('5. FY 2020-21'!$BB47/'5. FY 2020-21'!$BE47),0) -> 0 | S45: 25372327.55 | T45: 3771148.965 | U45: 1233501.447 | V45: 5004650.413 | W45: 30376977.96 | X45: =IFERROR('3. VARIABLE INPUT'!$K$46*INDEX('14. SFY 18-19 MIUR'!J:J,MATCH(A45,'14. SFY 18-19 MIUR'!A:A,0))*('6. FY 2021-22'!$BB47/'6. FY 2021-22'!$BE47),0)/2 -> 1759941.011 | Y45: =IFERROR('3. VARIABLE INPUT'!$K$47*INDEX('13. 2016 OSHPD MEDI-CAL MC OP'!L:L,MATCH(A45,'13. 2016 OSHPD MEDI-CAL MC OP'!A:A,0))*('6. FY 2021-22'!$BB47/'6. FY 2021-22'!$BE47),0)/2 -> 667130.8681 | Z45: =IFERROR('3. VARIABLE INPUT'!$K$48*INDEX('13. CY2016 MEDI-CAL FFS DAYS'!Y:Y,MATCH(A45,'13. CY2016 MEDI-CAL FFS DAYS'!A:A,0))*('6. FY 2021-22'!$BB47/'6. FY 2021-22'!$BE47),0)/2 -> 10522908.64 | AA45: =IFERROR(INDEX('MC PT SA (CHA Only)'!K:K,MATCH(A45,'MC PT SA (CHA Only)'!A:A,0))*('6. FY 2021-22'!$BB47/'6. FY 2021-22'!$BE47),0)/2 -> 0 | AB45: 12949980.52 | AC45: 1945760.423 | AD45: 636436.8843 | AE45: 2582197.307 | AF45: 15532177.82
A46: 106494048 | B46: 494048 | C46: 54151 | D46: 3 | E46: AURORA BEHAVIORAL HEALTHCARE - SANTA ROSA | F46: =IFERROR('3. VARIABLE INPUT'!$C$46*INDEX('14. SFY 18-19 MIUR'!J:J,MATCH(A46,'14. SFY 18-19 MIUR'!A:A,0))*('4. FY 2019-20'!$BB48/'4. FY 2019-20'!$BE48),0) -> 0 | G46: =IFERROR('3. VARIABLE INPUT'!$C$47*INDEX('13. 2016 OSHPD MEDI-CAL MC OP'!L:L,MATCH(A46,'13. 2016 OSHPD MEDI-CAL MC OP'!A:A,0))*('4. FY 2019-20'!$BB48/'4. FY 2019-20'!$BE48),0) -> 0 | H46: =IFERROR('3. VARIABLE INPUT'!$C$48*INDEX('13. CY2016 MEDI-CAL FFS DAYS'!Y:Y,MATCH(A46,'13. CY2016 MEDI-CAL FFS DAYS'!A:A,0))*('4. FY 2019-20'!$BB48/'4. FY 2019-20'!$BE48),0) -> 0 | I46: =IFERROR(INDEX('MC PT SA (CHA Only)'!K:K,MATCH(A46,'MC PT SA (CHA Only)'!A:A,0))*('4. FY 2019-20'!$BB48/'4. FY 2019-20'!$BE48),0) -> 0 | J46: 0 | K46: 0 | L46: 0 | M46: 0 | N46: 0 | O46: =IFERROR('3. VARIABLE INPUT'!$G$46*INDEX('14. SFY 18-19 MIUR'!J:J,MATCH(A46,'14. SFY 18-19 MIUR'!A:A,0))*('5. FY 2020-21'!$BB48/'5. FY 2020-21'!$BE48),0) -> 0 | P46: =IFERROR('3. VARIABLE INPUT'!$G$47*INDEX('13. 2016 OSHPD MEDI-CAL MC OP'!L:L,MATCH(A46,'13. 2016 OSHPD MEDI-CAL MC OP'!A:A,0))*('5. FY 2020-21'!$BB48/'5. FY 2020-21'!$BE48),0) -> 0 | Q46: =IFERROR('3. VARIABLE INPUT'!$G$48*INDEX('13. CY2016 MEDI-CAL FFS DAYS'!Y:Y,MATCH(A46,'13. CY2016 MEDI-CAL FFS DAYS'!A:A,0))*('5. FY 2020-21'!$BB48/'5. FY 2020-21'!$BE48),0) -> 0 | R46: =IFERROR(INDEX('MC PT SA (CHA Only)'!K:K,MATCH(A46,'MC PT SA (CHA Only)'!A:A,0))*('5. FY 2020-21'!$BB48/'5. FY 2020-21'!$BE48),0) -> 0 | S46: 0 | T46: 0 | U46: 0 | V46: 0 | W46: 0 | X46: =IFERROR('3. VARIABLE INPUT'!$K$46*INDEX('14. SFY 18-19 MIUR'!J:J,MATCH(A46,'14. SFY 18-19 MIUR'!A:A,0))*('6. FY 2021-22'!$BB48/'6. FY 2021-22'!$BE48),0)/2 -> 0 | Y46: =IFERROR('3. VARIABLE INPUT'!$K$47*INDEX('13. 2016 OSHPD MEDI-CAL MC OP'!L:L,MATCH(A46,'13. 2016 OSHPD MEDI-CAL MC OP'!A:A,0))*('6. FY 2021-22'!$BB48/'6. FY 2021-22'!$BE48),0)/2 -> 0 | Z46: =IFERROR('3. VARIABLE INPUT'!$K$48*INDEX('13. CY2016 MEDI-CAL FFS DAYS'!Y:Y,MATCH(A46,'13. CY2016 MEDI-CAL FFS DAYS'!A:A,0))*('6. FY 2021-22'!$BB48/'6. FY 2021-22'!$BE48),0)/2 -> 0 | AA46: =IFERROR(INDEX('MC PT SA (CHA Only)'!K:K,MATCH(A46,'MC PT SA (CHA Only)'!A:A,0))*('6. FY 2021-22'!$BB48/'6. FY 2021-22'!$BE48),0)/2 -> 0 | AB46: 0 | AC46: 0 | AD46: 0 | AE46: 0 | AF46: 0
A47: 106190163 | B47: 190163 | C47: 54069 | D47: 3 | E47: AURORA CHARTER OAK | F47: =IFERROR('3. VARIABLE INPUT'!$C$46*INDEX('14. SFY 18-19 MIUR'!J:J,MATCH(A47,'14. SFY 18-19 MIUR'!A:A,0))*('4. FY 2019-20'!$BB49/'4. FY 2019-20'!$BE49),0) -> 0 | G47: =IFERROR('3. VARIABLE INPUT'!$C$47*INDEX('13. 2016 OSHPD MEDI-CAL MC OP'!L:L,MATCH(A47,'13. 2016 OSHPD MEDI-CAL MC OP'!A:A,0))*('4. FY 2019-20'!$BB49/'4. FY 2019-20'!$BE49),0) -> 0 | H47: =IFERROR('3. VARIABLE INPUT'!$C$48*INDEX('13. CY2016 MEDI-CAL FFS DAYS'!Y:Y,MATCH(A47,'13. CY2016 MEDI-CAL FFS DAYS'!A:A,0))*('4. FY 2019-20'!$BB49/'4. FY 2019-20'!$BE49),0) -> 0 | I47: =IFERROR(INDEX('MC PT SA (CHA Only)'!K:K,MATCH(A47,'MC PT SA (CHA Only)'!A:A,0))*('4. FY 2019-20'!$BB49/'4. FY 2019-20'!$BE49),0) -> 0 | J47: 0 | K47: 0 | L47: 0 | M47: 0 | N47: 0 | O47: =IFERROR('3. VARIABLE INPUT'!$G$46*INDEX('14. SFY 18-19 MIUR'!J:J,MATCH(A47,'14. SFY 18-19 MIUR'!A:A,0))*('5. FY 2020-21'!$BB49/'5. FY 2020-21'!$BE49),0) -> 0 | P47: =IFERROR('3. VARIABLE INPUT'!$G$47*INDEX('13. 2016 OSHPD MEDI-CAL MC OP'!L:L,MATCH(A47,'13. 2016 OSHPD MEDI-CAL MC OP'!A:A,0))*('5. FY 2020-21'!$BB49/'5. FY 2020-21'!$BE49),0) -> 0 | Q47: =IFERROR('3. VARIABLE INPUT'!$G$48*INDEX('13. CY2016 MEDI-CAL FFS DAYS'!Y:Y,MATCH(A47,'13. CY2016 MEDI-CAL FFS DAYS'!A:A,0))*('5. FY 2020-21'!$BB49/'5. FY 2020-21'!$BE49),0) -> 0 | R47: =IFERROR(INDEX('MC PT SA (CHA Only)'!K:K,MATCH(A47,'MC PT SA (CHA Only)'!A:A,0))*('5. FY 2020-21'!$BB49/'5. FY 2020-21'!$BE49),0) -> 0 | S47: 0 | T47: 0 | U47: 0 | V47: 0 | W47: 0 | X47: =IFERROR('3. VARIABLE INPUT'!$K$46*INDEX('14. SFY 18-19 MIUR'!J:J,MATCH(A47,'14. SFY 18-19 MIUR'!A:A,0))*('6. FY 2021-22'!$BB49/'6. FY 2021-22'!$BE49),0)/2 -> 0 | Y47: =IFERROR('3. VARIABLE INPUT'!$K$47*INDEX('13. 2016 OSHPD MEDI-CAL MC OP'!L:L,MATCH(A47,'13. 2016 OSHPD MEDI-CAL MC OP'!A:A,0))*('6. FY 2021-22'!$BB49/'6. FY 2021-22'!$BE49),0)/2 -> 0 | Z47: =IFERROR('3. VARIABLE INPUT'!$K$48*INDEX('13. CY2016 MEDI-CAL FFS DAYS'!Y:Y,MATCH(A47,'13. CY2016 MEDI-CAL FFS DAYS'!A:A,0))*('6. FY 2021-22'!$BB49/'6. FY 2021-22'!$BE49),0)/2 -> 0 | AA47: =IFERROR(INDEX('MC PT SA (CHA Only)'!K:K,MATCH(A47,'MC PT SA (CHA Only)'!A:A,0))*('6. FY 2021-22'!$BB49/'6. FY 2021-22'!$BE49),0)/2 -> 0 | AB47: 0 | AC47: 0 | AD47: 0 | AE47: 0 | AF47: 0
A48: 106190462 | B48: 190462 | C48: 54078 | D48: 3 | E48: AURORA LAS ENCINAS HOSPITAL | F48: =IFERROR('3. VARIABLE INPUT'!$C$46*INDEX('14. SFY 18-19 MIUR'!J:J,MATCH(A48,'14. SFY 18-19 MIUR'!A:A,0))*('4. FY 2019-20'!$BB50/'4. FY 2019-20'!$BE50),0) -> 0 | G48: =IFERROR('3. VARIABLE INPUT'!$C$47*INDEX('13. 2016 OSHPD MEDI-CAL MC OP'!L:L,MATCH(A48,'13. 2016 OSHPD MEDI-CAL MC OP'!A:A,0))*('4. FY 2019-20'!$BB50/'4. FY 2019-20'!$BE50),0) -> 0 | H48: =IFERROR('3. VARIABLE INPUT'!$C$48*INDEX('13. CY2016 MEDI-CAL FFS DAYS'!Y:Y,MATCH(A48,'13. CY2016 MEDI-CAL FFS DAYS'!A:A,0))*('4. FY 2019-20'!$BB50/'4. FY 2019-20'!$BE50),0) -> 0 | I48: =IFERROR(INDEX('MC PT SA (CHA Only)'!K:K,MATCH(A48,'MC PT SA (CHA Only)'!A:A,0))*('4. FY 2019-20'!$BB50/'4. FY 2019-20'!$BE50),0) -> 0 | J48: 0 | K48: 0 | L48: 0 | M48: 0 | N48: 0 | O48: =IFERROR('3. VARIABLE INPUT'!$G$46*INDEX('14. SFY 18-19 MIUR'!J:J,MATCH(A48,'14. SFY 18-19 MIUR'!A:A,0))*('5. FY 2020-21'!$BB50/'5. FY 2020-21'!$BE50),0) -> 0 | P48: =IFERROR('3. VARIABLE INPUT'!$G$47*INDEX('13. 2016 OSHPD MEDI-CAL MC OP'!L:L,MATCH(A48,'13. 2016 OSHPD MEDI-CAL MC OP'!A:A,0))*('5. FY 2020-21'!$BB50/'5. FY 2020-21'!$BE50),0) -> 0 | Q48: =IFERROR('3. VARIABLE INPUT'!$G$48*INDEX('13. CY2016 MEDI-CAL FFS DAYS'!Y:Y,MATCH(A48,'13. CY2016 MEDI-CAL FFS DAYS'!A:A,0))*('5. FY 2020-21'!$BB50/'5. FY 2020-21'!$BE50),0) -> 0 | R48: =IFERROR(INDEX('MC PT SA (CHA Only)'!K:K,MATCH(A48,'MC PT SA (CHA Only)'!A:A,0))*('5. FY 2020-21'!$BB50/'5. FY 2020-21'!$BE50),0) -> 0 | S48: 0 | T48: 0 | U48: 0 | V48: 0 | W48: 0 | X48: =IFERROR('3. VARIABLE INPUT'!$K$46*INDEX('14. SFY 18-19 MIUR'!J:J,MATCH(A48,'14. SFY 18-19 MIUR'!A:A,0))*('6. FY 2021-22'!$BB50/'6. FY 2021-22'!$BE50),0)/2 -> 0 | Y48: =IFERROR('3. VARIABLE INPUT'!$K$47*INDEX('13. 2016 OSHPD MEDI-CAL MC OP'!L:L,MATCH(A48,'13. 2016 OSHPD MEDI-CAL MC OP'!A:A,0))*('6. FY 2021-22'!$BB50/'6. FY 2021-22'!$BE50),0)/2 -> 0 | Z48: =IFERROR('3. VARIABLE INPUT'!$K$48*INDEX('13. CY2016 MEDI-CAL FFS DAYS'!Y:Y,MATCH(A48,'13. CY2016 MEDI-CAL FFS DAYS'!A:A,0))*('6. FY 2021-22'!$BB50/'6. FY 2021-22'!$BE50),0)/2 -> 0 | AA48: =IFERROR(INDEX('MC PT SA (CHA Only)'!K:K,MATCH(A48,'MC PT SA (CHA Only)'!A:A,0))*('6. FY 2021-22'!$BB50/'6. FY 2021-22'!$BE50),0)/2 -> 0 | AB48: 0 | AC48: 0 | AD48: 0 | AE48: 0 | AF48: 0
A49: 106374024 | B49: 374024 | C49: 54095 | D49: 3 | E49: AURORA SAN DIEGO | F49: =IFERROR('3. VARIABLE INPUT'!$C$46*INDEX('14. SFY 18-19 MIUR'!J:J,MATCH(A49,'14. SFY 18-19 MIUR'!A:A,0))*('4. FY 2019-20'!$BB51/'4. FY 2019-20'!$BE51),0) -> 0 | G49: =IFERROR('3. VARIABLE INPUT'!$C$47*INDEX('13. 2016 OSHPD MEDI-CAL MC OP'!L:L,MATCH(A49,'13. 2016 OSHPD MEDI-CAL MC OP'!A:A,0))*('4. FY 2019-20'!$BB51/'4. FY 2019-20'!$BE51),0) -> 0 | H49: =IFERROR('3. VARIABLE INPUT'!$C$48*INDEX('13. CY2016 MEDI-CAL FFS DAYS'!Y:Y,MATCH(A49,'13. CY2016 MEDI-CAL FFS DAYS'!A:A,0))*('4. FY 2019-20'!$BB51/'4. FY 2019-20'!$BE51),0) -> 0 | I49: =IFERROR(INDEX('MC PT SA (CHA Only)'!K:K,MATCH(A49,'MC PT SA (CHA Only)'!A:A,0))*('4. FY 2019-20'!$BB51/'4. FY 2019-20'!$BE51),0) -> 0 | J49: 0 | K49: 0 | L49: 0 | M49: 0 | N49: 0 | O49: =IFERROR('3. VARIABLE INPUT'!$G$46*INDEX('14. SFY 18-19 MIUR'!J:J,MATCH(A49,'14. SFY 18-19 MIUR'!A:A,0))*('5. FY 2020-21'!$BB51/'5. FY 2020-21'!$BE51),0) -> 0 | P49: =IFERROR('3. VARIABLE INPUT'!$G$47*INDEX('13. 2016 OSHPD MEDI-CAL MC OP'!L:L,MATCH(A49,'13. 2016 OSHPD MEDI-CAL MC OP'!A:A,0))*('5. FY 2020-21'!$BB51/'5. FY 2020-21'!$BE51),0) -> 0 | Q49: =IFERROR('3. VARIABLE INPUT'!$G$48*INDEX('13. CY2016 MEDI-CAL FFS DAYS'!Y:Y,MATCH(A49,'13. CY2016 MEDI-CAL FFS DAYS'!A:A,0))*('5. FY 2020-21'!$BB51/'5. FY 2020-21'!$BE51),0) -> 0 | R49: =IFERROR(INDEX('MC PT SA (CHA Only)'!K:K,MATCH(A49,'MC PT SA (CHA Only)'!A:A,0))*('5. FY 2020-21'!$BB51/'5. FY 2020-21'!$BE51),0) -> 0 | S49: 0 | T49: 0 | U49: 0 | V49: 0 | W49: 0 | X49: =IFERROR('3. VARIABLE INPUT'!$K$46*INDEX('14. SFY 18-19 MIUR'!J:J,MATCH(A49,'14. SFY 18-19 MIUR'!A:A,0))*('6. FY 2021-22'!$BB51/'6. FY 2021-22'!$BE51),0)/2 -> 0 | Y49: =IFERROR('3. VARIABLE INPUT'!$K$47*INDEX('13. 2016 OSHPD MEDI-CAL MC OP'!L:L,MATCH(A49,'13. 2016 OSHPD MEDI-CAL MC OP'!A:A,0))*('6. FY 2021-22'!$BB51/'6. FY 2021-22'!$BE51),0)/2 -> 0 | Z49: =IFERROR('3. VARIABLE INPUT'!$K$48*INDEX('13. CY2016 MEDI-CAL FFS DAYS'!Y:Y,MATCH(A49,'13. CY2016 MEDI-CAL FFS DAYS'!A:A,0))*('6. FY 2021-22'!$BB51/'6. FY 2021-22'!$BE51),0)/2 -> 0 | AA49: =IFERROR(INDEX('MC PT SA (CHA Only)'!K:K,MATCH(A49,'MC PT SA (CHA Only)'!A:A,0))*('6. FY 2021-22'!$BB51/'6. FY 2021-22'!$BE51),0)/2 -> 0 | AB49: 0 | AC49: 0 | AD49: 0 | AE49: 0 | AF49: 0
A50: 106560203 | B50: 560203 | C50: 54077 | D50: 3 | E50: AURORA VISTA DEL MAR HOSPITAL | F50: =IFERROR('3. VARIABLE INPUT'!$C$46*INDEX('14. SFY 18-19 MIUR'!J:J,MATCH(A50,'14. SFY 18-19 MIUR'!A:A,0))*('4. FY 2019-20'!$BB52/'4. FY 2019-20'!$BE52),0) -> 0 | G50: =IFERROR('3. VARIABLE INPUT'!$C$47*INDEX('13. 2016 OSHPD MEDI-CAL MC OP'!L:L,MATCH(A50,'13. 2016 OSHPD MEDI-CAL MC OP'!A:A,0))*('4. FY 2019-20'!$BB52/'4. FY 2019-20'!$BE52),0) -> 0 | H50: =IFERROR('3. VARIABLE INPUT'!$C$48*INDEX('13. CY2016 MEDI-CAL FFS DAYS'!Y:Y,MATCH(A50,'13. CY2016 MEDI-CAL FFS DAYS'!A:A,0))*('4. FY 2019-20'!$BB52/'4. FY 2019-20'!$BE52),0) -> 0 | I50: =IFERROR(INDEX('MC PT SA (CHA Only)'!K:K,MATCH(A50,'MC PT SA (CHA Only)'!A:A,0))*('4. FY 2019-20'!$BB52/'4. FY 2019-20'!$BE52),0) -> 0 | J50: 0 | K50: 0 | L50: 0 | M50: 0 | N50: 0 | O50: =IFERROR('3. VARIABLE INPUT'!$G$46*INDEX('14. SFY 18-19 MIUR'!J:J,MATCH(A50,'14. SFY 18-19 MIUR'!A:A,0))*('5. FY 2020-21'!$BB52/'5. FY 2020-21'!$BE52),0) -> 0 | P50: =IFERROR('3. VARIABLE INPUT'!$G$47*INDEX('13. 2016 OSHPD MEDI-CAL MC OP'!L:L,MATCH(A50,'13. 2016 OSHPD MEDI-CAL MC OP'!A:A,0))*('5. FY 2020-21'!$BB52/'5. FY 2020-21'!$BE52),0) -> 0 | Q50: =IFERROR('3. VARIABLE INPUT'!$G$48*INDEX('13. CY2016 MEDI-CAL FFS DAYS'!Y:Y,MATCH(A50,'13. CY2016 MEDI-CAL FFS DAYS'!A:A,0))*('5. FY 2020-21'!$BB52/'5. FY 2020-21'!$BE52),0) -> 0 | R50: =IFERROR(INDEX('MC PT SA (CHA Only)'!K:K,MATCH(A50,'MC PT SA (CHA Only)'!A:A,0))*('5. FY 2020-21'!$BB52/'5. FY 2020-21'!$BE52),0) -> 0 | S50: 0 | T50: 0 | U50: 0 | V50: 0 | W50: 0 | X50: =IFERROR('3. VARIABLE INPUT'!$K$46*INDEX('14. SFY 18-19 MIUR'!J:J,MATCH(A50,'14. SFY 18-19 MIUR'!A:A,0))*('6. FY 2021-22'!$BB52/'6. FY 2021-22'!$BE52),0)/2 -> 0 | Y50: =IFERROR('3. VARIABLE INPUT'!$K$47*INDEX('13. 2016 OSHPD MEDI-CAL MC OP'!L:L,MATCH(A50,'13. 2016 OSHPD MEDI-CAL MC OP'!A:A,0))*('6. FY 2021-22'!$BB52/'6. FY 2021-22'!$BE52),0)/2 -> 0 | Z50: =IFERROR('3. VARIABLE INPUT'!$K$48*INDEX('13. CY2016 MEDI-CAL FFS DAYS'!Y:Y,MATCH(A50,'13. CY2016 MEDI-CAL FFS DAYS'!A:A,0))*('6. FY 2021-22'!$BB52/'6. FY 2021-22'!$BE52),0)/2 -> 0 | AA50: =IFERROR(INDEX('MC PT SA (CHA Only)'!K:K,MATCH(A50,'MC PT SA (CHA Only)'!A:A,0))*('6. FY 2021-22'!$BB52/'6. FY 2021-22'!$BE52),0)/2 -> 0 | AB50: 0 | AC50: 0 | AD50: 0 | AE50: 0 | AF50: 0
A51: 106154101 | B51: 154101 | C51: 50724 | D51: 3 | E51: BAKERSFIELD HEART HOSPITAL | F51: =IFERROR('3. VARIABLE INPUT'!$C$46*INDEX('14. SFY 18-19 MIUR'!J:J,MATCH(A51,'14. SFY 18-19 MIUR'!A:A,0))*('4. FY 2019-20'!$BB53/'4. FY 2019-20'!$BE53),0) -> 0 | G51: =IFERROR('3. VARIABLE INPUT'!$C$47*INDEX('13. 2016 OSHPD MEDI-CAL MC OP'!L:L,MATCH(A51,'13. 2016 OSHPD MEDI-CAL MC OP'!A:A,0))*('4. FY 2019-20'!$BB53/'4. FY 2019-20'!$BE53),0) -> 0 | H51: =IFERROR('3. VARIABLE INPUT'!$C$48*INDEX('13. CY2016 MEDI-CAL FFS DAYS'!Y:Y,MATCH(A51,'13. CY2016 MEDI-CAL FFS DAYS'!A:A,0))*('4. FY 2019-20'!$BB53/'4. FY 2019-20'!$BE53),0) -> 0 | I51: =IFERROR(INDEX('MC PT SA (CHA Only)'!K:K,MATCH(A51,'MC PT SA (CHA Only)'!A:A,0))*('4. FY 2019-20'!$BB53/'4. FY 2019-20'!$BE53),0) -> 0 | J51: 0 | K51: 0 | L51: 0 | M51: 0 | N51: 0 | O51: =IFERROR('3. VARIABLE INPUT'!$G$46*INDEX('14. SFY 18-19 MIUR'!J:J,MATCH(A51,'14. SFY 18-19 MIUR'!A:A,0))*('5. FY 2020-21'!$BB53/'5. FY 2020-21'!$BE53),0) -> 0 | P51: =IFERROR('3. VARIABLE INPUT'!$G$47*INDEX('13. 2016 OSHPD MEDI-CAL MC OP'!L:L,MATCH(A51,'13. 2016 OSHPD MEDI-CAL MC OP'!A:A,0))*('5. FY 2020-21'!$BB53/'5. FY 2020-21'!$BE53),0) -> 0 | Q51: =IFERROR('3. VARIABLE INPUT'!$G$48*INDEX('13. CY2016 MEDI-CAL FFS DAYS'!Y:Y,MATCH(A51,'13. CY2016 MEDI-CAL FFS DAYS'!A:A,0))*('5. FY 2020-21'!$BB53/'5. FY 2020-21'!$BE53),0) -> 0 | R51: =IFERROR(INDEX('MC PT SA (CHA Only)'!K:K,MATCH(A51,'MC PT SA (CHA Only)'!A:A,0))*('5. FY 2020-21'!$BB53/'5. FY 2020-21'!$BE53),0) -> 0 | S51: 0 | T51: 0 | U51: 0 | V51: 0 | W51: 0 | X51: =IFERROR('3. VARIABLE INPUT'!$K$46*INDEX('14. SFY 18-19 MIUR'!J:J,MATCH(A51,'14. SFY 18-19 MIUR'!A:A,0))*('6. FY 2021-22'!$BB53/'6. FY 2021-22'!$BE53),0)/2 -> 0 | Y51: =IFERROR('3. VARIABLE INPUT'!$K$47*INDEX('13. 2016 OSHPD MEDI-CAL MC OP'!L:L,MATCH(A51,'13. 2016 OSHPD MEDI-CAL MC OP'!A:A,0))*('6. FY 2021-22'!$BB53/'6. FY 2021-22'!$BE53),0)/2 -> 0 | Z51: =IFERROR('3. VARIABLE INPUT'!$K$48*INDEX('13. CY2016 MEDI-CAL FFS DAYS'!Y:Y,MATCH(A51,'13. CY2016 MEDI-CAL FFS DAYS'!A:A,0))*('6. FY 2021-22'!$BB53/'6. FY 2021-22'!$BE53),0)/2 -> 0 | AA51: =IFERROR(INDEX('MC PT SA (CHA Only)'!K:K,MATCH(A51,'MC PT SA (CHA Only)'!A:A,0))*('6. FY 2021-22'!$BB53/'6. FY 2021-22'!$BE53),0)/2 -> 0 | AB51: 0 | AC51: 0 | AD51: 0 | AE51: 0 | AF51: 0
A52: 106150722 | B52: 150722 | C52: 50036 | D52: 3 | E52: BAKERSFIELD MEMORIAL HOSPITAL | F52: =IFERROR('3. VARIABLE INPUT'!$C$46*INDEX('14. SFY 18-19 MIUR'!J:J,MATCH(A52,'14. SFY 18-19 MIUR'!A:A,0))*('4. FY 2019-20'!$BB54/'4. FY 2019-20'!$BE54),0) -> 5115667.293 | G52: =IFERROR('3. VARIABLE INPUT'!$C$47*INDEX('13. 2016 OSHPD MEDI-CAL MC OP'!L:L,MATCH(A52,'13. 2016 OSHPD MEDI-CAL MC OP'!A:A,0))*('4. FY 2019-20'!$BB54/'4. FY 2019-20'!$BE54),0) -> 3547718.881 | H52: =IFERROR('3. VARIABLE INPUT'!$C$48*INDEX('13. CY2016 MEDI-CAL FFS DAYS'!Y:Y,MATCH(A52,'13. CY2016 MEDI-CAL FFS DAYS'!A:A,0))*('4. FY 2019-20'!$BB54/'4. FY 2019-20'!$BE54),0) -> 7310060.575 | I52: =IFERROR(INDEX('MC PT SA (CHA Only)'!K:K,MATCH(A52,'MC PT SA (CHA Only)'!A:A,0))*('4. FY 2019-20'!$BB54/'4. FY 2019-20'!$BE54),0) -> 0 | J52: 15973446.75 | K52: 22132713.58 | L52: 8356953.041 | M52: 30489666.63 | N52: 46463113.37 | O52: =IFERROR('3. VARIABLE INPUT'!$G$46*INDEX('14. SFY 18-19 MIUR'!J:J,MATCH(A52,'14. SFY 18-19 MIUR'!A:A,0))*('5. FY 2020-21'!$BB54/'5. FY 2020-21'!$BE54),0) -> 5297179.146 | P52: =IFERROR('3. VARIABLE INPUT'!$G$47*INDEX('13. 2016 OSHPD MEDI-CAL MC OP'!L:L,MATCH(A52,'13. 2016 OSHPD MEDI-CAL MC OP'!A:A,0))*('5. FY 2020-21'!$BB54/'5. FY 2020-21'!$BE54),0) -> 3272170.456 | Q52: =IFERROR('3. VARIABLE INPUT'!$G$48*INDEX('13. CY2016 MEDI-CAL FFS DAYS'!Y:Y,MATCH(A52,'13. CY2016 MEDI-CAL FFS DAYS'!A:A,0))*('5. FY 2020-21'!$BB54/'5. FY 2020-21'!$BE54),0) -> 7541000.637 | R52: =IFERROR(INDEX('MC PT SA (CHA Only)'!K:K,MATCH(A52,'MC PT SA (CHA Only)'!A:A,0))*('5. FY 2020-21'!$BB54/'5. FY 2020-21'!$BE54),0) -> 0 | S52: 16110350.24 | T52: 22831932.17 | U52: 8620966.62 | V52: 31452898.79 | W52: 47563249.03 | X52: =IFERROR('3. VARIABLE INPUT'!$K$46*INDEX('14. SFY 18-19 MIUR'!J:J,MATCH(A52,'14. SFY 18-19 MIUR'!A:A,0))*('6. FY 2021-22'!$BB54/'6. FY 2021-22'!$BE54),0)/2 -> 2568083.923 | Y52: =IFERROR('3. VARIABLE INPUT'!$K$47*INDEX('13. 2016 OSHPD MEDI-CAL MC OP'!L:L,MATCH(A52,'13. 2016 OSHPD MEDI-CAL MC OP'!A:A,0))*('6. FY 2021-22'!$BB54/'6. FY 2021-22'!$BE54),0)/2 -> 1620287.318 | Z52: =IFERROR('3. VARIABLE INPUT'!$K$48*INDEX('13. CY2016 MEDI-CAL FFS DAYS'!Y:Y,MATCH(A52,'13. CY2016 MEDI-CAL FFS DAYS'!A:A,0))*('6. FY 2021-22'!$BB54/'6. FY 2021-22'!$BE54),0)/2 -> 3890851.494 | AA52: =IFERROR(INDEX('MC PT SA (CHA Only)'!K:K,MATCH(A52,'MC PT SA (CHA Only)'!A:A,0))*('6. FY 2021-22'!$BB54/'6. FY 2021-22'!$BE54),0)/2 -> 0 | AB52: 8079222.736 | AC52: 11780354.05 | AD52: 4448070.285 | AE52: 16228424.34 | AF52: 24307647.07
A53: 106364121 | B53: 364121 | C53: 53037 | D53: 3 | E53: BALLARD REHABILITATION HOSPITAL | F53: =IFERROR('3. VARIABLE INPUT'!$C$46*INDEX('14. SFY 18-19 MIUR'!J:J,MATCH(A53,'14. SFY 18-19 MIUR'!A:A,0))*('4. FY 2019-20'!$BB55/'4. FY 2019-20'!$BE55),0) -> 0 | G53: =IFERROR('3. VARIABLE INPUT'!$C$47*INDEX('13. 2016 OSHPD MEDI-CAL MC OP'!L:L,MATCH(A53,'13. 2016 OSHPD MEDI-CAL MC OP'!A:A,0))*('4. FY 2019-20'!$BB55/'4. FY 2019-20'!$BE55),0) -> 0 | H53: =IFERROR('3. VARIABLE INPUT'!$C$48*INDEX('13. CY2016 MEDI-CAL FFS DAYS'!Y:Y,MATCH(A53,'13. CY2016 MEDI-CAL FFS DAYS'!A:A,0))*('4. FY 2019-20'!$BB55/'4. FY 2019-20'!$BE55),0) -> 0 | I53: =IFERROR(INDEX('MC PT SA (CHA Only)'!K:K,MATCH(A53,'MC PT SA (CHA Only)'!A:A,0))*('4. FY 2019-20'!$BB55/'4. FY 2019-20'!$BE55),0) -> 0 | J53: 0 | K53: 0 | L53: 0 | M53: 0 | N53: 0 | O53: =IFERROR('3. VARIABLE INPUT'!$G$46*INDEX('14. SFY 18-19 MIUR'!J:J,MATCH(A53,'14. SFY 18-19 MIUR'!A:A,0))*('5. FY 2020-21'!$BB55/'5. FY 2020-21'!$BE55),0) -> 0 | P53: =IFERROR('3. VARIABLE INPUT'!$G$47*INDEX('13. 2016 OSHPD MEDI-CAL MC OP'!L:L,MATCH(A53,'13. 2016 OSHPD MEDI-CAL MC OP'!A:A,0))*('5. FY 2020-21'!$BB55/'5. FY 2020-21'!$BE55),0) -> 0 | Q53: =IFERROR('3. VARIABLE INPUT'!$G$48*INDEX('13. CY2016 MEDI-CAL FFS DAYS'!Y:Y,MATCH(A53,'13. CY2016 MEDI-CAL FFS DAYS'!A:A,0))*('5. FY 2020-21'!$BB55/'5. FY 2020-21'!$BE55),0) -> 0 | R53: =IFERROR(INDEX('MC PT SA (CHA Only)'!K:K,MATCH(A53,'MC PT SA (CHA Only)'!A:A,0))*('5. FY 2020-21'!$BB55/'5. FY 2020-21'!$BE55),0) -> 0 | S53: 0 | T53: 0 | U53: 0 | V53: 0 | W53: 0 | X53: =IFERROR('3. VARIABLE INPUT'!$K$46*INDEX('14. SFY 18-19 MIUR'!J:J,MATCH(A53,'14. SFY 18-19 MIUR'!A:A,0))*('6. FY 2021-22'!$BB55/'6. FY 2021-22'!$BE55),0)/2 -> 0 | Y53: =IFERROR('3. VARIABLE INPUT'!$K$47*INDEX('13. 2016 OSHPD MEDI-CAL MC OP'!L:L,MATCH(A53,'13. 2016 OSHPD MEDI-CAL MC OP'!A:A,0))*('6. FY 2021-22'!$BB55/'6. FY 2021-22'!$BE55),0)/2 -> 0 | Z53: =IFERROR('3. VARIABLE INPUT'!$K$48*INDEX('13. CY2016 MEDI-CAL FFS DAYS'!Y:Y,MATCH(A53,'13. CY2016 MEDI-CAL FFS DAYS'!A:A,0))*('6. FY 2021-22'!$BB55/'6. FY 2021-22'!$BE55),0)/2 -> 0 | AA53: =IFERROR(INDEX('MC PT SA (CHA Only)'!K:K,MATCH(A53,'MC PT SA (CHA Only)'!A:A,0))*('6. FY 2021-22'!$BB55/'6. FY 2021-22'!$BE55),0)/2 -> 0 | AB53: 0 | AC53: 0 | AD53: 0 | AE53: 0 | AF53: 0
A54: 106184008 | B54: 184008 | C54: 51320 | D54: 3 | E54: BANNER LASSEN MEDICAL CENTER | F54: =IFERROR('3. VARIABLE INPUT'!$C$46*INDEX('14. SFY 18-19 MIUR'!J:J,MATCH(A54,'14. SFY 18-19 MIUR'!A:A,0))*('4. FY 2019-20'!$BB56/'4. FY 2019-20'!$BE56),0) -> 178140.1254 | G54: =IFERROR('3. VARIABLE INPUT'!$C$47*INDEX('13. 2016 OSHPD MEDI-CAL MC OP'!L:L,MATCH(A54,'13. 2016 OSHPD MEDI-CAL MC OP'!A:A,0))*('4. FY 2019-20'!$BB56/'4. FY 2019-20'!$BE56),0) -> 806266.7883 | H54: =IFERROR('3. VARIABLE INPUT'!$C$48*INDEX('13. CY2016 MEDI-CAL FFS DAYS'!Y:Y,MATCH(A54,'13. CY2016 MEDI-CAL FFS DAYS'!A:A,0))*('4. FY 2019-20'!$BB56/'4. FY 2019-20'!$BE56),0) -> 2515.938935 | I54: =IFERROR(INDEX('MC PT SA (CHA Only)'!K:K,MATCH(A54,'MC PT SA (CHA Only)'!A:A,0))*('4. FY 2019-20'!$BB56/'4. FY 2019-20'!$BE56),0) -> 0 | J54: 986922.8527 | K54: 1149784.03 | L54: 1397370.073 | M54: 2547154.103 | N54: 3534076.956 | O54: =IFERROR('3. VARIABLE INPUT'!$G$46*INDEX('14. SFY 18-19 MIUR'!J:J,MATCH(A54,'14. SFY 18-19 MIUR'!A:A,0))*('5. FY 2020-21'!$BB56/'5. FY 2020-21'!$BE56),0) -> 184460.8149 | P54: =IFERROR('3. VARIABLE INPUT'!$G$47*INDEX('13. 2016 OSHPD MEDI-CAL MC OP'!L:L,MATCH(A54,'13. 2016 OSHPD MEDI-CAL MC OP'!A:A,0))*('5. FY 2020-21'!$BB56/'5. FY 2020-21'!$BE56),0) -> 743644.7061 | Q54: =IFERROR('3. VARIABLE INPUT'!$G$48*INDEX('13. CY2016 MEDI-CAL FFS DAYS'!Y:Y,MATCH(A54,'13. CY2016 MEDI-CAL FFS DAYS'!A:A,0))*('5. FY 2020-21'!$BB56/'5. FY 2020-21'!$BE56),0) -> 2595.422694 | R54: =IFERROR(INDEX('MC PT SA (CHA Only)'!K:K,MATCH(A54,'MC PT SA (CHA Only)'!A:A,0))*('5. FY 2020-21'!$BB56/'5. FY 2020-21'!$BE56),0) -> 0 | S54: 930700.9437 | T54: 1186108.105 | U54: 1441515.909 | V54: 2627624.014 | W54: 3558324.958 | X54: =IFERROR('3. VARIABLE INPUT'!$K$46*INDEX('14. SFY 18-19 MIUR'!J:J,MATCH(A54,'14. SFY 18-19 MIUR'!A:A,0))*('6. FY 2021-22'!$BB56/'6. FY 2021-22'!$BE56),0)/2 -> 89427.0026 | Y54: =IFERROR('3. VARIABLE INPUT'!$K$47*INDEX('13. 2016 OSHPD MEDI-CAL MC OP'!L:L,MATCH(A54,'13. 2016 OSHPD MEDI-CAL MC OP'!A:A,0))*('6. FY 2021-22'!$BB56/'6. FY 2021-22'!$BE56),0)/2 -> 368232.0657 | Z54: =IFERROR('3. VARIABLE INPUT'!$K$48*INDEX('13. CY2016 MEDI-CAL FFS DAYS'!Y:Y,MATCH(A54,'13. CY2016 MEDI-CAL FFS DAYS'!A:A,0))*('6. FY 2021-22'!$BB56/'6. FY 2021-22'!$BE56),0)/2 -> 1339.133194 | AA54: =IFERROR(INDEX('MC PT SA (CHA Only)'!K:K,MATCH(A54,'MC PT SA (CHA Only)'!A:A,0))*('6. FY 2021-22'!$BB56/'6. FY 2021-22'!$BE56),0)/2 -> 0 | AB54: 458998.2015 | AC54: 611983.8357 | AD54: 743763.9378 | AE54: 1355747.773 | AF54: 1814745.975
A55: 106190052 | B55: 190052 | C55: 52031 | D55: 3 | E55: BARLOW RESPIRATORY HOSPITAL | F55: =IFERROR('3. VARIABLE INPUT'!$C$46*INDEX('14. SFY 18-19 MIUR'!J:J,MATCH(A55,'14. SFY 18-19 MIUR'!A:A,0))*('4. FY 2019-20'!$BB57/'4. FY 2019-20'!$BE57),0) -> 0 | G55: =IFERROR('3. VARIABLE INPUT'!$C$47*INDEX('13. 2016 OSHPD MEDI-CAL MC OP'!L:L,MATCH(A55,'13. 2016 OSHPD MEDI-CAL MC OP'!A:A,0))*('4. FY 2019-20'!$BB57/'4. FY 2019-20'!$BE57),0) -> 0 | H55: =IFERROR('3. VARIABLE INPUT'!$C$48*INDEX('13. CY2016 MEDI-CAL FFS DAYS'!Y:Y,MATCH(A55,'13. CY2016 MEDI-CAL FFS DAYS'!A:A,0))*('4. FY 2019-20'!$BB57/'4. FY 2019-20'!$BE57),0) -> 0 | I55: =IFERROR(INDEX('MC PT SA (CHA Only)'!K:K,MATCH(A55,'MC PT SA (CHA Only)'!A:A,0))*('4. FY 2019-20'!$BB57/'4. FY 2019-20'!$BE57),0) -> 0 | J55: 0 | K55: 0 | L55: 0 | M55: 0 | N55: 0 | O55: =IFERROR('3. VARIABLE INPUT'!$G$46*INDEX('14. SFY 18-19 MIUR'!J:J,MATCH(A55,'14. SFY 18-19 MIUR'!A:A,0))*('5. FY 2020-21'!$BB57/'5. FY 2020-21'!$BE57),0) -> 0 | P55: =IFERROR('3. VARIABLE INPUT'!$G$47*INDEX('13. 2016 OSHPD MEDI-CAL MC OP'!L:L,MATCH(A55,'13. 2016 OSHPD MEDI-CAL MC OP'!A:A,0))*('5. FY 2020-21'!$BB57/'5. FY 2020-21'!$BE57),0) -> 0 | Q55: =IFERROR('3. VARIABLE INPUT'!$G$48*INDEX('13. CY2016 MEDI-CAL FFS DAYS'!Y:Y,MATCH(A55,'13. CY2016 MEDI-CAL FFS DAYS'!A:A,0))*('5. FY 2020-21'!$BB57/'5. FY 2020-21'!$BE57),0) -> 0 | R55: =IFERROR(INDEX('MC PT SA (CHA Only)'!K:K,MATCH(A55,'MC PT SA (CHA Only)'!A:A,0))*('5. FY 2020-21'!$BB57/'5. FY 2020-21'!$BE57),0) -> 0 | S55: 0 | T55: 0 | U55: 0 | V55: 0 | W55: 0 | X55: =IFERROR('3. VARIABLE INPUT'!$K$46*INDEX('14. SFY 18-19 MIUR'!J:J,MATCH(A55,'14. SFY 18-19 MIUR'!A:A,0))*('6. FY 2021-22'!$BB57/'6. FY 2021-22'!$BE57),0)/2 -> 0 | Y55: =IFERROR('3. VARIABLE INPUT'!$K$47*INDEX('13. 2016 OSHPD MEDI-CAL MC OP'!L:L,MATCH(A55,'13. 2016 OSHPD MEDI-CAL MC OP'!A:A,0))*('6. FY 2021-22'!$BB57/'6. FY 2021-22'!$BE57),0)/2 -> 0 | Z55: =IFERROR('3. VARIABLE INPUT'!$K$48*INDEX('13. CY2016 MEDI-CAL FFS DAYS'!Y:Y,MATCH(A55,'13. CY2016 MEDI-CAL FFS DAYS'!A:A,0))*('6. FY 2021-22'!$BB57/'6. FY 2021-22'!$BE57),0)/2 -> 0 | AA55: =IFERROR(INDEX('MC PT SA (CHA Only)'!K:K,MATCH(A55,'MC PT SA (CHA Only)'!A:A,0))*('6. FY 2021-22'!$BB57/'6. FY 2021-22'!$BE57),0)/2 -> 0 | AB55: 0 | AC55: 0 | AD55: 0 | AE55: 0 | AF55: 0
A56: 106090793 | B56: 90793 | C56: 50352 | D56: 3 | E56: BARTON MEMORIAL HOSPITAL | F56: =IFERROR('3. VARIABLE INPUT'!$C$46*INDEX('14. SFY 18-19 MIUR'!J:J,MATCH(A56,'14. SFY 18-19 MIUR'!A:A,0))*('4. FY 2019-20'!$BB58/'4. FY 2019-20'!$BE58),0) -> 284410.68 | G56: =IFERROR('3. VARIABLE INPUT'!$C$47*INDEX('13. 2016 OSHPD MEDI-CAL MC OP'!L:L,MATCH(A56,'13. 2016 OSHPD MEDI-CAL MC OP'!A:A,0))*('4. FY 2019-20'!$BB58/'4. FY 2019-20'!$BE58),0) -> 1547096.906 | H56: =IFERROR('3. VARIABLE INPUT'!$C$48*INDEX('13. CY2016 MEDI-CAL FFS DAYS'!Y:Y,MATCH(A56,'13. CY2016 MEDI-CAL FFS DAYS'!A:A,0))*('4. FY 2019-20'!$BB58/'4. FY 2019-20'!$BE58),0) -> 13837.66414 | I56: =IFERROR(INDEX('MC PT SA (CHA Only)'!K:K,MATCH(A56,'MC PT SA (CHA Only)'!A:A,0))*('4. FY 2019-20'!$BB58/'4. FY 2019-20'!$BE58),0) -> 0 | J56: 1845345.25 | K56: 1343511.317 | L56: 3017928.863 | M56: 4361440.179 | N56: 6206785.43 | O56: =IFERROR('3. VARIABLE INPUT'!$G$46*INDEX('14. SFY 18-19 MIUR'!J:J,MATCH(A56,'14. SFY 18-19 MIUR'!A:A,0))*('5. FY 2020-21'!$BB58/'5. FY 2020-21'!$BE58),0) -> 294502.0145 | P56: =IFERROR('3. VARIABLE INPUT'!$G$47*INDEX('13. 2016 OSHPD MEDI-CAL MC OP'!L:L,MATCH(A56,'13. 2016 OSHPD MEDI-CAL MC OP'!A:A,0))*('5. FY 2020-21'!$BB58/'5. FY 2020-21'!$BE58),0) -> 1426935.154 | Q56: =IFERROR('3. VARIABLE INPUT'!$G$48*INDEX('13. CY2016 MEDI-CAL FFS DAYS'!Y:Y,MATCH(A56,'13. CY2016 MEDI-CAL FFS DAYS'!A:A,0))*('5. FY 2020-21'!$BB58/'5. FY 2020-21'!$BE58),0) -> 14274.82482 | R56: =IFERROR(INDEX('MC PT SA (CHA Only)'!K:K,MATCH(A56,'MC PT SA (CHA Only)'!A:A,0))*('5. FY 2020-21'!$BB58/'5. FY 2020-21'!$BE58),0) -> 0 | S56: 1735711.994 | T56: 1385955.642 | U56: 3113271.531 | V56: 4499227.172 | W56: 6234939.166 | X56: =IFERROR('3. VARIABLE INPUT'!$K$46*INDEX('14. SFY 18-19 MIUR'!J:J,MATCH(A56,'14. SFY 18-19 MIUR'!A:A,0))*('6. FY 2021-22'!$BB58/'6. FY 2021-22'!$BE58),0)/2 -> 142775.2145 | Y56: =IFERROR('3. VARIABLE INPUT'!$K$47*INDEX('13. 2016 OSHPD MEDI-CAL MC OP'!L:L,MATCH(A56,'13. 2016 OSHPD MEDI-CAL MC OP'!A:A,0))*('6. FY 2021-22'!$BB58/'6. FY 2021-22'!$BE58),0)/2 -> 706578.3905 | Z56: =IFERROR('3. VARIABLE INPUT'!$K$48*INDEX('13. CY2016 MEDI-CAL FFS DAYS'!Y:Y,MATCH(A56,'13. CY2016 MEDI-CAL FFS DAYS'!A:A,0))*('6. FY 2021-22'!$BB58/'6. FY 2021-22'!$BE58),0)/2 -> 7365.232566 | AA56: =IFERROR(INDEX('MC PT SA (CHA Only)'!K:K,MATCH(A56,'MC PT SA (CHA Only)'!A:A,0))*('6. FY 2021-22'!$BB58/'6. FY 2021-22'!$BE58),0)/2 -> 0 | AB56: 856718.8375 | AC56: 715097.0859 | AD56: 1606322.26 | AE56: 2321419.346 | AF56: 3178138.184
A57: 106190081 | B57: 190081 | C57: 50350 | D57: 3 | E57: BEVERLY HOSPITAL | F57: =IFERROR('3. VARIABLE INPUT'!$C$46*INDEX('14. SFY 18-19 MIUR'!J:J,MATCH(A57,'14. SFY 18-19 MIUR'!A:A,0))*('4. FY 2019-20'!$BB59/'4. FY 2019-20'!$BE59),0) -> 2412670.26 | G57: =IFERROR('3. VARIABLE INPUT'!$C$47*INDEX('13. 2016 OSHPD MEDI-CAL MC OP'!L:L,MATCH(A57,'13. 2016 OSHPD MEDI-CAL MC OP'!A:A,0))*('4. FY 2019-20'!$BB59/'4. FY 2019-20'!$BE59),0) -> 1527520.284 | H57: =IFERROR('3. VARIABLE INPUT'!$C$48*INDEX('13. CY2016 MEDI-CAL FFS DAYS'!Y:Y,MATCH(A57,'13. CY2016 MEDI-CAL FFS DAYS'!A:A,0))*('4. FY 2019-20'!$BB59/'4. FY 2019-20'!$BE59),0) -> 7547.816805 | I57: =IFERROR(INDEX('MC PT SA (CHA Only)'!K:K,MATCH(A57,'MC PT SA (CHA Only)'!A:A,0))*('4. FY 2019-20'!$BB59/'4. FY 2019-20'!$BE59),0) -> 0 | J57: 3947738.361 | K57: 14079193.5 | L57: 2318738.874 | M57: 16397932.37 | N57: 20345670.74 | O57: =IFERROR('3. VARIABLE INPUT'!$G$46*INDEX('14. SFY 18-19 MIUR'!J:J,MATCH(A57,'14. SFY 18-19 MIUR'!A:A,0))*('5. FY 2020-21'!$BB59/'5. FY 2020-21'!$BE59),0) -> 2498275.564 | P57: =IFERROR('3. VARIABLE INPUT'!$G$47*INDEX('13. 2016 OSHPD MEDI-CAL MC OP'!L:L,MATCH(A57,'13. 2016 OSHPD MEDI-CAL MC OP'!A:A,0))*('5. FY 2020-21'!$BB59/'5. FY 2020-21'!$BE59),0) -> 1408879.033 | Q57: =IFERROR('3. VARIABLE INPUT'!$G$48*INDEX('13. CY2016 MEDI-CAL FFS DAYS'!Y:Y,MATCH(A57,'13. CY2016 MEDI-CAL FFS DAYS'!A:A,0))*('5. FY 2020-21'!$BB59/'5. FY 2020-21'!$BE59),0) -> 7786.268082 | R57: =IFERROR(INDEX('MC PT SA (CHA Only)'!K:K,MATCH(A57,'MC PT SA (CHA Only)'!A:A,0))*('5. FY 2020-21'!$BB59/'5. FY 2020-21'!$BE59),0) -> 0 | S57: 3914940.864 | T57: 14523984.59 | U57: 2391992.672 | V57: 16915977.26 | W57: 20830918.13 | X57: =IFERROR('3. VARIABLE INPUT'!$K$46*INDEX('14. SFY 18-19 MIUR'!J:J,MATCH(A57,'14. SFY 18-19 MIUR'!A:A,0))*('6. FY 2021-22'!$BB59/'6. FY 2021-22'!$BE59),0)/2 -> 1211169.404 | Y57: =IFERROR('3. VARIABLE INPUT'!$K$47*INDEX('13. 2016 OSHPD MEDI-CAL MC OP'!L:L,MATCH(A57,'13. 2016 OSHPD MEDI-CAL MC OP'!A:A,0))*('6. FY 2021-22'!$BB59/'6. FY 2021-22'!$BE59),0)/2 -> 697637.504 | Z57: =IFERROR('3. VARIABLE INPUT'!$K$48*INDEX('13. CY2016 MEDI-CAL FFS DAYS'!Y:Y,MATCH(A57,'13. CY2016 MEDI-CAL FFS DAYS'!A:A,0))*('6. FY 2021-22'!$BB59/'6. FY 2021-22'!$BE59),0)/2 -> 4017.399581 | AA57: =IFERROR(INDEX('MC PT SA (CHA Only)'!K:K,MATCH(A57,'MC PT SA (CHA Only)'!A:A,0))*('6. FY 2021-22'!$BB59/'6. FY 2021-22'!$BE59),0)/2 -> 0 | AB57: 1912824.308 | AC57: 7493788.937 | AD57: 1234171.526 | AE57: 8727960.463 | AF57: 10640784.77
A58: 106190020 | B58: 190020 | C58: 54032 | D58: 3 | E58: BHC ALHAMBRA HOSPITAL | F58: =IFERROR('3. VARIABLE INPUT'!$C$46*INDEX('14. SFY 18-19 MIUR'!J:J,MATCH(A58,'14. SFY 18-19 MIUR'!A:A,0))*('4. FY 2019-20'!$BB60/'4. FY 2019-20'!$BE60),0) -> 0 | G58: =IFERROR('3. VARIABLE INPUT'!$C$47*INDEX('13. 2016 OSHPD MEDI-CAL MC OP'!L:L,MATCH(A58,'13. 2016 OSHPD MEDI-CAL MC OP'!A:A,0))*('4. FY 2019-20'!$BB60/'4. FY 2019-20'!$BE60),0) -> 0 | H58: =IFERROR('3. VARIABLE INPUT'!$C$48*INDEX('13. CY2016 MEDI-CAL FFS DAYS'!Y:Y,MATCH(A58,'13. CY2016 MEDI-CAL FFS DAYS'!A:A,0))*('4. FY 2019-20'!$BB60/'4. FY 2019-20'!$BE60),0) -> 0 | I58: =IFERROR(INDEX('MC PT SA (CHA Only)'!K:K,MATCH(A58,'MC PT SA (CHA Only)'!A:A,0))*('4. FY 2019-20'!$BB60/'4. FY 2019-20'!$BE60),0) -> 0 | J58: 0 | K58: 0 | L58: 0 | M58: 0 | N58: 0 | O58: =IFERROR('3. VARIABLE INPUT'!$G$46*INDEX('14. SFY 18-19 MIUR'!J:J,MATCH(A58,'14. SFY 18-19 MIUR'!A:A,0))*('5. FY 2020-21'!$BB60/'5. FY 2020-21'!$BE60),0) -> 0 | P58: =IFERROR('3. VARIABLE INPUT'!$G$47*INDEX('13. 2016 OSHPD MEDI-CAL MC OP'!L:L,MATCH(A58,'13. 2016 OSHPD MEDI-CAL MC OP'!A:A,0))*('5. FY 2020-21'!$BB60/'5. FY 2020-21'!$BE60),0) -> 0 | Q58: =IFERROR('3. VARIABLE INPUT'!$G$48*INDEX('13. CY2016 MEDI-CAL FFS DAYS'!Y:Y,MATCH(A58,'13. CY2016 MEDI-CAL FFS DAYS'!A:A,0))*('5. FY 2020-21'!$BB60/'5. FY 2020-21'!$BE60),0) -> 0 | R58: =IFERROR(INDEX('MC PT SA (CHA Only)'!K:K,MATCH(A58,'MC PT SA (CHA Only)'!A:A,0))*('5. FY 2020-21'!$BB60/'5. FY 2020-21'!$BE60),0) -> 0 | S58: 0 | T58: 0 | U58: 0 | V58: 0 | W58: 0 | X58: =IFERROR('3. VARIABLE INPUT'!$K$46*INDEX('14. SFY 18-19 MIUR'!J:J,MATCH(A58,'14. SFY 18-19 MIUR'!A:A,0))*('6. FY 2021-22'!$BB60/'6. FY 2021-22'!$BE60),0)/2 -> 0 | Y58: =IFERROR('3. VARIABLE INPUT'!$K$47*INDEX('13. 2016 OSHPD MEDI-CAL MC OP'!L:L,MATCH(A58,'13. 2016 OSHPD MEDI-CAL MC OP'!A:A,0))*('6. FY 2021-22'!$BB60/'6. FY 2021-22'!$BE60),0)/2 -> 0 | Z58: =IFERROR('3. VARIABLE INPUT'!$K$48*INDEX('13. CY2016 MEDI-CAL FFS DAYS'!Y:Y,MATCH(A58,'13. CY2016 MEDI-CAL FFS DAYS'!A:A,0))*('6. FY 2021-22'!$BB60/'6. FY 2021-22'!$BE60),0)/2 -> 0 | AA58: =IFERROR(INDEX('MC PT SA (CHA Only)'!K:K,MATCH(A58,'MC PT SA (CHA Only)'!A:A,0))*('6. FY 2021-22'!$BB60/'6. FY 2021-22'!$BE60),0)/2 -> 0 | AB58: 0 | AC58: 0 | AD58: 0 | AE58: 0 | AF58: 0
A59: 106190125 | B59: 190125 | C59: 50149 | D59: 3 | E59: CALIFORNIA HOSPITAL MEDICAL CENTER | F59: =IFERROR('3. VARIABLE INPUT'!$C$46*INDEX('14. SFY 18-19 MIUR'!J:J,MATCH(A59,'14. SFY 18-19 MIUR'!A:A,0))*('4. FY 2019-20'!$BB61/'4. FY 2019-20'!$BE61),0) -> 8835574.931 | G59: =IFERROR('3. VARIABLE INPUT'!$C$47*INDEX('13. 2016 OSHPD MEDI-CAL MC OP'!L:L,MATCH(A59,'13. 2016 OSHPD MEDI-CAL MC OP'!A:A,0))*('4. FY 2019-20'!$BB61/'4. FY 2019-20'!$BE61),0) -> 4087616.729 | H59: =IFERROR('3. VARIABLE INPUT'!$C$48*INDEX('13. CY2016 MEDI-CAL FFS DAYS'!Y:Y,MATCH(A59,'13. CY2016 MEDI-CAL FFS DAYS'!A:A,0))*('4. FY 2019-20'!$BB61/'4. FY 2019-20'!$BE61),0) -> 3544957.959 | I59: =IFERROR(INDEX('MC PT SA (CHA Only)'!K:K,MATCH(A59,'MC PT SA (CHA Only)'!A:A,0))*('4. FY 2019-20'!$BB61/'4. FY 2019-20'!$BE61),0) -> 1411095.092 | J59: 17879244.71 | K59: 29199985.66 | L59: 7013107.863 | M59: 36213093.52 | N59: 54092338.24 | O59: =IFERROR('3. VARIABLE INPUT'!$G$46*INDEX('14. SFY 18-19 MIUR'!J:J,MATCH(A59,'14. SFY 18-19 MIUR'!A:A,0))*('5. FY 2020-21'!$BB61/'5. FY 2020-21'!$BE61),0) -> 9149074.909 | P59: =IFERROR('3. VARIABLE INPUT'!$G$47*INDEX('13. 2016 OSHPD MEDI-CAL MC OP'!L:L,MATCH(A59,'13. 2016 OSHPD MEDI-CAL MC OP'!A:A,0))*('5. FY 2020-21'!$BB61/'5. FY 2020-21'!$BE61),0) -> 3770134.879 | Q59: =IFERROR('3. VARIABLE INPUT'!$G$48*INDEX('13. CY2016 MEDI-CAL FFS DAYS'!Y:Y,MATCH(A59,'13. CY2016 MEDI-CAL FFS DAYS'!A:A,0))*('5. FY 2020-21'!$BB61/'5. FY 2020-21'!$BE61),0) -> 3656950.576 | R59: =IFERROR(INDEX('MC PT SA (CHA Only)'!K:K,MATCH(A59,'MC PT SA (CHA Only)'!A:A,0))*('5. FY 2020-21'!$BB61/'5. FY 2020-21'!$BE61),0) -> 1411095.092 | S59: 17987255.46 | T59: 30122474.12 | U59: 7234666.57 | V59: 37357140.69 | W59: 55344396.14 | X59: =IFERROR('3. VARIABLE INPUT'!$K$46*INDEX('14. SFY 18-19 MIUR'!J:J,MATCH(A59,'14. SFY 18-19 MIUR'!A:A,0))*('6. FY 2021-22'!$BB61/'6. FY 2021-22'!$BE61),0)/2 -> 4435491.332 | Y59: =IFERROR('3. VARIABLE INPUT'!$K$47*INDEX('13. 2016 OSHPD MEDI-CAL MC OP'!L:L,MATCH(A59,'13. 2016 OSHPD MEDI-CAL MC OP'!A:A,0))*('6. FY 2021-22'!$BB61/'6. FY 2021-22'!$BE61),0)/2 -> 1866865.377 | Z59: =IFERROR('3. VARIABLE INPUT'!$K$48*INDEX('13. CY2016 MEDI-CAL FFS DAYS'!Y:Y,MATCH(A59,'13. CY2016 MEDI-CAL FFS DAYS'!A:A,0))*('6. FY 2021-22'!$BB61/'6. FY 2021-22'!$BE61),0)/2 -> 1886838.67 | AA59: =IFERROR(INDEX('MC PT SA (CHA Only)'!K:K,MATCH(A59,'MC PT SA (CHA Only)'!A:A,0))*('6. FY 2021-22'!$BB61/'6. FY 2021-22'!$BE61),0)/2 -> 705547.5459 | AB59: 8894742.925 | AC59: 15541978.99 | AD59: 3732795.499 | AE59: 19274774.48 | AF59: 28169517.41
A60: 106380929 | B60: 380929 | C60: 50047 | D60: 3 | E60: CALIFORNIA PACIFIC MEDICAL CENTER | F60: =IFERROR('3. VARIABLE INPUT'!$C$46*INDEX('14. SFY 18-19 MIUR'!J:J,MATCH(A60,'14. SFY 18-19 MIUR'!A:A,0))*('4. FY 2019-20'!$BB62/'4. FY 2019-20'!$BE62),0) -> 4445615.013 | G60: =IFERROR('3. VARIABLE INPUT'!$C$47*INDEX('13. 2016 OSHPD MEDI-CAL MC OP'!L:L,MATCH(A60,'13. 2016 OSHPD MEDI-CAL MC OP'!A:A,0))*('4. FY 2019-20'!$BB62/'4. FY 2019-20'!$BE62),0) -> 1051246.457 | H60: =IFERROR('3. VARIABLE INPUT'!$C$48*INDEX('13. CY2016 MEDI-CAL FFS DAYS'!Y:Y,MATCH(A60,'13. CY2016 MEDI-CAL FFS DAYS'!A:A,0))*('4. FY 2019-20'!$BB62/'4. FY 2019-20'!$BE62),0) -> 0 | I60: =IFERROR(INDEX('MC PT SA (CHA Only)'!K:K,MATCH(A60,'MC PT SA (CHA Only)'!A:A,0))*('4. FY 2019-20'!$BB62/'4. FY 2019-20'!$BE62),0) -> 0 | J60: 5496861.469 | K60: 16104524.23 | L60: 2793730.243 | M60: 18898254.47 | N60: 24395115.94 | O60: =IFERROR('3. VARIABLE INPUT'!$G$46*INDEX('14. SFY 18-19 MIUR'!J:J,MATCH(A60,'14. SFY 18-19 MIUR'!A:A,0))*('5. FY 2020-21'!$BB62/'5. FY 2020-21'!$BE62),0) -> 4603352.367 | P60: =IFERROR('3. VARIABLE INPUT'!$G$47*INDEX('13. 2016 OSHPD MEDI-CAL MC OP'!L:L,MATCH(A60,'13. 2016 OSHPD MEDI-CAL MC OP'!A:A,0))*('5. FY 2020-21'!$BB62/'5. FY 2020-21'!$BE62),0) -> 969597.0038 | Q60: =IFERROR('3. VARIABLE INPUT'!$G$48*INDEX('13. CY2016 MEDI-CAL FFS DAYS'!Y:Y,MATCH(A60,'13. CY2016 MEDI-CAL FFS DAYS'!A:A,0))*('5. FY 2020-21'!$BB62/'5. FY 2020-21'!$BE62),0) -> 0 | R60: =IFERROR(INDEX('MC PT SA (CHA Only)'!K:K,MATCH(A60,'MC PT SA (CHA Only)'!A:A,0))*('5. FY 2020-21'!$BB62/'5. FY 2020-21'!$BE62),0) -> 0 | S60: 5572949.37 | T60: 16613299.74 | U60: 2881990.009 | V60: 19495289.75 | W60: 25068239.12 | X60: =IFERROR('3. VARIABLE INPUT'!$K$46*INDEX('14. SFY 18-19 MIUR'!J:J,MATCH(A60,'14. SFY 18-19 MIUR'!A:A,0))*('6. FY 2021-22'!$BB62/'6. FY 2021-22'!$BE62),0)/2 -> 2231715.198 | Y60: =IFERROR('3. VARIABLE INPUT'!$K$47*INDEX('13. 2016 OSHPD MEDI-CAL MC OP'!L:L,MATCH(A60,'13. 2016 OSHPD MEDI-CAL MC OP'!A:A,0))*('6. FY 2021-22'!$BB62/'6. FY 2021-22'!$BE62),0)/2 -> 480117.3258 | Z60: =IFERROR('3. VARIABLE INPUT'!$K$48*INDEX('13. CY2016 MEDI-CAL FFS DAYS'!Y:Y,MATCH(A60,'13. CY2016 MEDI-CAL FFS DAYS'!A:A,0))*('6. FY 2021-22'!$BB62/'6. FY 2021-22'!$BE62),0)/2 -> 0 | AA60: =IFERROR(INDEX('MC PT SA (CHA Only)'!K:K,MATCH(A60,'MC PT SA (CHA Only)'!A:A,0))*('6. FY 2021-22'!$BB62/'6. FY 2021-22'!$BE62),0)/2 -> 0 | AB60: 2711832.524 | AC60: 8571791.098 | AD60: 1486990.344 | AE60: 10058781.44 | AF60: 12770613.97
A61: 106380964 | B61: 380964 | C61: 50055 | D61: 3 | E61: CALIFORNIA PACIFIC MEDICAL CTR - ST LUKES CAMPUS | F61: =IFERROR('3. VARIABLE INPUT'!$C$46*INDEX('14. SFY 18-19 MIUR'!J:J,MATCH(A61,'14. SFY 18-19 MIUR'!A:A,0))*('4. FY 2019-20'!$BB63/'4. FY 2019-20'!$BE63),0) -> 1372533.513 | G61: =IFERROR('3. VARIABLE INPUT'!$C$47*INDEX('13. 2016 OSHPD MEDI-CAL MC OP'!L:L,MATCH(A61,'13. 2016 OSHPD MEDI-CAL MC OP'!A:A,0))*('4. FY 2019-20'!$BB63/'4. FY 2019-20'!$BE63),0) -> 1000039.09 | H61: =IFERROR('3. VARIABLE INPUT'!$C$48*INDEX('13. CY2016 MEDI-CAL FFS DAYS'!Y:Y,MATCH(A61,'13. CY2016 MEDI-CAL FFS DAYS'!A:A,0))*('4. FY 2019-20'!$BB63/'4. FY 2019-20'!$BE63),0) -> 265431.5576 | I61: =IFERROR(INDEX('MC PT SA (CHA Only)'!K:K,MATCH(A61,'MC PT SA (CHA Only)'!A:A,0))*('4. FY 2019-20'!$BB63/'4. FY 2019-20'!$BE63),0) -> 0 | J61: 2638004.16 | K61: 1688194.932 | L61: 578674.8148 | M61: 2266869.747 | N61: 4904873.907 | O61: =IFERROR('3. VARIABLE INPUT'!$G$46*INDEX('14. SFY 18-19 MIUR'!J:J,MATCH(A61,'14. SFY 18-19 MIUR'!A:A,0))*('5. FY 2020-21'!$BB63/'5. FY 2020-21'!$BE63),0) -> 1421233.142 | P61: =IFERROR('3. VARIABLE INPUT'!$G$47*INDEX('13. 2016 OSHPD MEDI-CAL MC OP'!L:L,MATCH(A61,'13. 2016 OSHPD MEDI-CAL MC OP'!A:A,0))*('5. FY 2020-21'!$BB63/'5. FY 2020-21'!$BE63),0) -> 922366.8712 | Q61: =IFERROR('3. VARIABLE INPUT'!$G$48*INDEX('13. CY2016 MEDI-CAL FFS DAYS'!Y:Y,MATCH(A61,'13. CY2016 MEDI-CAL FFS DAYS'!A:A,0))*('5. FY 2020-21'!$BB63/'5. FY 2020-21'!$BE63),0) -> 273817.0942 | R61: =IFERROR(INDEX('MC PT SA (CHA Only)'!K:K,MATCH(A61,'MC PT SA (CHA Only)'!A:A,0))*('5. FY 2020-21'!$BB63/'5. FY 2020-21'!$BE63),0) -> 0 | S61: 2617417.108 | T61: 1741528.531 | U61: 596956.3593 | V61: 2338484.89 | W61: 4955901.998 | X61: =IFERROR('3. VARIABLE INPUT'!$K$46*INDEX('14. SFY 18-19 MIUR'!J:J,MATCH(A61,'14. SFY 18-19 MIUR'!A:A,0))*('6. FY 2021-22'!$BB63/'6. FY 2021-22'!$BE63),0)/2 -> 689016.9057 | Y61: =IFERROR('3. VARIABLE INPUT'!$K$47*INDEX('13. 2016 OSHPD MEDI-CAL MC OP'!L:L,MATCH(A61,'13. 2016 OSHPD MEDI-CAL MC OP'!A:A,0))*('6. FY 2021-22'!$BB63/'6. FY 2021-22'!$BE63),0)/2 -> 456730.2847 | Z61: =IFERROR('3. VARIABLE INPUT'!$K$48*INDEX('13. CY2016 MEDI-CAL FFS DAYS'!Y:Y,MATCH(A61,'13. CY2016 MEDI-CAL FFS DAYS'!A:A,0))*('6. FY 2021-22'!$BB63/'6. FY 2021-22'!$BE63),0)/2 -> 141278.5519 | AA61: =IFERROR(INDEX('MC PT SA (CHA Only)'!K:K,MATCH(A61,'MC PT SA (CHA Only)'!A:A,0))*('6. FY 2021-22'!$BB63/'6. FY 2021-22'!$BE63),0)/2 -> 0 | AB61: 1287025.742 | AC61: 898558.3232 | AD61: 308005.3503 | AE61: 1206563.674 | AF61: 2493589.416
A62: 106364050 | B62: 364050 | C62: 54111 | D62: 3 | E62: CANYON RIDGE HOSPITAL | F62: =IFERROR('3. VARIABLE INPUT'!$C$46*INDEX('14. SFY 18-19 MIUR'!J:J,MATCH(A62,'14. SFY 18-19 MIUR'!A:A,0))*('4. FY 2019-20'!$BB64/'4. FY 2019-20'!$BE64),0) -> 0 | G62: =IFERROR('3. VARIABLE INPUT'!$C$47*INDEX('13. 2016 OSHPD MEDI-CAL MC OP'!L:L,MATCH(A62,'13. 2016 OSHPD MEDI-CAL MC OP'!A:A,0))*('4. FY 2019-20'!$BB64/'4. FY 2019-20'!$BE64),0) -> 0 | H62: =IFERROR('3. VARIABLE INPUT'!$C$48*INDEX('13. CY2016 MEDI-CAL FFS DAYS'!Y:Y,MATCH(A62,'13. CY2016 MEDI-CAL FFS DAYS'!A:A,0))*('4. FY 2019-20'!$BB64/'4. FY 2019-20'!$BE64),0) -> 0 | I62: =IFERROR(INDEX('MC PT SA (CHA Only)'!K:K,MATCH(A62,'MC PT SA (CHA Only)'!A:A,0))*('4. FY 2019-20'!$BB64/'4. FY 2019-20'!$BE64),0) -> 0 | J62: 0 | K62: 0 | L62: 0 | M62: 0 | N62: 0 | O62: =IFERROR('3. VARIABLE INPUT'!$G$46*INDEX('14. SFY 18-19 MIUR'!J:J,MATCH(A62,'14. SFY 18-19 MIUR'!A:A,0))*('5. FY 2020-21'!$BB64/'5. FY 2020-21'!$BE64),0) -> 0 | P62: =IFERROR('3. VARIABLE INPUT'!$G$47*INDEX('13. 2016 OSHPD MEDI-CAL MC OP'!L:L,MATCH(A62,'13. 2016 OSHPD MEDI-CAL MC OP'!A:A,0))*('5. FY 2020-21'!$BB64/'5. FY 2020-21'!$BE64),0) -> 0 | Q62: =IFERROR('3. VARIABLE INPUT'!$G$48*INDEX('13. CY2016 MEDI-CAL FFS DAYS'!Y:Y,MATCH(A62,'13. CY2016 MEDI-CAL FFS DAYS'!A:A,0))*('5. FY 2020-21'!$BB64/'5. FY 2020-21'!$BE64),0) -> 0 | R62: =IFERROR(INDEX('MC PT SA (CHA Only)'!K:K,MATCH(A62,'MC PT SA (CHA Only)'!A:A,0))*('5. FY 2020-21'!$BB64/'5. FY 2020-21'!$BE64),0) -> 0 | S62: 0 | T62: 0 | U62: 0 | V62: 0 | W62: 0 | X62: =IFERROR('3. VARIABLE INPUT'!$K$46*INDEX('14. SFY 18-19 MIUR'!J:J,MATCH(A62,'14. SFY 18-19 MIUR'!A:A,0))*('6. FY 2021-22'!$BB64/'6. FY 2021-22'!$BE64),0)/2 -> 0 | Y62: =IFERROR('3. VARIABLE INPUT'!$K$47*INDEX('13. 2016 OSHPD MEDI-CAL MC OP'!L:L,MATCH(A62,'13. 2016 OSHPD MEDI-CAL MC OP'!A:A,0))*('6. FY 2021-22'!$BB64/'6. FY 2021-22'!$BE64),0)/2 -> 0 | Z62: =IFERROR('3. VARIABLE INPUT'!$K$48*INDEX('13. CY2016 MEDI-CAL FFS DAYS'!Y:Y,MATCH(A62,'13. CY2016 MEDI-CAL FFS DAYS'!A:A,0))*('6. FY 2021-22'!$BB64/'6. FY 2021-22'!$BE64),0)/2 -> 0 | AA62: =IFERROR(INDEX('MC PT SA (CHA Only)'!K:K,MATCH(A62,'MC PT SA (CHA Only)'!A:A,0))*('6. FY 2021-22'!$BB64/'6. FY 2021-22'!$BE64),0)/2 -> 0 | AB62: 0 | AC62: 0 | AD62: 0 | AE62: 0 | AF62: 0
A63: 106190137 | B63: 190137 | C63: 50782 | D63: 3 | E63: CASA COLINA HOSPITAL AND CENTER FOR HEALTH CARE | F63: =IFERROR('3. VARIABLE INPUT'!$C$46*INDEX('14. SFY 18-19 MIUR'!J:J,MATCH(A63,'14. SFY 18-19 MIUR'!A:A,0))*('4. FY 2019-20'!$BB65/'4. FY 2019-20'!$BE65),0) -> 0 | G63: =IFERROR('3. VARIABLE INPUT'!$C$47*INDEX('13. 2016 OSHPD MEDI-CAL MC OP'!L:L,MATCH(A63,'13. 2016 OSHPD MEDI-CAL MC OP'!A:A,0))*('4. FY 2019-20'!$BB65/'4. FY 2019-20'!$BE65),0) -> 0 | H63: =IFERROR('3. VARIABLE INPUT'!$C$48*INDEX('13. CY2016 MEDI-CAL FFS DAYS'!Y:Y,MATCH(A63,'13. CY2016 MEDI-CAL FFS DAYS'!A:A,0))*('4. FY 2019-20'!$BB65/'4. FY 2019-20'!$BE65),0) -> 0 | I63: =IFERROR(INDEX('MC PT SA (CHA Only)'!K:K,MATCH(A63,'MC PT SA (CHA Only)'!A:A,0))*('4. FY 2019-20'!$BB65/'4. FY 2019-20'!$BE65),0) -> 0 | J63: 0 | K63: 0 | L63: 0 | M63: 0 | N63: 0 | O63: =IFERROR('3. VARIABLE INPUT'!$G$46*INDEX('14. SFY 18-19 MIUR'!J:J,MATCH(A63,'14. SFY 18-19 MIUR'!A:A,0))*('5. FY 2020-21'!$BB65/'5. FY 2020-21'!$BE65),0) -> 0 | P63: =IFERROR('3. VARIABLE INPUT'!$G$47*INDEX('13. 2016 OSHPD MEDI-CAL MC OP'!L:L,MATCH(A63,'13. 2016 OSHPD MEDI-CAL MC OP'!A:A,0))*('5. FY 2020-21'!$BB65/'5. FY 2020-21'!$BE65),0) -> 0 | Q63: =IFERROR('3. VARIABLE INPUT'!$G$48*INDEX('13. CY2016 MEDI-CAL FFS DAYS'!Y:Y,MATCH(A63,'13. CY2016 MEDI-CAL FFS DAYS'!A:A,0))*('5. FY 2020-21'!$BB65/'5. FY 2020-21'!$BE65),0) -> 0 | R63: =IFERROR(INDEX('MC PT SA (CHA Only)'!K:K,MATCH(A63,'MC PT SA (CHA Only)'!A:A,0))*('5. FY 2020-21'!$BB65/'5. FY 2020-21'!$BE65),0) -> 0 | S63: 0 | T63: 0 | U63: 0 | V63: 0 | W63: 0 | X63: =IFERROR('3. VARIABLE INPUT'!$K$46*INDEX('14. SFY 18-19 MIUR'!J:J,MATCH(A63,'14. SFY 18-19 MIUR'!A:A,0))*('6. FY 2021-22'!$BB65/'6. FY 2021-22'!$BE65),0)/2 -> 0 | Y63: =IFERROR('3. VARIABLE INPUT'!$K$47*INDEX('13. 2016 OSHPD MEDI-CAL MC OP'!L:L,MATCH(A63,'13. 2016 OSHPD MEDI-CAL MC OP'!A:A,0))*('6. FY 2021-22'!$BB65/'6. FY 2021-22'!$BE65),0)/2 -> 0 | Z63: =IFERROR('3. VARIABLE INPUT'!$K$48*INDEX('13. CY2016 MEDI-CAL FFS DAYS'!Y:Y,MATCH(A63,'13. CY2016 MEDI-CAL FFS DAYS'!A:A,0))*('6. FY 2021-22'!$BB65/'6. FY 2021-22'!$BE65),0)/2 -> 0 | AA63: =IFERROR(INDEX('MC PT SA (CHA Only)'!K:K,MATCH(A63,'MC PT SA (CHA Only)'!A:A,0))*('6. FY 2021-22'!$BB65/'6. FY 2021-22'!$BE65),0)/2 -> 0 | AB63: 0 | AC63: 0 | AD63: 0 | AE63: 0 | AF63: 0
A64: 106190045 | B64: 190045 | C64: 51307 | D64: 3 | E64: CATALINA ISLAND MEDICAL CENTER | F64: =IFERROR('3. VARIABLE INPUT'!$C$46*INDEX('14. SFY 18-19 MIUR'!J:J,MATCH(A64,'14. SFY 18-19 MIUR'!A:A,0))*('4. FY 2019-20'!$BB66/'4. FY 2019-20'!$BE66),0) -> 0 | G64: =IFERROR('3. VARIABLE INPUT'!$C$47*INDEX('13. 2016 OSHPD MEDI-CAL MC OP'!L:L,MATCH(A64,'13. 2016 OSHPD MEDI-CAL MC OP'!A:A,0))*('4. FY 2019-20'!$BB66/'4. FY 2019-20'!$BE66),0) -> 0 | H64: =IFERROR('3. VARIABLE INPUT'!$C$48*INDEX('13. CY2016 MEDI-CAL FFS DAYS'!Y:Y,MATCH(A64,'13. CY2016 MEDI-CAL FFS DAYS'!A:A,0))*('4. FY 2019-20'!$BB66/'4. FY 2019-20'!$BE66),0) -> 0 | I64: =IFERROR(INDEX('MC PT SA (CHA Only)'!K:K,MATCH(A64,'MC PT SA (CHA Only)'!A:A,0))*('4. FY 2019-20'!$BB66/'4. FY 2019-20'!$BE66),0) -> 0 | J64: 0 | K64: 0 | L64: 0 | M64: 0 | N64: 0 | O64: =IFERROR('3. VARIABLE INPUT'!$G$46*INDEX('14. SFY 18-19 MIUR'!J:J,MATCH(A64,'14. SFY 18-19 MIUR'!A:A,0))*('5. FY 2020-21'!$BB66/'5. FY 2020-21'!$BE66),0) -> 0 | P64: =IFERROR('3. VARIABLE INPUT'!$G$47*INDEX('13. 2016 OSHPD MEDI-CAL MC OP'!L:L,MATCH(A64,'13. 2016 OSHPD MEDI-CAL MC OP'!A:A,0))*('5. FY 2020-21'!$BB66/'5. FY 2020-21'!$BE66),0) -> 0 | Q64: =IFERROR('3. VARIABLE INPUT'!$G$48*INDEX('13. CY2016 MEDI-CAL FFS DAYS'!Y:Y,MATCH(A64,'13. CY2016 MEDI-CAL FFS DAYS'!A:A,0))*('5. FY 2020-21'!$BB66/'5. FY 2020-21'!$BE66),0) -> 0 | R64: =IFERROR(INDEX('MC PT SA (CHA Only)'!K:K,MATCH(A64,'MC PT SA (CHA Only)'!A:A,0))*('5. FY 2020-21'!$BB66/'5. FY 2020-21'!$BE66),0) -> 0 | S64: 0 | T64: 0 | U64: 0 | V64: 0 | W64: 0 | X64: =IFERROR('3. VARIABLE INPUT'!$K$46*INDEX('14. SFY 18-19 MIUR'!J:J,MATCH(A64,'14. SFY 18-19 MIUR'!A:A,0))*('6. FY 2021-22'!$BB66/'6. FY 2021-22'!$BE66),0)/2 -> 0 | Y64: =IFERROR('3. VARIABLE INPUT'!$K$47*INDEX('13. 2016 OSHPD MEDI-CAL MC OP'!L:L,MATCH(A64,'13. 2016 OSHPD MEDI-CAL MC OP'!A:A,0))*('6. FY 2021-22'!$BB66/'6. FY 2021-22'!$BE66),0)/2 -> 0 | Z64: =IFERROR('3. VARIABLE INPUT'!$K$48*INDEX('13. CY2016 MEDI-CAL FFS DAYS'!Y:Y,MATCH(A64,'13. CY2016 MEDI-CAL FFS DAYS'!A:A,0))*('6. FY 2021-22'!$BB66/'6. FY 2021-22'!$BE66),0)/2 -> 0 | AA64: =IFERROR(INDEX('MC PT SA (CHA Only)'!K:K,MATCH(A64,'MC PT SA (CHA Only)'!A:A,0))*('6. FY 2021-22'!$BB66/'6. FY 2021-22'!$BE66),0)/2 -> 0 | AB64: 0 | AC64: 0 | AD64: 0 | AE64: 0 | AF64: 0
A65: 106190555 | B65: 190555 | C65: 50625 | D65: 3 | E65: CEDARS-SINAI MEDICAL CENTER | F65: =IFERROR('3. VARIABLE INPUT'!$C$46*INDEX('14. SFY 18-19 MIUR'!J:J,MATCH(A65,'14. SFY 18-19 MIUR'!A:A,0))*('4. FY 2019-20'!$BB67/'4. FY 2019-20'!$BE67),0) -> 4239866.454 | G65: =IFERROR('3. VARIABLE INPUT'!$C$47*INDEX('13. 2016 OSHPD MEDI-CAL MC OP'!L:L,MATCH(A65,'13. 2016 OSHPD MEDI-CAL MC OP'!A:A,0))*('4. FY 2019-20'!$BB67/'4. FY 2019-20'!$BE67),0) -> 2072856.083 | H65: =IFERROR('3. VARIABLE INPUT'!$C$48*INDEX('13. CY2016 MEDI-CAL FFS DAYS'!Y:Y,MATCH(A65,'13. CY2016 MEDI-CAL FFS DAYS'!A:A,0))*('4. FY 2019-20'!$BB67/'4. FY 2019-20'!$BE67),0) -> 2332275.393 | I65: =IFERROR(INDEX('MC PT SA (CHA Only)'!K:K,MATCH(A65,'MC PT SA (CHA Only)'!A:A,0))*('4. FY 2019-20'!$BB67/'4. FY 2019-20'!$BE67),0) -> 0 | J65: 8644997.93 | K65: 9882607.589 | L65: 1337449.121 | M65: 11220056.71 | N65: 19865054.64 | O65: =IFERROR('3. VARIABLE INPUT'!$G$46*INDEX('14. SFY 18-19 MIUR'!J:J,MATCH(A65,'14. SFY 18-19 MIUR'!A:A,0))*('5. FY 2020-21'!$BB67/'5. FY 2020-21'!$BE67),0) -> 4390303.529 | P65: =IFERROR('3. VARIABLE INPUT'!$G$47*INDEX('13. 2016 OSHPD MEDI-CAL MC OP'!L:L,MATCH(A65,'13. 2016 OSHPD MEDI-CAL MC OP'!A:A,0))*('5. FY 2020-21'!$BB67/'5. FY 2020-21'!$BE67),0) -> 1911859.046 | Q65: =IFERROR('3. VARIABLE INPUT'!$G$48*INDEX('13. CY2016 MEDI-CAL FFS DAYS'!Y:Y,MATCH(A65,'13. CY2016 MEDI-CAL FFS DAYS'!A:A,0))*('5. FY 2020-21'!$BB67/'5. FY 2020-21'!$BE67),0) -> 2405956.837 | R65: =IFERROR(INDEX('MC PT SA (CHA Only)'!K:K,MATCH(A65,'MC PT SA (CHA Only)'!A:A,0))*('5. FY 2020-21'!$BB67/'5. FY 2020-21'!$BE67),0) -> 0 | S65: 8708119.412 | T65: 10194819.78 | U65: 1379701.929 | V65: 11574521.71 | W65: 20282641.12 | X65: =IFERROR('3. VARIABLE INPUT'!$K$46*INDEX('14. SFY 18-19 MIUR'!J:J,MATCH(A65,'14. SFY 18-19 MIUR'!A:A,0))*('6. FY 2021-22'!$BB67/'6. FY 2021-22'!$BE67),0)/2 -> 2128428.66 | Y65: =IFERROR('3. VARIABLE INPUT'!$K$47*INDEX('13. 2016 OSHPD MEDI-CAL MC OP'!L:L,MATCH(A65,'13. 2016 OSHPD MEDI-CAL MC OP'!A:A,0))*('6. FY 2021-22'!$BB67/'6. FY 2021-22'!$BE67),0)/2 -> 946699.1428 | Z65: =IFERROR('3. VARIABLE INPUT'!$K$48*INDEX('13. CY2016 MEDI-CAL FFS DAYS'!Y:Y,MATCH(A65,'13. CY2016 MEDI-CAL FFS DAYS'!A:A,0))*('6. FY 2021-22'!$BB67/'6. FY 2021-22'!$BE67),0)/2 -> 1241376.471 | AA65: =IFERROR(INDEX('MC PT SA (CHA Only)'!K:K,MATCH(A65,'MC PT SA (CHA Only)'!A:A,0))*('6. FY 2021-22'!$BB67/'6. FY 2021-22'!$BE67),0)/2 -> 0 | AB65: 4316504.273 | AC65: 5260114.894 | AD65: 711870.4227 | AE65: 5971985.316 | AF65: 10288489.59
A66: 106190148 | B66: 190148 | C66: 50739 | D66: 3 | E66: CENTINELA HOSPITAL MEDICAL CENTER | F66: =IFERROR('3. VARIABLE INPUT'!$C$46*INDEX('14. SFY 18-19 MIUR'!J:J,MATCH(A66,'14. SFY 18-19 MIUR'!A:A,0))*('4. FY 2019-20'!$BB68/'4. FY 2019-20'!$BE68),0) -> 4297712.694 | G66: =IFERROR('3. VARIABLE INPUT'!$C$47*INDEX('13. 2016 OSHPD MEDI-CAL MC OP'!L:L,MATCH(A66,'13. 2016 OSHPD MEDI-CAL MC OP'!A:A,0))*('4. FY 2019-20'!$BB68/'4. FY 2019-20'!$BE68),0) -> 2509070.343 | H66: =IFERROR('3. VARIABLE INPUT'!$C$48*INDEX('13. CY2016 MEDI-CAL FFS DAYS'!Y:Y,MATCH(A66,'13. CY2016 MEDI-CAL FFS DAYS'!A:A,0))*('4. FY 2019-20'!$BB68/'4. FY 2019-20'!$BE68),0) -> 1075563.895 | I66: =IFERROR(INDEX('MC PT SA (CHA Only)'!K:K,MATCH(A66,'MC PT SA (CHA Only)'!A:A,0))*('4. FY 2019-20'!$BB68/'4. FY 2019-20'!$BE68),0) -> 0 | J66: 7882346.932 | K66: 16361149.99 | L66: 2644937.766 | M66: 19006087.75 | N66: 26888434.69 | O66: =IFERROR('3. VARIABLE INPUT'!$G$46*INDEX('14. SFY 18-19 MIUR'!J:J,MATCH(A66,'14. SFY 18-19 MIUR'!A:A,0))*('5. FY 2020-21'!$BB68/'5. FY 2020-21'!$BE68),0) -> 4450202.243 | P66: =IFERROR('3. VARIABLE INPUT'!$G$47*INDEX('13. 2016 OSHPD MEDI-CAL MC OP'!L:L,MATCH(A66,'13. 2016 OSHPD MEDI-CAL MC OP'!A:A,0))*('5. FY 2020-21'!$BB68/'5. FY 2020-21'!$BE68),0) -> 2314192.9 | Q66: =IFERROR('3. VARIABLE INPUT'!$G$48*INDEX('13. CY2016 MEDI-CAL FFS DAYS'!Y:Y,MATCH(A66,'13. CY2016 MEDI-CAL FFS DAYS'!A:A,0))*('5. FY 2020-21'!$BB68/'5. FY 2020-21'!$BE68),0) -> 1109543.202 | R66: =IFERROR(INDEX('MC PT SA (CHA Only)'!K:K,MATCH(A66,'MC PT SA (CHA Only)'!A:A,0))*('5. FY 2020-21'!$BB68/'5. FY 2020-21'!$BE68),0) -> 0 | S66: 7873938.346 | T66: 16878032.84 | U66: 2728496.867 | V66: 19606529.71 | W66: 27480468.06 | X66: =IFERROR('3. VARIABLE INPUT'!$K$46*INDEX('14. SFY 18-19 MIUR'!J:J,MATCH(A66,'14. SFY 18-19 MIUR'!A:A,0))*('6. FY 2021-22'!$BB68/'6. FY 2021-22'!$BE68),0)/2 -> 2157467.686 | Y66: =IFERROR('3. VARIABLE INPUT'!$K$47*INDEX('13. 2016 OSHPD MEDI-CAL MC OP'!L:L,MATCH(A66,'13. 2016 OSHPD MEDI-CAL MC OP'!A:A,0))*('6. FY 2021-22'!$BB68/'6. FY 2021-22'!$BE68),0)/2 -> 1145923.618 | Z66: =IFERROR('3. VARIABLE INPUT'!$K$48*INDEX('13. CY2016 MEDI-CAL FFS DAYS'!Y:Y,MATCH(A66,'13. CY2016 MEDI-CAL FFS DAYS'!A:A,0))*('6. FY 2021-22'!$BB68/'6. FY 2021-22'!$BE68),0)/2 -> 572479.4403 | AA66: =IFERROR(INDEX('MC PT SA (CHA Only)'!K:K,MATCH(A66,'MC PT SA (CHA Only)'!A:A,0))*('6. FY 2021-22'!$BB68/'6. FY 2021-22'!$BE68),0)/2 -> 0 | AB66: 3875870.745 | AC66: 8708382.677 | AD66: 1407794.088 | AE66: 10116176.76 | AF66: 13992047.51
A67: 106500954 | B67: 500954 | C67: 52055 | D67: 3 | E67: CENTRAL VALLEY SPECIALTY HOSPITAL | F67: =IFERROR('3. VARIABLE INPUT'!$C$46*INDEX('14. SFY 18-19 MIUR'!J:J,MATCH(A67,'14. SFY 18-19 MIUR'!A:A,0))*('4. FY 2019-20'!$BB69/'4. FY 2019-20'!$BE69),0) -> 0 | G67: =IFERROR('3. VARIABLE INPUT'!$C$47*INDEX('13. 2016 OSHPD MEDI-CAL MC OP'!L:L,MATCH(A67,'13. 2016 OSHPD MEDI-CAL MC OP'!A:A,0))*('4. FY 2019-20'!$BB69/'4. FY 2019-20'!$BE69),0) -> 0 | H67: =IFERROR('3. VARIABLE INPUT'!$C$48*INDEX('13. CY2016 MEDI-CAL FFS DAYS'!Y:Y,MATCH(A67,'13. CY2016 MEDI-CAL FFS DAYS'!A:A,0))*('4. FY 2019-20'!$BB69/'4. FY 2019-20'!$BE69),0) -> 0 | I67: =IFERROR(INDEX('MC PT SA (CHA Only)'!K:K,MATCH(A67,'MC PT SA (CHA Only)'!A:A,0))*('4. FY 2019-20'!$BB69/'4. FY 2019-20'!$BE69),0) -> 0 | J67: 0 | K67: 0 | L67: 0 | M67: 0 | N67: 0 | O67: =IFERROR('3. VARIABLE INPUT'!$G$46*INDEX('14. SFY 18-19 MIUR'!J:J,MATCH(A67,'14. SFY 18-19 MIUR'!A:A,0))*('5. FY 2020-21'!$BB69/'5. FY 2020-21'!$BE69),0) -> 0 | P67: =IFERROR('3. VARIABLE INPUT'!$G$47*INDEX('13. 2016 OSHPD MEDI-CAL MC OP'!L:L,MATCH(A67,'13. 2016 OSHPD MEDI-CAL MC OP'!A:A,0))*('5. FY 2020-21'!$BB69/'5. FY 2020-21'!$BE69),0) -> 0 | Q67: =IFERROR('3. VARIABLE INPUT'!$G$48*INDEX('13. CY2016 MEDI-CAL FFS DAYS'!Y:Y,MATCH(A67,'13. CY2016 MEDI-CAL FFS DAYS'!A:A,0))*('5. FY 2020-21'!$BB69/'5. FY 2020-21'!$BE69),0) -> 0 | R67: =IFERROR(INDEX('MC PT SA (CHA Only)'!K:K,MATCH(A67,'MC PT SA (CHA Only)'!A:A,0))*('5. FY 2020-21'!$BB69/'5. FY 2020-21'!$BE69),0) -> 0 | S67: 0 | T67: 0 | U67: 0 | V67: 0 | W67: 0 | X67: =IFERROR('3. VARIABLE INPUT'!$K$46*INDEX('14. SFY 18-19 MIUR'!J:J,MATCH(A67,'14. SFY 18-19 MIUR'!A:A,0))*('6. FY 2021-22'!$BB69/'6. FY 2021-22'!$BE69),0)/2 -> 0 | Y67: =IFERROR('3. VARIABLE INPUT'!$K$47*INDEX('13. 2016 OSHPD MEDI-CAL MC OP'!L:L,MATCH(A67,'13. 2016 OSHPD MEDI-CAL MC OP'!A:A,0))*('6. FY 2021-22'!$BB69/'6. FY 2021-22'!$BE69),0)/2 -> 0 | Z67: =IFERROR('3. VARIABLE INPUT'!$K$48*INDEX('13. CY2016 MEDI-CAL FFS DAYS'!Y:Y,MATCH(A67,'13. CY2016 MEDI-CAL FFS DAYS'!A:A,0))*('6. FY 2021-22'!$BB69/'6. FY 2021-22'!$BE69),0)/2 -> 0 | AA67: =IFERROR(INDEX('MC PT SA (CHA Only)'!K:K,MATCH(A67,'MC PT SA (CHA Only)'!A:A,0))*('6. FY 2021-22'!$BB69/'6. FY 2021-22'!$BE69),0)/2 -> 0 | AB67: 0 | AC67: 0 | AD67: 0 | AE67: 0 | AF67: 0
A68: 106301140 | B68: 301140 | C68: 50745 | D68: 3 | E68: CHAPMAN GLOBAL MEDICAL CENTER | F68: =IFERROR('3. VARIABLE INPUT'!$C$46*INDEX('14. SFY 18-19 MIUR'!J:J,MATCH(A68,'14. SFY 18-19 MIUR'!A:A,0))*('4. FY 2019-20'!$BB70/'4. FY 2019-20'!$BE70),0) -> 146587.6309 | G68: =IFERROR('3. VARIABLE INPUT'!$C$47*INDEX('13. 2016 OSHPD MEDI-CAL MC OP'!L:L,MATCH(A68,'13. 2016 OSHPD MEDI-CAL MC OP'!A:A,0))*('4. FY 2019-20'!$BB70/'4. FY 2019-20'!$BE70),0) -> 345944.2818 | H68: =IFERROR('3. VARIABLE INPUT'!$C$48*INDEX('13. CY2016 MEDI-CAL FFS DAYS'!Y:Y,MATCH(A68,'13. CY2016 MEDI-CAL FFS DAYS'!A:A,0))*('4. FY 2019-20'!$BB70/'4. FY 2019-20'!$BE70),0) -> 0 | I68: =IFERROR(INDEX('MC PT SA (CHA Only)'!K:K,MATCH(A68,'MC PT SA (CHA Only)'!A:A,0))*('4. FY 2019-20'!$BB70/'4. FY 2019-20'!$BE70),0) -> 3088222 | J68: 3580753.913 | K68: 709494.7403 | L68: 390159.4592 | M68: 1099654.2 | N68: 4680408.112 | O68: =IFERROR('3. VARIABLE INPUT'!$G$46*INDEX('14. SFY 18-19 MIUR'!J:J,MATCH(A68,'14. SFY 18-19 MIUR'!A:A,0))*('5. FY 2020-21'!$BB70/'5. FY 2020-21'!$BE70),0) -> 151788.7887 | P68: =IFERROR('3. VARIABLE INPUT'!$G$47*INDEX('13. 2016 OSHPD MEDI-CAL MC OP'!L:L,MATCH(A68,'13. 2016 OSHPD MEDI-CAL MC OP'!A:A,0))*('5. FY 2020-21'!$BB70/'5. FY 2020-21'!$BE70),0) -> 319075.0723 | Q68: =IFERROR('3. VARIABLE INPUT'!$G$48*INDEX('13. CY2016 MEDI-CAL FFS DAYS'!Y:Y,MATCH(A68,'13. CY2016 MEDI-CAL FFS DAYS'!A:A,0))*('5. FY 2020-21'!$BB70/'5. FY 2020-21'!$BE70),0) -> 0 | R68: =IFERROR(INDEX('MC PT SA (CHA Only)'!K:K,MATCH(A68,'MC PT SA (CHA Only)'!A:A,0))*('5. FY 2020-21'!$BB70/'5. FY 2020-21'!$BE70),0) -> 3088222 | S68: 3559085.861 | T68: 731909.1592 | U68: 402485.4104 | V68: 1134394.57 | W68: 4693480.43 | X68: =IFERROR('3. VARIABLE INPUT'!$K$46*INDEX('14. SFY 18-19 MIUR'!J:J,MATCH(A68,'14. SFY 18-19 MIUR'!A:A,0))*('6. FY 2021-22'!$BB70/'6. FY 2021-22'!$BE70),0)/2 -> 73587.53351 | Y68: =IFERROR('3. VARIABLE INPUT'!$K$47*INDEX('13. 2016 OSHPD MEDI-CAL MC OP'!L:L,MATCH(A68,'13. 2016 OSHPD MEDI-CAL MC OP'!A:A,0))*('6. FY 2021-22'!$BB70/'6. FY 2021-22'!$BE70),0)/2 -> 157997.0543 | Z68: =IFERROR('3. VARIABLE INPUT'!$K$48*INDEX('13. CY2016 MEDI-CAL FFS DAYS'!Y:Y,MATCH(A68,'13. CY2016 MEDI-CAL FFS DAYS'!A:A,0))*('6. FY 2021-22'!$BB70/'6. FY 2021-22'!$BE70),0)/2 -> 0 | AA68: =IFERROR(INDEX('MC PT SA (CHA Only)'!K:K,MATCH(A68,'MC PT SA (CHA Only)'!A:A,0))*('6. FY 2021-22'!$BB70/'6. FY 2021-22'!$BE70),0)/2 -> 1544111 | AB68: 1775695.588 | AC68: 377635.5397 | AD68: 207666.2018 | AE68: 585301.7416 | AF68: 2360997.329
A69: 106010776 | B69: 10776 | C69: 53301 | D69: 3 | E69: CHILDREN'S HOSPITAL AND RESEARCH CENTER AT OAKLAND | F69: =IFERROR('3. VARIABLE INPUT'!$C$46*INDEX('14. SFY 18-19 MIUR'!J:J,MATCH(A69,'14. SFY 18-19 MIUR'!A:A,0))*('4. FY 2019-20'!$BB71/'4. FY 2019-20'!$BE71),0) -> 3282335.891 | G69: =IFERROR('3. VARIABLE INPUT'!$C$47*INDEX('13. 2016 OSHPD MEDI-CAL MC OP'!L:L,MATCH(A69,'13. 2016 OSHPD MEDI-CAL MC OP'!A:A,0))*('4. FY 2019-20'!$BB71/'4. FY 2019-20'!$BE71),0) -> 2809607.738 | H69: =IFERROR('3. VARIABLE INPUT'!$C$48*INDEX('13. CY2016 MEDI-CAL FFS DAYS'!Y:Y,MATCH(A69,'13. CY2016 MEDI-CAL FFS DAYS'!A:A,0))*('4. FY 2019-20'!$BB71/'4. FY 2019-20'!$BE71),0) -> 18265716.67 | I69: =IFERROR(INDEX('MC PT SA (CHA Only)'!K:K,MATCH(A69,'MC PT SA (CHA Only)'!A:A,0))*('4. FY 2019-20'!$BB71/'4. FY 2019-20'!$BE71),0) -> 0 | J69: 24357660.3 | K69: 8715211.988 | L69: 3959832.372 | M69: 12675044.36 | N69: 37032704.66 | O69: =IFERROR('3. VARIABLE INPUT'!$G$46*INDEX('14. SFY 18-19 MIUR'!J:J,MATCH(A69,'14. SFY 18-19 MIUR'!A:A,0))*('5. FY 2020-21'!$BB71/'5. FY 2020-21'!$BE71),0) -> 3398798.287 | P69: =IFERROR('3. VARIABLE INPUT'!$G$47*INDEX('13. 2016 OSHPD MEDI-CAL MC OP'!L:L,MATCH(A69,'13. 2016 OSHPD MEDI-CAL MC OP'!A:A,0))*('5. FY 2020-21'!$BB71/'5. FY 2020-21'!$BE71),0) -> 2591387.802 | Q69: =IFERROR('3. VARIABLE INPUT'!$G$48*INDEX('13. CY2016 MEDI-CAL FFS DAYS'!Y:Y,MATCH(A69,'13. CY2016 MEDI-CAL FFS DAYS'!A:A,0))*('5. FY 2020-21'!$BB71/'5. FY 2020-21'!$BE71),0) -> 18842768.76 | R69: =IFERROR(INDEX('MC PT SA (CHA Only)'!K:K,MATCH(A69,'MC PT SA (CHA Only)'!A:A,0))*('5. FY 2020-21'!$BB71/'5. FY 2020-21'!$BE71),0) -> 0 | S69: 24832954.85 | T69: 8990543.714 | U69: 4084931.736 | V69: 13075475.45 | W69: 37908430.3 | X69: =IFERROR('3. VARIABLE INPUT'!$K$46*INDEX('14. SFY 18-19 MIUR'!J:J,MATCH(A69,'14. SFY 18-19 MIUR'!A:A,0))*('6. FY 2021-22'!$BB71/'6. FY 2021-22'!$BE71),0)/2 -> 1647744.771 | Y69: =IFERROR('3. VARIABLE INPUT'!$K$47*INDEX('13. 2016 OSHPD MEDI-CAL MC OP'!L:L,MATCH(A69,'13. 2016 OSHPD MEDI-CAL MC OP'!A:A,0))*('6. FY 2021-22'!$BB71/'6. FY 2021-22'!$BE71),0)/2 -> 1283182.783 | Z69: =IFERROR('3. VARIABLE INPUT'!$K$48*INDEX('13. CY2016 MEDI-CAL FFS DAYS'!Y:Y,MATCH(A69,'13. CY2016 MEDI-CAL FFS DAYS'!A:A,0))*('6. FY 2021-22'!$BB71/'6. FY 2021-22'!$BE71),0)/2 -> 9722106.987 | AA69: =IFERROR(INDEX('MC PT SA (CHA Only)'!K:K,MATCH(A69,'MC PT SA (CHA Only)'!A:A,0))*('6. FY 2021-22'!$BB71/'6. FY 2021-22'!$BE71),0)/2 -> 0 | AB69: 12653034.54 | AC69: 4638757.126 | AD69: 2107659.648 | AE69: 6746416.775 | AF69: 19399451.32
A70: 106304113 | B70: 304113 | C70: 53306 | D70: 3 | E70: CHILDREN'S HOSPITAL AT MISSION | F70: =IFERROR('3. VARIABLE INPUT'!$C$46*INDEX('14. SFY 18-19 MIUR'!J:J,MATCH(A70,'14. SFY 18-19 MIUR'!A:A,0))*('4. FY 2019-20'!$BB72/'4. FY 2019-20'!$BE72),0) -> 277179.9 | G70: =IFERROR('3. VARIABLE INPUT'!$C$47*INDEX('13. 2016 OSHPD MEDI-CAL MC OP'!L:L,MATCH(A70,'13. 2016 OSHPD MEDI-CAL MC OP'!A:A,0))*('4. FY 2019-20'!$BB72/'4. FY 2019-20'!$BE72),0) -> 735482.7998 | H70: =IFERROR('3. VARIABLE INPUT'!$C$48*INDEX('13. CY2016 MEDI-CAL FFS DAYS'!Y:Y,MATCH(A70,'13. CY2016 MEDI-CAL FFS DAYS'!A:A,0))*('4. FY 2019-20'!$BB72/'4. FY 2019-20'!$BE72),0) -> 700688.9934 | I70: =IFERROR(INDEX('MC PT SA (CHA Only)'!K:K,MATCH(A70,'MC PT SA (CHA Only)'!A:A,0))*('4. FY 2019-20'!$BB72/'4. FY 2019-20'!$BE72),0) -> 0 | J70: 1713351.693 | K70: 1255453.459 | L70: 1240161.732 | M70: 2495615.191 | N70: 4208966.884 | O70: =IFERROR('3. VARIABLE INPUT'!$G$46*INDEX('14. SFY 18-19 MIUR'!J:J,MATCH(A70,'14. SFY 18-19 MIUR'!A:A,0))*('5. FY 2020-21'!$BB72/'5. FY 2020-21'!$BE72),0) -> 287014.6751 | P70: =IFERROR('3. VARIABLE INPUT'!$G$47*INDEX('13. 2016 OSHPD MEDI-CAL MC OP'!L:L,MATCH(A70,'13. 2016 OSHPD MEDI-CAL MC OP'!A:A,0))*('5. FY 2020-21'!$BB72/'5. FY 2020-21'!$BE72),0) -> 678358.4521 | Q70: =IFERROR('3. VARIABLE INPUT'!$G$48*INDEX('13. CY2016 MEDI-CAL FFS DAYS'!Y:Y,MATCH(A70,'13. CY2016 MEDI-CAL FFS DAYS'!A:A,0))*('5. FY 2020-21'!$BB72/'5. FY 2020-21'!$BE72),0) -> 722825.2203 | R70: =IFERROR(INDEX('MC PT SA (CHA Only)'!K:K,MATCH(A70,'MC PT SA (CHA Only)'!A:A,0))*('5. FY 2020-21'!$BB72/'5. FY 2020-21'!$BE72),0) -> 0 | S70: 1688198.347 | T70: 1295115.853 | U70: 1279341.028 | V70: 2574456.881 | W70: 4262655.228 | X70: =IFERROR('3. VARIABLE INPUT'!$K$46*INDEX('14. SFY 18-19 MIUR'!J:J,MATCH(A70,'14. SFY 18-19 MIUR'!A:A,0))*('6. FY 2021-22'!$BB72/'6. FY 2021-22'!$BE72),0)/2 -> 139145.3362 | Y70: =IFERROR('3. VARIABLE INPUT'!$K$47*INDEX('13. 2016 OSHPD MEDI-CAL MC OP'!L:L,MATCH(A70,'13. 2016 OSHPD MEDI-CAL MC OP'!A:A,0))*('6. FY 2021-22'!$BB72/'6. FY 2021-22'!$BE72),0)/2 -> 335904.1382 | Z70: =IFERROR('3. VARIABLE INPUT'!$K$48*INDEX('13. CY2016 MEDI-CAL FFS DAYS'!Y:Y,MATCH(A70,'13. CY2016 MEDI-CAL FFS DAYS'!A:A,0))*('6. FY 2021-22'!$BB72/'6. FY 2021-22'!$BE72),0)/2 -> 372948.5945 | AA70: =IFERROR(INDEX('MC PT SA (CHA Only)'!K:K,MATCH(A70,'MC PT SA (CHA Only)'!A:A,0))*('6. FY 2021-22'!$BB72/'6. FY 2021-22'!$BE72),0)/2 -> 0 | AB70: 847998.0688 | AC70: 668227.4267 | AD70: 660088.2551 | AE70: 1328315.682 | AF70: 2176313.751
A71: 106190170 | B71: 190170 | C71: 53302 | D71: 3 | E71: CHILDREN'S HOSPITAL OF LOS ANGELES | F71: =IFERROR('3. VARIABLE INPUT'!$C$46*INDEX('14. SFY 18-19 MIUR'!J:J,MATCH(A71,'14. SFY 18-19 MIUR'!A:A,0))*('4. FY 2019-20'!$BB73/'4. FY 2019-20'!$BE73),0) -> 7634388.993 | G71: =IFERROR('3. VARIABLE INPUT'!$C$47*INDEX('13. 2016 OSHPD MEDI-CAL MC OP'!L:L,MATCH(A71,'13. 2016 OSHPD MEDI-CAL MC OP'!A:A,0))*('4. FY 2019-20'!$BB73/'4. FY 2019-20'!$BE73),0) -> 1649964.802 | H71: =IFERROR('3. VARIABLE INPUT'!$C$48*INDEX('13. CY2016 MEDI-CAL FFS DAYS'!Y:Y,MATCH(A71,'13. CY2016 MEDI-CAL FFS DAYS'!A:A,0))*('4. FY 2019-20'!$BB73/'4. FY 2019-20'!$BE73),0) -> 41666464.7 | I71: =IFERROR(INDEX('MC PT SA (CHA Only)'!K:K,MATCH(A71,'MC PT SA (CHA Only)'!A:A,0))*('4. FY 2019-20'!$BB73/'4. FY 2019-20'!$BE73),0) -> 0 | J71: 50950818.5 | K71: 8045972.268 | L71: 10123611.23 | M71: 18169583.5 | N71: 69120401.99 | O71: =IFERROR('3. VARIABLE INPUT'!$G$46*INDEX('14. SFY 18-19 MIUR'!J:J,MATCH(A71,'14. SFY 18-19 MIUR'!A:A,0))*('5. FY 2020-21'!$BB73/'5. FY 2020-21'!$BE73),0) -> 7905269.02 | P71: =IFERROR('3. VARIABLE INPUT'!$G$47*INDEX('13. 2016 OSHPD MEDI-CAL MC OP'!L:L,MATCH(A71,'13. 2016 OSHPD MEDI-CAL MC OP'!A:A,0))*('5. FY 2020-21'!$BB73/'5. FY 2020-21'!$BE73),0) -> 1521813.385 | Q71: =IFERROR('3. VARIABLE INPUT'!$G$48*INDEX('13. CY2016 MEDI-CAL FFS DAYS'!Y:Y,MATCH(A71,'13. CY2016 MEDI-CAL FFS DAYS'!A:A,0))*('5. FY 2020-21'!$BB73/'5. FY 2020-21'!$BE73),0) -> 42982795.23 | R71: =IFERROR(INDEX('MC PT SA (CHA Only)'!K:K,MATCH(A71,'MC PT SA (CHA Only)'!A:A,0))*('5. FY 2020-21'!$BB73/'5. FY 2020-21'!$BE73),0) -> 0 | S71: 52409877.64 | T71: 8300161.315 | U71: 10443437.23 | V71: 18743598.54 | W71: 71153476.18 | X71: =IFERROR('3. VARIABLE INPUT'!$K$46*INDEX('14. SFY 18-19 MIUR'!J:J,MATCH(A71,'14. SFY 18-19 MIUR'!A:A,0))*('6. FY 2021-22'!$BB73/'6. FY 2021-22'!$BE73),0)/2 -> 3832491.543 | Y71: =IFERROR('3. VARIABLE INPUT'!$K$47*INDEX('13. 2016 OSHPD MEDI-CAL MC OP'!L:L,MATCH(A71,'13. 2016 OSHPD MEDI-CAL MC OP'!A:A,0))*('6. FY 2021-22'!$BB73/'6. FY 2021-22'!$BE73),0)/2 -> 753559.4375 | Z71: =IFERROR('3. VARIABLE INPUT'!$K$48*INDEX('13. CY2016 MEDI-CAL FFS DAYS'!Y:Y,MATCH(A71,'13. CY2016 MEDI-CAL FFS DAYS'!A:A,0))*('6. FY 2021-22'!$BB73/'6. FY 2021-22'!$BE73),0)/2 -> 22177384.82 | AA71: =IFERROR(INDEX('MC PT SA (CHA Only)'!K:K,MATCH(A71,'MC PT SA (CHA Only)'!A:A,0))*('6. FY 2021-22'!$BB73/'6. FY 2021-22'!$BE73),0)/2 -> 0 | AB71: 26763435.8 | AC71: 4282547.716 | AD71: 5388391.448 | AE71: 9670939.164 | AF71: 36434374.97
A72: 106300032 | B72: 300032 | C72: 53304 | D72: 3 | E72: CHILDREN'S HOSPITAL OF ORANGE COUNTY | F72: =IFERROR('3. VARIABLE INPUT'!$C$46*INDEX('14. SFY 18-19 MIUR'!J:J,MATCH(A72,'14. SFY 18-19 MIUR'!A:A,0))*('4. FY 2019-20'!$BB74/'4. FY 2019-20'!$BE74),0) -> 4896552.747 | G72: =IFERROR('3. VARIABLE INPUT'!$C$47*INDEX('13. 2016 OSHPD MEDI-CAL MC OP'!L:L,MATCH(A72,'13. 2016 OSHPD MEDI-CAL MC OP'!A:A,0))*('4. FY 2019-20'!$BB74/'4. FY 2019-20'!$BE74),0) -> 4037315.687 | H72: =IFERROR('3. VARIABLE INPUT'!$C$48*INDEX('13. CY2016 MEDI-CAL FFS DAYS'!Y:Y,MATCH(A72,'13. CY2016 MEDI-CAL FFS DAYS'!A:A,0))*('4. FY 2019-20'!$BB74/'4. FY 2019-20'!$BE74),0) -> 25339278.98 | I72: =IFERROR(INDEX('MC PT SA (CHA Only)'!K:K,MATCH(A72,'MC PT SA (CHA Only)'!A:A,0))*('4. FY 2019-20'!$BB74/'4. FY 2019-20'!$BE74),0) -> 0 | J72: 34273147.42 | K72: 9389483.585 | L72: 17264640.23 | M72: 26654123.81 | N72: 60927271.23 | O72: =IFERROR('3. VARIABLE INPUT'!$G$46*INDEX('14. SFY 18-19 MIUR'!J:J,MATCH(A72,'14. SFY 18-19 MIUR'!A:A,0))*('5. FY 2020-21'!$BB74/'5. FY 2020-21'!$BE74),0) -> 5070290.075 | P72: =IFERROR('3. VARIABLE INPUT'!$G$47*INDEX('13. 2016 OSHPD MEDI-CAL MC OP'!L:L,MATCH(A72,'13. 2016 OSHPD MEDI-CAL MC OP'!A:A,0))*('5. FY 2020-21'!$BB74/'5. FY 2020-21'!$BE74),0) -> 3723740.678 | Q72: =IFERROR('3. VARIABLE INPUT'!$G$48*INDEX('13. CY2016 MEDI-CAL FFS DAYS'!Y:Y,MATCH(A72,'13. CY2016 MEDI-CAL FFS DAYS'!A:A,0))*('5. FY 2020-21'!$BB74/'5. FY 2020-21'!$BE74),0) -> 26139799.66 | R72: =IFERROR(INDEX('MC PT SA (CHA Only)'!K:K,MATCH(A72,'MC PT SA (CHA Only)'!A:A,0))*('5. FY 2020-21'!$BB74/'5. FY 2020-21'!$BE74),0) -> 0 | S72: 34933830.42 | T72: 9686116.957 | U72: 17810066.23 | V72: 27496183.18 | W72: 62430013.6 | X72: =IFERROR('3. VARIABLE INPUT'!$K$46*INDEX('14. SFY 18-19 MIUR'!J:J,MATCH(A72,'14. SFY 18-19 MIUR'!A:A,0))*('6. FY 2021-22'!$BB74/'6. FY 2021-22'!$BE74),0)/2 -> 2458087.61 | Y72: =IFERROR('3. VARIABLE INPUT'!$K$47*INDEX('13. 2016 OSHPD MEDI-CAL MC OP'!L:L,MATCH(A72,'13. 2016 OSHPD MEDI-CAL MC OP'!A:A,0))*('6. FY 2021-22'!$BB74/'6. FY 2021-22'!$BE74),0)/2 -> 1843892.266 | Z72: =IFERROR('3. VARIABLE INPUT'!$K$48*INDEX('13. CY2016 MEDI-CAL FFS DAYS'!Y:Y,MATCH(A72,'13. CY2016 MEDI-CAL FFS DAYS'!A:A,0))*('6. FY 2021-22'!$BB74/'6. FY 2021-22'!$BE74),0)/2 -> 13487079.96 | AA72: =IFERROR(INDEX('MC PT SA (CHA Only)'!K:K,MATCH(A72,'MC PT SA (CHA Only)'!A:A,0))*('6. FY 2021-22'!$BB74/'6. FY 2021-22'!$BE74),0)/2 -> 0 | AB72: 17789059.84 | AC72: 4997644.802 | AD72: 9189274.226 | AE72: 14186919.03 | AF72: 31975978.87
A73: 106382715 | B73: 382715 | C73: 50407 | D73: 3 | E73: CHINESE HOSPITAL | F73: =IFERROR('3. VARIABLE INPUT'!$C$46*INDEX('14. SFY 18-19 MIUR'!J:J,MATCH(A73,'14. SFY 18-19 MIUR'!A:A,0))*('4. FY 2019-20'!$BB75/'4. FY 2019-20'!$BE75),0) -> 87645.81818 | G73: =IFERROR('3. VARIABLE INPUT'!$C$47*INDEX('13. 2016 OSHPD MEDI-CAL MC OP'!L:L,MATCH(A73,'13. 2016 OSHPD MEDI-CAL MC OP'!A:A,0))*('4. FY 2019-20'!$BB75/'4. FY 2019-20'!$BE75),0) -> 271897.523 | H73: =IFERROR('3. VARIABLE INPUT'!$C$48*INDEX('13. CY2016 MEDI-CAL FFS DAYS'!Y:Y,MATCH(A73,'13. CY2016 MEDI-CAL FFS DAYS'!A:A,0))*('4. FY 2019-20'!$BB75/'4. FY 2019-20'!$BE75),0) -> 0 | I73: =IFERROR(INDEX('MC PT SA (CHA Only)'!K:K,MATCH(A73,'MC PT SA (CHA Only)'!A:A,0))*('4. FY 2019-20'!$BB75/'4. FY 2019-20'!$BE75),0) -> 0 | J73: 359543.3412 | K73: 176115.7157 | L73: 155188.5338 | M73: 331304.2495 | N73: 690847.5907 | O73: =IFERROR('3. VARIABLE INPUT'!$G$46*INDEX('14. SFY 18-19 MIUR'!J:J,MATCH(A73,'14. SFY 18-19 MIUR'!A:A,0))*('5. FY 2020-21'!$BB75/'5. FY 2020-21'!$BE75),0) -> 90755.6285 | P73: =IFERROR('3. VARIABLE INPUT'!$G$47*INDEX('13. 2016 OSHPD MEDI-CAL MC OP'!L:L,MATCH(A73,'13. 2016 OSHPD MEDI-CAL MC OP'!A:A,0))*('5. FY 2020-21'!$BB75/'5. FY 2020-21'!$BE75),0) -> 250779.4647 | Q73: =IFERROR('3. VARIABLE INPUT'!$G$48*INDEX('13. CY2016 MEDI-CAL FFS DAYS'!Y:Y,MATCH(A73,'13. CY2016 MEDI-CAL FFS DAYS'!A:A,0))*('5. FY 2020-21'!$BB75/'5. FY 2020-21'!$BE75),0) -> 0 | R73: =IFERROR(INDEX('MC PT SA (CHA Only)'!K:K,MATCH(A73,'MC PT SA (CHA Only)'!A:A,0))*('5. FY 2020-21'!$BB75/'5. FY 2020-21'!$BE75),0) -> 0 | S73: 341535.0932 | T73: 181679.5785 | U73: 160091.2633 | V73: 341770.8418 | W73: 683305.935 | X73: =IFERROR('3. VARIABLE INPUT'!$K$46*INDEX('14. SFY 18-19 MIUR'!J:J,MATCH(A73,'14. SFY 18-19 MIUR'!A:A,0))*('6. FY 2021-22'!$BB75/'6. FY 2021-22'!$BE75),0)/2 -> 43998.52527 | Y73: =IFERROR('3. VARIABLE INPUT'!$K$47*INDEX('13. 2016 OSHPD MEDI-CAL MC OP'!L:L,MATCH(A73,'13. 2016 OSHPD MEDI-CAL MC OP'!A:A,0))*('6. FY 2021-22'!$BB75/'6. FY 2021-22'!$BE75),0)/2 -> 124178.979 | Z73: =IFERROR('3. VARIABLE INPUT'!$K$48*INDEX('13. CY2016 MEDI-CAL FFS DAYS'!Y:Y,MATCH(A73,'13. CY2016 MEDI-CAL FFS DAYS'!A:A,0))*('6. FY 2021-22'!$BB75/'6. FY 2021-22'!$BE75),0)/2 -> 0 | AA73: =IFERROR(INDEX('MC PT SA (CHA Only)'!K:K,MATCH(A73,'MC PT SA (CHA Only)'!A:A,0))*('6. FY 2021-22'!$BB75/'6. FY 2021-22'!$BE75),0)/2 -> 0 | AB73: 168177.5043 | AC73: 93739.31837 | AD73: 82600.62041 | AE73: 176339.9388 | AF73: 344517.443
A74: 106361144 | B74: 361144 | C74: 50586 | D74: 3 | E74: CHINO VALLEY MEDICAL CENTER | F74: =IFERROR('3. VARIABLE INPUT'!$C$46*INDEX('14. SFY 18-19 MIUR'!J:J,MATCH(A74,'14. SFY 18-19 MIUR'!A:A,0))*('4. FY 2019-20'!$BB76/'4. FY 2019-20'!$BE76),0) -> 859148.1327 | G74: =IFERROR('3. VARIABLE INPUT'!$C$47*INDEX('13. 2016 OSHPD MEDI-CAL MC OP'!L:L,MATCH(A74,'13. 2016 OSHPD MEDI-CAL MC OP'!A:A,0))*('4. FY 2019-20'!$BB76/'4. FY 2019-20'!$BE76),0) -> 659895.2884 | H74: =IFERROR('3. VARIABLE INPUT'!$C$48*INDEX('13. CY2016 MEDI-CAL FFS DAYS'!Y:Y,MATCH(A74,'13. CY2016 MEDI-CAL FFS DAYS'!A:A,0))*('4. FY 2019-20'!$BB76/'4. FY 2019-20'!$BE76),0) -> 13837.66414 | I74: =IFERROR(INDEX('MC PT SA (CHA Only)'!K:K,MATCH(A74,'MC PT SA (CHA Only)'!A:A,0))*('4. FY 2019-20'!$BB76/'4. FY 2019-20'!$BE76),0) -> 0 | J74: 1532881.085 | K74: 1263001.275 | L74: 2670185.358 | M74: 3933186.634 | N74: 5466067.719 | O74: =IFERROR('3. VARIABLE INPUT'!$G$46*INDEX('14. SFY 18-19 MIUR'!J:J,MATCH(A74,'14. SFY 18-19 MIUR'!A:A,0))*('5. FY 2020-21'!$BB76/'5. FY 2020-21'!$BE76),0) -> 889632.0484 | P74: =IFERROR('3. VARIABLE INPUT'!$G$47*INDEX('13. 2016 OSHPD MEDI-CAL MC OP'!L:L,MATCH(A74,'13. 2016 OSHPD MEDI-CAL MC OP'!A:A,0))*('5. FY 2020-21'!$BB76/'5. FY 2020-21'!$BE76),0) -> 608641.7609 | Q74: =IFERROR('3. VARIABLE INPUT'!$G$48*INDEX('13. CY2016 MEDI-CAL FFS DAYS'!Y:Y,MATCH(A74,'13. CY2016 MEDI-CAL FFS DAYS'!A:A,0))*('5. FY 2020-21'!$BB76/'5. FY 2020-21'!$BE76),0) -> 14274.82482 | R74: =IFERROR(INDEX('MC PT SA (CHA Only)'!K:K,MATCH(A74,'MC PT SA (CHA Only)'!A:A,0))*('5. FY 2020-21'!$BB76/'5. FY 2020-21'!$BE76),0) -> 0 | S74: 1512548.634 | T74: 1302902.12 | U74: 2754542.084 | V74: 4057444.204 | W74: 5569992.838 | X74: =IFERROR('3. VARIABLE INPUT'!$K$46*INDEX('14. SFY 18-19 MIUR'!J:J,MATCH(A74,'14. SFY 18-19 MIUR'!A:A,0))*('6. FY 2021-22'!$BB76/'6. FY 2021-22'!$BE76),0)/2 -> 431295.5439 | Y74: =IFERROR('3. VARIABLE INPUT'!$K$47*INDEX('13. 2016 OSHPD MEDI-CAL MC OP'!L:L,MATCH(A74,'13. 2016 OSHPD MEDI-CAL MC OP'!A:A,0))*('6. FY 2021-22'!$BB76/'6. FY 2021-22'!$BE76),0)/2 -> 301382.382 | Z74: =IFERROR('3. VARIABLE INPUT'!$K$48*INDEX('13. CY2016 MEDI-CAL FFS DAYS'!Y:Y,MATCH(A74,'13. CY2016 MEDI-CAL FFS DAYS'!A:A,0))*('6. FY 2021-22'!$BB76/'6. FY 2021-22'!$BE76),0)/2 -> 7365.232566 | AA74: =IFERROR(INDEX('MC PT SA (CHA Only)'!K:K,MATCH(A74,'MC PT SA (CHA Only)'!A:A,0))*('6. FY 2021-22'!$BB76/'6. FY 2021-22'!$BE76),0)/2 -> 0 | AB74: 740043.1585 | AC74: 672244.826 | AD74: 1421232.367 | AE74: 2093477.193 | AF74: 2833520.351
A75: 106190636 | B75: 190636 | C75: 50382 | D75: 3 | E75: CITRUS VALLEY MEDICAL CENTER - QV CAMPUS | F75: =IFERROR('3. VARIABLE INPUT'!$C$46*INDEX('14. SFY 18-19 MIUR'!J:J,MATCH(A75,'14. SFY 18-19 MIUR'!A:A,0))*('4. FY 2019-20'!$BB77/'4. FY 2019-20'!$BE77),0) -> 6148354.145 | G75: =IFERROR('3. VARIABLE INPUT'!$C$47*INDEX('13. 2016 OSHPD MEDI-CAL MC OP'!L:L,MATCH(A75,'13. 2016 OSHPD MEDI-CAL MC OP'!A:A,0))*('4. FY 2019-20'!$BB77/'4. FY 2019-20'!$BE77),0) -> 5404235.168 | H75: =IFERROR('3. VARIABLE INPUT'!$C$48*INDEX('13. CY2016 MEDI-CAL FFS DAYS'!Y:Y,MATCH(A75,'13. CY2016 MEDI-CAL FFS DAYS'!A:A,0))*('4. FY 2019-20'!$BB77/'4. FY 2019-20'!$BE77),0) -> 6684849.75 | I75: =IFERROR(INDEX('MC PT SA (CHA Only)'!K:K,MATCH(A75,'MC PT SA (CHA Only)'!A:A,0))*('4. FY 2019-20'!$BB77/'4. FY 2019-20'!$BE77),0) -> 0 | J75: 18237439.06 | K75: 24802124.65 | L75: 9298183.281 | M75: 34100307.93 | N75: 52337746.99 | O75: =IFERROR('3. VARIABLE INPUT'!$G$46*INDEX('14. SFY 18-19 MIUR'!J:J,MATCH(A75,'14. SFY 18-19 MIUR'!A:A,0))*('5. FY 2020-21'!$BB77/'5. FY 2020-21'!$BE77),0) -> 6366507.339 | P75: =IFERROR('3. VARIABLE INPUT'!$G$47*INDEX('13. 2016 OSHPD MEDI-CAL MC OP'!L:L,MATCH(A75,'13. 2016 OSHPD MEDI-CAL MC OP'!A:A,0))*('5. FY 2020-21'!$BB77/'5. FY 2020-21'!$BE77),0) -> 4984492.641 | Q75: =IFERROR('3. VARIABLE INPUT'!$G$48*INDEX('13. CY2016 MEDI-CAL FFS DAYS'!Y:Y,MATCH(A75,'13. CY2016 MEDI-CAL FFS DAYS'!A:A,0))*('5. FY 2020-21'!$BB77/'5. FY 2020-21'!$BE77),0) -> 6896038.098 | R75: =IFERROR(INDEX('MC PT SA (CHA Only)'!K:K,MATCH(A75,'MC PT SA (CHA Only)'!A:A,0))*('5. FY 2020-21'!$BB77/'5. FY 2020-21'!$BE77),0) -> 0 | S75: 18247038.08 | T75: 25585675.5 | U75: 9591932.286 | V75: 35177607.79 | W75: 53424645.86 | X75: =IFERROR('3. VARIABLE INPUT'!$K$46*INDEX('14. SFY 18-19 MIUR'!J:J,MATCH(A75,'14. SFY 18-19 MIUR'!A:A,0))*('6. FY 2021-22'!$BB77/'6. FY 2021-22'!$BE77),0)/2 -> 3086496.547 | Y75: =IFERROR('3. VARIABLE INPUT'!$K$47*INDEX('13. 2016 OSHPD MEDI-CAL MC OP'!L:L,MATCH(A75,'13. 2016 OSHPD MEDI-CAL MC OP'!A:A,0))*('6. FY 2021-22'!$BB77/'6. FY 2021-22'!$BE77),0)/2 -> 2468181.386 | Z75: =IFERROR('3. VARIABLE INPUT'!$K$48*INDEX('13. CY2016 MEDI-CAL FFS DAYS'!Y:Y,MATCH(A75,'13. CY2016 MEDI-CAL FFS DAYS'!A:A,0))*('6. FY 2021-22'!$BB77/'6. FY 2021-22'!$BE77),0)/2 -> 3558076.896 | AA75: =IFERROR(INDEX('MC PT SA (CHA Only)'!K:K,MATCH(A75,'MC PT SA (CHA Only)'!A:A,0))*('6. FY 2021-22'!$BB77/'6. FY 2021-22'!$BE77),0)/2 -> 0 | AB75: 9112754.83 | AC75: 13201174.29 | AD75: 4949049.319 | AE75: 18150223.61 | AF75: 27262978.44
A76: 106190176 | B76: 190176 | C76: 50146 | D76: 3 | E76: CITY OF HOPE HELFORD CLINICAL RESEARCH HOSPITAL | F76: =IFERROR('3. VARIABLE INPUT'!$C$46*INDEX('14. SFY 18-19 MIUR'!J:J,MATCH(A76,'14. SFY 18-19 MIUR'!A:A,0))*('4. FY 2019-20'!$BB78/'4. FY 2019-20'!$BE78),0) -> 1395540.54 | G76: =IFERROR('3. VARIABLE INPUT'!$C$47*INDEX('13. 2016 OSHPD MEDI-CAL MC OP'!L:L,MATCH(A76,'13. 2016 OSHPD MEDI-CAL MC OP'!A:A,0))*('4. FY 2019-20'!$BB78/'4. FY 2019-20'!$BE78),0) -> 47491.43403 | H76: =IFERROR('3. VARIABLE INPUT'!$C$48*INDEX('13. CY2016 MEDI-CAL FFS DAYS'!Y:Y,MATCH(A76,'13. CY2016 MEDI-CAL FFS DAYS'!A:A,0))*('4. FY 2019-20'!$BB78/'4. FY 2019-20'!$BE78),0) -> 2826657.393 | I76: =IFERROR(INDEX('MC PT SA (CHA Only)'!K:K,MATCH(A76,'MC PT SA (CHA Only)'!A:A,0))*('4. FY 2019-20'!$BB78/'4. FY 2019-20'!$BE78),0) -> 0 | J76: 4269689.367 | K76: 2822883.329 | L76: 1234102.31 | M76: 4056985.639 | N76: 8326675.006 | O76: =IFERROR('3. VARIABLE INPUT'!$G$46*INDEX('14. SFY 18-19 MIUR'!J:J,MATCH(A76,'14. SFY 18-19 MIUR'!A:A,0))*('5. FY 2020-21'!$BB78/'5. FY 2020-21'!$BE78),0) -> 1445056.495 | P76: =IFERROR('3. VARIABLE INPUT'!$G$47*INDEX('13. 2016 OSHPD MEDI-CAL MC OP'!L:L,MATCH(A76,'13. 2016 OSHPD MEDI-CAL MC OP'!A:A,0))*('5. FY 2020-21'!$BB78/'5. FY 2020-21'!$BE78),0) -> 43802.81317 | Q76: =IFERROR('3. VARIABLE INPUT'!$G$48*INDEX('13. CY2016 MEDI-CAL FFS DAYS'!Y:Y,MATCH(A76,'13. CY2016 MEDI-CAL FFS DAYS'!A:A,0))*('5. FY 2020-21'!$BB78/'5. FY 2020-21'!$BE78),0) -> 2915957.397 | R76: =IFERROR(INDEX('MC PT SA (CHA Only)'!K:K,MATCH(A76,'MC PT SA (CHA Only)'!A:A,0))*('5. FY 2020-21'!$BB78/'5. FY 2020-21'!$BE78),0) -> 0 | S76: 4404816.705 | T76: 2912064.101 | U76: 1273090.176 | V76: 4185154.278 | W76: 8589970.982 | X76: =IFERROR('3. VARIABLE INPUT'!$K$46*INDEX('14. SFY 18-19 MIUR'!J:J,MATCH(A76,'14. SFY 18-19 MIUR'!A:A,0))*('6. FY 2021-22'!$BB78/'6. FY 2021-22'!$BE78),0)/2 -> 700566.5185 | Y76: =IFERROR('3. VARIABLE INPUT'!$K$47*INDEX('13. 2016 OSHPD MEDI-CAL MC OP'!L:L,MATCH(A76,'13. 2016 OSHPD MEDI-CAL MC OP'!A:A,0))*('6. FY 2021-22'!$BB78/'6. FY 2021-22'!$BE78),0)/2 -> 21689.92833 | Z76: =IFERROR('3. VARIABLE INPUT'!$K$48*INDEX('13. CY2016 MEDI-CAL FFS DAYS'!Y:Y,MATCH(A76,'13. CY2016 MEDI-CAL FFS DAYS'!A:A,0))*('6. FY 2021-22'!$BB78/'6. FY 2021-22'!$BE78),0)/2 -> 1504516.143 | AA76: =IFERROR(INDEX('MC PT SA (CHA Only)'!K:K,MATCH(A76,'MC PT SA (CHA Only)'!A:A,0))*('6. FY 2021-22'!$BB78/'6. FY 2021-22'!$BE78),0)/2 -> 0 | AB76: 2226772.59 | AC76: 1502507.36 | AD76: 656863.0681 | AE76: 2159370.428 | AF76: 4386143.018
A77: 106100005 | B77: 100005 | C77: 50492 | D77: 3 | E77: CLOVIS COMMUNITY MEDICAL CENTER | F77: =IFERROR('3. VARIABLE INPUT'!$C$46*INDEX('14. SFY 18-19 MIUR'!J:J,MATCH(A77,'14. SFY 18-19 MIUR'!A:A,0))*('4. FY 2019-20'!$BB79/'4. FY 2019-20'!$BE79),0) -> 3871096.674 | G77: =IFERROR('3. VARIABLE INPUT'!$C$47*INDEX('13. 2016 OSHPD MEDI-CAL MC OP'!L:L,MATCH(A77,'13. 2016 OSHPD MEDI-CAL MC OP'!A:A,0))*('4. FY 2019-20'!$BB79/'4. FY 2019-20'!$BE79),0) -> 2620910.857 | H77: =IFERROR('3. VARIABLE INPUT'!$C$48*INDEX('13. CY2016 MEDI-CAL FFS DAYS'!Y:Y,MATCH(A77,'13. CY2016 MEDI-CAL FFS DAYS'!A:A,0))*('4. FY 2019-20'!$BB79/'4. FY 2019-20'!$BE79),0) -> 884352.5356 | I77: =IFERROR(INDEX('MC PT SA (CHA Only)'!K:K,MATCH(A77,'MC PT SA (CHA Only)'!A:A,0))*('4. FY 2019-20'!$BB79/'4. FY 2019-20'!$BE79),0) -> 0 | J77: 7376360.067 | K77: 20180345.08 | L77: 5721441.043 | M77: 25901786.12 | N77: 33278146.19 | O77: =IFERROR('3. VARIABLE INPUT'!$G$46*INDEX('14. SFY 18-19 MIUR'!J:J,MATCH(A77,'14. SFY 18-19 MIUR'!A:A,0))*('5. FY 2020-21'!$BB79/'5. FY 2020-21'!$BE79),0) -> 4008449.222 | P77: =IFERROR('3. VARIABLE INPUT'!$G$47*INDEX('13. 2016 OSHPD MEDI-CAL MC OP'!L:L,MATCH(A77,'13. 2016 OSHPD MEDI-CAL MC OP'!A:A,0))*('5. FY 2020-21'!$BB79/'5. FY 2020-21'!$BE79),0) -> 2417346.854 | Q77: =IFERROR('3. VARIABLE INPUT'!$G$48*INDEX('13. CY2016 MEDI-CAL FFS DAYS'!Y:Y,MATCH(A77,'13. CY2016 MEDI-CAL FFS DAYS'!A:A,0))*('5. FY 2020-21'!$BB79/'5. FY 2020-21'!$BE79),0) -> 912291.0769 | R77: =IFERROR(INDEX('MC PT SA (CHA Only)'!K:K,MATCH(A77,'MC PT SA (CHA Only)'!A:A,0))*('5. FY 2020-21'!$BB79/'5. FY 2020-21'!$BE79),0) -> 0 | S77: 7338087.152 | T77: 20817884.27 | U77: 5902193.3 | V77: 26720077.58 | W77: 34058164.73 | X77: =IFERROR('3. VARIABLE INPUT'!$K$46*INDEX('14. SFY 18-19 MIUR'!J:J,MATCH(A77,'14. SFY 18-19 MIUR'!A:A,0))*('6. FY 2021-22'!$BB79/'6. FY 2021-22'!$BE79),0)/2 -> 1943304.865 | Y77: =IFERROR('3. VARIABLE INPUT'!$K$47*INDEX('13. 2016 OSHPD MEDI-CAL MC OP'!L:L,MATCH(A77,'13. 2016 OSHPD MEDI-CAL MC OP'!A:A,0))*('6. FY 2021-22'!$BB79/'6. FY 2021-22'!$BE79),0)/2 -> 1197002.571 | Z77: =IFERROR('3. VARIABLE INPUT'!$K$48*INDEX('13. CY2016 MEDI-CAL FFS DAYS'!Y:Y,MATCH(A77,'13. CY2016 MEDI-CAL FFS DAYS'!A:A,0))*('6. FY 2021-22'!$BB79/'6. FY 2021-22'!$BE79),0)/2 -> 470705.3176 | AA77: =IFERROR(INDEX('MC PT SA (CHA Only)'!K:K,MATCH(A77,'MC PT SA (CHA Only)'!A:A,0))*('6. FY 2021-22'!$BB79/'6. FY 2021-22'!$BE79),0)/2 -> 0 | AB77: 3611012.754 | AC77: 10741186.75 | AD77: 3045293.155 | AE77: 13786479.91 | AF77: 17397492.66
A78: 106190766 | B78: 190766 | C78: 50771 | D78: 3 | E78: COAST PLAZA HOSPITAL | F78: =IFERROR('3. VARIABLE INPUT'!$C$46*INDEX('14. SFY 18-19 MIUR'!J:J,MATCH(A78,'14. SFY 18-19 MIUR'!A:A,0))*('4. FY 2019-20'!$BB80/'4. FY 2019-20'!$BE80),0) -> 836360.22 | G78: =IFERROR('3. VARIABLE INPUT'!$C$47*INDEX('13. 2016 OSHPD MEDI-CAL MC OP'!L:L,MATCH(A78,'13. 2016 OSHPD MEDI-CAL MC OP'!A:A,0))*('4. FY 2019-20'!$BB80/'4. FY 2019-20'!$BE80),0) -> 626905.0556 | H78: =IFERROR('3. VARIABLE INPUT'!$C$48*INDEX('13. CY2016 MEDI-CAL FFS DAYS'!Y:Y,MATCH(A78,'13. CY2016 MEDI-CAL FFS DAYS'!A:A,0))*('4. FY 2019-20'!$BB80/'4. FY 2019-20'!$BE80),0) -> 5031.87787 | I78: =IFERROR(INDEX('MC PT SA (CHA Only)'!K:K,MATCH(A78,'MC PT SA (CHA Only)'!A:A,0))*('4. FY 2019-20'!$BB80/'4. FY 2019-20'!$BE80),0) -> 0 | J78: 1468297.153 | K78: 3464447.721 | L78: 869190.4432 | M78: 4333638.165 | N78: 5801935.318 | O78: =IFERROR('3. VARIABLE INPUT'!$G$46*INDEX('14. SFY 18-19 MIUR'!J:J,MATCH(A78,'14. SFY 18-19 MIUR'!A:A,0))*('5. FY 2020-21'!$BB80/'5. FY 2020-21'!$BE80),0) -> 866035.585 | P78: =IFERROR('3. VARIABLE INPUT'!$G$47*INDEX('13. 2016 OSHPD MEDI-CAL MC OP'!L:L,MATCH(A78,'13. 2016 OSHPD MEDI-CAL MC OP'!A:A,0))*('5. FY 2020-21'!$BB80/'5. FY 2020-21'!$BE80),0) -> 578213.8525 | Q78: =IFERROR('3. VARIABLE INPUT'!$G$48*INDEX('13. CY2016 MEDI-CAL FFS DAYS'!Y:Y,MATCH(A78,'13. CY2016 MEDI-CAL FFS DAYS'!A:A,0))*('5. FY 2020-21'!$BB80/'5. FY 2020-21'!$BE80),0) -> 5190.845388 | R78: =IFERROR(INDEX('MC PT SA (CHA Only)'!K:K,MATCH(A78,'MC PT SA (CHA Only)'!A:A,0))*('5. FY 2020-21'!$BB80/'5. FY 2020-21'!$BE80),0) -> 0 | S78: 1449440.283 | T78: 3573896.852 | U78: 896649.9824 | V78: 4470546.834 | W78: 5919987.117 | X78: =IFERROR('3. VARIABLE INPUT'!$K$46*INDEX('14. SFY 18-19 MIUR'!J:J,MATCH(A78,'14. SFY 18-19 MIUR'!A:A,0))*('6. FY 2021-22'!$BB80/'6. FY 2021-22'!$BE80),0)/2 -> 419855.9273 | Y78: =IFERROR('3. VARIABLE INPUT'!$K$47*INDEX('13. 2016 OSHPD MEDI-CAL MC OP'!L:L,MATCH(A78,'13. 2016 OSHPD MEDI-CAL MC OP'!A:A,0))*('6. FY 2021-22'!$BB80/'6. FY 2021-22'!$BE80),0)/2 -> 286315.3326 | Z78: =IFERROR('3. VARIABLE INPUT'!$K$48*INDEX('13. CY2016 MEDI-CAL FFS DAYS'!Y:Y,MATCH(A78,'13. CY2016 MEDI-CAL FFS DAYS'!A:A,0))*('6. FY 2021-22'!$BB80/'6. FY 2021-22'!$BE80),0)/2 -> 2678.266388 | AA78: =IFERROR(INDEX('MC PT SA (CHA Only)'!K:K,MATCH(A78,'MC PT SA (CHA Only)'!A:A,0))*('6. FY 2021-22'!$BB80/'6. FY 2021-22'!$BE80),0)/2 -> 0 | AB78: 708849.5263 | AC78: 1843986.306 | AD78: 462635.1451 | AE78: 2306621.451 | AF78: 3015470.977
A79: 106190184 | B79: 190184 | C79: 54055 | D79: 3 | E79: COLLEGE HOSPITAL | F79: =IFERROR('3. VARIABLE INPUT'!$C$46*INDEX('14. SFY 18-19 MIUR'!J:J,MATCH(A79,'14. SFY 18-19 MIUR'!A:A,0))*('4. FY 2019-20'!$BB81/'4. FY 2019-20'!$BE81),0) -> 0 | G79: =IFERROR('3. VARIABLE INPUT'!$C$47*INDEX('13. 2016 OSHPD MEDI-CAL MC OP'!L:L,MATCH(A79,'13. 2016 OSHPD MEDI-CAL MC OP'!A:A,0))*('4. FY 2019-20'!$BB81/'4. FY 2019-20'!$BE81),0) -> 0 | H79: =IFERROR('3. VARIABLE INPUT'!$C$48*INDEX('13. CY2016 MEDI-CAL FFS DAYS'!Y:Y,MATCH(A79,'13. CY2016 MEDI-CAL FFS DAYS'!A:A,0))*('4. FY 2019-20'!$BB81/'4. FY 2019-20'!$BE81),0) -> 0 | I79: =IFERROR(INDEX('MC PT SA (CHA Only)'!K:K,MATCH(A79,'MC PT SA (CHA Only)'!A:A,0))*('4. FY 2019-20'!$BB81/'4. FY 2019-20'!$BE81),0) -> 0 | J79: 0 | K79: 0 | L79: 0 | M79: 0 | N79: 0 | O79: =IFERROR('3. VARIABLE INPUT'!$G$46*INDEX('14. SFY 18-19 MIUR'!J:J,MATCH(A79,'14. SFY 18-19 MIUR'!A:A,0))*('5. FY 2020-21'!$BB81/'5. FY 2020-21'!$BE81),0) -> 0 | P79: =IFERROR('3. VARIABLE INPUT'!$G$47*INDEX('13. 2016 OSHPD MEDI-CAL MC OP'!L:L,MATCH(A79,'13. 2016 OSHPD MEDI-CAL MC OP'!A:A,0))*('5. FY 2020-21'!$BB81/'5. FY 2020-21'!$BE81),0) -> 0 | Q79: =IFERROR('3. VARIABLE INPUT'!$G$48*INDEX('13. CY2016 MEDI-CAL FFS DAYS'!Y:Y,MATCH(A79,'13. CY2016 MEDI-CAL FFS DAYS'!A:A,0))*('5. FY 2020-21'!$BB81/'5. FY 2020-21'!$BE81),0) -> 0 | R79: =IFERROR(INDEX('MC PT SA (CHA Only)'!K:K,MATCH(A79,'MC PT SA (CHA Only)'!A:A,0))*('5. FY 2020-21'!$BB81/'5. FY 2020-21'!$BE81),0) -> 0 | S79: 0 | T79: 0 | U79: 0 | V79: 0 | W79: 0 | X79: =IFERROR('3. VARIABLE INPUT'!$K$46*INDEX('14. SFY 18-19 MIUR'!J:J,MATCH(A79,'14. SFY 18-19 MIUR'!A:A,0))*('6. FY 2021-22'!$BB81/'6. FY 2021-22'!$BE81),0)/2 -> 0 | Y79: =IFERROR('3. VARIABLE INPUT'!$K$47*INDEX('13. 2016 OSHPD MEDI-CAL MC OP'!L:L,MATCH(A79,'13. 2016 OSHPD MEDI-CAL MC OP'!A:A,0))*('6. FY 2021-22'!$BB81/'6. FY 2021-22'!$BE81),0)/2 -> 0 | Z79: =IFERROR('3. VARIABLE INPUT'!$K$48*INDEX('13. CY2016 MEDI-CAL FFS DAYS'!Y:Y,MATCH(A79,'13. CY2016 MEDI-CAL FFS DAYS'!A:A,0))*('6. FY 2021-22'!$BB81/'6. FY 2021-22'!$BE81),0)/2 -> 0 | AA79: =IFERROR(INDEX('MC PT SA (CHA Only)'!K:K,MATCH(A79,'MC PT SA (CHA Only)'!A:A,0))*('6. FY 2021-22'!$BB81/'6. FY 2021-22'!$BE81),0)/2 -> 0 | AB79: 0 | AC79: 0 | AD79: 0 | AE79: 0 | AF79: 0
A80: 106301155 | B80: 301155 | C80: 50543 | D80: 3 | E80: COLLEGE HOSPITAL COSTA MESA | F80: =IFERROR('3. VARIABLE INPUT'!$C$46*INDEX('14. SFY 18-19 MIUR'!J:J,MATCH(A80,'14. SFY 18-19 MIUR'!A:A,0))*('4. FY 2019-20'!$BB82/'4. FY 2019-20'!$BE82),0) -> 5973062.509 | G80: =IFERROR('3. VARIABLE INPUT'!$C$47*INDEX('13. 2016 OSHPD MEDI-CAL MC OP'!L:L,MATCH(A80,'13. 2016 OSHPD MEDI-CAL MC OP'!A:A,0))*('4. FY 2019-20'!$BB82/'4. FY 2019-20'!$BE82),0) -> 0 | H80: =IFERROR('3. VARIABLE INPUT'!$C$48*INDEX('13. CY2016 MEDI-CAL FFS DAYS'!Y:Y,MATCH(A80,'13. CY2016 MEDI-CAL FFS DAYS'!A:A,0))*('4. FY 2019-20'!$BB82/'4. FY 2019-20'!$BE82),0) -> 34290989.71 | I80: =IFERROR(INDEX('MC PT SA (CHA Only)'!K:K,MATCH(A80,'MC PT SA (CHA Only)'!A:A,0))*('4. FY 2019-20'!$BB82/'4. FY 2019-20'!$BE82),0) -> 0 | J80: 40264052.22 | K80: 437773.3504 | L80: 0 | M80: 437773.3504 | N80: 40701825.57 | O80: =IFERROR('3. VARIABLE INPUT'!$G$46*INDEX('14. SFY 18-19 MIUR'!J:J,MATCH(A80,'14. SFY 18-19 MIUR'!A:A,0))*('5. FY 2020-21'!$BB82/'5. FY 2020-21'!$BE82),0) -> 6184996.082 | P80: =IFERROR('3. VARIABLE INPUT'!$G$47*INDEX('13. 2016 OSHPD MEDI-CAL MC OP'!L:L,MATCH(A80,'13. 2016 OSHPD MEDI-CAL MC OP'!A:A,0))*('5. FY 2020-21'!$BB82/'5. FY 2020-21'!$BE82),0) -> 0 | Q80: =IFERROR('3. VARIABLE INPUT'!$G$48*INDEX('13. CY2016 MEDI-CAL FFS DAYS'!Y:Y,MATCH(A80,'13. CY2016 MEDI-CAL FFS DAYS'!A:A,0))*('5. FY 2020-21'!$BB82/'5. FY 2020-21'!$BE82),0) -> 35374313.61 | R80: =IFERROR(INDEX('MC PT SA (CHA Only)'!K:K,MATCH(A80,'MC PT SA (CHA Only)'!A:A,0))*('5. FY 2020-21'!$BB82/'5. FY 2020-21'!$BE82),0) -> 0 | S80: 41559309.69 | T80: 451603.5237 | U80: 0 | V80: 451603.5237 | W80: =SUM(S80,V80) -> 42010913.21 | X80: =IFERROR('3. VARIABLE INPUT'!$K$46*INDEX('14. SFY 18-19 MIUR'!J:J,MATCH(A80,'14. SFY 18-19 MIUR'!A:A,0))*('6. FY 2021-22'!$BB82/'6. FY 2021-22'!$BE82),0)/2 -> 2998499.497 | Y80: =IFERROR('3. VARIABLE INPUT'!$K$47*INDEX('13. 2016 OSHPD MEDI-CAL MC OP'!L:L,MATCH(A80,'13. 2016 OSHPD MEDI-CAL MC OP'!A:A,0))*('6. FY 2021-22'!$BB82/'6. FY 2021-22'!$BE82),0)/2 -> 0 | Z80: =IFERROR('3. VARIABLE INPUT'!$K$48*INDEX('13. CY2016 MEDI-CAL FFS DAYS'!Y:Y,MATCH(A80,'13. CY2016 MEDI-CAL FFS DAYS'!A:A,0))*('6. FY 2021-22'!$BB82/'6. FY 2021-22'!$BE82),0)/2 -> 18251715.86 | AA80: =IFERROR(INDEX('MC PT SA (CHA Only)'!K:K,MATCH(A80,'MC PT SA (CHA Only)'!A:A,0))*('6. FY 2021-22'!$BB82/'6. FY 2021-22'!$BE82),0)/2 -> 0 | AB80: 21250215.36 | AC80: 233009.1628 | AD80: 0 | AE80: 233009.1628 | AF80: =SUM(AB80,AE80) -> 21483224.52
A81: 106190587 | B81: 190587 | C81: 50776 | D81: 3 | E81: COLLEGE MEDICAL CENTER | F81: =IFERROR('3. VARIABLE INPUT'!$C$46*INDEX('14. SFY 18-19 MIUR'!J:J,MATCH(A81,'14. SFY 18-19 MIUR'!A:A,0))*('4. FY 2019-20'!$BB83/'4. FY 2019-20'!$BE83),0) -> 8034626.47 | G81: =IFERROR('3. VARIABLE INPUT'!$C$47*INDEX('13. 2016 OSHPD MEDI-CAL MC OP'!L:L,MATCH(A81,'13. 2016 OSHPD MEDI-CAL MC OP'!A:A,0))*('4. FY 2019-20'!$BB83/'4. FY 2019-20'!$BE83),0) -> 582585.7594 | H81: =IFERROR('3. VARIABLE INPUT'!$C$48*INDEX('13. CY2016 MEDI-CAL FFS DAYS'!Y:Y,MATCH(A81,'13. CY2016 MEDI-CAL FFS DAYS'!A:A,0))*('4. FY 2019-20'!$BB83/'4. FY 2019-20'!$BE83),0) -> 46219056.2 | I81: =IFERROR(INDEX('MC PT SA (CHA Only)'!K:K,MATCH(A81,'MC PT SA (CHA Only)'!A:A,0))*('4. FY 2019-20'!$BB83/'4. FY 2019-20'!$BE83),0) -> 0 | J81: =SUM(F81:I81) -> 54836268.43 | K81: 2936100.574 | L81: 756081.2298 | M81: =SUM(K81:L81) -> 3692181.804 | N81: =SUM(J81,M81) -> 58528450.24 | O81: =IFERROR('3. VARIABLE INPUT'!$G$46*INDEX('14. SFY 18-19 MIUR'!J:J,MATCH(A81,'14. SFY 18-19 MIUR'!A:A,0))*('5. FY 2020-21'!$BB83/'5. FY 2020-21'!$BE83),0) -> 8319707.548 | P81: =IFERROR('3. VARIABLE INPUT'!$G$47*INDEX('13. 2016 OSHPD MEDI-CAL MC OP'!L:L,MATCH(A81,'13. 2016 OSHPD MEDI-CAL MC OP'!A:A,0))*('5. FY 2020-21'!$BB83/'5. FY 2020-21'!$BE83),0) -> 537336.7997 | Q81: =IFERROR('3. VARIABLE INPUT'!$G$48*INDEX('13. CY2016 MEDI-CAL FFS DAYS'!Y:Y,MATCH(A81,'13. CY2016 MEDI-CAL FFS DAYS'!A:A,0))*('5. FY 2020-21'!$BB83/'5. FY 2020-21'!$BE83),0) -> 47679212.6 | R81: =IFERROR(INDEX('MC PT SA (CHA Only)'!K:K,MATCH(A81,'MC PT SA (CHA Only)'!A:A,0))*('5. FY 2020-21'!$BB83/'5. FY 2020-21'!$BE83),0) -> 0 | S81: =SUM(O81:R81) -> 56536256.95 | T81: 3028858.116 | U81: 779967.413 | V81: =SUM(T81:U81) -> 3808825.529 | W81: 60345082.48 | X81: =IFERROR('3. VARIABLE INPUT'!$K$46*INDEX('14. SFY 18-19 MIUR'!J:J,MATCH(A81,'14. SFY 18-19 MIUR'!A:A,0))*('6. FY 2021-22'!$BB83/'6. FY 2021-22'!$BE83),0)/2 -> 4033412.239 | Y81: =IFERROR('3. VARIABLE INPUT'!$K$47*INDEX('13. 2016 OSHPD MEDI-CAL MC OP'!L:L,MATCH(A81,'13. 2016 OSHPD MEDI-CAL MC OP'!A:A,0))*('6. FY 2021-22'!$BB83/'6. FY 2021-22'!$BE83),0)/2 -> 266074.159 | Z81: =IFERROR('3. VARIABLE INPUT'!$K$48*INDEX('13. CY2016 MEDI-CAL FFS DAYS'!Y:Y,MATCH(A81,'13. CY2016 MEDI-CAL FFS DAYS'!A:A,0))*('6. FY 2021-22'!$BB83/'6. FY 2021-22'!$BE83),0)/2 -> 24600546.34 | AA81: =IFERROR(INDEX('MC PT SA (CHA Only)'!K:K,MATCH(A81,'MC PT SA (CHA Only)'!A:A,0))*('6. FY 2021-22'!$BB83/'6. FY 2021-22'!$BE83),0)/2 -> 0 | AB81: =SUM(X81:AA81) -> 28900032.73 | AC81: 1562768.351 | AD81: 402431.656 | AE81: =SUM(AC81:AD81) -> 1965200.007 | AF81: 30865232.74
A82: 106361458 | B82: 361458 | C82: 51323 | D82: 3 | E82: COLORADO RIVER MEDICAL CENTER | F82: =IFERROR('3. VARIABLE INPUT'!$C$46*INDEX('14. SFY 18-19 MIUR'!J:J,MATCH(A82,'14. SFY 18-19 MIUR'!A:A,0))*('4. FY 2019-20'!$BB84/'4. FY 2019-20'!$BE84),0) -> 7449.894545 | G82: =IFERROR('3. VARIABLE INPUT'!$C$47*INDEX('13. 2016 OSHPD MEDI-CAL MC OP'!L:L,MATCH(A82,'13. 2016 OSHPD MEDI-CAL MC OP'!A:A,0))*('4. FY 2019-20'!$BB84/'4. FY 2019-20'!$BE84),0) -> 0 | H82: =IFERROR('3. VARIABLE INPUT'!$C$48*INDEX('13. CY2016 MEDI-CAL FFS DAYS'!Y:Y,MATCH(A82,'13. CY2016 MEDI-CAL FFS DAYS'!A:A,0))*('4. FY 2019-20'!$BB84/'4. FY 2019-20'!$BE84),0) -> 0 | I82: =IFERROR(INDEX('MC PT SA (CHA Only)'!K:K,MATCH(A82,'MC PT SA (CHA Only)'!A:A,0))*('4. FY 2019-20'!$BB84/'4. FY 2019-20'!$BE84),0) -> 0 | J82: 7449.894545 | K82: 0 | L82: 0 | M82: 0 | N82: 7449.894545 | O82: =IFERROR('3. VARIABLE INPUT'!$G$46*INDEX('14. SFY 18-19 MIUR'!J:J,MATCH(A82,'14. SFY 18-19 MIUR'!A:A,0))*('5. FY 2020-21'!$BB84/'5. FY 2020-21'!$BE84),0) -> 7714.228422 | P82: =IFERROR('3. VARIABLE INPUT'!$G$47*INDEX('13. 2016 OSHPD MEDI-CAL MC OP'!L:L,MATCH(A82,'13. 2016 OSHPD MEDI-CAL MC OP'!A:A,0))*('5. FY 2020-21'!$BB84/'5. FY 2020-21'!$BE84),0) -> 0 | Q82: =IFERROR('3. VARIABLE INPUT'!$G$48*INDEX('13. CY2016 MEDI-CAL FFS DAYS'!Y:Y,MATCH(A82,'13. CY2016 MEDI-CAL FFS DAYS'!A:A,0))*('5. FY 2020-21'!$BB84/'5. FY 2020-21'!$BE84),0) -> 0 | R82: =IFERROR(INDEX('MC PT SA (CHA Only)'!K:K,MATCH(A82,'MC PT SA (CHA Only)'!A:A,0))*('5. FY 2020-21'!$BB84/'5. FY 2020-21'!$BE84),0) -> 0 | S82: 7714.228422 | T82: 0 | U82: 0 | V82: 0 | W82: 7714.228422 | X82: =IFERROR('3. VARIABLE INPUT'!$K$46*INDEX('14. SFY 18-19 MIUR'!J:J,MATCH(A82,'14. SFY 18-19 MIUR'!A:A,0))*('6. FY 2021-22'!$BB84/'6. FY 2021-22'!$BE84),0)/2 -> 3739.874648 | Y82: =IFERROR('3. VARIABLE INPUT'!$K$47*INDEX('13. 2016 OSHPD MEDI-CAL MC OP'!L:L,MATCH(A82,'13. 2016 OSHPD MEDI-CAL MC OP'!A:A,0))*('6. FY 2021-22'!$BB84/'6. FY 2021-22'!$BE84),0)/2 -> 0 | Z82: =IFERROR('3. VARIABLE INPUT'!$K$48*INDEX('13. CY2016 MEDI-CAL FFS DAYS'!Y:Y,MATCH(A82,'13. CY2016 MEDI-CAL FFS DAYS'!A:A,0))*('6. FY 2021-22'!$BB84/'6. FY 2021-22'!$BE84),0)/2 -> 0 | AA82: =IFERROR(INDEX('MC PT SA (CHA Only)'!K:K,MATCH(A82,'MC PT SA (CHA Only)'!A:A,0))*('6. FY 2021-22'!$BB84/'6. FY 2021-22'!$BE84),0)/2 -> 0 | AB82: 3739.874648 | AC82: 0 | AD82: 0 | AE82: 0 | AF82: 3739.874648
A83: 106190475 | B83: 190475 | C83: 50727 | D83: 3 | E83: COMMUNITY HOSPITAL LONG BEACH | F83: =IFERROR('3. VARIABLE INPUT'!$C$46*INDEX('14. SFY 18-19 MIUR'!J:J,MATCH(A83,'14. SFY 18-19 MIUR'!A:A,0))*('4. FY 2019-20'!$BB85/'4. FY 2019-20'!$BE85),0) -> 691306.3909 | G83: =IFERROR('3. VARIABLE INPUT'!$C$47*INDEX('13. 2016 OSHPD MEDI-CAL MC OP'!L:L,MATCH(A83,'13. 2016 OSHPD MEDI-CAL MC OP'!A:A,0))*('4. FY 2019-20'!$BB85/'4. FY 2019-20'!$BE85),0) -> 1099100.421 | H83: =IFERROR('3. VARIABLE INPUT'!$C$48*INDEX('13. CY2016 MEDI-CAL FFS DAYS'!Y:Y,MATCH(A83,'13. CY2016 MEDI-CAL FFS DAYS'!A:A,0))*('4. FY 2019-20'!$BB85/'4. FY 2019-20'!$BE85),0) -> 20127.51148 | I83: =IFERROR(INDEX('MC PT SA (CHA Only)'!K:K,MATCH(A83,'MC PT SA (CHA Only)'!A:A,0))*('4. FY 2019-20'!$BB85/'4. FY 2019-20'!$BE85),0) -> 0 | J83: 1810534.323 | K83: 2422849.06 | L83: 1902658.553 | M83: 4325507.614 | N83: 6136041.937 | O83: =IFERROR('3. VARIABLE INPUT'!$G$46*INDEX('14. SFY 18-19 MIUR'!J:J,MATCH(A83,'14. SFY 18-19 MIUR'!A:A,0))*('5. FY 2020-21'!$BB85/'5. FY 2020-21'!$BE85),0) -> 715835.0198 | P83: =IFERROR('3. VARIABLE INPUT'!$G$47*INDEX('13. 2016 OSHPD MEDI-CAL MC OP'!L:L,MATCH(A83,'13. 2016 OSHPD MEDI-CAL MC OP'!A:A,0))*('5. FY 2020-21'!$BB85/'5. FY 2020-21'!$BE85),0) -> 1013734.19 | Q83: =IFERROR('3. VARIABLE INPUT'!$G$48*INDEX('13. CY2016 MEDI-CAL FFS DAYS'!Y:Y,MATCH(A83,'13. CY2016 MEDI-CAL FFS DAYS'!A:A,0))*('5. FY 2020-21'!$BB85/'5. FY 2020-21'!$BE85),0) -> 20763.38155 | R83: =IFERROR(INDEX('MC PT SA (CHA Only)'!K:K,MATCH(A83,'MC PT SA (CHA Only)'!A:A,0))*('5. FY 2020-21'!$BB85/'5. FY 2020-21'!$BE85),0) -> 0 | S83: 1750332.591 | T83: 2499391.916 | U83: 1962767.506 | V83: 4462159.422 | W83: 6212492.013 | X83: =IFERROR('3. VARIABLE INPUT'!$K$46*INDEX('14. SFY 18-19 MIUR'!J:J,MATCH(A83,'14. SFY 18-19 MIUR'!A:A,0))*('6. FY 2021-22'!$BB85/'6. FY 2021-22'!$BE85),0)/2 -> 347038.368 | Y83: =IFERROR('3. VARIABLE INPUT'!$K$47*INDEX('13. 2016 OSHPD MEDI-CAL MC OP'!L:L,MATCH(A83,'13. 2016 OSHPD MEDI-CAL MC OP'!A:A,0))*('6. FY 2021-22'!$BB85/'6. FY 2021-22'!$BE85),0)/2 -> 501972.8261 | Z83: =IFERROR('3. VARIABLE INPUT'!$K$48*INDEX('13. CY2016 MEDI-CAL FFS DAYS'!Y:Y,MATCH(A83,'13. CY2016 MEDI-CAL FFS DAYS'!A:A,0))*('6. FY 2021-22'!$BB85/'6. FY 2021-22'!$BE85),0)/2 -> 10713.06555 | AA83: =IFERROR(INDEX('MC PT SA (CHA Only)'!K:K,MATCH(A83,'MC PT SA (CHA Only)'!A:A,0))*('6. FY 2021-22'!$BB85/'6. FY 2021-22'!$BE85),0)/2 -> 0 | AB83: 859724.2596 | AC83: 1289585.194 | AD83: 1012708.691 | AE83: 2302293.885 | AF83: 3162018.145
A84: 106190197 | B84: 190197 | C84: 50091 | D84: 3 | E84: COMMUNITY HOSPITAL OF HUNTINGTON PARK | F84: =IFERROR('3. VARIABLE INPUT'!$C$46*INDEX('14. SFY 18-19 MIUR'!J:J,MATCH(A84,'14. SFY 18-19 MIUR'!A:A,0))*('4. FY 2019-20'!$BB86/'4. FY 2019-20'!$BE86),0) -> 905819.5309 | G84: =IFERROR('3. VARIABLE INPUT'!$C$47*INDEX('13. 2016 OSHPD MEDI-CAL MC OP'!L:L,MATCH(A84,'13. 2016 OSHPD MEDI-CAL MC OP'!A:A,0))*('4. FY 2019-20'!$BB86/'4. FY 2019-20'!$BE86),0) -> 1830595.39 | H84: =IFERROR('3. VARIABLE INPUT'!$C$48*INDEX('13. CY2016 MEDI-CAL FFS DAYS'!Y:Y,MATCH(A84,'13. CY2016 MEDI-CAL FFS DAYS'!A:A,0))*('4. FY 2019-20'!$BB86/'4. FY 2019-20'!$BE86),0) -> 11321.72521 | I84: =IFERROR(INDEX('MC PT SA (CHA Only)'!K:K,MATCH(A84,'MC PT SA (CHA Only)'!A:A,0))*('4. FY 2019-20'!$BB86/'4. FY 2019-20'!$BE86),0) -> 0 | J84: 2747736.646 | K84: 4347542.239 | L84: 2411986.648 | M84: 6759528.887 | N84: 9507265.533 | O84: =IFERROR('3. VARIABLE INPUT'!$G$46*INDEX('14. SFY 18-19 MIUR'!J:J,MATCH(A84,'14. SFY 18-19 MIUR'!A:A,0))*('5. FY 2020-21'!$BB86/'5. FY 2020-21'!$BE86),0) -> 937959.4205 | P84: =IFERROR('3. VARIABLE INPUT'!$G$47*INDEX('13. 2016 OSHPD MEDI-CAL MC OP'!L:L,MATCH(A84,'13. 2016 OSHPD MEDI-CAL MC OP'!A:A,0))*('5. FY 2020-21'!$BB86/'5. FY 2020-21'!$BE86),0) -> 1688414.543 | Q84: =IFERROR('3. VARIABLE INPUT'!$G$48*INDEX('13. CY2016 MEDI-CAL FFS DAYS'!Y:Y,MATCH(A84,'13. CY2016 MEDI-CAL FFS DAYS'!A:A,0))*('5. FY 2020-21'!$BB86/'5. FY 2020-21'!$BE86),0) -> 11679.40212 | R84: =IFERROR(INDEX('MC PT SA (CHA Only)'!K:K,MATCH(A84,'MC PT SA (CHA Only)'!A:A,0))*('5. FY 2020-21'!$BB86/'5. FY 2020-21'!$BE86),0) -> 0 | S84: 2638053.365 | T84: 4484890.167 | U84: 2488186.338 | V84: 6973076.504 | W84: 9611129.87 | X84: =IFERROR('3. VARIABLE INPUT'!$K$46*INDEX('14. SFY 18-19 MIUR'!J:J,MATCH(A84,'14. SFY 18-19 MIUR'!A:A,0))*('6. FY 2021-22'!$BB86/'6. FY 2021-22'!$BE86),0)/2 -> 454724.7586 | Y84: =IFERROR('3. VARIABLE INPUT'!$K$47*INDEX('13. 2016 OSHPD MEDI-CAL MC OP'!L:L,MATCH(A84,'13. 2016 OSHPD MEDI-CAL MC OP'!A:A,0))*('6. FY 2021-22'!$BB86/'6. FY 2021-22'!$BE86),0)/2 -> 836055.6725 | Z84: =IFERROR('3. VARIABLE INPUT'!$K$48*INDEX('13. CY2016 MEDI-CAL FFS DAYS'!Y:Y,MATCH(A84,'13. CY2016 MEDI-CAL FFS DAYS'!A:A,0))*('6. FY 2021-22'!$BB86/'6. FY 2021-22'!$BE86),0)/2 -> 6026.099372 | AA84: =IFERROR(INDEX('MC PT SA (CHA Only)'!K:K,MATCH(A84,'MC PT SA (CHA Only)'!A:A,0))*('6. FY 2021-22'!$BB86/'6. FY 2021-22'!$BE86),0)/2 -> 0 | AB84: 1296806.531 | AC84: 2314022.031 | AD84: 1283803.569 | AE84: 3597825.599 | AF84: 4894632.13
A85: 106361323 | B85: 361323 | C85: 50089 | D85: 3 | E85: COMMUNITY HOSPITAL OF SAN BERNARDINO | F85: =IFERROR('3. VARIABLE INPUT'!$C$46*INDEX('14. SFY 18-19 MIUR'!J:J,MATCH(A85,'14. SFY 18-19 MIUR'!A:A,0))*('4. FY 2019-20'!$BB87/'4. FY 2019-20'!$BE87),0) -> 3417091.336 | G85: =IFERROR('3. VARIABLE INPUT'!$C$47*INDEX('13. 2016 OSHPD MEDI-CAL MC OP'!L:L,MATCH(A85,'13. 2016 OSHPD MEDI-CAL MC OP'!A:A,0))*('4. FY 2019-20'!$BB87/'4. FY 2019-20'!$BE87),0) -> 3394368.678 | H85: =IFERROR('3. VARIABLE INPUT'!$C$48*INDEX('13. CY2016 MEDI-CAL FFS DAYS'!Y:Y,MATCH(A85,'13. CY2016 MEDI-CAL FFS DAYS'!A:A,0))*('4. FY 2019-20'!$BB87/'4. FY 2019-20'!$BE87),0) -> 10577007.28 | I85: =IFERROR(INDEX('MC PT SA (CHA Only)'!K:K,MATCH(A85,'MC PT SA (CHA Only)'!A:A,0))*('4. FY 2019-20'!$BB87/'4. FY 2019-20'!$BE87),0) -> 4717222 | J85: 22105689.3 | K85: 15301939.75 | L85: 7384079.153 | M85: 22686018.91 | N85: 44791708.2 | O85: =IFERROR('3. VARIABLE INPUT'!$G$46*INDEX('14. SFY 18-19 MIUR'!J:J,MATCH(A85,'14. SFY 18-19 MIUR'!A:A,0))*('5. FY 2020-21'!$BB87/'5. FY 2020-21'!$BE87),0) -> 3538335.066 | P85: =IFERROR('3. VARIABLE INPUT'!$G$47*INDEX('13. 2016 OSHPD MEDI-CAL MC OP'!L:L,MATCH(A85,'13. 2016 OSHPD MEDI-CAL MC OP'!A:A,0))*('5. FY 2020-21'!$BB87/'5. FY 2020-21'!$BE87),0) -> 3130730.838 | Q85: =IFERROR('3. VARIABLE INPUT'!$G$48*INDEX('13. CY2016 MEDI-CAL FFS DAYS'!Y:Y,MATCH(A85,'13. CY2016 MEDI-CAL FFS DAYS'!A:A,0))*('5. FY 2020-21'!$BB87/'5. FY 2020-21'!$BE87),0) -> 10911157.01 | R85: =IFERROR(INDEX('MC PT SA (CHA Only)'!K:K,MATCH(A85,'MC PT SA (CHA Only)'!A:A,0))*('5. FY 2020-21'!$BB87/'5. FY 2020-21'!$BE87),0) -> 4717222 | S85: 22297444.91 | T85: 15785359.95 | U85: 7617357.616 | V85: 23402717.57 | W85: 45700162.47 | X85: =IFERROR('3. VARIABLE INPUT'!$K$46*INDEX('14. SFY 18-19 MIUR'!J:J,MATCH(A85,'14. SFY 18-19 MIUR'!A:A,0))*('6. FY 2021-22'!$BB87/'6. FY 2021-22'!$BE87),0)/2 -> 1715392.504 | Y85: =IFERROR('3. VARIABLE INPUT'!$K$47*INDEX('13. 2016 OSHPD MEDI-CAL MC OP'!L:L,MATCH(A85,'13. 2016 OSHPD MEDI-CAL MC OP'!A:A,0))*('6. FY 2021-22'!$BB87/'6. FY 2021-22'!$BE87),0)/2 -> 1550250.374 | Z85: =IFERROR('3. VARIABLE INPUT'!$K$48*INDEX('13. CY2016 MEDI-CAL FFS DAYS'!Y:Y,MATCH(A85,'13. CY2016 MEDI-CAL FFS DAYS'!A:A,0))*('6. FY 2021-22'!$BB87/'6. FY 2021-22'!$BE87),0)/2 -> 5629715.947 | AA85: =IFERROR(INDEX('MC PT SA (CHA Only)'!K:K,MATCH(A85,'MC PT SA (CHA Only)'!A:A,0))*('6. FY 2021-22'!$BB87/'6. FY 2021-22'!$BE87),0)/2 -> 2358611 | AB85: 11253969.82 | AC85: 8144607.633 | AD85: 3930248.609 | AE85: 12074856.24 | AF85: 23328826.07
